Workbook

Sheet Instructions
E3: Dried distillers grains with solubles (DDGS) calculator for finishing pigs
E6: Created by the KSU Applied Swine Nutrition Team

Sheet DDGS Calculator
C1: K-State DDGS Calculator- V2
C2: Calculator Inputs
B3: Insert information into yellow cells | P3: Phase 1 | Q3: Phase 2 | R3: Phase 3 | S3: Phase 4 | T3: Phase 5 | U3: Phase 6 | V3: Total
C4: Ingredient Prices | F4: Diet Formuation and Income | H4: =IF(D5="","",D7/((D5/56)*2000)) -> 1.12 | I4: = DDGS to corn price ratio | L4: 0 | O4: Days on Phase | P4: 22.87 | Q4: 18.25456194 | R4: 19.18625595 | S4: 18.43214367 | T4: 18.45672239 | U4: 21.89313556 | V4: =SUM(P4:U4) -> 119.0928195
C5: Corn, $/bu | D5: 4.5 | G5: No | L5: 0.05
C6: SBM, $/ton | D6: 300 | G6: No | L6: 0.1
C7: DDGS, $/ton | D7: 180 | G7: No | L7: 0.15
C8: Limestone, $/ton | D8: 87 | G8: 0.9 | L8: 0.2
C9: Monocal, $/ton | D9: 640 | G9: 75 | L9: 0.25
C10: Fat, $/lb | D10: 0.4 | L10: 0.3
C11: L-Lys HCl, $/lb | D11: 0.9 | F11: Predicted NE of DDGS
C12: DL-Met, $/lb | D12: 1.25 | F12: NE of DDGS based on: | G12: % of corn NE
C13: L-Thr, $/lb | D13: 0.8 | F13: NE of DDGS, kcal/lb | G13: =IF(G12="","",IF(G12="% of corn NE",(Nutrients!F24/2.20462)*('DDGS Calculator'!G14/100),(1952.929+(39.307*G14)-(1.429*G15))*0.453592)) -> 969.6002032 | H13: =IF(G13="","",IF(G12="% of corn NE","","DDGS NE, % of corn:")) ->  | I13: =IF(H13="","",IF(G12="% of corn","",(G13*2.20462)/Nutrients!F24)) -> 
C14: L-Trp, $/lb | D14: 3.8 | F14: =IF(G12="","",IF(G12="% of corn NE","NE as % of corn","Oil, %")) -> NE as % of corn | G14: 80 | H14: =IF(AND(G12="Oil and ADF content", G14>13), "Check Oil, %", IF(AND(G12="% of corn NE", G14<60), "Check NE as % or corn value", "")) ->  | L14: % of corn NE
C15: L-Val, $/lb | D15: 1.5 | F15: =IF(G12="","",IF(G12="% of corn NE","","ADF, %")) ->  | G15: 12 | L15: Oil and ADF content
C17: Calculator Outputs
B19: Starting weight, lb | C19: 50 | D19: 85 | E19: 120 | F19: 160 | G19: 200 | H19: 240
B20: Ending weight, lb | C20: 85 | D20: 120 | E20: 160 | F20: 200 | G20: 240 | H20: 285
B22: DDGS Level for maximum value (fixed time basis) | C22: Phase 1 | D22: Phase 2 | E22: Phase 3 | F22: Phase 4 | G22: Phase 5 | H22: Phase 6 | I22: Total
B23: Maximum feed cost saving | C23: =IF(MAX(IF(C44:C49>0.005,C44:C49))=C49,0.3, IF(MAX(IF(C44:C49>0.005,C44:C49))=C48,0.25, IF(MAX(IF(C44:C49>0.005,C44:C49))=C47,0.2, IF(MAX(IF(C44:C49>0.005,C44:C49))=C46,0.15, IF(MAX(IF(C44:C49>0.005,C44:C49))=C45,0.1, IF(AND(C44>0.005,MAX(C44:C49)=C44),0.05,"No DDGS")))))) -> 0.2 | D23: =IF(MAX(IF(D44:D49>0.005,D44:D49))=D49,0.3, IF(MAX(IF(D44:D49>0.005,D44:D49))=D48,0.25, IF(MAX(IF(D44:D49>0.005,D44:D49))=D47,0.2, IF(MAX(IF(D44:D49>0.005,D44:D49))=D46,0.15, IF(MAX(IF(D44:D49>0.005,D44:D49))=D45,0.1, IF(AND(D44>0.005,MAX(D44:D49)=D44),0.05,"No DDGS")))))) -> 0.3 | E23: =IF(MAX(IF(E44:E49>0.005,E44:E49))=E49,0.3, IF(MAX(IF(E44:E49>0.005,E44:E49))=E48,0.25, IF(MAX(IF(E44:E49>0.005,E44:E49))=E47,0.2, IF(MAX(IF(E44:E49>0.005,E44:E49))=E46,0.15, IF(MAX(IF(E44:E49>0.005,E44:E49))=E45,0.1, IF(AND(E44>0.005,MAX(E44:E49)=E44),0.05,"No DDGS")))))) -> 0.3 | F23: =IF(MAX(IF(F44:F49>0.005,F44:F49))=F49,0.3, IF(MAX(IF(F44:F49>0.005,F44:F49))=F48,0.25, IF(MAX(IF(F44:F49>0.005,F44:F49))=F47,0.2, IF(MAX(IF(F44:F49>0.005,F44:F49))=F46,0.15, IF(MAX(IF(F44:F49>0.005,F44:F49))=F45,0.1, IF(AND(F44>0.005,MAX(F44:F49)=F44),0.05,"No DDGS")))))) -> 0.3 | G23: =IF(MAX(IF(G44:G49>0.005,G44:G49))=G49,0.3, IF(MAX(IF(G44:G49>0.005,G44:G49))=G48,0.25, IF(MAX(IF(G44:G49>0.005,G44:G49))=G47,0.2, IF(MAX(IF(G44:G49>0.005,G44:G49))=G46,0.15, IF(MAX(IF(G44:G49>0.005,G44:G49))=G45,0.1, IF(AND(G44>0.005,MAX(G44:G49)=G44),0.05,"No DDGS")))))) -> 0.3 | H23: =IF(G6="Yes","No DDGS", IF(MAX(IF(H44:H49>0.005,H44:H49))=H49,0.3, IF(MAX(IF(H44:H49>0.005,H44:H49))=H48,0.25, IF(MAX(IF(H44:H49>0.005,H44:H49))=H47,0.2, IF(MAX(IF(H44:H49>0.005,H44:H49))=H46,0.15, IF(MAX(IF(H44:H49>0.005,H44:H49))=H45,0.1, IF(AND(H44>0.005,MAX(H44:H49)=H44),0.05,"No DDGS"))))))) -> 0.3
B24: Feed cost difference, $/pig | C24: =IF(C23="No DDGS",0,VLOOKUP(C23,$A$44:$H$49,3,FALSE)) -> 0.0990185795 | D24: =IF(D23="No DDGS",0,VLOOKUP(D23,$A$44:$H$49,4,FALSE)) -> 0.1348821448 | E24: =IF(E23="No DDGS",0,VLOOKUP(E23,A44:H49,5,FALSE)) -> 0.2036089425 | F24: =IF(F23="No DDGS",0,VLOOKUP(F23,$A$44:$H$49,6,FALSE)) -> 0.301021156 | G24: =IF(G23="No DDGS",0,VLOOKUP(G23,$A$44:$H$49,7,FALSE)) -> 0.4881373648 | H24: =IF(H23="No DDGS",0,VLOOKUP(H23,$A$44:$H$49,8,FALSE)) -> 1.01885821 | I24: =SUM(C24:H24) -> 2.245526398
B25: Income over feed cost on live weight basis compared to 0% DDGS | C25: =IF(MAX(IF(C60:C65>0.005,C60:C65))=C65,0.3, IF(MAX(IF(C60:C65>0.005,C60:C65))=C64,0.25, IF(MAX(IF(C60:C65>0.005,C60:C65))=C63,0.2, IF(MAX(IF(C60:C65>0.005,C60:C65))=C62,0.15, IF(MAX(IF(C60:C65>0.005,C60:C65))=C61,0.1, IF(AND(C60>0.005,MAX(C60:C65)=C60),0.05,"No DDGS")))))) -> No DDGS | D25: =IF(MAX(IF(D60:D65>0.005,D60:D65))=D65,0.3, IF(MAX(IF(D60:D65>0.005,D60:D65))=D64,0.25, IF(MAX(IF(D60:D65>0.005,D60:D65))=D63,0.2, IF(MAX(IF(D60:D65>0.005,D60:D65))=D62,0.15, IF(MAX(IF(D60:D65>0.005,D60:D65))=D61,0.1, IF(AND(D60>0.005,MAX(D60:D65)=D60),0.05,"No DDGS")))))) -> No DDGS | E25: =IF(MAX(IF(E60:E65>0.005,E60:E65))=E65,0.3, IF(MAX(IF(E60:E65>0.005,E60:E65))=E64,0.25, IF(MAX(IF(E60:E65>0.005,E60:E65))=E63,0.2, IF(MAX(IF(E60:E65>0.005,E60:E65))=E62,0.15, IF(MAX(IF(E60:E65>0.005,E60:E65))=E61,0.1, IF(AND(E60>0.005,MAX(E60:E65)=E60),0.05,"No DDGS")))))) -> No DDGS | F25: =IF(MAX(IF(F60:F65>0.005,F60:F65))=F65,0.3, IF(MAX(IF(F60:F65>0.005,F60:F65))=F64,0.25, IF(MAX(IF(F60:F65>0.005,F60:F65))=F63,0.2, IF(MAX(IF(F60:F65>0.005,F60:F65))=F62,0.15, IF(MAX(IF(F60:F65>0.005,F60:F65))=F61,0.1, IF(AND(F60>0.005,MAX(F60:F65)=F60),0.05,"No DDGS")))))) -> No DDGS | G25: =IF(MAX(IF(G60:G65>0.005,G60:G65))=G65,0.3, IF(MAX(IF(G60:G65>0.005,G60:G65))=G64,0.25, IF(MAX(IF(G60:G65>0.005,G60:G65))=G63,0.2, IF(MAX(IF(G60:G65>0.005,G60:G65))=G62,0.15, IF(MAX(IF(G60:G65>0.005,G60:G65))=G61,0.1, IF(AND(G60>0.005,MAX(G60:G65)=G60),0.05,"No DDGS")))))) -> No DDGS | H25: =IF(G6="Yes","No DDGS",IF(MAX(IF(H60:H65>0.005,H60:H65))=H65,0.3, IF(MAX(IF(H60:H65>0.005,H60:H65))=H64,0.25, IF(MAX(IF(H60:H65>0.005,H60:H65))=H63,0.2, IF(MAX(IF(H60:H65>0.005,H60:H65))=H62,0.15, IF(MAX(IF(H60:H65>0.005,H60:H65))=H61,0.1, IF(AND(H60>0.005,MAX(H60:H65)=H60),0.05,"No DDGS"))))))) -> No DDGS
B26: Income difference, $/pig | C26: =IF(C25="No DDGS","- - -",VLOOKUP(C25,$A$60:$H$65,3,FALSE)) -> - - - | D26: =IF(D25="No DDGS","- - -",VLOOKUP(D25,$A$60:$H$65,4,FALSE)) -> - - - | E26: =IF(E25="No DDGS","- - -",VLOOKUP(E25,$A$60:$H$65,5,FALSE)) -> - - - | F26: =IF(F25="No DDGS","- - -",VLOOKUP(F25,$A$60:$H$65,6,FALSE)) -> - - - | G26: =IF(G25="No DDGS","- - -",VLOOKUP(G25,$A$60:$H$65,7,FALSE)) -> - - - | H26: =IF(H25="No DDGS","- - -",VLOOKUP(H25,$A$60:$H$65,8,FALSE)) -> - - - | I26: =SUM(C26:H26) -> 0
B27: Income over feed cost on carcass weight compared to 0% DDGS | C27: =IF(MAX(IF(C68:C73>0.005,C68:C73))=C73,0.3, IF(MAX(IF(C68:C73>0.005,C68:C73))=C72,0.25, IF(MAX(IF(C68:C73>0.005,C68:C73))=C71,0.2, IF(MAX(IF(C68:C73>0.005,C68:C73))=C70,0.15, IF(MAX(IF(C68:C73>0.005,C68:C73))=C69,0.1, IF(AND(C68>0.005,MAX(C68:C73)=C68),0.05,"No DDGS")))))) -> No DDGS | D27: =IF(MAX(IF(D68:D73>0.005,D68:D73))=D73,0.3, IF(MAX(IF(D68:D73>0.005,D68:D73))=D72,0.25, IF(MAX(IF(D68:D73>0.005,D68:D73))=D71,0.2, IF(MAX(IF(D68:D73>0.005,D68:D73))=D70,0.15, IF(MAX(IF(D68:D73>0.005,D68:D73))=D69,0.1, IF(AND(D68>0.005,MAX(D68:D73)=D68),0.05,"No DDGS")))))) -> No DDGS | E27: =IF(MAX(IF(E68:E73>0.005,E68:E73))=E73,0.3, IF(MAX(IF(E68:E73>0.005,E68:E73))=E72,0.25, IF(MAX(IF(E68:E73>0.005,E68:E73))=E71,0.2, IF(MAX(IF(E68:E73>0.005,E68:E73))=E70,0.15, IF(MAX(IF(E68:E73>0.005,E68:E73))=E69,0.1, IF(AND(E68>0.005,MAX(E68:E73)=E68),0.05,"No DDGS")))))) -> No DDGS | F27: =IF(MAX(IF(F68:F73>0.005,F68:F73))=F73,0.3, IF(MAX(IF(F68:F73>0.005,F68:F73))=F72,0.25, IF(MAX(IF(F68:F73>0.005,F68:F73))=F71,0.2, IF(MAX(IF(F68:F73>0.005,F68:F73))=F70,0.15, IF(MAX(IF(F68:F73>0.005,F68:F73))=F69,0.1, IF(AND(F68>0.005,MAX(F68:F73)=F68),0.05,"No DDGS")))))) -> No DDGS | G27: =IF(MAX(IF(G68:G73>0.005,G68:G73))=G73,0.3, IF(MAX(IF(G68:G73>0.005,G68:G73))=G72,0.25, IF(MAX(IF(G68:G73>0.005,G68:G73))=G71,0.2, IF(MAX(IF(G68:G73>0.005,G68:G73))=G70,0.15, IF(MAX(IF(G68:G73>0.005,G68:G73))=G69,0.1, IF(AND(G68>0.005,MAX(G68:G73)=G68),0.05,"No DDGS")))))) -> No DDGS | H27: =IF(G6="Yes","No DDGS",IF(MAX(IF(H68:H73>0.005,H68:H73))=H73,0.3, IF(MAX(IF(H68:H73>0.005,H68:H73))=H72,0.25, IF(MAX(IF(H68:H73>0.005,H68:H73))=H71,0.2, IF(MAX(IF(H68:H73>0.005,H68:H73))=H70,0.15, IF(MAX(IF(H68:H73>0.005,H68:H73))=H69,0.1, IF(AND(H68>0.005,MAX(H68:H73)=H68),0.05,"No DDGS"))))))) -> No DDGS
B28: Income difference, $/pig | C28: =IF(C27="No DDGS","- - -",VLOOKUP(C27,$A$68:$H$73,3,FALSE)) -> - - - | D28: =IF(D27="No DDGS","- - -",VLOOKUP(D27,$A$68:$H$73,4,FALSE)) -> - - - | E28: =IF(E27="No DDGS","- - -",VLOOKUP(E27,$A$68:$H$73,5,FALSE)) -> - - - | F28: =IF(F27="No DDGS","- - -",VLOOKUP(F27,$A$68:$H$73,6,FALSE)) -> - - - | G28: =IF(G27="No DDGS","- - -",VLOOKUP(G27,$A$68:$H$73,7,FALSE)) -> - - - | H28: =IF(H27="No DDGS","- - -",VLOOKUP(H27,$A$68:$H$73,8,FALSE)) -> - - - | I28: =SUM(C28:H28) -> 0
C30: Phase 1 | D30: Phase 2 | E30: Phase 3 | F30: Phase 4 | G30: Phase 5 | H30: Phase 6 | I30: Total
B31: Selected DDGS Level | I31: -
B32: Feed savings: selected vs 0% DDGS, $/pig | C32: =IF(C31="","",IF(C31=0,0,VLOOKUP(C31,$A$44:$H$49,3,FALSE))) ->  | D32: =IF(D31="","",IF(D31=0,0,VLOOKUP(D31,$A$44:$H$49,4,FALSE))) ->  | E32: =IF(E31="","",IF(E31=0,0,VLOOKUP(E31,$A$44:$H$49,5,FALSE))) ->  | F32: =IF(F31="","",IF(F31=0,0,VLOOKUP(F31,$A$44:$H$49,6,FALSE))) ->  | G32: =IF(G31="","",IF(G31=0,0,VLOOKUP(G31,$A$44:$H$49,7,FALSE))) ->  | H32: =IF(H31="","",IF(G6="Yes",0,IF(H31=0,0,VLOOKUP(H31,$A$44:$H$49,8,FALSE)))) ->  | I32: =SUM(C32:H32) -> 0
B33: Income over feed cost, live weight: selected vs 0% DDGS, $/pig | C33: =IF(C31="","",IF(C31=0,0,VLOOKUP(C31,$A$60:$H$65,3,FALSE))) ->  | D33: =IF(D31="","",IF(D31=0,0,VLOOKUP(D31,$A$60:$H$65,4,FALSE))) ->  | E33: =IF(E31="","",IF(E31=0,0,VLOOKUP(E31,$A$60:$H$65,5,FALSE))) ->  | F33: =IF(F31="","",IF(F31=0,0,VLOOKUP(F31,$A$60:$H$65,6,FALSE))) ->  | G33: =IF(G31="","",IF(G31=0,0,VLOOKUP(G31,$A$60:$H$65,7,FALSE))) ->  | H33: =IF(H31="","",IF(G6="Yes",0,IF(H31=0,0,VLOOKUP(H31,$A$60:$H$65,8,FALSE)))) ->  | I33: =SUM(C33:H33) -> 0
B34: Income over feed cost, carcass weight: selected vs 0% DDGS, $/pig | C34: =IF(C31="","",IF(C31=0,0,VLOOKUP(C31,$A$68:$H$73,3,FALSE))) ->  | D34: =IF(D31="","",IF(D31=0,0,VLOOKUP(D31,$A$68:$H$73,4,FALSE))) ->  | E34: =IF(E31="","",IF(E31=0,0,VLOOKUP(E31,$A$68:$H$73,5,FALSE))) ->  | F34: =IF(F31="","",IF(F31=0,0,VLOOKUP(F31,$A$68:$H$73,6,FALSE))) ->  | G34: =IF(G31="","",IF(G31=0,0,VLOOKUP(G31,$A$68:$H$73,7,FALSE))) ->  | H34: =IF(H31="","",IF(G6="Yes",0,IF(H31=0,0,VLOOKUP(H31,$A$68:$H$73,8,FALSE)))) ->  | I34: =SUM(C34:H34) -> 0
B36: Predicted changes in performance: selected vs 0% DDGS | C36: Phase 1 | D36: Phase 2 | E36: Phase 3 | F36: Phase 4 | G36: Phase 5 | H36: Phase 6 | I36: Overall Change
B37: ADG, % change | C37: =IF(AND($G$5="No",$G$6="No",$G$7="No"),(VLOOKUP(C31,Performance!$Y$4:$AE$10,2,FALSE)-Performance!Z4)/Performance!Z4,IF(AND($G$5="Yes",$G$6="No",$G$7="No"),(VLOOKUP(C31,Performance!$Y$14:$AE$20,2,FALSE)-Performance!Z14)/Performance!Z14,IF(AND($G$5="No",$G$6="No",$G$7="Yes"),(VLOOKUP(C31,Performance!$Y$24:$AE$30,2,FALSE)-Performance!Z24)/Performance!Z24,IF(AND($G$5="Yes",$G$6="No",$G$7="Yes"),(VLOOKUP(C31,Performance!$Y$34:$AE$40,2,FALSE)-Performance!Z34)/Performance!Z34,IF(AND($G$5="No",$G$6="Yes",$G$7="No"),(VLOOKUP(C31,Performance!$Y$44:$AE$50,2,FALSE)-Performance!Z44)/Performance!Z44,IF(AND($G$5="Yes",$G$6="Yes",$G$7="No"),(VLOOKUP(C31,Performance!$Y$54:$AE$60,2,FALSE)-Performance!Z54)/Performance!Z54,IF(AND($G$5="No",$G$6="Yes",$G$7="Yes"),(VLOOKUP(C31,Performance!$Y$64:$AE$70,2,FALSE)-Performance!Z64)/Performance!Z64,IF(AND($G$5="Yes",$G$6="Yes",$G$7="Yes"),(VLOOKUP(C31,Performance!$Y$74:$AE$80,2,FALSE)-Performance!Z74)/Performance!Z74)))))))) -> 0 | D37: =IF(AND($G$5="No",$G$6="No",$G$7="No"),(VLOOKUP(D31,Performance!$Y$4:$AE$10,3,FALSE)-Performance!AA4)/Performance!AA4,IF(AND($G$5="Yes",$G$6="No",$G$7="No"),(VLOOKUP(D31,Performance!$Y$14:$AE$20,3,FALSE)-Performance!AA14)/Performance!AA14,IF(AND($G$5="No",$G$6="No",$G$7="Yes"),(VLOOKUP(D31,Performance!$Y$24:$AE$30,3,FALSE)-Performance!AA24)/Performance!AA24,IF(AND($G$5="Yes",$G$6="No",$G$7="Yes"),(VLOOKUP(D31,Performance!$Y$34:$AE$40,3,FALSE)-Performance!AA34)/Performance!AA34,IF(AND($G$5="No",$G$6="Yes",$G$7="No"),(VLOOKUP(D31,Performance!$Y$44:$AE$50,3,FALSE)-Performance!AA44)/Performance!AA44,IF(AND($G$5="Yes",$G$6="Yes",$G$7="No"),(VLOOKUP(D31,Performance!$Y$54:$AE$60,3,FALSE)-Performance!AA54)/Performance!AA54,IF(AND($G$5="No",$G$6="Yes",$G$7="Yes"),(VLOOKUP(D31,Performance!$Y$64:$AE$70,3,FALSE)-Performance!AA64)/Performance!AA64,IF(AND($G$5="Yes",$G$6="Yes",$G$7="Yes"),(VLOOKUP(D31,Performance!$Y$74:$AE$80,3,FALSE)-Performance!AA74)/Performance!AA74)))))))) -> 0 | E37: =IF(AND($G$5="No",$G$6="No",$G$7="No"),(VLOOKUP(E31,Performance!$Y$4:$AE$10,4,FALSE)-Performance!AB4)/Performance!AB4,IF(AND($G$5="Yes",$G$6="No",$G$7="No"),(VLOOKUP(E31,Performance!$Y$14:$AE$20,4,FALSE)-Performance!AB14)/Performance!AB14,IF(AND($G$5="No",$G$6="No",$G$7="Yes"),(VLOOKUP(E31,Performance!$Y$24:$AE$30,4,FALSE)-Performance!AB24)/Performance!AB24,IF(AND($G$5="Yes",$G$6="No",$G$7="Yes"),(VLOOKUP(E31,Performance!$Y$34:$AE$40,4,FALSE)-Performance!AB34)/Performance!AB34,IF(AND($G$5="No",$G$6="Yes",$G$7="No"),(VLOOKUP(E31,Performance!$Y$44:$AE$50,4,FALSE)-Performance!AB44)/Performance!AB44,IF(AND($G$5="Yes",$G$6="Yes",$G$7="No"),(VLOOKUP(E31,Performance!$Y$54:$AE$60,4,FALSE)-Performance!AB54)/Performance!AB54,IF(AND($G$5="No",$G$6="Yes",$G$7="Yes"),(VLOOKUP(E31,Performance!$Y$64:$AE$70,4,FALSE)-Performance!AB64)/Performance!AB64,IF(AND($G$5="Yes",$G$6="Yes",$G$7="Yes"),(VLOOKUP(E31,Performance!$Y$74:$AE$80,4,FALSE)-Performance!AB74)/Performance!AB74)))))))) -> 0 | F37: =IF(AND($G$5="No",$G$6="No",$G$7="No"),(VLOOKUP(F31,Performance!$Y$4:$AE$10,5,FALSE)-Performance!AC4)/Performance!AC4,IF(AND($G$5="Yes",$G$6="No",$G$7="No"),(VLOOKUP(F31,Performance!$Y$14:$AE$20,5,FALSE)-Performance!AC14)/Performance!AC14,IF(AND($G$5="No",$G$6="No",$G$7="Yes"),(VLOOKUP(F31,Performance!$Y$24:$AE$30,5,FALSE)-Performance!AC24)/Performance!AC24,IF(AND($G$5="Yes",$G$6="No",$G$7="Yes"),(VLOOKUP(F31,Performance!$Y$34:$AE$40,5,FALSE)-Performance!AC34)/Performance!AC34,IF(AND($G$5="No",$G$6="Yes",$G$7="No"),(VLOOKUP(F31,Performance!$Y$44:$AE$50,5,FALSE)-Performance!AC44)/Performance!AC44,IF(AND($G$5="Yes",$G$6="Yes",$G$7="No"),(VLOOKUP(F31,Performance!$Y$54:$AE$60,5,FALSE)-Performance!AC54)/Performance!AC54,IF(AND($G$5="No",$G$6="Yes",$G$7="Yes"),(VLOOKUP(F31,Performance!$Y$64:$AE$70,5,FALSE)-Performance!AC64)/Performance!AC64,IF(AND($G$5="Yes",$G$6="Yes",$G$7="Yes"),(VLOOKUP(F31,Performance!$Y$74:$AE$80,5,FALSE)-Performance!AC74)/Performance!AC74)))))))) -> 0 | G37: =IF(AND($G$5="No",$G$6="No",$G$7="No"),(VLOOKUP(G31,Performance!$Y$4:$AE$10,6,FALSE)-Performance!AD4)/Performance!AD4,IF(AND($G$5="Yes",$G$6="No",$G$7="No"),(VLOOKUP(G31,Performance!$Y$14:$AE$20,6,FALSE)-Performance!AD14)/Performance!AD14,IF(AND($G$5="No",$G$6="No",$G$7="Yes"),(VLOOKUP(G31,Performance!$Y$24:$AE$30,6,FALSE)-Performance!AD24)/Performance!AD24,IF(AND($G$5="Yes",$G$6="No",$G$7="Yes"),(VLOOKUP(G31,Performance!$Y$34:$AE$40,6,FALSE)-Performance!AD34)/Performance!AD34,IF(AND($G$5="No",$G$6="Yes",$G$7="No"),(VLOOKUP(G31,Performance!$Y$44:$AE$50,6,FALSE)-Performance!AD44)/Performance!AD44,IF(AND($G$5="Yes",$G$6="Yes",$G$7="No"),(VLOOKUP(G31,Performance!$Y$54:$AE$60,6,FALSE)-Performance!AD54)/Performance!AD54,IF(AND($G$5="No",$G$6="Yes",$G$7="Yes"),(VLOOKUP(G31,Performance!$Y$64:$AE$70,6,FALSE)-Performance!AD64)/Performance!AD64,IF(AND($G$5="Yes",$G$6="Yes",$G$7="Yes"),(VLOOKUP(G31,Performance!$Y$74:$AE$80,6,FALSE)-Performance!AD74)/Performance!AD74)))))))) -> 0 | H37: =IF(AND($G$5="No",$G$6="No",$G$7="No"),(VLOOKUP(H31,Performance!$Y$4:$AE$10,7,FALSE)-Performance!AE4)/Performance!AE4,IF(AND($G$5="Yes",$G$6="No",$G$7="No"),(VLOOKUP(H31,Performance!$Y$14:$AE$20,7,FALSE)-Performance!AE14)/Performance!AE14,IF(AND($G$5="No",$G$6="No",$G$7="Yes"),(VLOOKUP(H31,Performance!$Y$24:$AE$30,7,FALSE)-Performance!AE24)/Performance!AE24,IF(AND($G$5="Yes",$G$6="No",$G$7="Yes"),(VLOOKUP(H31,Performance!$Y$34:$AE$40,7,FALSE)-Performance!AE34)/Performance!AE34,IF(AND($G$5="No",$G$6="Yes",$G$7="No"),(VLOOKUP(H31,Performance!$Y$44:$AE$50,7,FALSE)-Performance!AE44)/Performance!AE44,IF(AND($G$5="Yes",$G$6="Yes",$G$7="No"),(VLOOKUP(H31,Performance!$Y$54:$AE$60,7,FALSE)-Performance!AE54)/Performance!AE54,IF(AND($G$5="No",$G$6="Yes",$G$7="Yes"),(VLOOKUP(H31,Performance!$Y$64:$AE$70,7,FALSE)-Performance!AE64)/Performance!AE64,IF(AND($G$5="Yes",$G$6="Yes",$G$7="Yes"),(VLOOKUP(H31,Performance!$Y$74:$AE$80,7,FALSE)-Performance!AE74)/Performance!AE74)))))))) -> 0 | I37: =(C37*($P$4/$V$4))+(D37*($Q$4/$V$4))+(E37*($R$4/$V$4))+(F37*($S$4/$V$4))+(G37*(($T$4/$V$4))+(H37*(($U$4/$V$4)))) -> 0
B38: F/G, % change | C38: =IF(AND($G$5="No",$G$6="No",$G$7="No"),(VLOOKUP(C31,Performance!$AO$4:$AU$10,2,FALSE)-Performance!AP4)/Performance!AP4,IF(AND($G$5="Yes",$G$6="No",$G$7="No"),0,IF(AND($G$5="No",$G$6="No",$G$7="Yes"),(VLOOKUP(C31,Performance!$AO$24:$AU$30,2,FALSE)-Performance!AP24)/Performance!AP24,IF(AND($G$5="Yes",$G$6="No",$G$7="Yes"),0,IF(AND($G$5="No",$G$6="Yes",$G$7="No"),(VLOOKUP(C31,Performance!$AO$44:$AU$50,2,FALSE)-Performance!AP44)/Performance!AP44,IF(AND($G$5="Yes",$G$6="Yes",$G$7="No"),0,IF(AND($G$5="No",$G$6="Yes",$G$7="Yes"),(VLOOKUP(C31,Performance!$AO$64:$AU$70,2,FALSE)-Performance!AP64)/Performance!AP64,IF(AND($G$5="Yes",$G$6="Yes",$G$7="Yes"),0)))))))) -> 0 | D38: =IF(AND($G$5="No",$G$6="No",$G$7="No"),(VLOOKUP(D31,Performance!$AO$4:$AU$10,3,FALSE)-Performance!AQ4)/Performance!AQ4,IF(AND($G$5="Yes",$G$6="No",$G$7="No"),0,IF(AND($G$5="No",$G$6="No",$G$7="Yes"),(VLOOKUP(D31,Performance!$AO$24:$AU$30,3,FALSE)-Performance!AQ24)/Performance!AQ24,IF(AND($G$5="Yes",$G$6="No",$G$7="Yes"),0,IF(AND($G$5="No",$G$6="Yes",$G$7="No"),(VLOOKUP(D31,Performance!$AO$44:$AU$50,3,FALSE)-Performance!AQ44)/Performance!AQ44,IF(AND($G$5="Yes",$G$6="Yes",$G$7="No"),0,IF(AND($G$5="No",$G$6="Yes",$G$7="Yes"),(VLOOKUP(D31,Performance!$AO$64:$AU$70,3,FALSE)-Performance!AQ64)/Performance!AQ64,IF(AND($G$5="Yes",$G$6="Yes",$G$7="Yes"),0)))))))) -> 0 | E38: =IF(AND($G$5="No",$G$6="No",$G$7="No"),(VLOOKUP(E31,Performance!$AO$4:$AU$10,4,FALSE)-Performance!AR4)/Performance!AR4,IF(AND($G$5="Yes",$G$6="No",$G$7="No"),0,IF(AND($G$5="No",$G$6="No",$G$7="Yes"),(VLOOKUP(E31,Performance!$AO$24:$AU$30,4,FALSE)-Performance!AR24)/Performance!AR24,IF(AND($G$5="Yes",$G$6="No",$G$7="Yes"),0,IF(AND($G$5="No",$G$6="Yes",$G$7="No"),(VLOOKUP(E31,Performance!$AO$44:$AU$50,4,FALSE)-Performance!AR44)/Performance!AR44,IF(AND($G$5="Yes",$G$6="Yes",$G$7="No"),0,IF(AND($G$5="No",$G$6="Yes",$G$7="Yes"),(VLOOKUP(E31,Performance!$AO$64:$AU$70,4,FALSE)-Performance!AR64)/Performance!AR64,IF(AND($G$5="Yes",$G$6="Yes",$G$7="Yes"),0)))))))) -> 0 | F38: =IF(AND($G$5="No",$G$6="No",$G$7="No"),(VLOOKUP(F31,Performance!$AO$4:$AU$10,5,FALSE)-Performance!AS4)/Performance!AS4,IF(AND($G$5="Yes",$G$6="No",$G$7="No"),0,IF(AND($G$5="No",$G$6="No",$G$7="Yes"),(VLOOKUP(F31,Performance!$AO$24:$AU$30,5,FALSE)-Performance!AS24)/Performance!AS24,IF(AND($G$5="Yes",$G$6="No",$G$7="Yes"),0,IF(AND($G$5="No",$G$6="Yes",$G$7="No"),(VLOOKUP(F31,Performance!$AO$44:$AU$50,5,FALSE)-Performance!AS44)/Performance!AS44,IF(AND($G$5="Yes",$G$6="Yes",$G$7="No"),0,IF(AND($G$5="No",$G$6="Yes",$G$7="Yes"),(VLOOKUP(F31,Performance!$AO$64:$AU$70,5,FALSE)-Performance!AS64)/Performance!AS64,IF(AND($G$5="Yes",$G$6="Yes",$G$7="Yes"),0)))))))) -> 0 | G38: =IF(AND($G$5="No",$G$6="No",$G$7="No"),(VLOOKUP(G31,Performance!$AO$4:$AU$10,6,FALSE)-Performance!AT4)/Performance!AT4,IF(AND($G$5="Yes",$G$6="No",$G$7="No"),0,IF(AND($G$5="No",$G$6="No",$G$7="Yes"),(VLOOKUP(G31,Performance!$AO$24:$AU$30,6,FALSE)-Performance!AT24)/Performance!AT24,IF(AND($G$5="Yes",$G$6="No",$G$7="Yes"),0,IF(AND($G$5="No",$G$6="Yes",$G$7="No"),(VLOOKUP(G31,Performance!$AO$44:$AU$50,6,FALSE)-Performance!AT44)/Performance!AT44,IF(AND($G$5="Yes",$G$6="Yes",$G$7="No"),0,IF(AND($G$5="No",$G$6="Yes",$G$7="Yes"),(VLOOKUP(G31,Performance!$AO$64:$AU$70,6,FALSE)-Performance!AT64)/Performance!AT64,IF(AND($G$5="Yes",$G$6="Yes",$G$7="Yes"),0)))))))) -> 0 | H38: =IF(AND($G$5="No",$G$6="No",$G$7="No"),(VLOOKUP(H31,Performance!$AO$4:$AU$10,7,FALSE)-Performance!AU4)/Performance!AU4,IF(AND($G$5="Yes",$G$6="No",$G$7="No"),0,IF(AND($G$5="No",$G$6="No",$G$7="Yes"),(VLOOKUP(H31,Performance!$AO$24:$AU$30,7,FALSE)-Performance!AU24)/Performance!AU24,IF(AND($G$5="Yes",$G$6="No",$G$7="Yes"),0,IF(AND($G$5="No",$G$6="Yes",$G$7="No"),(VLOOKUP(H31,Performance!$AO$44:$AU$50,7,FALSE)-Performance!AU44)/Performance!AU44,IF(AND($G$5="Yes",$G$6="Yes",$G$7="No"),0,IF(AND($G$5="No",$G$6="Yes",$G$7="Yes"),(VLOOKUP(H31,Performance!$AO$64:$AU$70,7,FALSE)-Performance!AU64)/Performance!AU64,IF(AND($G$5="Yes",$G$6="Yes",$G$7="Yes"),0)))))))) -> 0 | I38: =(C38*($P$4/$V$4))+(D38*($Q$4/$V$4))+(E38*($R$4/$V$4))+(F38*($S$4/$V$4))+(G38*(($T$4/$V$4))+(H38*(($U$4/$V$4)))) -> 0
H39: Live weight, lb | I39: =IF(AND($G$5="No",$G$6="No",$G$7="No"),(Performance!BT4-Performance!BC4),IF(AND($G$5="Yes",$G$6="No",$G$7="No"),(Performance!BT14-Performance!BC14),IF(AND($G$5="No",$G$6="No",$G$7="Yes"),(Performance!BT24-Performance!BC24),IF(AND($G$5="Yes",$G$6="No",$G$7="Yes"),(Performance!BT34-Performance!BC34),IF(AND($G$5="No",$G$6="Yes",$G$7="No"),(Performance!BT44-Performance!BC44),IF(AND($G$5="Yes",$G$6="Yes",$G$7="No"),(Performance!BT54-Performance!BC54),IF(AND($G$5="No",$G$6="Yes",$G$7="Yes"),(Performance!BT64-Performance!BC64),IF(AND($G$5="Yes",$G$6="Yes",$G$7="Yes"),(Performance!BT74-Performance!BC74))))))))) -> -0.0003107688
H40: Yield, % | I40: =IF(AND($G$5="No",$G$6="No",$G$7="No"),(Performance!BT5-Performance!G4),IF(AND($G$5="Yes",$G$6="No",$G$7="No"),(Performance!BT15-Performance!G14),IF(AND($G$5="No",$G$6="No",$G$7="Yes"),(Performance!BT25-Performance!G24),IF(AND($G$5="Yes",$G$6="No",$G$7="Yes"),(Performance!BT35-Performance!G34),IF(AND($G$5="No",$G$6="Yes",$G$7="No"),(Performance!BT45-Performance!G44),IF(AND($G$5="Yes",$G$6="Yes",$G$7="No"),(Performance!BT55-Performance!G54),IF(AND($G$5="No",$G$6="Yes",$G$7="Yes"),(Performance!BT65-Performance!G64),IF(AND($G$5="Yes",$G$6="Yes",$G$7="Yes"),(Performance!BT75-Performance!G74))))))))) -> 0
H41: HCW, lb | I41: =IF(AND($G$5="No",$G$6="No",$G$7="No"),(Performance!BT6-Performance!W4),IF(AND($G$5="Yes",$G$6="No",$G$7="No"),(Performance!BT16-Performance!W14),IF(AND($G$5="No",$G$6="No",$G$7="Yes"),(Performance!BT26-Performance!W24),IF(AND($G$5="Yes",$G$6="No",$G$7="Yes"),(Performance!BT36-Performance!W34),IF(AND($G$5="No",$G$6="Yes",$G$7="No"),(Performance!BT46-Performance!W44),IF(AND($G$5="Yes",$G$6="Yes",$G$7="No"),(Performance!BT56-Performance!W54),IF(AND($G$5="No",$G$6="Yes",$G$7="Yes"),(Performance!BT66-Performance!W64),IF(AND($G$5="Yes",$G$6="Yes",$G$7="Yes"),(Performance!BT76-Performance!W74))))))))) -> -0.0002330794285
B43: Feed cost savings, $/pig (compared to 0% DDGS) - fixed time | C43: Phase 1 | D43: Phase 2 | E43: Phase 3 | F43: Phase 4 | G43: Phase 5 | H43: Phase 6 | I43: Total | J43: Incremental
A44: 0.05 | B44: 5% DDGS | C44: =IF(AND($G$5="No",$G$6="No",$G$7="No"),'GF diets No L-Val'!I$266-'GF diets No L-Val'!B$266, IF(AND($G$5="Yes",$G$6="No",$G$7="No"),'GF diets No L-Val + Fat'!I$266-'GF diets No L-Val + Fat'!B$266, IF(AND($G$5="No",$G$6="No",$G$7="Yes"),'GF diets L-Val'!I$266-'GF diets L-Val'!B$266, IF(AND($G$5="Yes",$G$6="No",$G$7="Yes"),'GF diets L-Val + Fat'!I$266-'GF diets L-Val + Fat'!B$266, IF(AND($G$5="No",$G$6="Yes",$G$7="No"),'GF diets No L-Val + WD'!I$266-'GF diets No L-Val + WD'!B$266, IF(AND($G$5="Yes",$G$6="Yes",$G$7="No"),'GF diets No L-Val + Fat + WD'!I$266-'GF diets No L-Val + Fat + WD'!B$266, IF(AND($G$5="No",$G$6="Yes",$G$7="Yes"),'GF diets L-Val + WD'!I$266-'GF diets L-Val + WD'!B$266, IF(AND($G$5="Yes",$G$6="Yes",$G$7="Yes"),'GF diets L-Val + Fat + WD'!I$266-'GF diets L-Val + Fat + WD'!B$266))))))))*-1 -> 0.04082678086 | D44: =IF(AND($G$5="No",$G$6="No",$G$7="No"),'GF diets No L-Val'!J$266-'GF diets No L-Val'!C$266, IF(AND($G$5="Yes",$G$6="No",$G$7="No"),'GF diets No L-Val + Fat'!J$266-'GF diets No L-Val + Fat'!C$266, IF(AND($G$5="No",$G$6="No",$G$7="Yes"),'GF diets L-Val'!J$266-'GF diets L-Val'!C$266, IF(AND($G$5="Yes",$G$6="No",$G$7="Yes"),'GF diets L-Val + Fat'!J$266-'GF diets L-Val + Fat'!C$266, IF(AND($G$5="No",$G$6="Yes",$G$7="No"),'GF diets No L-Val + WD'!J$266-'GF diets No L-Val + WD'!C$266, IF(AND($G$5="Yes",$G$6="Yes",$G$7="No"),'GF diets No L-Val + Fat + WD'!J$266-'GF diets No L-Val + Fat + WD'!C$266, IF(AND($G$5="No",$G$6="Yes",$G$7="Yes"),'GF diets L-Val + WD'!J$266-'GF diets L-Val + WD'!C$266, IF(AND($G$5="Yes",$G$6="Yes",$G$7="Yes"),'GF diets L-Val + Fat + WD'!J$266-'GF diets L-Val + Fat + WD'!C$266))))))))*-1 -> 0.04142984482 | E44: =IF(AND($G$5="No",$G$6="No",$G$7="No"),'GF diets No L-Val'!K$266-'GF diets No L-Val'!D$266, IF(AND($G$5="Yes",$G$6="No",$G$7="No"),'GF diets No L-Val + Fat'!K$266-'GF diets No L-Val + Fat'!D$266, IF(AND($G$5="No",$G$6="No",$G$7="Yes"),'GF diets L-Val'!K$266-'GF diets L-Val'!D$266, IF(AND($G$5="Yes",$G$6="No",$G$7="Yes"),'GF diets L-Val + Fat'!K$266-'GF diets L-Val + Fat'!D$266, IF(AND($G$5="No",$G$6="Yes",$G$7="No"),'GF diets No L-Val + WD'!K$266-'GF diets No L-Val + WD'!D$266, IF(AND($G$5="Yes",$G$6="Yes",$G$7="No"),'GF diets No L-Val + Fat + WD'!K$266-'GF diets No L-Val + Fat + WD'!D$266, IF(AND($G$5="No",$G$6="Yes",$G$7="Yes"),'GF diets L-Val + WD'!K$266-'GF diets L-Val + WD'!D$266, IF(AND($G$5="Yes",$G$6="Yes",$G$7="Yes"),'GF diets L-Val + Fat + WD'!K$266-'GF diets L-Val + Fat + WD'!D$266))))))))*-1 -> 0.05485569115 | F44: =IF(AND($G$5="No",$G$6="No",$G$7="No"),'GF diets No L-Val'!L$266-'GF diets No L-Val'!E$266, IF(AND($G$5="Yes",$G$6="No",$G$7="No"),'GF diets No L-Val + Fat'!L$266-'GF diets No L-Val + Fat'!E$266, IF(AND($G$5="No",$G$6="No",$G$7="Yes"),'GF diets L-Val'!L$266-'GF diets L-Val'!E$266, IF(AND($G$5="Yes",$G$6="No",$G$7="Yes"),'GF diets L-Val + Fat'!L$266-'GF diets L-Val + Fat'!E$266, IF(AND($G$5="No",$G$6="Yes",$G$7="No"),'GF diets No L-Val + WD'!L$266-'GF diets No L-Val + WD'!E$266, IF(AND($G$5="Yes",$G$6="Yes",$G$7="No"),'GF diets No L-Val + Fat + WD'!L$266-'GF diets No L-Val + Fat + WD'!E$266, IF(AND($G$5="No",$G$6="Yes",$G$7="Yes"),'GF diets L-Val + WD'!L$266-'GF diets L-Val + WD'!E$266, IF(AND($G$5="Yes",$G$6="Yes",$G$7="Yes"),'GF diets L-Val + Fat + WD'!L$266-'GF diets L-Val + Fat + WD'!E$266))))))))*-1 -> 0.08099259542 | G44: =IF(AND($G$5="No",$G$6="No",$G$7="No"),'GF diets No L-Val'!M$266-'GF diets No L-Val'!F$266, IF(AND($G$5="Yes",$G$6="No",$G$7="No"),'GF diets No L-Val + Fat'!M$266-'GF diets No L-Val + Fat'!F$266, IF(AND($G$5="No",$G$6="No",$G$7="Yes"),'GF diets L-Val'!M$266-'GF diets L-Val'!F$266, IF(AND($G$5="Yes",$G$6="No",$G$7="Yes"),'GF diets L-Val + Fat'!M$266-'GF diets L-Val + Fat'!F$266, IF(AND($G$5="No",$G$6="Yes",$G$7="No"),'GF diets No L-Val + WD'!M$266-'GF diets No L-Val + WD'!F$266, IF(AND($G$5="Yes",$G$6="Yes",$G$7="No"),'GF diets No L-Val + Fat + WD'!M$266-'GF diets No L-Val + Fat + WD'!F$266, IF(AND($G$5="No",$G$6="Yes",$G$7="Yes"),'GF diets L-Val + WD'!M$266-'GF diets L-Val + WD'!F$266, IF(AND($G$5="Yes",$G$6="Yes",$G$7="Yes"),'GF diets L-Val + Fat + WD'!M$266-'GF diets L-Val + Fat + WD'!F$266))))))))*-1 -> 0.122556257 | H44: =IF(AND($G$5="No",$G$6="No",$G$7="No"),'GF diets No L-Val'!N$266-'GF diets No L-Val'!G$266, IF(AND($G$5="Yes",$G$6="No",$G$7="No"),'GF diets No L-Val + Fat'!N$266-'GF diets No L-Val + Fat'!G$266, IF(AND($G$5="No",$G$6="No",$G$7="Yes"),'GF diets L-Val'!N$266-'GF diets L-Val'!G$266, IF(AND($G$5="Yes",$G$6="No",$G$7="Yes"),'GF diets L-Val + Fat'!N$266-'GF diets L-Val + Fat'!G$266, IF(AND($G$5="No",$G$6="Yes",$G$7="No"),'GF diets No L-Val + WD'!N$266-'GF diets No L-Val + WD'!G$266, IF(AND($G$5="Yes",$G$6="Yes",$G$7="No"),'GF diets No L-Val + Fat + WD'!N$266-'GF diets No L-Val + Fat + WD'!G$266, IF(AND($G$5="No",$G$6="Yes",$G$7="Yes"),'GF diets L-Val + WD'!N$266-'GF diets L-Val + WD'!G$266, IF(AND($G$5="Yes",$G$6="Yes",$G$7="Yes"),'GF diets L-Val + Fat + WD'!N$266-'GF diets L-Val + Fat + WD'!G$266))))))))*-1 -> 0.2195287669 | I44: =SUM(C44:H44) -> 0.5601899362
A45: 0.1 | B45: 10% DDGS | C45: =IF(AND($G$5="No",$G$6="No",$G$7="No"),'GF diets No L-Val'!P$266-'GF diets No L-Val'!B$266, IF(AND($G$5="Yes",$G$6="No",$G$7="No"),'GF diets No L-Val + Fat'!P$266-'GF diets No L-Val + Fat'!B$266, IF(AND($G$5="No",$G$6="No",$G$7="Yes"),'GF diets L-Val'!P$266-'GF diets L-Val'!B$266, IF(AND($G$5="Yes",$G$6="No",$G$7="Yes"),'GF diets L-Val + Fat'!P$266-'GF diets L-Val + Fat'!B$266, IF(AND($G$5="No",$G$6="Yes",$G$7="No"),'GF diets No L-Val + WD'!P$266-'GF diets No L-Val + WD'!B$266, IF(AND($G$5="Yes",$G$6="Yes",$G$7="No"),'GF diets No L-Val + Fat + WD'!P$266-'GF diets No L-Val + Fat + WD'!B$266, IF(AND($G$5="No",$G$6="Yes",$G$7="Yes"),'GF diets L-Val + WD'!P$266-'GF diets L-Val + WD'!B$266, IF(AND($G$5="Yes",$G$6="Yes",$G$7="Yes"),'GF diets L-Val + Fat + WD'!P$266-'GF diets L-Val + Fat + WD'!B$266))))))))*-1 -> 0.06685857135 | D45: =IF(AND($G$5="No",$G$6="No",$G$7="No"),'GF diets No L-Val'!Q$266-'GF diets No L-Val'!C$266, IF(AND($G$5="Yes",$G$6="No",$G$7="No"),'GF diets No L-Val + Fat'!Q$266-'GF diets No L-Val + Fat'!C$266, IF(AND($G$5="No",$G$6="No",$G$7="Yes"),'GF diets L-Val'!Q$266-'GF diets L-Val'!C$266, IF(AND($G$5="Yes",$G$6="No",$G$7="Yes"),'GF diets L-Val + Fat'!Q$266-'GF diets L-Val + Fat'!C$266, IF(AND($G$5="No",$G$6="Yes",$G$7="No"),'GF diets No L-Val + WD'!Q$266-'GF diets No L-Val + WD'!C$266, IF(AND($G$5="Yes",$G$6="Yes",$G$7="No"),'GF diets No L-Val + Fat + WD'!Q$266-'GF diets No L-Val + Fat + WD'!C$266, IF(AND($G$5="No",$G$6="Yes",$G$7="Yes"),'GF diets L-Val + WD'!Q$266-'GF diets L-Val + WD'!C$266, IF(AND($G$5="Yes",$G$6="Yes",$G$7="Yes"),'GF diets L-Val + Fat + WD'!Q$266-'GF diets L-Val + Fat + WD'!C$266))))))))*-1 -> 0.06853077569 | E45: =IF(AND($G$5="No",$G$6="No",$G$7="No"),'GF diets No L-Val'!R$266-'GF diets No L-Val'!D$266, IF(AND($G$5="Yes",$G$6="No",$G$7="No"),'GF diets No L-Val + Fat'!R$266-'GF diets No L-Val + Fat'!D$266, IF(AND($G$5="No",$G$6="No",$G$7="Yes"),'GF diets L-Val'!R$266-'GF diets L-Val'!D$266, IF(AND($G$5="Yes",$G$6="No",$G$7="Yes"),'GF diets L-Val + Fat'!R$266-'GF diets L-Val + Fat'!D$266, IF(AND($G$5="No",$G$6="Yes",$G$7="No"),'GF diets No L-Val + WD'!R$266-'GF diets No L-Val + WD'!D$266, IF(AND($G$5="Yes",$G$6="Yes",$G$7="No"),'GF diets No L-Val + Fat + WD'!R$266-'GF diets No L-Val + Fat + WD'!D$266, IF(AND($G$5="No",$G$6="Yes",$G$7="Yes"),'GF diets L-Val + WD'!R$266-'GF diets L-Val + WD'!D$266, IF(AND($G$5="Yes",$G$6="Yes",$G$7="Yes"),'GF diets L-Val + Fat + WD'!R$266-'GF diets L-Val + Fat + WD'!D$266))))))))*-1 -> 0.09565715836 | F45: =IF(AND($G$5="No",$G$6="No",$G$7="No"),'GF diets No L-Val'!S$266-'GF diets No L-Val'!E$266, IF(AND($G$5="Yes",$G$6="No",$G$7="No"),'GF diets No L-Val + Fat'!S$266-'GF diets No L-Val + Fat'!E$266, IF(AND($G$5="No",$G$6="No",$G$7="Yes"),'GF diets L-Val'!S$266-'GF diets L-Val'!E$266, IF(AND($G$5="Yes",$G$6="No",$G$7="Yes"),'GF diets L-Val + Fat'!S$266-'GF diets L-Val + Fat'!E$266, IF(AND($G$5="No",$G$6="Yes",$G$7="No"),'GF diets No L-Val + WD'!S$266-'GF diets No L-Val + WD'!E$266, IF(AND($G$5="Yes",$G$6="Yes",$G$7="No"),'GF diets No L-Val + Fat + WD'!S$266-'GF diets No L-Val + Fat + WD'!E$266, IF(AND($G$5="No",$G$6="Yes",$G$7="Yes"),'GF diets L-Val + WD'!S$266-'GF diets L-Val + WD'!E$266, IF(AND($G$5="Yes",$G$6="Yes",$G$7="Yes"),'GF diets L-Val + Fat + WD'!S$266-'GF diets L-Val + Fat + WD'!E$266))))))))*-1 -> 0.1515376076 | G45: =IF(AND($G$5="No",$G$6="No",$G$7="No"),'GF diets No L-Val'!T$266-'GF diets No L-Val'!F$266, IF(AND($G$5="Yes",$G$6="No",$G$7="No"),'GF diets No L-Val + Fat'!T$266-'GF diets No L-Val + Fat'!F$266, IF(AND($G$5="No",$G$6="No",$G$7="Yes"),'GF diets L-Val'!T$266-'GF diets L-Val'!F$266, IF(AND($G$5="Yes",$G$6="No",$G$7="Yes"),'GF diets L-Val + Fat'!T$266-'GF diets L-Val + Fat'!F$266, IF(AND($G$5="No",$G$6="Yes",$G$7="No"),'GF diets No L-Val + WD'!T$266-'GF diets No L-Val + WD'!F$266, IF(AND($G$5="Yes",$G$6="Yes",$G$7="No"),'GF diets No L-Val + Fat + WD'!T$266-'GF diets No L-Val + Fat + WD'!F$266, IF(AND($G$5="No",$G$6="Yes",$G$7="Yes"),'GF diets L-Val + WD'!T$266-'GF diets L-Val + WD'!F$266, IF(AND($G$5="Yes",$G$6="Yes",$G$7="Yes"),'GF diets L-Val + Fat + WD'!T$266-'GF diets L-Val + Fat + WD'!F$266))))))))*-1 -> 0.2184949955 | H45: =IF(AND($G$5="No",$G$6="No",$G$7="No"),'GF diets No L-Val'!U$266-'GF diets No L-Val'!G$266, IF(AND($G$5="Yes",$G$6="No",$G$7="No"),'GF diets No L-Val + Fat'!U$266-'GF diets No L-Val + Fat'!G$266, IF(AND($G$5="No",$G$6="No",$G$7="Yes"),'GF diets L-Val'!U$266-'GF diets L-Val'!G$266, IF(AND($G$5="Yes",$G$6="No",$G$7="Yes"),'GF diets L-Val + Fat'!U$266-'GF diets L-Val + Fat'!G$266, IF(AND($G$5="No",$G$6="Yes",$G$7="No"),'GF diets No L-Val + WD'!U$266-'GF diets No L-Val + WD'!G$266, IF(AND($G$5="Yes",$G$6="Yes",$G$7="No"),'GF diets No L-Val + Fat + WD'!U$266-'GF diets No L-Val + Fat + WD'!G$266, IF(AND($G$5="No",$G$6="Yes",$G$7="Yes"),'GF diets L-Val + WD'!U$266-'GF diets L-Val + WD'!G$266, IF(AND($G$5="Yes",$G$6="Yes",$G$7="Yes"),'GF diets L-Val + Fat + WD'!U$266-'GF diets L-Val + Fat + WD'!G$266))))))))*-1 -> 0.4048610728 | I45: 1.005940181 | J45: =I45-I44 -> 0.4457502451
A46: 0.15 | B46: 15% DDGS | C46: =IF(AND($G$5="No",$G$6="No",$G$7="No"),'GF diets No L-Val'!W$266-'GF diets No L-Val'!B$266, IF(AND($G$5="Yes",$G$6="No",$G$7="No"),'GF diets No L-Val + Fat'!W$266-'GF diets No L-Val + Fat'!B$266, IF(AND($G$5="No",$G$6="No",$G$7="Yes"),'GF diets L-Val'!W$266-'GF diets L-Val'!B$266, IF(AND($G$5="Yes",$G$6="No",$G$7="Yes"),'GF diets L-Val + Fat'!W$266-'GF diets L-Val + Fat'!B$266, IF(AND($G$5="No",$G$6="Yes",$G$7="No"),'GF diets No L-Val + WD'!W$266-'GF diets No L-Val + WD'!B$266, IF(AND($G$5="Yes",$G$6="Yes",$G$7="No"),'GF diets No L-Val + Fat + WD'!W$266-'GF diets No L-Val + Fat + WD'!B$266, IF(AND($G$5="No",$G$6="Yes",$G$7="Yes"),'GF diets L-Val + WD'!W$266-'GF diets L-Val + WD'!B$266, IF(AND($G$5="Yes",$G$6="Yes",$G$7="Yes"),'GF diets L-Val + Fat + WD'!W$266-'GF diets L-Val + Fat + WD'!B$266))))))))*-1 -> 0.08624691806 | D46: =IF(AND($G$5="No",$G$6="No",$G$7="No"),'GF diets No L-Val'!X$266-'GF diets No L-Val'!C$266, IF(AND($G$5="Yes",$G$6="No",$G$7="No"),'GF diets No L-Val + Fat'!X$266-'GF diets No L-Val + Fat'!C$266, IF(AND($G$5="No",$G$6="No",$G$7="Yes"),'GF diets L-Val'!X$266-'GF diets L-Val'!C$266, IF(AND($G$5="Yes",$G$6="No",$G$7="Yes"),'GF diets L-Val + Fat'!X$266-'GF diets L-Val + Fat'!C$266, IF(AND($G$5="No",$G$6="Yes",$G$7="No"),'GF diets No L-Val + WD'!X$266-'GF diets No L-Val + WD'!C$266, IF(AND($G$5="Yes",$G$6="Yes",$G$7="No"),'GF diets No L-Val + Fat + WD'!X$266-'GF diets No L-Val + Fat + WD'!C$266, IF(AND($G$5="No",$G$6="Yes",$G$7="Yes"),'GF diets L-Val + WD'!X$266-'GF diets L-Val + WD'!C$266, IF(AND($G$5="Yes",$G$6="Yes",$G$7="Yes"),'GF diets L-Val + Fat + WD'!X$266-'GF diets L-Val + Fat + WD'!C$266))))))))*-1 -> 0.09082692693 | E46: =IF(AND($G$5="No",$G$6="No",$G$7="No"),'GF diets No L-Val'!Y$266-'GF diets No L-Val'!D$266, IF(AND($G$5="Yes",$G$6="No",$G$7="No"),'GF diets No L-Val + Fat'!Y$266-'GF diets No L-Val + Fat'!D$266, IF(AND($G$5="No",$G$6="No",$G$7="Yes"),'GF diets L-Val'!Y$266-'GF diets L-Val'!D$266, IF(AND($G$5="Yes",$G$6="No",$G$7="Yes"),'GF diets L-Val + Fat'!Y$266-'GF diets L-Val + Fat'!D$266, IF(AND($G$5="No",$G$6="Yes",$G$7="No"),'GF diets No L-Val + WD'!Y$266-'GF diets No L-Val + WD'!D$266, IF(AND($G$5="Yes",$G$6="Yes",$G$7="No"),'GF diets No L-Val + Fat + WD'!Y$266-'GF diets No L-Val + Fat + WD'!D$266, IF(AND($G$5="No",$G$6="Yes",$G$7="Yes"),'GF diets L-Val + WD'!Y$266-'GF diets L-Val + WD'!D$266, IF(AND($G$5="Yes",$G$6="Yes",$G$7="Yes"),'GF diets L-Val + Fat + WD'!Y$266-'GF diets L-Val + Fat + WD'!D$266))))))))*-1 -> 0.1390243666 | F46: =IF(AND($G$5="No",$G$6="No",$G$7="No"),'GF diets No L-Val'!Z$266-'GF diets No L-Val'!E$266, IF(AND($G$5="Yes",$G$6="No",$G$7="No"),'GF diets No L-Val + Fat'!Z$266-'GF diets No L-Val + Fat'!E$266, IF(AND($G$5="No",$G$6="No",$G$7="Yes"),'GF diets L-Val'!Z$266-'GF diets L-Val'!E$266, IF(AND($G$5="Yes",$G$6="No",$G$7="Yes"),'GF diets L-Val + Fat'!Z$266-'GF diets L-Val + Fat'!E$266, IF(AND($G$5="No",$G$6="Yes",$G$7="No"),'GF diets No L-Val + WD'!Z$266-'GF diets No L-Val + WD'!E$266, IF(AND($G$5="Yes",$G$6="Yes",$G$7="No"),'GF diets No L-Val + Fat + WD'!Z$266-'GF diets No L-Val + Fat + WD'!E$266, IF(AND($G$5="No",$G$6="Yes",$G$7="Yes"),'GF diets L-Val + WD'!Z$266-'GF diets L-Val + WD'!E$266, IF(AND($G$5="Yes",$G$6="Yes",$G$7="Yes"),'GF diets L-Val + Fat + WD'!Z$266-'GF diets L-Val + Fat + WD'!E$266))))))))*-1 -> 0.210939357 | G46: =IF(AND($G$5="No",$G$6="No",$G$7="No"),'GF diets No L-Val'!AA$266-'GF diets No L-Val'!F$266, IF(AND($G$5="Yes",$G$6="No",$G$7="No"),'GF diets No L-Val + Fat'!AA$266-'GF diets No L-Val + Fat'!F$266, IF(AND($G$5="No",$G$6="No",$G$7="Yes"),'GF diets L-Val'!AA$266-'GF diets L-Val'!F$266, IF(AND($G$5="Yes",$G$6="No",$G$7="Yes"),'GF diets L-Val + Fat'!AA$266-'GF diets L-Val + Fat'!F$266, IF(AND($G$5="No",$G$6="Yes",$G$7="No"),'GF diets No L-Val + WD'!AA$266-'GF diets No L-Val + WD'!F$266, IF(AND($G$5="Yes",$G$6="Yes",$G$7="No"),'GF diets No L-Val + Fat + WD'!AA$266-'GF diets No L-Val + Fat + WD'!F$266, IF(AND($G$5="No",$G$6="Yes",$G$7="Yes"),'GF diets L-Val + WD'!AA$266-'GF diets L-Val + WD'!F$266, IF(AND($G$5="Yes",$G$6="Yes",$G$7="Yes"),'GF diets L-Val + Fat + WD'!AA$266-'GF diets L-Val + Fat + WD'!F$266))))))))*-1 -> 0.3058368246 | H46: =IF(AND($G$5="No",$G$6="No",$G$7="No"),'GF diets No L-Val'!AB$266-'GF diets No L-Val'!G$266, IF(AND($G$5="Yes",$G$6="No",$G$7="No"),'GF diets No L-Val + Fat'!AB$266-'GF diets No L-Val + Fat'!G$266, IF(AND($G$5="No",$G$6="No",$G$7="Yes"),'GF diets L-Val'!AB$266-'GF diets L-Val'!G$266, IF(AND($G$5="Yes",$G$6="No",$G$7="Yes"),'GF diets L-Val + Fat'!AB$266-'GF diets L-Val + Fat'!G$266, IF(AND($G$5="No",$G$6="Yes",$G$7="No"),'GF diets No L-Val + WD'!AB$266-'GF diets No L-Val + WD'!G$266, IF(AND($G$5="Yes",$G$6="Yes",$G$7="No"),'GF diets No L-Val + Fat + WD'!AB$266-'GF diets No L-Val + Fat + WD'!G$266, IF(AND($G$5="No",$G$6="Yes",$G$7="Yes"),'GF diets L-Val + WD'!AB$266-'GF diets L-Val + WD'!G$266, IF(AND($G$5="Yes",$G$6="Yes",$G$7="Yes"),'GF diets L-Val + Fat + WD'!AB$266-'GF diets L-Val + Fat + WD'!G$266))))))))*-1 -> 0.5792977892 | I46: 1.412172182 | J46: =I46-I45 -> 0.4062320011
A47: 0.2 | B47: 20% DDGS | C47: =IF(AND($G$5="No",$G$6="No",$G$7="No"),'GF diets No L-Val'!AD$266-'GF diets No L-Val'!B$266, IF(AND($G$5="Yes",$G$6="No",$G$7="No"),'GF diets No L-Val + Fat'!AD$266-'GF diets No L-Val + Fat'!B$266, IF(AND($G$5="No",$G$6="No",$G$7="Yes"),'GF diets L-Val'!AD$266-'GF diets L-Val'!B$266, IF(AND($G$5="Yes",$G$6="No",$G$7="Yes"),'GF diets L-Val + Fat'!AD$266-'GF diets L-Val + Fat'!B$266, IF(AND($G$5="No",$G$6="Yes",$G$7="No"),'GF diets No L-Val + WD'!AD$266-'GF diets No L-Val + WD'!B$266, IF(AND($G$5="Yes",$G$6="Yes",$G$7="No"),'GF diets No L-Val + Fat + WD'!AD$266-'GF diets No L-Val + Fat + WD'!B$266, IF(AND($G$5="No",$G$6="Yes",$G$7="Yes"),'GF diets L-Val + WD'!AD$266-'GF diets L-Val + WD'!B$266, IF(AND($G$5="Yes",$G$6="Yes",$G$7="Yes"),'GF diets L-Val + Fat + WD'!AD$266-'GF diets L-Val + Fat + WD'!B$266))))))))*-1 -> 0.0990185795 | D47: =IF(AND($G$5="No",$G$6="No",$G$7="No"),'GF diets No L-Val'!AE$266-'GF diets No L-Val'!C$266, IF(AND($G$5="Yes",$G$6="No",$G$7="No"),'GF diets No L-Val + Fat'!AE$266-'GF diets No L-Val + Fat'!C$266, IF(AND($G$5="No",$G$6="No",$G$7="Yes"),'GF diets L-Val'!AE$266-'GF diets L-Val'!C$266, IF(AND($G$5="Yes",$G$6="No",$G$7="Yes"),'GF diets L-Val + Fat'!AE$266-'GF diets L-Val + Fat'!C$266, IF(AND($G$5="No",$G$6="Yes",$G$7="No"),'GF diets No L-Val + WD'!AE$266-'GF diets No L-Val + WD'!C$266, IF(AND($G$5="Yes",$G$6="Yes",$G$7="No"),'GF diets No L-Val + Fat + WD'!AE$266-'GF diets No L-Val + Fat + WD'!C$266, IF(AND($G$5="No",$G$6="Yes",$G$7="Yes"),'GF diets L-Val + WD'!AE$266-'GF diets L-Val + WD'!C$266, IF(AND($G$5="Yes",$G$6="Yes",$G$7="Yes"),'GF diets L-Val + Fat + WD'!AE$266-'GF diets L-Val + Fat + WD'!C$266))))))))*-1 -> 0.1126460779 | E47: =IF(AND($G$5="No",$G$6="No",$G$7="No"),'GF diets No L-Val'!AF$266-'GF diets No L-Val'!D$266, IF(AND($G$5="Yes",$G$6="No",$G$7="No"),'GF diets No L-Val + Fat'!AF$266-'GF diets No L-Val + Fat'!D$266, IF(AND($G$5="No",$G$6="No",$G$7="Yes"),'GF diets L-Val'!AF$266-'GF diets L-Val'!D$266, IF(AND($G$5="Yes",$G$6="No",$G$7="Yes"),'GF diets L-Val + Fat'!AF$266-'GF diets L-Val + Fat'!D$266, IF(AND($G$5="No",$G$6="Yes",$G$7="No"),'GF diets No L-Val + WD'!AF$266-'GF diets No L-Val + WD'!D$266, IF(AND($G$5="Yes",$G$6="Yes",$G$7="No"),'GF diets No L-Val + Fat + WD'!AF$266-'GF diets No L-Val + Fat + WD'!D$266, IF(AND($G$5="No",$G$6="Yes",$G$7="Yes"),'GF diets L-Val + WD'!AF$266-'GF diets L-Val + WD'!D$266, IF(AND($G$5="Yes",$G$6="Yes",$G$7="Yes"),'GF diets L-Val + Fat + WD'!AF$266-'GF diets L-Val + Fat + WD'!D$266))))))))*-1 -> 0.1773260673 | F47: =IF(AND($G$5="No",$G$6="No",$G$7="No"),'GF diets No L-Val'!AG$266-'GF diets No L-Val'!E$266, IF(AND($G$5="Yes",$G$6="No",$G$7="No"),'GF diets No L-Val + Fat'!AG$266-'GF diets No L-Val + Fat'!E$266, IF(AND($G$5="No",$G$6="No",$G$7="Yes"),'GF diets L-Val'!AG$266-'GF diets L-Val'!E$266, IF(AND($G$5="Yes",$G$6="No",$G$7="Yes"),'GF diets L-Val + Fat'!AG$266-'GF diets L-Val + Fat'!E$266, IF(AND($G$5="No",$G$6="Yes",$G$7="No"),'GF diets No L-Val + WD'!AG$266-'GF diets No L-Val + WD'!E$266, IF(AND($G$5="Yes",$G$6="Yes",$G$7="No"),'GF diets No L-Val + Fat + WD'!AG$266-'GF diets No L-Val + Fat + WD'!E$266, IF(AND($G$5="No",$G$6="Yes",$G$7="Yes"),'GF diets L-Val + WD'!AG$266-'GF diets L-Val + WD'!E$266, IF(AND($G$5="Yes",$G$6="Yes",$G$7="Yes"),'GF diets L-Val + Fat + WD'!AG$266-'GF diets L-Val + Fat + WD'!E$266))))))))*-1 -> 0.2554760008 | G47: =IF(AND($G$5="No",$G$6="No",$G$7="No"),'GF diets No L-Val'!AH$266-'GF diets No L-Val'!F$266, IF(AND($G$5="Yes",$G$6="No",$G$7="No"),'GF diets No L-Val + Fat'!AH$266-'GF diets No L-Val + Fat'!F$266, IF(AND($G$5="No",$G$6="No",$G$7="Yes"),'GF diets L-Val'!AH$266-'GF diets L-Val'!F$266, IF(AND($G$5="Yes",$G$6="No",$G$7="Yes"),'GF diets L-Val + Fat'!AH$266-'GF diets L-Val + Fat'!F$266, IF(AND($G$5="No",$G$6="Yes",$G$7="No"),'GF diets No L-Val + WD'!AH$266-'GF diets No L-Val + WD'!F$266, IF(AND($G$5="Yes",$G$6="Yes",$G$7="No"),'GF diets No L-Val + Fat + WD'!AH$266-'GF diets No L-Val + Fat + WD'!F$266, IF(AND($G$5="No",$G$6="Yes",$G$7="Yes"),'GF diets L-Val + WD'!AH$266-'GF diets L-Val + WD'!F$266, IF(AND($G$5="Yes",$G$6="Yes",$G$7="Yes"),'GF diets L-Val + Fat + WD'!AH$266-'GF diets L-Val + Fat + WD'!F$266))))))))*-1 -> 0.3774362466 | H47: =IF(AND($G$5="No",$G$6="No",$G$7="No"),'GF diets No L-Val'!AI$266-'GF diets No L-Val'!G$266, IF(AND($G$5="Yes",$G$6="No",$G$7="No"),'GF diets No L-Val + Fat'!AI$266-'GF diets No L-Val + Fat'!G$266, IF(AND($G$5="No",$G$6="No",$G$7="Yes"),'GF diets L-Val'!AI$266-'GF diets L-Val'!G$266, IF(AND($G$5="Yes",$G$6="No",$G$7="Yes"),'GF diets L-Val + Fat'!AI$266-'GF diets L-Val + Fat'!G$266, IF(AND($G$5="No",$G$6="Yes",$G$7="No"),'GF diets No L-Val + WD'!AI$266-'GF diets No L-Val + WD'!G$266, IF(AND($G$5="Yes",$G$6="Yes",$G$7="No"),'GF diets No L-Val + Fat + WD'!AI$266-'GF diets No L-Val + Fat + WD'!G$266, IF(AND($G$5="No",$G$6="Yes",$G$7="Yes"),'GF diets L-Val + WD'!AI$266-'GF diets L-Val + WD'!G$266, IF(AND($G$5="Yes",$G$6="Yes",$G$7="Yes"),'GF diets L-Val + Fat + WD'!AI$266-'GF diets L-Val + Fat + WD'!G$266))))))))*-1 -> 0.7327486172 | I47: 1.754651589 | J47: =I47-I46 -> 0.3424794069
A48: 0.25 | B48: 25% DDGS | C48: =IF(AND($G$5="No",$G$6="No",$G$7="No"),'GF diets No L-Val'!AK$266-'GF diets No L-Val'!B$266, IF(AND($G$5="Yes",$G$6="No",$G$7="No"),'GF diets No L-Val + Fat'!AK$266-'GF diets No L-Val + Fat'!B$266, IF(AND($G$5="No",$G$6="No",$G$7="Yes"),'GF diets L-Val'!AK$266-'GF diets L-Val'!B$266, IF(AND($G$5="Yes",$G$6="No",$G$7="Yes"),'GF diets L-Val + Fat'!AK$266-'GF diets L-Val + Fat'!B$266, IF(AND($G$5="No",$G$6="Yes",$G$7="No"),'GF diets No L-Val + WD'!AK$266-'GF diets No L-Val + WD'!B$266, IF(AND($G$5="Yes",$G$6="Yes",$G$7="No"),'GF diets No L-Val + Fat + WD'!AK$266-'GF diets No L-Val + Fat + WD'!B$266, IF(AND($G$5="No",$G$6="Yes",$G$7="Yes"),'GF diets L-Val + WD'!AK$266-'GF diets L-Val + WD'!B$266, IF(AND($G$5="Yes",$G$6="Yes",$G$7="Yes"),'GF diets L-Val + Fat + WD'!AK$266-'GF diets L-Val + Fat + WD'!B$266))))))))*-1 -> 0.09554778668 | D48: =IF(AND($G$5="No",$G$6="No",$G$7="No"),'GF diets No L-Val'!AL$266-'GF diets No L-Val'!C$266, IF(AND($G$5="Yes",$G$6="No",$G$7="No"),'GF diets No L-Val + Fat'!AL$266-'GF diets No L-Val + Fat'!C$266, IF(AND($G$5="No",$G$6="No",$G$7="Yes"),'GF diets L-Val'!AL$266-'GF diets L-Val'!C$266, IF(AND($G$5="Yes",$G$6="No",$G$7="Yes"),'GF diets L-Val + Fat'!AL$266-'GF diets L-Val + Fat'!C$266, IF(AND($G$5="No",$G$6="Yes",$G$7="No"),'GF diets No L-Val + WD'!AL$266-'GF diets No L-Val + WD'!C$266, IF(AND($G$5="Yes",$G$6="Yes",$G$7="No"),'GF diets No L-Val + Fat + WD'!AL$266-'GF diets No L-Val + Fat + WD'!C$266, IF(AND($G$5="No",$G$6="Yes",$G$7="Yes"),'GF diets L-Val + WD'!AL$266-'GF diets L-Val + WD'!C$266, IF(AND($G$5="Yes",$G$6="Yes",$G$7="Yes"),'GF diets L-Val + Fat + WD'!AL$266-'GF diets L-Val + Fat + WD'!C$266))))))))*-1 -> 0.1268687939 | E48: =IF(AND($G$5="No",$G$6="No",$G$7="No"),'GF diets No L-Val'!AM$266-'GF diets No L-Val'!D$266, IF(AND($G$5="Yes",$G$6="No",$G$7="No"),'GF diets No L-Val + Fat'!AM$266-'GF diets No L-Val + Fat'!D$266, IF(AND($G$5="No",$G$6="No",$G$7="Yes"),'GF diets L-Val'!AM$266-'GF diets L-Val'!D$266, IF(AND($G$5="Yes",$G$6="No",$G$7="Yes"),'GF diets L-Val + Fat'!AM$266-'GF diets L-Val + Fat'!D$266, IF(AND($G$5="No",$G$6="Yes",$G$7="No"),'GF diets No L-Val + WD'!AM$266-'GF diets No L-Val + WD'!D$266, IF(AND($G$5="Yes",$G$6="Yes",$G$7="No"),'GF diets No L-Val + Fat + WD'!AM$266-'GF diets No L-Val + Fat + WD'!D$266, IF(AND($G$5="No",$G$6="Yes",$G$7="Yes"),'GF diets L-Val + WD'!AM$266-'GF diets L-Val + WD'!D$266, IF(AND($G$5="Yes",$G$6="Yes",$G$7="Yes"),'GF diets L-Val + Fat + WD'!AM$266-'GF diets L-Val + Fat + WD'!D$266))))))))*-1 -> 0.1941874829 | F48: =IF(AND($G$5="No",$G$6="No",$G$7="No"),'GF diets No L-Val'!AN$266-'GF diets No L-Val'!E$266, IF(AND($G$5="Yes",$G$6="No",$G$7="No"),'GF diets No L-Val + Fat'!AN$266-'GF diets No L-Val + Fat'!E$266, IF(AND($G$5="No",$G$6="No",$G$7="Yes"),'GF diets L-Val'!AN$266-'GF diets L-Val'!E$266, IF(AND($G$5="Yes",$G$6="No",$G$7="Yes"),'GF diets L-Val + Fat'!AN$266-'GF diets L-Val + Fat'!E$266, IF(AND($G$5="No",$G$6="Yes",$G$7="No"),'GF diets No L-Val + WD'!AN$266-'GF diets No L-Val + WD'!E$266, IF(AND($G$5="Yes",$G$6="Yes",$G$7="No"),'GF diets No L-Val + Fat + WD'!AN$266-'GF diets No L-Val + Fat + WD'!E$266, IF(AND($G$5="No",$G$6="Yes",$G$7="Yes"),'GF diets L-Val + WD'!AN$266-'GF diets L-Val + WD'!E$266, IF(AND($G$5="Yes",$G$6="Yes",$G$7="Yes"),'GF diets L-Val + Fat + WD'!AN$266-'GF diets L-Val + Fat + WD'!E$266))))))))*-1 -> 0.2876120742 | G48: =IF(AND($G$5="No",$G$6="No",$G$7="No"),'GF diets No L-Val'!AO$266-'GF diets No L-Val'!F$266, IF(AND($G$5="Yes",$G$6="No",$G$7="No"),'GF diets No L-Val + Fat'!AO$266-'GF diets No L-Val + Fat'!F$266, IF(AND($G$5="No",$G$6="No",$G$7="Yes"),'GF diets L-Val'!AO$266-'GF diets L-Val'!F$266, IF(AND($G$5="Yes",$G$6="No",$G$7="Yes"),'GF diets L-Val + Fat'!AO$266-'GF diets L-Val + Fat'!F$266, IF(AND($G$5="No",$G$6="Yes",$G$7="No"),'GF diets No L-Val + WD'!AO$266-'GF diets No L-Val + WD'!F$266, IF(AND($G$5="Yes",$G$6="Yes",$G$7="No"),'GF diets No L-Val + Fat + WD'!AO$266-'GF diets No L-Val + Fat + WD'!F$266, IF(AND($G$5="No",$G$6="Yes",$G$7="Yes"),'GF diets L-Val + WD'!AO$266-'GF diets L-Val + WD'!F$266, IF(AND($G$5="Yes",$G$6="Yes",$G$7="Yes"),'GF diets L-Val + Fat + WD'!AO$266-'GF diets L-Val + Fat + WD'!F$266))))))))*-1 -> 0.4347844937 | H48: =IF(AND($G$5="No",$G$6="No",$G$7="No"),'GF diets No L-Val'!AP$266-'GF diets No L-Val'!G$266, IF(AND($G$5="Yes",$G$6="No",$G$7="No"),'GF diets No L-Val + Fat'!AP$266-'GF diets No L-Val + Fat'!G$266, IF(AND($G$5="No",$G$6="No",$G$7="Yes"),'GF diets L-Val'!AP$266-'GF diets L-Val'!G$266, IF(AND($G$5="Yes",$G$6="No",$G$7="Yes"),'GF diets L-Val + Fat'!AP$266-'GF diets L-Val + Fat'!G$266, IF(AND($G$5="No",$G$6="Yes",$G$7="No"),'GF diets No L-Val + WD'!AP$266-'GF diets No L-Val + WD'!G$266, IF(AND($G$5="Yes",$G$6="Yes",$G$7="No"),'GF diets No L-Val + Fat + WD'!AP$266-'GF diets No L-Val + Fat + WD'!G$266, IF(AND($G$5="No",$G$6="Yes",$G$7="Yes"),'GF diets L-Val + WD'!AP$266-'GF diets L-Val + WD'!G$266, IF(AND($G$5="Yes",$G$6="Yes",$G$7="Yes"),'GF diets L-Val + Fat + WD'!AP$266-'GF diets L-Val + Fat + WD'!G$266))))))))*-1 -> 0.8778212843 | I48: 2.016821916 | J48: =I48-I47 -> 0.2621703265
A49: 0.3 | B49: 30% DDGS | C49: =IF(AND($G$5="No",$G$6="No",$G$7="No"),'GF diets No L-Val'!AR$266-'GF diets No L-Val'!B$266, IF(AND($G$5="Yes",$G$6="No",$G$7="No"),'GF diets No L-Val + Fat'!AR$266-'GF diets No L-Val + Fat'!B$266, IF(AND($G$5="No",$G$6="No",$G$7="Yes"),'GF diets L-Val'!AR$266-'GF diets L-Val'!B$266, IF(AND($G$5="Yes",$G$6="No",$G$7="Yes"),'GF diets L-Val + Fat'!AR$266-'GF diets L-Val + Fat'!B$266, IF(AND($G$5="No",$G$6="Yes",$G$7="No"),'GF diets No L-Val + WD'!AR$266-'GF diets No L-Val + WD'!B$266, IF(AND($G$5="Yes",$G$6="Yes",$G$7="No"),'GF diets No L-Val + Fat + WD'!AR$266-'GF diets No L-Val + Fat + WD'!B$266, IF(AND($G$5="No",$G$6="Yes",$G$7="Yes"),'GF diets L-Val + WD'!AR$266-'GF diets L-Val + WD'!B$266, IF(AND($G$5="Yes",$G$6="Yes",$G$7="Yes"),'GF diets L-Val + Fat + WD'!AR$266-'GF diets L-Val + Fat + WD'!B$266))))))))*-1 -> 0.09893004254 | D49: =IF(AND($G$5="No",$G$6="No",$G$7="No"),'GF diets No L-Val'!AS$266-'GF diets No L-Val'!C$266, IF(AND($G$5="Yes",$G$6="No",$G$7="No"),'GF diets No L-Val + Fat'!AS$266-'GF diets No L-Val + Fat'!C$266, IF(AND($G$5="No",$G$6="No",$G$7="Yes"),'GF diets L-Val'!AS$266-'GF diets L-Val'!C$266, IF(AND($G$5="Yes",$G$6="No",$G$7="Yes"),'GF diets L-Val + Fat'!AS$266-'GF diets L-Val + Fat'!C$266, IF(AND($G$5="No",$G$6="Yes",$G$7="No"),'GF diets No L-Val + WD'!AS$266-'GF diets No L-Val + WD'!C$266, IF(AND($G$5="Yes",$G$6="Yes",$G$7="No"),'GF diets No L-Val + Fat + WD'!AS$266-'GF diets No L-Val + Fat + WD'!C$266, IF(AND($G$5="No",$G$6="Yes",$G$7="Yes"),'GF diets L-Val + WD'!AS$266-'GF diets L-Val + WD'!C$266, IF(AND($G$5="Yes",$G$6="Yes",$G$7="Yes"),'GF diets L-Val + Fat + WD'!AS$266-'GF diets L-Val + Fat + WD'!C$266))))))))*-1 -> 0.1348821448 | E49: =IF(AND($G$5="No",$G$6="No",$G$7="No"),'GF diets No L-Val'!AT$266-'GF diets No L-Val'!D$266, IF(AND($G$5="Yes",$G$6="No",$G$7="No"),'GF diets No L-Val + Fat'!AT$266-'GF diets No L-Val + Fat'!D$266, IF(AND($G$5="No",$G$6="No",$G$7="Yes"),'GF diets L-Val'!AT$266-'GF diets L-Val'!D$266, IF(AND($G$5="Yes",$G$6="No",$G$7="Yes"),'GF diets L-Val + Fat'!AT$266-'GF diets L-Val + Fat'!D$266, IF(AND($G$5="No",$G$6="Yes",$G$7="No"),'GF diets No L-Val + WD'!AT$266-'GF diets No L-Val + WD'!D$266, IF(AND($G$5="Yes",$G$6="Yes",$G$7="No"),'GF diets No L-Val + Fat + WD'!AT$266-'GF diets No L-Val + Fat + WD'!D$266, IF(AND($G$5="No",$G$6="Yes",$G$7="Yes"),'GF diets L-Val + WD'!AT$266-'GF diets L-Val + WD'!D$266, IF(AND($G$5="Yes",$G$6="Yes",$G$7="Yes"),'GF diets L-Val + Fat + WD'!AT$266-'GF diets L-Val + Fat + WD'!D$266))))))))*-1 -> 0.2036089425 | F49: =IF(AND($G$5="No",$G$6="No",$G$7="No"),'GF diets No L-Val'!AU$266-'GF diets No L-Val'!E$266, IF(AND($G$5="Yes",$G$6="No",$G$7="No"),'GF diets No L-Val + Fat'!AU$266-'GF diets No L-Val + Fat'!E$266, IF(AND($G$5="No",$G$6="No",$G$7="Yes"),'GF diets L-Val'!AU$266-'GF diets L-Val'!E$266, IF(AND($G$5="Yes",$G$6="No",$G$7="Yes"),'GF diets L-Val + Fat'!AU$266-'GF diets L-Val + Fat'!E$266, IF(AND($G$5="No",$G$6="Yes",$G$7="No"),'GF diets No L-Val + WD'!AU$266-'GF diets No L-Val + WD'!E$266, IF(AND($G$5="Yes",$G$6="Yes",$G$7="No"),'GF diets No L-Val + Fat + WD'!AU$266-'GF diets No L-Val + Fat + WD'!E$266, IF(AND($G$5="No",$G$6="Yes",$G$7="Yes"),'GF diets L-Val + WD'!AU$266-'GF diets L-Val + WD'!E$266, IF(AND($G$5="Yes",$G$6="Yes",$G$7="Yes"),'GF diets L-Val + Fat + WD'!AU$266-'GF diets L-Val + Fat + WD'!E$266))))))))*-1 -> 0.301021156 | G49: =IF(AND($G$5="No",$G$6="No",$G$7="No"),'GF diets No L-Val'!AV$266-'GF diets No L-Val'!F$266, IF(AND($G$5="Yes",$G$6="No",$G$7="No"),'GF diets No L-Val + Fat'!AV$266-'GF diets No L-Val + Fat'!F$266, IF(AND($G$5="No",$G$6="No",$G$7="Yes"),'GF diets L-Val'!AV$266-'GF diets L-Val'!F$266, IF(AND($G$5="Yes",$G$6="No",$G$7="Yes"),'GF diets L-Val + Fat'!AV$266-'GF diets L-Val + Fat'!F$266, IF(AND($G$5="No",$G$6="Yes",$G$7="No"),'GF diets No L-Val + WD'!AV$266-'GF diets No L-Val + WD'!F$266, IF(AND($G$5="Yes",$G$6="Yes",$G$7="No"),'GF diets No L-Val + Fat + WD'!AV$266-'GF diets No L-Val + Fat + WD'!F$266, IF(AND($G$5="No",$G$6="Yes",$G$7="Yes"),'GF diets L-Val + WD'!AV$266-'GF diets L-Val + WD'!F$266, IF(AND($G$5="Yes",$G$6="Yes",$G$7="Yes"),'GF diets L-Val + Fat + WD'!AV$266-'GF diets L-Val + Fat + WD'!F$266))))))))*-1 -> 0.4881373648 | H49: =IF(AND($G$5="No",$G$6="No",$G$7="No"),'GF diets No L-Val'!AW$266-'GF diets No L-Val'!G$266, IF(AND($G$5="Yes",$G$6="No",$G$7="No"),'GF diets No L-Val + Fat'!AW$266-'GF diets No L-Val + Fat'!G$266, IF(AND($G$5="No",$G$6="No",$G$7="Yes"),'GF diets L-Val'!AW$266-'GF diets L-Val'!G$266, IF(AND($G$5="Yes",$G$6="No",$G$7="Yes"),'GF diets L-Val + Fat'!AW$266-'GF diets L-Val + Fat'!G$266, IF(AND($G$5="No",$G$6="Yes",$G$7="No"),'GF diets No L-Val + WD'!AW$266-'GF diets No L-Val + WD'!G$266, IF(AND($G$5="Yes",$G$6="Yes",$G$7="No"),'GF diets No L-Val + Fat + WD'!AW$266-'GF diets No L-Val + Fat + WD'!G$266, IF(AND($G$5="No",$G$6="Yes",$G$7="Yes"),'GF diets L-Val + WD'!AW$266-'GF diets L-Val + WD'!G$266, IF(AND($G$5="Yes",$G$6="Yes",$G$7="Yes"),'GF diets L-Val + Fat + WD'!AW$266-'GF diets L-Val + Fat + WD'!G$266))))))))*-1 -> 1.01885821 | I49: 2.245437861 | J49: =I49-I48 -> 0.228615945
B51: Lost revenue from decreased growth, $/pig (compared to 0% DDGS) | C51: Phase 1 | D51: Phase 2 | E51: Phase 3 | F51: Phase 4 | G51: Phase 5 | H51: Phase 6 | I51: Total | J51: Incremental
A52: 0.05 | B52: 5% DDGS | C52: =IF(AND($G$5="No",$G$6="No",$G$7="No"),'GF diets No L-Val'!I$268*($G$8*$G$9/100),IF(AND($G$5="Yes",$G$6="No",$G$7="No"),'GF diets No L-Val + Fat'!I$268*($G$8*$G$9/100),IF(AND($G$5="No",$G$6="No",$G$7="Yes"),'GF diets L-Val'!I$268*($G$8*$G$9/100),IF(AND($G$5="Yes",$G$6="No",$G$7="Yes"),'GF diets L-Val + Fat'!I$268*($G$8*$G$9/100),IF(AND($G$5="No",$G$6="Yes",$G$7="No"),'GF diets No L-Val + WD'!I$268*($G$8*$G$9/100),IF(AND($G$5="Yes",$G$6="Yes",$G$7="No"),'GF diets No L-Val + Fat + WD'!I$268*($G$8*$G$9/100),IF(AND($G$5="No",$G$6="Yes",$G$7="Yes"),'GF diets L-Val + WD'!I$268*($G$8*$G$9/100),IF(AND($G$5="Yes",$G$6="Yes",$G$7="Yes"),'GF diets L-Val + Fat + WD'!I$268*($G$8*$G$9/100)))))))))*-1 -> -0.1520470359 | D52: =IF(AND($G$5="No",$G$6="No",$G$7="No"),'GF diets No L-Val'!J$268*($G$8*$G$9/100),IF(AND($G$5="Yes",$G$6="No",$G$7="No"),'GF diets No L-Val + Fat'!J$268*($G$8*$G$9/100),IF(AND($G$5="No",$G$6="No",$G$7="Yes"),'GF diets L-Val'!J$268*($G$8*$G$9/100),IF(AND($G$5="Yes",$G$6="No",$G$7="Yes"),'GF diets L-Val + Fat'!J$268*($G$8*$G$9/100),IF(AND($G$5="No",$G$6="Yes",$G$7="No"),'GF diets No L-Val + WD'!J$268*($G$8*$G$9/100),IF(AND($G$5="Yes",$G$6="Yes",$G$7="No"),'GF diets No L-Val + Fat + WD'!J$268*($G$8*$G$9/100),IF(AND($G$5="No",$G$6="Yes",$G$7="Yes"),'GF diets L-Val + WD'!J$268*($G$8*$G$9/100),IF(AND($G$5="Yes",$G$6="Yes",$G$7="Yes"),'GF diets L-Val + Fat + WD'!J$268*($G$8*$G$9/100)))))))))*-1 -> -0.1448229575 | E52: =IF(AND($G$5="No",$G$6="No",$G$7="No"),'GF diets No L-Val'!K$268*($G$8*$G$9/100),IF(AND($G$5="Yes",$G$6="No",$G$7="No"),'GF diets No L-Val + Fat'!K$268*($G$8*$G$9/100),IF(AND($G$5="No",$G$6="No",$G$7="Yes"),'GF diets L-Val'!K$268*($G$8*$G$9/100),IF(AND($G$5="Yes",$G$6="No",$G$7="Yes"),'GF diets L-Val + Fat'!K$268*($G$8*$G$9/100),IF(AND($G$5="No",$G$6="Yes",$G$7="No"),'GF diets No L-Val + WD'!K$268*($G$8*$G$9/100),IF(AND($G$5="Yes",$G$6="Yes",$G$7="No"),'GF diets No L-Val + Fat + WD'!K$268*($G$8*$G$9/100),IF(AND($G$5="No",$G$6="Yes",$G$7="Yes"),'GF diets L-Val + WD'!K$268*($G$8*$G$9/100),IF(AND($G$5="Yes",$G$6="Yes",$G$7="Yes"),'GF diets L-Val + Fat + WD'!K$268*($G$8*$G$9/100)))))))))*-1 -> -0.1771847971 | F52: =IF(AND($G$5="No",$G$6="No",$G$7="No"),'GF diets No L-Val'!L$268*($G$8*$G$9/100),IF(AND($G$5="Yes",$G$6="No",$G$7="No"),'GF diets No L-Val + Fat'!L$268*($G$8*$G$9/100),IF(AND($G$5="No",$G$6="No",$G$7="Yes"),'GF diets L-Val'!L$268*($G$8*$G$9/100),IF(AND($G$5="Yes",$G$6="No",$G$7="Yes"),'GF diets L-Val + Fat'!L$268*($G$8*$G$9/100),IF(AND($G$5="No",$G$6="Yes",$G$7="No"),'GF diets No L-Val + WD'!L$268*($G$8*$G$9/100),IF(AND($G$5="Yes",$G$6="Yes",$G$7="No"),'GF diets No L-Val + Fat + WD'!L$268*($G$8*$G$9/100),IF(AND($G$5="No",$G$6="Yes",$G$7="Yes"),'GF diets L-Val + WD'!L$268*($G$8*$G$9/100),IF(AND($G$5="Yes",$G$6="Yes",$G$7="Yes"),'GF diets L-Val + Fat + WD'!L$268*($G$8*$G$9/100)))))))))*-1 -> -0.2148681834 | G52: =IF(AND($G$5="No",$G$6="No",$G$7="No"),'GF diets No L-Val'!M$268*($G$8*$G$9/100),IF(AND($G$5="Yes",$G$6="No",$G$7="No"),'GF diets No L-Val + Fat'!M$268*($G$8*$G$9/100),IF(AND($G$5="No",$G$6="No",$G$7="Yes"),'GF diets L-Val'!M$268*($G$8*$G$9/100),IF(AND($G$5="Yes",$G$6="No",$G$7="Yes"),'GF diets L-Val + Fat'!M$268*($G$8*$G$9/100),IF(AND($G$5="No",$G$6="Yes",$G$7="No"),'GF diets No L-Val + WD'!M$268*($G$8*$G$9/100),IF(AND($G$5="Yes",$G$6="Yes",$G$7="No"),'GF diets No L-Val + Fat + WD'!M$268*($G$8*$G$9/100),IF(AND($G$5="No",$G$6="Yes",$G$7="Yes"),'GF diets L-Val + WD'!M$268*($G$8*$G$9/100),IF(AND($G$5="Yes",$G$6="Yes",$G$7="Yes"),'GF diets L-Val + Fat + WD'!M$268*($G$8*$G$9/100)))))))))*-1 -> -0.2904264087 | H52: =IF(AND($G$5="No",$G$6="No",$G$7="No"),'GF diets No L-Val'!N$268*($G$8*$G$9/100),IF(AND($G$5="Yes",$G$6="No",$G$7="No"),'GF diets No L-Val + Fat'!N$268*($G$8*$G$9/100),IF(AND($G$5="No",$G$6="No",$G$7="Yes"),'GF diets L-Val'!N$268*($G$8*$G$9/100),IF(AND($G$5="Yes",$G$6="No",$G$7="Yes"),'GF diets L-Val + Fat'!N$268*($G$8*$G$9/100),IF(AND($G$5="No",$G$6="Yes",$G$7="No"),'GF diets No L-Val + WD'!N$268*($G$8*$G$9/100),IF(AND($G$5="Yes",$G$6="Yes",$G$7="No"),'GF diets No L-Val + Fat + WD'!N$268*($G$8*$G$9/100),IF(AND($G$5="No",$G$6="Yes",$G$7="Yes"),'GF diets L-Val + WD'!N$268*($G$8*$G$9/100),IF(AND($G$5="Yes",$G$6="Yes",$G$7="Yes"),'GF diets L-Val + Fat + WD'!N$268*($G$8*$G$9/100)))))))))*-1 -> -0.4653415333 | I52: =SUM(C52:H52) -> -1.444690916
A53: 0.1 | B53: 10% DDGS | C53: =IF(AND($G$5="No",$G$6="No",$G$7="No"),'GF diets No L-Val'!P$268*($G$8*$G$9/100),IF(AND($G$5="Yes",$G$6="No",$G$7="No"),'GF diets No L-Val + Fat'!P$268*($G$8*$G$9/100),IF(AND($G$5="No",$G$6="No",$G$7="Yes"),'GF diets L-Val'!P$268*($G$8*$G$9/100),IF(AND($G$5="Yes",$G$6="No",$G$7="Yes"),'GF diets L-Val + Fat'!P$268*($G$8*$G$9/100),IF(AND($G$5="No",$G$6="Yes",$G$7="No"),'GF diets No L-Val + WD'!P$268*($G$8*$G$9/100),IF(AND($G$5="Yes",$G$6="Yes",$G$7="No"),'GF diets No L-Val + Fat + WD'!P$268*($G$8*$G$9/100),IF(AND($G$5="No",$G$6="Yes",$G$7="Yes"),'GF diets L-Val + WD'!P$268*($G$8*$G$9/100),IF(AND($G$5="Yes",$G$6="Yes",$G$7="Yes"),'GF diets L-Val + Fat + WD'!P$268*($G$8*$G$9/100)))))))))*-1 -> -0.2758781802 | D53: =IF(AND($G$5="No",$G$6="No",$G$7="No"),'GF diets No L-Val'!Q$268*($G$8*$G$9/100),IF(AND($G$5="Yes",$G$6="No",$G$7="No"),'GF diets No L-Val + Fat'!Q$268*($G$8*$G$9/100),IF(AND($G$5="No",$G$6="No",$G$7="Yes"),'GF diets L-Val'!Q$268*($G$8*$G$9/100),IF(AND($G$5="Yes",$G$6="No",$G$7="Yes"),'GF diets L-Val + Fat'!Q$268*($G$8*$G$9/100),IF(AND($G$5="No",$G$6="Yes",$G$7="No"),'GF diets No L-Val + WD'!Q$268*($G$8*$G$9/100),IF(AND($G$5="Yes",$G$6="Yes",$G$7="No"),'GF diets No L-Val + Fat + WD'!Q$268*($G$8*$G$9/100),IF(AND($G$5="No",$G$6="Yes",$G$7="Yes"),'GF diets L-Val + WD'!Q$268*($G$8*$G$9/100),IF(AND($G$5="Yes",$G$6="Yes",$G$7="Yes"),'GF diets L-Val + Fat + WD'!Q$268*($G$8*$G$9/100)))))))))*-1 -> -0.2646554205 | E53: =IF(AND($G$5="No",$G$6="No",$G$7="No"),'GF diets No L-Val'!R$268*($G$8*$G$9/100),IF(AND($G$5="Yes",$G$6="No",$G$7="No"),'GF diets No L-Val + Fat'!R$268*($G$8*$G$9/100),IF(AND($G$5="No",$G$6="No",$G$7="Yes"),'GF diets L-Val'!R$268*($G$8*$G$9/100),IF(AND($G$5="Yes",$G$6="No",$G$7="Yes"),'GF diets L-Val + Fat'!R$268*($G$8*$G$9/100),IF(AND($G$5="No",$G$6="Yes",$G$7="No"),'GF diets No L-Val + WD'!R$268*($G$8*$G$9/100),IF(AND($G$5="Yes",$G$6="Yes",$G$7="No"),'GF diets No L-Val + Fat + WD'!R$268*($G$8*$G$9/100),IF(AND($G$5="No",$G$6="Yes",$G$7="Yes"),'GF diets L-Val + WD'!R$268*($G$8*$G$9/100),IF(AND($G$5="Yes",$G$6="Yes",$G$7="Yes"),'GF diets L-Val + Fat + WD'!R$268*($G$8*$G$9/100)))))))))*-1 -> -0.3303388977 | F53: =IF(AND($G$5="No",$G$6="No",$G$7="No"),'GF diets No L-Val'!S$268*($G$8*$G$9/100),IF(AND($G$5="Yes",$G$6="No",$G$7="No"),'GF diets No L-Val + Fat'!S$268*($G$8*$G$9/100),IF(AND($G$5="No",$G$6="No",$G$7="Yes"),'GF diets L-Val'!S$268*($G$8*$G$9/100),IF(AND($G$5="Yes",$G$6="No",$G$7="Yes"),'GF diets L-Val + Fat'!S$268*($G$8*$G$9/100),IF(AND($G$5="No",$G$6="Yes",$G$7="No"),'GF diets No L-Val + WD'!S$268*($G$8*$G$9/100),IF(AND($G$5="Yes",$G$6="Yes",$G$7="No"),'GF diets No L-Val + Fat + WD'!S$268*($G$8*$G$9/100),IF(AND($G$5="No",$G$6="Yes",$G$7="Yes"),'GF diets L-Val + WD'!S$268*($G$8*$G$9/100),IF(AND($G$5="Yes",$G$6="Yes",$G$7="Yes"),'GF diets L-Val + Fat + WD'!S$268*($G$8*$G$9/100)))))))))*-1 -> -0.4202065996 | G53: =IF(AND($G$5="No",$G$6="No",$G$7="No"),'GF diets No L-Val'!T$268*($G$8*$G$9/100),IF(AND($G$5="Yes",$G$6="No",$G$7="No"),'GF diets No L-Val + Fat'!T$268*($G$8*$G$9/100),IF(AND($G$5="No",$G$6="No",$G$7="Yes"),'GF diets L-Val'!T$268*($G$8*$G$9/100),IF(AND($G$5="Yes",$G$6="No",$G$7="Yes"),'GF diets L-Val + Fat'!T$268*($G$8*$G$9/100),IF(AND($G$5="No",$G$6="Yes",$G$7="No"),'GF diets No L-Val + WD'!T$268*($G$8*$G$9/100),IF(AND($G$5="Yes",$G$6="Yes",$G$7="No"),'GF diets No L-Val + Fat + WD'!T$268*($G$8*$G$9/100),IF(AND($G$5="No",$G$6="Yes",$G$7="Yes"),'GF diets L-Val + WD'!T$268*($G$8*$G$9/100),IF(AND($G$5="Yes",$G$6="Yes",$G$7="Yes"),'GF diets L-Val + Fat + WD'!T$268*($G$8*$G$9/100)))))))))*-1 -> -0.565834079 | H53: =IF(AND($G$5="No",$G$6="No",$G$7="No"),'GF diets No L-Val'!U$268*($G$8*$G$9/100),IF(AND($G$5="Yes",$G$6="No",$G$7="No"),'GF diets No L-Val + Fat'!U$268*($G$8*$G$9/100),IF(AND($G$5="No",$G$6="No",$G$7="Yes"),'GF diets L-Val'!U$268*($G$8*$G$9/100),IF(AND($G$5="Yes",$G$6="No",$G$7="Yes"),'GF diets L-Val + Fat'!U$268*($G$8*$G$9/100),IF(AND($G$5="No",$G$6="Yes",$G$7="No"),'GF diets No L-Val + WD'!U$268*($G$8*$G$9/100),IF(AND($G$5="Yes",$G$6="Yes",$G$7="No"),'GF diets No L-Val + Fat + WD'!U$268*($G$8*$G$9/100),IF(AND($G$5="No",$G$6="Yes",$G$7="Yes"),'GF diets L-Val + WD'!U$268*($G$8*$G$9/100),IF(AND($G$5="Yes",$G$6="Yes",$G$7="Yes"),'GF diets L-Val + Fat + WD'!U$268*($G$8*$G$9/100)))))))))*-1 -> -0.9209227624 | I53: -2.777835939 | J53: =I53-I52 -> -1.333145024
A54: 0.15 | B54: 15% DDGS | C54: =IF(AND($G$5="No",$G$6="No",$G$7="No"),'GF diets No L-Val'!W$268*($G$8*$G$9/100),IF(AND($G$5="Yes",$G$6="No",$G$7="No"),'GF diets No L-Val + Fat'!W$268*($G$8*$G$9/100),IF(AND($G$5="No",$G$6="No",$G$7="Yes"),'GF diets L-Val'!W$268*($G$8*$G$9/100),IF(AND($G$5="Yes",$G$6="No",$G$7="Yes"),'GF diets L-Val + Fat'!W$268*($G$8*$G$9/100),IF(AND($G$5="No",$G$6="Yes",$G$7="No"),'GF diets No L-Val + WD'!W$268*($G$8*$G$9/100),IF(AND($G$5="Yes",$G$6="Yes",$G$7="No"),'GF diets No L-Val + Fat + WD'!W$268*($G$8*$G$9/100),IF(AND($G$5="No",$G$6="Yes",$G$7="Yes"),'GF diets L-Val + WD'!W$268*($G$8*$G$9/100),IF(AND($G$5="Yes",$G$6="Yes",$G$7="Yes"),'GF diets L-Val + Fat + WD'!W$268*($G$8*$G$9/100)))))))))*-1 -> -0.3788236716 | D54: =IF(AND($G$5="No",$G$6="No",$G$7="No"),'GF diets No L-Val'!X$268*($G$8*$G$9/100),IF(AND($G$5="Yes",$G$6="No",$G$7="No"),'GF diets No L-Val + Fat'!X$268*($G$8*$G$9/100),IF(AND($G$5="No",$G$6="No",$G$7="Yes"),'GF diets L-Val'!X$268*($G$8*$G$9/100),IF(AND($G$5="Yes",$G$6="No",$G$7="Yes"),'GF diets L-Val + Fat'!X$268*($G$8*$G$9/100),IF(AND($G$5="No",$G$6="Yes",$G$7="No"),'GF diets No L-Val + WD'!X$268*($G$8*$G$9/100),IF(AND($G$5="Yes",$G$6="Yes",$G$7="No"),'GF diets No L-Val + Fat + WD'!X$268*($G$8*$G$9/100),IF(AND($G$5="No",$G$6="Yes",$G$7="Yes"),'GF diets L-Val + WD'!X$268*($G$8*$G$9/100),IF(AND($G$5="Yes",$G$6="Yes",$G$7="Yes"),'GF diets L-Val + Fat + WD'!X$268*($G$8*$G$9/100)))))))))*-1 -> -0.3691923809 | E54: =IF(AND($G$5="No",$G$6="No",$G$7="No"),'GF diets No L-Val'!Y$268*($G$8*$G$9/100),IF(AND($G$5="Yes",$G$6="No",$G$7="No"),'GF diets No L-Val + Fat'!Y$268*($G$8*$G$9/100),IF(AND($G$5="No",$G$6="No",$G$7="Yes"),'GF diets L-Val'!Y$268*($G$8*$G$9/100),IF(AND($G$5="Yes",$G$6="No",$G$7="Yes"),'GF diets L-Val + Fat'!Y$268*($G$8*$G$9/100),IF(AND($G$5="No",$G$6="Yes",$G$7="No"),'GF diets No L-Val + WD'!Y$268*($G$8*$G$9/100),IF(AND($G$5="Yes",$G$6="Yes",$G$7="No"),'GF diets No L-Val + Fat + WD'!Y$268*($G$8*$G$9/100),IF(AND($G$5="No",$G$6="Yes",$G$7="Yes"),'GF diets L-Val + WD'!Y$268*($G$8*$G$9/100),IF(AND($G$5="Yes",$G$6="Yes",$G$7="Yes"),'GF diets L-Val + Fat + WD'!Y$268*($G$8*$G$9/100)))))))))*-1 -> -0.4801130795 | F54: =IF(AND($G$5="No",$G$6="No",$G$7="No"),'GF diets No L-Val'!Z$268*($G$8*$G$9/100),IF(AND($G$5="Yes",$G$6="No",$G$7="No"),'GF diets No L-Val + Fat'!Z$268*($G$8*$G$9/100),IF(AND($G$5="No",$G$6="No",$G$7="Yes"),'GF diets L-Val'!Z$268*($G$8*$G$9/100),IF(AND($G$5="Yes",$G$6="No",$G$7="Yes"),'GF diets L-Val + Fat'!Z$268*($G$8*$G$9/100),IF(AND($G$5="No",$G$6="Yes",$G$7="No"),'GF diets No L-Val + WD'!Z$268*($G$8*$G$9/100),IF(AND($G$5="Yes",$G$6="Yes",$G$7="No"),'GF diets No L-Val + Fat + WD'!Z$268*($G$8*$G$9/100),IF(AND($G$5="No",$G$6="Yes",$G$7="Yes"),'GF diets L-Val + WD'!Z$268*($G$8*$G$9/100),IF(AND($G$5="Yes",$G$6="Yes",$G$7="Yes"),'GF diets L-Val + Fat + WD'!Z$268*($G$8*$G$9/100)))))))))*-1 -> -0.6096706598 | G54: =IF(AND($G$5="No",$G$6="No",$G$7="No"),'GF diets No L-Val'!AA$268*($G$8*$G$9/100),IF(AND($G$5="Yes",$G$6="No",$G$7="No"),'GF diets No L-Val + Fat'!AA$268*($G$8*$G$9/100),IF(AND($G$5="No",$G$6="No",$G$7="Yes"),'GF diets L-Val'!AA$268*($G$8*$G$9/100),IF(AND($G$5="Yes",$G$6="No",$G$7="Yes"),'GF diets L-Val + Fat'!AA$268*($G$8*$G$9/100),IF(AND($G$5="No",$G$6="Yes",$G$7="No"),'GF diets No L-Val + WD'!AA$268*($G$8*$G$9/100),IF(AND($G$5="Yes",$G$6="Yes",$G$7="No"),'GF diets No L-Val + Fat + WD'!AA$268*($G$8*$G$9/100),IF(AND($G$5="No",$G$6="Yes",$G$7="Yes"),'GF diets L-Val + WD'!AA$268*($G$8*$G$9/100),IF(AND($G$5="Yes",$G$6="Yes",$G$7="Yes"),'GF diets L-Val + Fat + WD'!AA$268*($G$8*$G$9/100)))))))))*-1 -> -0.8294668573 | H54: =IF(AND($G$5="No",$G$6="No",$G$7="No"),'GF diets No L-Val'!AB$268*($G$8*$G$9/100),IF(AND($G$5="Yes",$G$6="No",$G$7="No"),'GF diets No L-Val + Fat'!AB$268*($G$8*$G$9/100),IF(AND($G$5="No",$G$6="No",$G$7="Yes"),'GF diets L-Val'!AB$268*($G$8*$G$9/100),IF(AND($G$5="Yes",$G$6="No",$G$7="Yes"),'GF diets L-Val + Fat'!AB$268*($G$8*$G$9/100),IF(AND($G$5="No",$G$6="Yes",$G$7="No"),'GF diets No L-Val + WD'!AB$268*($G$8*$G$9/100),IF(AND($G$5="Yes",$G$6="Yes",$G$7="No"),'GF diets No L-Val + Fat + WD'!AB$268*($G$8*$G$9/100),IF(AND($G$5="No",$G$6="Yes",$G$7="Yes"),'GF diets L-Val + WD'!AB$268*($G$8*$G$9/100),IF(AND($G$5="Yes",$G$6="Yes",$G$7="Yes"),'GF diets L-Val + Fat + WD'!AB$268*($G$8*$G$9/100)))))))))*-1 -> -1.367804681 | I54: -4.03507133 | J54: =I54-I53 -> -1.257235391
A55: 0.2 | B55: 20% DDGS | C55: =IF(AND($G$5="No",$G$6="No",$G$7="No"),'GF diets No L-Val'!AD$268*($G$8*$G$9/100),IF(AND($G$5="Yes",$G$6="No",$G$7="No"),'GF diets No L-Val + Fat'!AD$268*($G$8*$G$9/100),IF(AND($G$5="No",$G$6="No",$G$7="Yes"),'GF diets L-Val'!AD$268*($G$8*$G$9/100),IF(AND($G$5="Yes",$G$6="No",$G$7="Yes"),'GF diets L-Val + Fat'!AD$268*($G$8*$G$9/100),IF(AND($G$5="No",$G$6="Yes",$G$7="No"),'GF diets No L-Val + WD'!AD$268*($G$8*$G$9/100),IF(AND($G$5="Yes",$G$6="Yes",$G$7="No"),'GF diets No L-Val + Fat + WD'!AD$268*($G$8*$G$9/100),IF(AND($G$5="No",$G$6="Yes",$G$7="Yes"),'GF diets L-Val + WD'!AD$268*($G$8*$G$9/100),IF(AND($G$5="Yes",$G$6="Yes",$G$7="Yes"),'GF diets L-Val + Fat + WD'!AD$268*($G$8*$G$9/100)))))))))*-1 -> -0.4608500325 | D55: =IF(AND($G$5="No",$G$6="No",$G$7="No"),'GF diets No L-Val'!AE$268*($G$8*$G$9/100),IF(AND($G$5="Yes",$G$6="No",$G$7="No"),'GF diets No L-Val + Fat'!AE$268*($G$8*$G$9/100),IF(AND($G$5="No",$G$6="No",$G$7="Yes"),'GF diets L-Val'!AE$268*($G$8*$G$9/100),IF(AND($G$5="Yes",$G$6="No",$G$7="Yes"),'GF diets L-Val + Fat'!AE$268*($G$8*$G$9/100),IF(AND($G$5="No",$G$6="Yes",$G$7="No"),'GF diets No L-Val + WD'!AE$268*($G$8*$G$9/100),IF(AND($G$5="Yes",$G$6="Yes",$G$7="No"),'GF diets No L-Val + Fat + WD'!AE$268*($G$8*$G$9/100),IF(AND($G$5="No",$G$6="Yes",$G$7="Yes"),'GF diets L-Val + WD'!AE$268*($G$8*$G$9/100),IF(AND($G$5="Yes",$G$6="Yes",$G$7="Yes"),'GF diets L-Val + Fat + WD'!AE$268*($G$8*$G$9/100)))))))))*-1 -> -0.4633525736 | E55: =IF(AND($G$5="No",$G$6="No",$G$7="No"),'GF diets No L-Val'!AF$268*($G$8*$G$9/100),IF(AND($G$5="Yes",$G$6="No",$G$7="No"),'GF diets No L-Val + Fat'!AF$268*($G$8*$G$9/100),IF(AND($G$5="No",$G$6="No",$G$7="Yes"),'GF diets L-Val'!AF$268*($G$8*$G$9/100),IF(AND($G$5="Yes",$G$6="No",$G$7="Yes"),'GF diets L-Val + Fat'!AF$268*($G$8*$G$9/100),IF(AND($G$5="No",$G$6="Yes",$G$7="No"),'GF diets No L-Val + WD'!AF$268*($G$8*$G$9/100),IF(AND($G$5="Yes",$G$6="Yes",$G$7="No"),'GF diets No L-Val + Fat + WD'!AF$268*($G$8*$G$9/100),IF(AND($G$5="No",$G$6="Yes",$G$7="Yes"),'GF diets L-Val + WD'!AF$268*($G$8*$G$9/100),IF(AND($G$5="Yes",$G$6="Yes",$G$7="Yes"),'GF diets L-Val + Fat + WD'!AF$268*($G$8*$G$9/100)))))))))*-1 -> -0.6121090208 | F55: =IF(AND($G$5="No",$G$6="No",$G$7="No"),'GF diets No L-Val'!AG$268*($G$8*$G$9/100),IF(AND($G$5="Yes",$G$6="No",$G$7="No"),'GF diets No L-Val + Fat'!AG$268*($G$8*$G$9/100),IF(AND($G$5="No",$G$6="No",$G$7="Yes"),'GF diets L-Val'!AG$268*($G$8*$G$9/100),IF(AND($G$5="Yes",$G$6="No",$G$7="Yes"),'GF diets L-Val + Fat'!AG$268*($G$8*$G$9/100),IF(AND($G$5="No",$G$6="Yes",$G$7="No"),'GF diets No L-Val + WD'!AG$268*($G$8*$G$9/100),IF(AND($G$5="Yes",$G$6="Yes",$G$7="No"),'GF diets No L-Val + Fat + WD'!AG$268*($G$8*$G$9/100),IF(AND($G$5="No",$G$6="Yes",$G$7="Yes"),'GF diets L-Val + WD'!AG$268*($G$8*$G$9/100),IF(AND($G$5="Yes",$G$6="Yes",$G$7="Yes"),'GF diets L-Val + Fat + WD'!AG$268*($G$8*$G$9/100)))))))))*-1 -> -0.7871091159 | G55: =IF(AND($G$5="No",$G$6="No",$G$7="No"),'GF diets No L-Val'!AH$268*($G$8*$G$9/100),IF(AND($G$5="Yes",$G$6="No",$G$7="No"),'GF diets No L-Val + Fat'!AH$268*($G$8*$G$9/100),IF(AND($G$5="No",$G$6="No",$G$7="Yes"),'GF diets L-Val'!AH$268*($G$8*$G$9/100),IF(AND($G$5="Yes",$G$6="No",$G$7="Yes"),'GF diets L-Val + Fat'!AH$268*($G$8*$G$9/100),IF(AND($G$5="No",$G$6="Yes",$G$7="No"),'GF diets No L-Val + WD'!AH$268*($G$8*$G$9/100),IF(AND($G$5="Yes",$G$6="Yes",$G$7="No"),'GF diets No L-Val + Fat + WD'!AH$268*($G$8*$G$9/100),IF(AND($G$5="No",$G$6="Yes",$G$7="Yes"),'GF diets L-Val + WD'!AH$268*($G$8*$G$9/100),IF(AND($G$5="Yes",$G$6="Yes",$G$7="Yes"),'GF diets L-Val + Fat + WD'!AH$268*($G$8*$G$9/100)))))))))*-1 -> -1.090231402 | H55: =IF(AND($G$5="No",$G$6="No",$G$7="No"),'GF diets No L-Val'!AI$268*($G$8*$G$9/100),IF(AND($G$5="Yes",$G$6="No",$G$7="No"),'GF diets No L-Val + Fat'!AI$268*($G$8*$G$9/100),IF(AND($G$5="No",$G$6="No",$G$7="Yes"),'GF diets L-Val'!AI$268*($G$8*$G$9/100),IF(AND($G$5="Yes",$G$6="No",$G$7="Yes"),'GF diets L-Val + Fat'!AI$268*($G$8*$G$9/100),IF(AND($G$5="No",$G$6="Yes",$G$7="No"),'GF diets No L-Val + WD'!AI$268*($G$8*$G$9/100),IF(AND($G$5="Yes",$G$6="Yes",$G$7="No"),'GF diets No L-Val + Fat + WD'!AI$268*($G$8*$G$9/100),IF(AND($G$5="No",$G$6="Yes",$G$7="Yes"),'GF diets L-Val + WD'!AI$268*($G$8*$G$9/100),IF(AND($G$5="Yes",$G$6="Yes",$G$7="Yes"),'GF diets L-Val + Fat + WD'!AI$268*($G$8*$G$9/100)))))))))*-1 -> -1.813434243 | I55: -5.227086389 | J55: =I55-I54 -> -1.192015059
A56: 0.25 | B56: 25% DDGS | C56: =IF(AND($G$5="No",$G$6="No",$G$7="No"),'GF diets No L-Val'!AK$268*($G$8*$G$9/100),IF(AND($G$5="Yes",$G$6="No",$G$7="No"),'GF diets No L-Val + Fat'!AK$268*($G$8*$G$9/100),IF(AND($G$5="No",$G$6="No",$G$7="Yes"),'GF diets L-Val'!AK$268*($G$8*$G$9/100),IF(AND($G$5="Yes",$G$6="No",$G$7="Yes"),'GF diets L-Val + Fat'!AK$268*($G$8*$G$9/100),IF(AND($G$5="No",$G$6="Yes",$G$7="No"),'GF diets No L-Val + WD'!AK$268*($G$8*$G$9/100),IF(AND($G$5="Yes",$G$6="Yes",$G$7="No"),'GF diets No L-Val + Fat + WD'!AK$268*($G$8*$G$9/100),IF(AND($G$5="No",$G$6="Yes",$G$7="Yes"),'GF diets L-Val + WD'!AK$268*($G$8*$G$9/100),IF(AND($G$5="Yes",$G$6="Yes",$G$7="Yes"),'GF diets L-Val + Fat + WD'!AK$268*($G$8*$G$9/100)))))))))*-1 -> -0.5296372108 | D56: =IF(AND($G$5="No",$G$6="No",$G$7="No"),'GF diets No L-Val'!AL$268*($G$8*$G$9/100),IF(AND($G$5="Yes",$G$6="No",$G$7="No"),'GF diets No L-Val + Fat'!AL$268*($G$8*$G$9/100),IF(AND($G$5="No",$G$6="No",$G$7="Yes"),'GF diets L-Val'!AL$268*($G$8*$G$9/100),IF(AND($G$5="Yes",$G$6="No",$G$7="Yes"),'GF diets L-Val + Fat'!AL$268*($G$8*$G$9/100),IF(AND($G$5="No",$G$6="Yes",$G$7="No"),'GF diets No L-Val + WD'!AL$268*($G$8*$G$9/100),IF(AND($G$5="Yes",$G$6="Yes",$G$7="No"),'GF diets No L-Val + Fat + WD'!AL$268*($G$8*$G$9/100),IF(AND($G$5="No",$G$6="Yes",$G$7="Yes"),'GF diets L-Val + WD'!AL$268*($G$8*$G$9/100),IF(AND($G$5="Yes",$G$6="Yes",$G$7="Yes"),'GF diets L-Val + Fat + WD'!AL$268*($G$8*$G$9/100)))))))))*-1 -> -0.5387040224 | E56: =IF(AND($G$5="No",$G$6="No",$G$7="No"),'GF diets No L-Val'!AM$268*($G$8*$G$9/100),IF(AND($G$5="Yes",$G$6="No",$G$7="No"),'GF diets No L-Val + Fat'!AM$268*($G$8*$G$9/100),IF(AND($G$5="No",$G$6="No",$G$7="Yes"),'GF diets L-Val'!AM$268*($G$8*$G$9/100),IF(AND($G$5="Yes",$G$6="No",$G$7="Yes"),'GF diets L-Val + Fat'!AM$268*($G$8*$G$9/100),IF(AND($G$5="No",$G$6="Yes",$G$7="No"),'GF diets No L-Val + WD'!AM$268*($G$8*$G$9/100),IF(AND($G$5="Yes",$G$6="Yes",$G$7="No"),'GF diets No L-Val + Fat + WD'!AM$268*($G$8*$G$9/100),IF(AND($G$5="No",$G$6="Yes",$G$7="Yes"),'GF diets L-Val + WD'!AM$268*($G$8*$G$9/100),IF(AND($G$5="Yes",$G$6="Yes",$G$7="Yes"),'GF diets L-Val + Fat + WD'!AM$268*($G$8*$G$9/100)))))))))*-1 -> -0.7266147112 | F56: =IF(AND($G$5="No",$G$6="No",$G$7="No"),'GF diets No L-Val'!AN$268*($G$8*$G$9/100),IF(AND($G$5="Yes",$G$6="No",$G$7="No"),'GF diets No L-Val + Fat'!AN$268*($G$8*$G$9/100),IF(AND($G$5="No",$G$6="No",$G$7="Yes"),'GF diets L-Val'!AN$268*($G$8*$G$9/100),IF(AND($G$5="Yes",$G$6="No",$G$7="Yes"),'GF diets L-Val + Fat'!AN$268*($G$8*$G$9/100),IF(AND($G$5="No",$G$6="Yes",$G$7="No"),'GF diets No L-Val + WD'!AN$268*($G$8*$G$9/100),IF(AND($G$5="Yes",$G$6="Yes",$G$7="No"),'GF diets No L-Val + Fat + WD'!AN$268*($G$8*$G$9/100),IF(AND($G$5="No",$G$6="Yes",$G$7="Yes"),'GF diets L-Val + WD'!AN$268*($G$8*$G$9/100),IF(AND($G$5="Yes",$G$6="Yes",$G$7="Yes"),'GF diets L-Val + Fat + WD'!AN$268*($G$8*$G$9/100)))))))))*-1 -> -0.9568047214 | G56: =IF(AND($G$5="No",$G$6="No",$G$7="No"),'GF diets No L-Val'!AO$268*($G$8*$G$9/100),IF(AND($G$5="Yes",$G$6="No",$G$7="No"),'GF diets No L-Val + Fat'!AO$268*($G$8*$G$9/100),IF(AND($G$5="No",$G$6="No",$G$7="Yes"),'GF diets L-Val'!AO$268*($G$8*$G$9/100),IF(AND($G$5="Yes",$G$6="No",$G$7="Yes"),'GF diets L-Val + Fat'!AO$268*($G$8*$G$9/100),IF(AND($G$5="No",$G$6="Yes",$G$7="No"),'GF diets No L-Val + WD'!AO$268*($G$8*$G$9/100),IF(AND($G$5="Yes",$G$6="Yes",$G$7="No"),'GF diets No L-Val + Fat + WD'!AO$268*($G$8*$G$9/100),IF(AND($G$5="No",$G$6="Yes",$G$7="Yes"),'GF diets L-Val + WD'!AO$268*($G$8*$G$9/100),IF(AND($G$5="Yes",$G$6="Yes",$G$7="Yes"),'GF diets L-Val + Fat + WD'!AO$268*($G$8*$G$9/100)))))))))*-1 -> -1.342115568 | H56: =IF(AND($G$5="No",$G$6="No",$G$7="No"),'GF diets No L-Val'!AP$268*($G$8*$G$9/100),IF(AND($G$5="Yes",$G$6="No",$G$7="No"),'GF diets No L-Val + Fat'!AP$268*($G$8*$G$9/100),IF(AND($G$5="No",$G$6="No",$G$7="Yes"),'GF diets L-Val'!AP$268*($G$8*$G$9/100),IF(AND($G$5="Yes",$G$6="No",$G$7="Yes"),'GF diets L-Val + Fat'!AP$268*($G$8*$G$9/100),IF(AND($G$5="No",$G$6="Yes",$G$7="No"),'GF diets No L-Val + WD'!AP$268*($G$8*$G$9/100),IF(AND($G$5="Yes",$G$6="Yes",$G$7="No"),'GF diets No L-Val + Fat + WD'!AP$268*($G$8*$G$9/100),IF(AND($G$5="No",$G$6="Yes",$G$7="Yes"),'GF diets L-Val + WD'!AP$268*($G$8*$G$9/100),IF(AND($G$5="Yes",$G$6="Yes",$G$7="Yes"),'GF diets L-Val + Fat + WD'!AP$268*($G$8*$G$9/100)))))))))*-1 -> -2.245209396 | I56: -6.33908563 | J56: =I56-I55 -> -1.111999241
A57: 0.3 | B57: 30% DDGS | C57: =IF(AND($G$5="No",$G$6="No",$G$7="No"),'GF diets No L-Val'!AR$268*($G$8*$G$9/100),IF(AND($G$5="Yes",$G$6="No",$G$7="No"),'GF diets No L-Val + Fat'!AR$268*($G$8*$G$9/100),IF(AND($G$5="No",$G$6="No",$G$7="Yes"),'GF diets L-Val'!AR$268*($G$8*$G$9/100),IF(AND($G$5="Yes",$G$6="No",$G$7="Yes"),'GF diets L-Val + Fat'!AR$268*($G$8*$G$9/100),IF(AND($G$5="No",$G$6="Yes",$G$7="No"),'GF diets No L-Val + WD'!AR$268*($G$8*$G$9/100),IF(AND($G$5="Yes",$G$6="Yes",$G$7="No"),'GF diets No L-Val + Fat + WD'!AR$268*($G$8*$G$9/100),IF(AND($G$5="No",$G$6="Yes",$G$7="Yes"),'GF diets L-Val + WD'!AR$268*($G$8*$G$9/100),IF(AND($G$5="Yes",$G$6="Yes",$G$7="Yes"),'GF diets L-Val + Fat + WD'!AR$268*($G$8*$G$9/100)))))))))*-1 -> -0.5693382705 | D57: =IF(AND($G$5="No",$G$6="No",$G$7="No"),'GF diets No L-Val'!AS$268*($G$8*$G$9/100),IF(AND($G$5="Yes",$G$6="No",$G$7="No"),'GF diets No L-Val + Fat'!AS$268*($G$8*$G$9/100),IF(AND($G$5="No",$G$6="No",$G$7="Yes"),'GF diets L-Val'!AS$268*($G$8*$G$9/100),IF(AND($G$5="Yes",$G$6="No",$G$7="Yes"),'GF diets L-Val + Fat'!AS$268*($G$8*$G$9/100),IF(AND($G$5="No",$G$6="Yes",$G$7="No"),'GF diets No L-Val + WD'!AS$268*($G$8*$G$9/100),IF(AND($G$5="Yes",$G$6="Yes",$G$7="No"),'GF diets No L-Val + Fat + WD'!AS$268*($G$8*$G$9/100),IF(AND($G$5="No",$G$6="Yes",$G$7="Yes"),'GF diets L-Val + WD'!AS$268*($G$8*$G$9/100),IF(AND($G$5="Yes",$G$6="Yes",$G$7="Yes"),'GF diets L-Val + Fat + WD'!AS$268*($G$8*$G$9/100)))))))))*-1 -> -0.5969958015 | E57: =IF(AND($G$5="No",$G$6="No",$G$7="No"),'GF diets No L-Val'!AT$268*($G$8*$G$9/100),IF(AND($G$5="Yes",$G$6="No",$G$7="No"),'GF diets No L-Val + Fat'!AT$268*($G$8*$G$9/100),IF(AND($G$5="No",$G$6="No",$G$7="Yes"),'GF diets L-Val'!AT$268*($G$8*$G$9/100),IF(AND($G$5="Yes",$G$6="No",$G$7="Yes"),'GF diets L-Val + Fat'!AT$268*($G$8*$G$9/100),IF(AND($G$5="No",$G$6="Yes",$G$7="No"),'GF diets No L-Val + WD'!AT$268*($G$8*$G$9/100),IF(AND($G$5="Yes",$G$6="Yes",$G$7="No"),'GF diets No L-Val + Fat + WD'!AT$268*($G$8*$G$9/100),IF(AND($G$5="No",$G$6="Yes",$G$7="Yes"),'GF diets L-Val + WD'!AT$268*($G$8*$G$9/100),IF(AND($G$5="Yes",$G$6="Yes",$G$7="Yes"),'GF diets L-Val + Fat + WD'!AT$268*($G$8*$G$9/100)))))))))*-1 -> -0.8247400456 | F57: =IF(AND($G$5="No",$G$6="No",$G$7="No"),'GF diets No L-Val'!AU$268*($G$8*$G$9/100),IF(AND($G$5="Yes",$G$6="No",$G$7="No"),'GF diets No L-Val + Fat'!AU$268*($G$8*$G$9/100),IF(AND($G$5="No",$G$6="No",$G$7="Yes"),'GF diets L-Val'!AU$268*($G$8*$G$9/100),IF(AND($G$5="Yes",$G$6="No",$G$7="Yes"),'GF diets L-Val + Fat'!AU$268*($G$8*$G$9/100),IF(AND($G$5="No",$G$6="Yes",$G$7="No"),'GF diets No L-Val + WD'!AU$268*($G$8*$G$9/100),IF(AND($G$5="Yes",$G$6="Yes",$G$7="No"),'GF diets No L-Val + Fat + WD'!AU$268*($G$8*$G$9/100),IF(AND($G$5="No",$G$6="Yes",$G$7="Yes"),'GF diets L-Val + WD'!AU$268*($G$8*$G$9/100),IF(AND($G$5="Yes",$G$6="Yes",$G$7="Yes"),'GF diets L-Val + Fat + WD'!AU$268*($G$8*$G$9/100)))))))))*-1 -> -1.116183827 | G57: =IF(AND($G$5="No",$G$6="No",$G$7="No"),'GF diets No L-Val'!AV$268*($G$8*$G$9/100),IF(AND($G$5="Yes",$G$6="No",$G$7="No"),'GF diets No L-Val + Fat'!AV$268*($G$8*$G$9/100),IF(AND($G$5="No",$G$6="No",$G$7="Yes"),'GF diets L-Val'!AV$268*($G$8*$G$9/100),IF(AND($G$5="Yes",$G$6="No",$G$7="Yes"),'GF diets L-Val + Fat'!AV$268*($G$8*$G$9/100),IF(AND($G$5="No",$G$6="Yes",$G$7="No"),'GF diets No L-Val + WD'!AV$268*($G$8*$G$9/100),IF(AND($G$5="Yes",$G$6="Yes",$G$7="No"),'GF diets No L-Val + Fat + WD'!AV$268*($G$8*$G$9/100),IF(AND($G$5="No",$G$6="Yes",$G$7="Yes"),'GF diets L-Val + WD'!AV$268*($G$8*$G$9/100),IF(AND($G$5="Yes",$G$6="Yes",$G$7="Yes"),'GF diets L-Val + Fat + WD'!AV$268*($G$8*$G$9/100)))))))))*-1 -> -1.581141556 | H57: =IF(AND($G$5="No",$G$6="No",$G$7="No"),'GF diets No L-Val'!AW$268*($G$8*$G$9/100),IF(AND($G$5="Yes",$G$6="No",$G$7="No"),'GF diets No L-Val + Fat'!AW$268*($G$8*$G$9/100),IF(AND($G$5="No",$G$6="No",$G$7="Yes"),'GF diets L-Val'!AW$268*($G$8*$G$9/100),IF(AND($G$5="Yes",$G$6="No",$G$7="Yes"),'GF diets L-Val + Fat'!AW$268*($G$8*$G$9/100),IF(AND($G$5="No",$G$6="Yes",$G$7="No"),'GF diets No L-Val + WD'!AW$268*($G$8*$G$9/100),IF(AND($G$5="Yes",$G$6="Yes",$G$7="No"),'GF diets No L-Val + Fat + WD'!AW$268*($G$8*$G$9/100),IF(AND($G$5="No",$G$6="Yes",$G$7="Yes"),'GF diets L-Val + WD'!AW$268*($G$8*$G$9/100),IF(AND($G$5="Yes",$G$6="Yes",$G$7="Yes"),'GF diets L-Val + Fat + WD'!AW$268*($G$8*$G$9/100)))))))))*-1 -> -2.662584877 | I57: -7.350984377 | J57: =I57-I56 -> -1.011898747
B59: IOFC- Live pig, $/pig (compared to 0% DDGS) | C59: Phase 1 | D59: Phase 2 | E59: Phase 3 | F59: Phase 4 | G59: Phase 5 | H59: Phase 6 | I59: Total | J59: Incremental
A60: 0.05 | B60: 5% DDGS | C60: =IF(AND($G$5="No",$G$6="No",$G$7="No"), (('GF diets No L-Val'!I351-'GF diets No L-Val'!I5)*($G$8*$G$9/100)-'GF diets No L-Val'!I$266)- (('GF diets No L-Val'!B351-'GF diets No L-Val'!B5)*($G$8*$G$9/100)-'GF diets No L-Val'!B$266), IF(AND($G$5="Yes",$G$6="No",$G$7="No"), (('GF diets No L-Val + Fat'!I$351-'GF diets No L-Val + Fat'!I5)*($G$8*$G$9/100)-'GF diets No L-Val + Fat'!I$266)- (('GF diets No L-Val + Fat'!B351-'GF diets No L-Val + Fat'!B5)*($G$8*$G$9/100)-'GF diets No L-Val + Fat'!B$266), IF(AND($G$5="No",$G$6="No",$G$7="Yes"), (('GF diets L-Val'!I$351-'GF diets L-Val'!I5)*($G$8*$G$9/100)-'GF diets L-Val'!I$266)- (('GF diets L-Val'!B351-'GF diets L-Val'!B5)*($G$8*$G$9/100)-'GF diets L-Val'!B$266), IF(AND($G$5="Yes",$G$6="No",$G$7="Yes"), (('GF diets L-Val + Fat'!I$351-'GF diets L-Val + Fat'!I5)*($G$8*$G$9/100)-'GF diets L-Val + Fat'!I$266)- (('GF diets L-Val + Fat'!B$351-'GF diets L-Val + Fat'!B5)*($G$8*$G$9/100)-'GF diets L-Val + Fat'!B$266), IF(AND($G$5="No",$G$6="Yes",$G$7="No"), (('GF diets No L-Val + WD'!I$351-'GF diets No L-Val + WD'!I5)*($G$8*$G$9/100)-'GF diets No L-Val + WD'!I$266)- (('GF diets No L-Val + WD'!B$351-'GF diets No L-Val + WD'!B5)*($G$8*$G$9/100)-'GF diets No L-Val + WD'!B$266), IF(AND($G$5="Yes",$G$6="Yes",$G$7="No"), (('GF diets No L-Val + Fat + WD'!I$351-'GF diets No L-Val + Fat + WD'!I5)*($G$8*$G$9/100)-'GF diets No L-Val + Fat + WD'!I$266)- (('GF diets No L-Val + Fat + WD'!B$351-'GF diets No L-Val + Fat + WD'!B5)*($G$8*$G$9/100)-'GF diets No L-Val + Fat + WD'!B$266), IF(AND($G$5="No",$G$6="Yes",$G$7="Yes"), (('GF diets L-Val + WD'!I$351-'GF diets L-Val + WD'!I5)*($G$8*$G$9/100)-'GF diets L-Val + WD'!I$266)- (('GF diets L-Val + WD'!B$351-'GF diets L-Val + WD'!B5)*($G$8*$G$9/100)-'GF diets L-Val + WD'!B$266), IF(AND($G$5="Yes",$G$6="Yes",$G$7="Yes"), (('GF diets L-Val + Fat + WD'!I$351-'GF diets L-Val + Fat + WD'!I5)*($G$8*$G$9/100)-'GF diets L-Val + Fat + WD'!I$266)- (('GF diets L-Val + Fat + WD'!B$351-'GF diets L-Val + Fat + WD'!B5)*($G$8*$G$9/100)-'GF diets L-Val + Fat + WD'!B$266) )))))))) -> -0.1112202551 | D60: =IF(AND($G$5="No",$G$6="No",$G$7="No"), (('GF diets No L-Val'!J351-'GF diets No L-Val'!J5)*($G$8*$G$9/100)-'GF diets No L-Val'!J$266)- (('GF diets No L-Val'!C351-'GF diets No L-Val'!C5)*($G$8*$G$9/100)-'GF diets No L-Val'!C$266), IF(AND($G$5="Yes",$G$6="No",$G$7="No"), (('GF diets No L-Val + Fat'!J$351-'GF diets No L-Val + Fat'!J5)*($G$8*$G$9/100)-'GF diets No L-Val + Fat'!J$266)- (('GF diets No L-Val + Fat'!C351-'GF diets No L-Val + Fat'!C5)*($G$8*$G$9/100)-'GF diets No L-Val + Fat'!C$266), IF(AND($G$5="No",$G$6="No",$G$7="Yes"), (('GF diets L-Val'!J$351-'GF diets L-Val'!J5)*($G$8*$G$9/100)-'GF diets L-Val'!J$266)- (('GF diets L-Val'!C351-'GF diets L-Val'!C5)*($G$8*$G$9/100)-'GF diets L-Val'!C$266), IF(AND($G$5="Yes",$G$6="No",$G$7="Yes"), (('GF diets L-Val + Fat'!J$351-'GF diets L-Val + Fat'!J5)*($G$8*$G$9/100)-'GF diets L-Val + Fat'!J$266)- (('GF diets L-Val + Fat'!C$351-'GF diets L-Val + Fat'!C5)*($G$8*$G$9/100)-'GF diets L-Val + Fat'!C$266), IF(AND($G$5="No",$G$6="Yes",$G$7="No"), (('GF diets No L-Val + WD'!J$351-'GF diets No L-Val + WD'!J5)*($G$8*$G$9/100)-'GF diets No L-Val + WD'!J$266)- (('GF diets No L-Val + WD'!C$351-'GF diets No L-Val + WD'!C5)*($G$8*$G$9/100)-'GF diets No L-Val + WD'!C$266), IF(AND($G$5="Yes",$G$6="Yes",$G$7="No"), (('GF diets No L-Val + Fat + WD'!J$351-'GF diets No L-Val + Fat + WD'!J5)*($G$8*$G$9/100)-'GF diets No L-Val + Fat + WD'!J$266)- (('GF diets No L-Val + Fat + WD'!C$351-'GF diets No L-Val + Fat + WD'!C5)*($G$8*$G$9/100)-'GF diets No L-Val + Fat + WD'!C$266), IF(AND($G$5="No",$G$6="Yes",$G$7="Yes"), (('GF diets L-Val + WD'!J$351-'GF diets L-Val + WD'!J5)*($G$8*$G$9/100)-'GF diets L-Val + WD'!J$266)- (('GF diets L-Val + WD'!C$351-'GF diets L-Val + WD'!C5)*($G$8*$G$9/100)-'GF diets L-Val + WD'!C$266), IF(AND($G$5="Yes",$G$6="Yes",$G$7="Yes"), (('GF diets L-Val + Fat + WD'!J$351-'GF diets L-Val + Fat + WD'!J5)*($G$8*$G$9/100)-'GF diets L-Val + Fat + WD'!J$266)- (('GF diets L-Val + Fat + WD'!C$351-'GF diets L-Val + Fat + WD'!C5)*($G$8*$G$9/100)-'GF diets L-Val + Fat + WD'!C$266) )))))))) -> -0.1033931127 | E60: =IF(AND($G$5="No",$G$6="No",$G$7="No"), (('GF diets No L-Val'!K351-'GF diets No L-Val'!K5)*($G$8*$G$9/100)-'GF diets No L-Val'!K$266)- (('GF diets No L-Val'!D351-'GF diets No L-Val'!D5)*($G$8*$G$9/100)-'GF diets No L-Val'!D$266), IF(AND($G$5="Yes",$G$6="No",$G$7="No"), (('GF diets No L-Val + Fat'!K$351-'GF diets No L-Val + Fat'!K5)*($G$8*$G$9/100)-'GF diets No L-Val + Fat'!K$266)- (('GF diets No L-Val + Fat'!D351-'GF diets No L-Val + Fat'!D5)*($G$8*$G$9/100)-'GF diets No L-Val + Fat'!D$266), IF(AND($G$5="No",$G$6="No",$G$7="Yes"), (('GF diets L-Val'!K$351-'GF diets L-Val'!K5)*($G$8*$G$9/100)-'GF diets L-Val'!K$266)- (('GF diets L-Val'!D351-'GF diets L-Val'!D5)*($G$8*$G$9/100)-'GF diets L-Val'!D$266), IF(AND($G$5="Yes",$G$6="No",$G$7="Yes"), (('GF diets L-Val + Fat'!K$351-'GF diets L-Val + Fat'!K5)*($G$8*$G$9/100)-'GF diets L-Val + Fat'!K$266)- (('GF diets L-Val + Fat'!D$351-'GF diets L-Val + Fat'!D5)*($G$8*$G$9/100)-'GF diets L-Val + Fat'!D$266), IF(AND($G$5="No",$G$6="Yes",$G$7="No"), (('GF diets No L-Val + WD'!K$351-'GF diets No L-Val + WD'!K5)*($G$8*$G$9/100)-'GF diets No L-Val + WD'!K$266)- (('GF diets No L-Val + WD'!D$351-'GF diets No L-Val + WD'!D5)*($G$8*$G$9/100)-'GF diets No L-Val + WD'!D$266), IF(AND($G$5="Yes",$G$6="Yes",$G$7="No"), (('GF diets No L-Val + Fat + WD'!K$351-'GF diets No L-Val + Fat + WD'!K5)*($G$8*$G$9/100)-'GF diets No L-Val + Fat + WD'!K$266)- (('GF diets No L-Val + Fat + WD'!D$351-'GF diets No L-Val + Fat + WD'!D5)*($G$8*$G$9/100)-'GF diets No L-Val + Fat + WD'!D$266), IF(AND($G$5="No",$G$6="Yes",$G$7="Yes"), (('GF diets L-Val + WD'!K$351-'GF diets L-Val + WD'!K5)*($G$8*$G$9/100)-'GF diets L-Val + WD'!K$266)- (('GF diets L-Val + WD'!D$351-'GF diets L-Val + WD'!D5)*($G$8*$G$9/100)-'GF diets L-Val + WD'!D$266), IF(AND($G$5="Yes",$G$6="Yes",$G$7="Yes"), (('GF diets L-Val + Fat + WD'!K$351-'GF diets L-Val + Fat + WD'!K5)*($G$8*$G$9/100)-'GF diets L-Val + Fat + WD'!K$266)- (('GF diets L-Val + Fat + WD'!D$351-'GF diets L-Val + Fat + WD'!D5)*($G$8*$G$9/100)-'GF diets L-Val + Fat + WD'!D$266) )))))))) -> -0.1223291059 | F60: =IF(AND($G$5="No",$G$6="No",$G$7="No"), (('GF diets No L-Val'!L351-'GF diets No L-Val'!L5)*($G$8*$G$9/100)-'GF diets No L-Val'!L$266)- (('GF diets No L-Val'!E351-'GF diets No L-Val'!E5)*($G$8*$G$9/100)-'GF diets No L-Val'!E$266), IF(AND($G$5="Yes",$G$6="No",$G$7="No"), (('GF diets No L-Val + Fat'!L$351-'GF diets No L-Val + Fat'!L5)*($G$8*$G$9/100)-'GF diets No L-Val + Fat'!L$266)- (('GF diets No L-Val + Fat'!E351-'GF diets No L-Val + Fat'!E5)*($G$8*$G$9/100)-'GF diets No L-Val + Fat'!E$266), IF(AND($G$5="No",$G$6="No",$G$7="Yes"), (('GF diets L-Val'!L$351-'GF diets L-Val'!L5)*($G$8*$G$9/100)-'GF diets L-Val'!L$266)- (('GF diets L-Val'!E351-'GF diets L-Val'!E5)*($G$8*$G$9/100)-'GF diets L-Val'!E$266), IF(AND($G$5="Yes",$G$6="No",$G$7="Yes"), (('GF diets L-Val + Fat'!L$351-'GF diets L-Val + Fat'!L5)*($G$8*$G$9/100)-'GF diets L-Val + Fat'!L$266)- (('GF diets L-Val + Fat'!E$351-'GF diets L-Val + Fat'!E5)*($G$8*$G$9/100)-'GF diets L-Val + Fat'!E$266), IF(AND($G$5="No",$G$6="Yes",$G$7="No"), (('GF diets No L-Val + WD'!L$351-'GF diets No L-Val + WD'!L5)*($G$8*$G$9/100)-'GF diets No L-Val + WD'!L$266)- (('GF diets No L-Val + WD'!E$351-'GF diets No L-Val + WD'!E5)*($G$8*$G$9/100)-'GF diets No L-Val + WD'!E$266), IF(AND($G$5="Yes",$G$6="Yes",$G$7="No"), (('GF diets No L-Val + Fat + WD'!L$351-'GF diets No L-Val + Fat + WD'!L5)*($G$8*$G$9/100)-'GF diets No L-Val + Fat + WD'!L$266)- (('GF diets No L-Val + Fat + WD'!E$351-'GF diets No L-Val + Fat + WD'!E5)*($G$8*$G$9/100)-'GF diets No L-Val + Fat + WD'!E$266), IF(AND($G$5="No",$G$6="Yes",$G$7="Yes"), (('GF diets L-Val + WD'!L$351-'GF diets L-Val + WD'!L5)*($G$8*$G$9/100)-'GF diets L-Val + WD'!L$266)- (('GF diets L-Val + WD'!E$351-'GF diets L-Val + WD'!E5)*($G$8*$G$9/100)-'GF diets L-Val + WD'!E$266), IF(AND($G$5="Yes",$G$6="Yes",$G$7="Yes"), (('GF diets L-Val + Fat + WD'!L$351-'GF diets L-Val + Fat + WD'!L5)*($G$8*$G$9/100)-'GF diets L-Val + Fat + WD'!L$266)- (('GF diets L-Val + Fat + WD'!E$351-'GF diets L-Val + Fat + WD'!E5)*($G$8*$G$9/100)-'GF diets L-Val + Fat + WD'!E$266) )))))))) -> -0.1338755879 | G60: =IF(AND($G$5="No",$G$6="No",$G$7="No"), (('GF diets No L-Val'!M351-'GF diets No L-Val'!M5)*($G$8*$G$9/100)-'GF diets No L-Val'!M$266)- (('GF diets No L-Val'!F351-'GF diets No L-Val'!F5)*($G$8*$G$9/100)-'GF diets No L-Val'!F$266), IF(AND($G$5="Yes",$G$6="No",$G$7="No"), (('GF diets No L-Val + Fat'!M$351-'GF diets No L-Val + Fat'!M5)*($G$8*$G$9/100)-'GF diets No L-Val + Fat'!M$266)- (('GF diets No L-Val + Fat'!F351-'GF diets No L-Val + Fat'!F5)*($G$8*$G$9/100)-'GF diets No L-Val + Fat'!F$266), IF(AND($G$5="No",$G$6="No",$G$7="Yes"), (('GF diets L-Val'!M$351-'GF diets L-Val'!M5)*($G$8*$G$9/100)-'GF diets L-Val'!M$266)- (('GF diets L-Val'!F351-'GF diets L-Val'!F5)*($G$8*$G$9/100)-'GF diets L-Val'!F$266), IF(AND($G$5="Yes",$G$6="No",$G$7="Yes"), (('GF diets L-Val + Fat'!M$351-'GF diets L-Val + Fat'!M5)*($G$8*$G$9/100)-'GF diets L-Val + Fat'!M$266)- (('GF diets L-Val + Fat'!F$351-'GF diets L-Val + Fat'!F5)*($G$8*$G$9/100)-'GF diets L-Val + Fat'!F$266), IF(AND($G$5="No",$G$6="Yes",$G$7="No"), (('GF diets No L-Val + WD'!M$351-'GF diets No L-Val + WD'!M5)*($G$8*$G$9/100)-'GF diets No L-Val + WD'!M$266)- (('GF diets No L-Val + WD'!F$351-'GF diets No L-Val + WD'!F5)*($G$8*$G$9/100)-'GF diets No L-Val + WD'!F$266), IF(AND($G$5="Yes",$G$6="Yes",$G$7="No"), (('GF diets No L-Val + Fat + WD'!M$351-'GF diets No L-Val + Fat + WD'!M5)*($G$8*$G$9/100)-'GF diets No L-Val + Fat + WD'!M$266)- (('GF diets No L-Val + Fat + WD'!F$351-'GF diets No L-Val + Fat + WD'!F5)*($G$8*$G$9/100)-'GF diets No L-Val + Fat + WD'!F$266), IF(AND($G$5="No",$G$6="Yes",$G$7="Yes"), (('GF diets L-Val + WD'!M$351-'GF diets L-Val + WD'!M5)*($G$8*$G$9/100)-'GF diets L-Val + WD'!M$266)- (('GF diets L-Val + WD'!F$351-'GF diets L-Val + WD'!F5)*($G$8*$G$9/100)-'GF diets L-Val + WD'!F$266), IF(AND($G$5="Yes",$G$6="Yes",$G$7="Yes"), (('GF diets L-Val + Fat + WD'!M$351-'GF diets L-Val + Fat + WD'!M5)*($G$8*$G$9/100)-'GF diets L-Val + Fat + WD'!M$266)- (('GF diets L-Val + Fat + WD'!F$351-'GF diets L-Val + Fat + WD'!F5)*($G$8*$G$9/100)-'GF diets L-Val + Fat + WD'!F$266) )))))))) -> -0.1678701517 | H60: =IF(AND($G$5="No",$G$6="No",$G$7="No"), (('GF diets No L-Val'!N351-'GF diets No L-Val'!N5)*($G$8*$G$9/100)-'GF diets No L-Val'!N$266)- (('GF diets No L-Val'!G351-'GF diets No L-Val'!G5)*($G$8*$G$9/100)-'GF diets No L-Val'!G$266), IF(AND($G$5="Yes",$G$6="No",$G$7="No"), (('GF diets No L-Val + Fat'!N$351-'GF diets No L-Val + Fat'!N5)*($G$8*$G$9/100)-'GF diets No L-Val + Fat'!N$266)- (('GF diets No L-Val + Fat'!G351-'GF diets No L-Val + Fat'!G5)*($G$8*$G$9/100)-'GF diets No L-Val + Fat'!G$266), IF(AND($G$5="No",$G$6="No",$G$7="Yes"), (('GF diets L-Val'!N$351-'GF diets L-Val'!N5)*($G$8*$G$9/100)-'GF diets L-Val'!N$266)- (('GF diets L-Val'!G351-'GF diets L-Val'!G5)*($G$8*$G$9/100)-'GF diets L-Val'!G$266), IF(AND($G$5="Yes",$G$6="No",$G$7="Yes"), (('GF diets L-Val + Fat'!N$351-'GF diets L-Val + Fat'!N5)*($G$8*$G$9/100)-'GF diets L-Val + Fat'!N$266)- (('GF diets L-Val + Fat'!G$351-'GF diets L-Val + Fat'!G5)*($G$8*$G$9/100)-'GF diets L-Val + Fat'!G$266), IF(AND($G$5="No",$G$6="Yes",$G$7="No"), (('GF diets No L-Val + WD'!N$351-'GF diets No L-Val + WD'!N5)*($G$8*$G$9/100)-'GF diets No L-Val + WD'!N$266)- (('GF diets No L-Val + WD'!G$351-'GF diets No L-Val + WD'!G5)*($G$8*$G$9/100)-'GF diets No L-Val + WD'!G$266), IF(AND($G$5="Yes",$G$6="Yes",$G$7="No"), (('GF diets No L-Val + Fat + WD'!N$351-'GF diets No L-Val + Fat + WD'!N5)*($G$8*$G$9/100)-'GF diets No L-Val + Fat + WD'!N$266)- (('GF diets No L-Val + Fat + WD'!G$351-'GF diets No L-Val + Fat + WD'!G5)*($G$8*$G$9/100)-'GF diets No L-Val + Fat + WD'!G$266), IF(AND($G$5="No",$G$6="Yes",$G$7="Yes"), (('GF diets L-Val + WD'!N$351-'GF diets L-Val + WD'!N5)*($G$8*$G$9/100)-'GF diets L-Val + WD'!N$266)- (('GF diets L-Val + WD'!G$351-'GF diets L-Val + WD'!G5)*($G$8*$G$9/100)-'GF diets L-Val + WD'!G$266), IF(AND($G$5="Yes",$G$6="Yes",$G$7="Yes"), (('GF diets L-Val + Fat + WD'!N$351-'GF diets L-Val + Fat + WD'!N5)*($G$8*$G$9/100)-'GF diets L-Val + Fat + WD'!N$266)- (('GF diets L-Val + Fat + WD'!G$351-'GF diets L-Val + Fat + WD'!G5)*($G$8*$G$9/100)-'GF diets L-Val + Fat + WD'!G$266) )))))))) -> -0.2458127664 | I60: =SUM(C60:H60) -> -0.8845009797
A61: 0.1 | B61: 10% DDGS | C61: =IF(AND($G$5="No",$G$6="No",$G$7="No"), (('GF diets No L-Val'!P351-'GF diets No L-Val'!P5)*($G$8*$G$9/100)-'GF diets No L-Val'!P$266)- (('GF diets No L-Val'!B351-'GF diets No L-Val'!B5)*($G$8*$G$9/100)-'GF diets No L-Val'!B$266), IF(AND($G$5="Yes",$G$6="No",$G$7="No"), (('GF diets No L-Val + Fat'!P$351-'GF diets No L-Val + Fat'!P5)*($G$8*$G$9/100)-'GF diets No L-Val + Fat'!P$266)- (('GF diets No L-Val + Fat'!B351-'GF diets No L-Val + Fat'!B5)*($G$8*$G$9/100)-'GF diets No L-Val + Fat'!B$266), IF(AND($G$5="No",$G$6="No",$G$7="Yes"), (('GF diets L-Val'!P$351-'GF diets L-Val'!P5)*($G$8*$G$9/100)-'GF diets L-Val'!P$266)- (('GF diets L-Val'!B351-'GF diets L-Val'!B5)*($G$8*$G$9/100)-'GF diets L-Val'!B$266), IF(AND($G$5="Yes",$G$6="No",$G$7="Yes"), (('GF diets L-Val + Fat'!P$351-'GF diets L-Val + Fat'!P5)*($G$8*$G$9/100)-'GF diets L-Val + Fat'!P$266)- (('GF diets L-Val + Fat'!B$351-'GF diets L-Val + Fat'!B5)*($G$8*$G$9/100)-'GF diets L-Val + Fat'!B$266), IF(AND($G$5="No",$G$6="Yes",$G$7="No"), (('GF diets No L-Val + WD'!P$351-'GF diets No L-Val + WD'!P5)*($G$8*$G$9/100)-'GF diets No L-Val + WD'!P$266)- (('GF diets No L-Val + WD'!B$351-'GF diets No L-Val + WD'!B5)*($G$8*$G$9/100)-'GF diets No L-Val + WD'!B$266), IF(AND($G$5="Yes",$G$6="Yes",$G$7="No"), (('GF diets No L-Val + Fat + WD'!P$351-'GF diets No L-Val + Fat + WD'!P5)*($G$8*$G$9/100)-'GF diets No L-Val + Fat + WD'!P$266)- (('GF diets No L-Val + Fat + WD'!B$351-'GF diets No L-Val + Fat + WD'!B5)*($G$8*$G$9/100)-'GF diets No L-Val + Fat + WD'!B$266), IF(AND($G$5="No",$G$6="Yes",$G$7="Yes"), (('GF diets L-Val + WD'!P$351-'GF diets L-Val + WD'!P5)*($G$8*$G$9/100)-'GF diets L-Val + WD'!P$266)- (('GF diets L-Val + WD'!B$351-'GF diets L-Val + WD'!B5)*($G$8*$G$9/100)-'GF diets L-Val + WD'!B$266), IF(AND($G$5="Yes",$G$6="Yes",$G$7="Yes"), (('GF diets L-Val + Fat + WD'!P$351-'GF diets L-Val + Fat + WD'!P5)*($G$8*$G$9/100)-'GF diets L-Val + Fat + WD'!P$266)- (('GF diets L-Val + Fat + WD'!B$351-'GF diets L-Val + Fat + WD'!B5)*($G$8*$G$9/100)-'GF diets L-Val + Fat + WD'!B$266) )))))))) -> -0.2090196088 | D61: =IF(AND($G$5="No",$G$6="No",$G$7="No"), (('GF diets No L-Val'!Q351-'GF diets No L-Val'!Q5)*($G$8*$G$9/100)-'GF diets No L-Val'!Q$266)- (('GF diets No L-Val'!C351-'GF diets No L-Val'!C5)*($G$8*$G$9/100)-'GF diets No L-Val'!C$266), IF(AND($G$5="Yes",$G$6="No",$G$7="No"), (('GF diets No L-Val + Fat'!Q$351-'GF diets No L-Val + Fat'!Q5)*($G$8*$G$9/100)-'GF diets No L-Val + Fat'!Q$266)- (('GF diets No L-Val + Fat'!C351-'GF diets No L-Val + Fat'!C5)*($G$8*$G$9/100)-'GF diets No L-Val + Fat'!C$266), IF(AND($G$5="No",$G$6="No",$G$7="Yes"), (('GF diets L-Val'!Q$351-'GF diets L-Val'!Q5)*($G$8*$G$9/100)-'GF diets L-Val'!Q$266)- (('GF diets L-Val'!C351-'GF diets L-Val'!C5)*($G$8*$G$9/100)-'GF diets L-Val'!C$266), IF(AND($G$5="Yes",$G$6="No",$G$7="Yes"), (('GF diets L-Val + Fat'!Q$351-'GF diets L-Val + Fat'!Q5)*($G$8*$G$9/100)-'GF diets L-Val + Fat'!Q$266)- (('GF diets L-Val + Fat'!C$351-'GF diets L-Val + Fat'!C5)*($G$8*$G$9/100)-'GF diets L-Val + Fat'!C$266), IF(AND($G$5="No",$G$6="Yes",$G$7="No"), (('GF diets No L-Val + WD'!Q$351-'GF diets No L-Val + WD'!Q5)*($G$8*$G$9/100)-'GF diets No L-Val + WD'!Q$266)- (('GF diets No L-Val + WD'!C$351-'GF diets No L-Val + WD'!C5)*($G$8*$G$9/100)-'GF diets No L-Val + WD'!C$266), IF(AND($G$5="Yes",$G$6="Yes",$G$7="No"), (('GF diets No L-Val + Fat + WD'!Q$351-'GF diets No L-Val + Fat + WD'!Q5)*($G$8*$G$9/100)-'GF diets No L-Val + Fat + WD'!Q$266)- (('GF diets No L-Val + Fat + WD'!C$351-'GF diets No L-Val + Fat + WD'!C5)*($G$8*$G$9/100)-'GF diets No L-Val + Fat + WD'!C$266), IF(AND($G$5="No",$G$6="Yes",$G$7="Yes"), (('GF diets L-Val + WD'!Q$351-'GF diets L-Val + WD'!Q5)*($G$8*$G$9/100)-'GF diets L-Val + WD'!Q$266)- (('GF diets L-Val + WD'!C$351-'GF diets L-Val + WD'!C5)*($G$8*$G$9/100)-'GF diets L-Val + WD'!C$266), IF(AND($G$5="Yes",$G$6="Yes",$G$7="Yes"), (('GF diets L-Val + Fat + WD'!Q$351-'GF diets L-Val + Fat + WD'!Q5)*($G$8*$G$9/100)-'GF diets L-Val + Fat + WD'!Q$266)- (('GF diets L-Val + Fat + WD'!C$351-'GF diets L-Val + Fat + WD'!C5)*($G$8*$G$9/100)-'GF diets L-Val + Fat + WD'!C$266) )))))))) -> -0.1961246448 | E61: =IF(AND($G$5="No",$G$6="No",$G$7="No"), (('GF diets No L-Val'!R351-'GF diets No L-Val'!R5)*($G$8*$G$9/100)-'GF diets No L-Val'!R$266)- (('GF diets No L-Val'!D351-'GF diets No L-Val'!D5)*($G$8*$G$9/100)-'GF diets No L-Val'!D$266), IF(AND($G$5="Yes",$G$6="No",$G$7="No"), (('GF diets No L-Val + Fat'!R$351-'GF diets No L-Val + Fat'!R5)*($G$8*$G$9/100)-'GF diets No L-Val + Fat'!R$266)- (('GF diets No L-Val + Fat'!D351-'GF diets No L-Val + Fat'!D5)*($G$8*$G$9/100)-'GF diets No L-Val + Fat'!D$266), IF(AND($G$5="No",$G$6="No",$G$7="Yes"), (('GF diets L-Val'!R$351-'GF diets L-Val'!R5)*($G$8*$G$9/100)-'GF diets L-Val'!R$266)- (('GF diets L-Val'!D351-'GF diets L-Val'!D5)*($G$8*$G$9/100)-'GF diets L-Val'!D$266), IF(AND($G$5="Yes",$G$6="No",$G$7="Yes"), (('GF diets L-Val + Fat'!R$351-'GF diets L-Val + Fat'!R5)*($G$8*$G$9/100)-'GF diets L-Val + Fat'!R$266)- (('GF diets L-Val + Fat'!D$351-'GF diets L-Val + Fat'!D5)*($G$8*$G$9/100)-'GF diets L-Val + Fat'!D$266), IF(AND($G$5="No",$G$6="Yes",$G$7="No"), (('GF diets No L-Val + WD'!R$351-'GF diets No L-Val + WD'!R5)*($G$8*$G$9/100)-'GF diets No L-Val + WD'!R$266)- (('GF diets No L-Val + WD'!D$351-'GF diets No L-Val + WD'!D5)*($G$8*$G$9/100)-'GF diets No L-Val + WD'!D$266), IF(AND($G$5="Yes",$G$6="Yes",$G$7="No"), (('GF diets No L-Val + Fat + WD'!R$351-'GF diets No L-Val + Fat + WD'!R5)*($G$8*$G$9/100)-'GF diets No L-Val + Fat + WD'!R$266)- (('GF diets No L-Val + Fat + WD'!D$351-'GF diets No L-Val + Fat + WD'!D5)*($G$8*$G$9/100)-'GF diets No L-Val + Fat + WD'!D$266), IF(AND($G$5="No",$G$6="Yes",$G$7="Yes"), (('GF diets L-Val + WD'!R$351-'GF diets L-Val + WD'!R5)*($G$8*$G$9/100)-'GF diets L-Val + WD'!R$266)- (('GF diets L-Val + WD'!D$351-'GF diets L-Val + WD'!D5)*($G$8*$G$9/100)-'GF diets L-Val + WD'!D$266), IF(AND($G$5="Yes",$G$6="Yes",$G$7="Yes"), (('GF diets L-Val + Fat + WD'!R$351-'GF diets L-Val + Fat + WD'!R5)*($G$8*$G$9/100)-'GF diets L-Val + Fat + WD'!R$266)- (('GF diets L-Val + Fat + WD'!D$351-'GF diets L-Val + Fat + WD'!D5)*($G$8*$G$9/100)-'GF diets L-Val + Fat + WD'!D$266) )))))))) -> -0.2346817394 | F61: =IF(AND($G$5="No",$G$6="No",$G$7="No"), (('GF diets No L-Val'!S351-'GF diets No L-Val'!S5)*($G$8*$G$9/100)-'GF diets No L-Val'!S$266)- (('GF diets No L-Val'!E351-'GF diets No L-Val'!E5)*($G$8*$G$9/100)-'GF diets No L-Val'!E$266), IF(AND($G$5="Yes",$G$6="No",$G$7="No"), (('GF diets No L-Val + Fat'!S$351-'GF diets No L-Val + Fat'!S5)*($G$8*$G$9/100)-'GF diets No L-Val + Fat'!S$266)- (('GF diets No L-Val + Fat'!E351-'GF diets No L-Val + Fat'!E5)*($G$8*$G$9/100)-'GF diets No L-Val + Fat'!E$266), IF(AND($G$5="No",$G$6="No",$G$7="Yes"), (('GF diets L-Val'!S$351-'GF diets L-Val'!S5)*($G$8*$G$9/100)-'GF diets L-Val'!S$266)- (('GF diets L-Val'!E351-'GF diets L-Val'!E5)*($G$8*$G$9/100)-'GF diets L-Val'!E$266), IF(AND($G$5="Yes",$G$6="No",$G$7="Yes"), (('GF diets L-Val + Fat'!S$351-'GF diets L-Val + Fat'!S5)*($G$8*$G$9/100)-'GF diets L-Val + Fat'!S$266)- (('GF diets L-Val + Fat'!E$351-'GF diets L-Val + Fat'!E5)*($G$8*$G$9/100)-'GF diets L-Val + Fat'!E$266), IF(AND($G$5="No",$G$6="Yes",$G$7="No"), (('GF diets No L-Val + WD'!S$351-'GF diets No L-Val + WD'!S5)*($G$8*$G$9/100)-'GF diets No L-Val + WD'!S$266)- (('GF diets No L-Val + WD'!E$351-'GF diets No L-Val + WD'!E5)*($G$8*$G$9/100)-'GF diets No L-Val + WD'!E$266), IF(AND($G$5="Yes",$G$6="Yes",$G$7="No"), (('GF diets No L-Val + Fat + WD'!S$351-'GF diets No L-Val + Fat + WD'!S5)*($G$8*$G$9/100)-'GF diets No L-Val + Fat + WD'!S$266)- (('GF diets No L-Val + Fat + WD'!E$351-'GF diets No L-Val + Fat + WD'!E5)*($G$8*$G$9/100)-'GF diets No L-Val + Fat + WD'!E$266), IF(AND($G$5="No",$G$6="Yes",$G$7="Yes"), (('GF diets L-Val + WD'!S$351-'GF diets L-Val + WD'!S5)*($G$8*$G$9/100)-'GF diets L-Val + WD'!S$266)- (('GF diets L-Val + WD'!E$351-'GF diets L-Val + WD'!E5)*($G$8*$G$9/100)-'GF diets L-Val + WD'!E$266), IF(AND($G$5="Yes",$G$6="Yes",$G$7="Yes"), (('GF diets L-Val + Fat + WD'!S$351-'GF diets L-Val + Fat + WD'!S5)*($G$8*$G$9/100)-'GF diets L-Val + Fat + WD'!S$266)- (('GF diets L-Val + Fat + WD'!E$351-'GF diets L-Val + Fat + WD'!E5)*($G$8*$G$9/100)-'GF diets L-Val + Fat + WD'!E$266) )))))))) -> -0.268668992 | G61: =IF(AND($G$5="No",$G$6="No",$G$7="No"), (('GF diets No L-Val'!T351-'GF diets No L-Val'!T5)*($G$8*$G$9/100)-'GF diets No L-Val'!T$266)- (('GF diets No L-Val'!F351-'GF diets No L-Val'!F5)*($G$8*$G$9/100)-'GF diets No L-Val'!F$266), IF(AND($G$5="Yes",$G$6="No",$G$7="No"), (('GF diets No L-Val + Fat'!T$351-'GF diets No L-Val + Fat'!T5)*($G$8*$G$9/100)-'GF diets No L-Val + Fat'!T$266)- (('GF diets No L-Val + Fat'!F351-'GF diets No L-Val + Fat'!F5)*($G$8*$G$9/100)-'GF diets No L-Val + Fat'!F$266), IF(AND($G$5="No",$G$6="No",$G$7="Yes"), (('GF diets L-Val'!T$351-'GF diets L-Val'!T5)*($G$8*$G$9/100)-'GF diets L-Val'!T$266)- (('GF diets L-Val'!F351-'GF diets L-Val'!F5)*($G$8*$G$9/100)-'GF diets L-Val'!F$266), IF(AND($G$5="Yes",$G$6="No",$G$7="Yes"), (('GF diets L-Val + Fat'!T$351-'GF diets L-Val + Fat'!T5)*($G$8*$G$9/100)-'GF diets L-Val + Fat'!T$266)- (('GF diets L-Val + Fat'!F$351-'GF diets L-Val + Fat'!F5)*($G$8*$G$9/100)-'GF diets L-Val + Fat'!F$266), IF(AND($G$5="No",$G$6="Yes",$G$7="No"), (('GF diets No L-Val + WD'!T$351-'GF diets No L-Val + WD'!T5)*($G$8*$G$9/100)-'GF diets No L-Val + WD'!T$266)- (('GF diets No L-Val + WD'!F$351-'GF diets No L-Val + WD'!F5)*($G$8*$G$9/100)-'GF diets No L-Val + WD'!F$266), IF(AND($G$5="Yes",$G$6="Yes",$G$7="No"), (('GF diets No L-Val + Fat + WD'!T$351-'GF diets No L-Val + Fat + WD'!T5)*($G$8*$G$9/100)-'GF diets No L-Val + Fat + WD'!T$266)- (('GF diets No L-Val + Fat + WD'!F$351-'GF diets No L-Val + Fat + WD'!F5)*($G$8*$G$9/100)-'GF diets No L-Val + Fat + WD'!F$266), IF(AND($G$5="No",$G$6="Yes",$G$7="Yes"), (('GF diets L-Val + WD'!T$351-'GF diets L-Val + WD'!T5)*($G$8*$G$9/100)-'GF diets L-Val + WD'!T$266)- (('GF diets L-Val + WD'!F$351-'GF diets L-Val + WD'!F5)*($G$8*$G$9/100)-'GF diets L-Val + WD'!F$266), IF(AND($G$5="Yes",$G$6="Yes",$G$7="Yes"), (('GF diets L-Val + Fat + WD'!T$351-'GF diets L-Val + Fat + WD'!T5)*($G$8*$G$9/100)-'GF diets L-Val + Fat + WD'!T$266)- (('GF diets L-Val + Fat + WD'!F$351-'GF diets L-Val + Fat + WD'!F5)*($G$8*$G$9/100)-'GF diets L-Val + Fat + WD'!F$266) )))))))) -> -0.3473390835 | H61: =IF(AND($G$5="No",$G$6="No",$G$7="No"), (('GF diets No L-Val'!U351-'GF diets No L-Val'!U5)*($G$8*$G$9/100)-'GF diets No L-Val'!U$266)- (('GF diets No L-Val'!G351-'GF diets No L-Val'!G5)*($G$8*$G$9/100)-'GF diets No L-Val'!G$266), IF(AND($G$5="Yes",$G$6="No",$G$7="No"), (('GF diets No L-Val + Fat'!U$351-'GF diets No L-Val + Fat'!U5)*($G$8*$G$9/100)-'GF diets No L-Val + Fat'!U$266)- (('GF diets No L-Val + Fat'!G351-'GF diets No L-Val + Fat'!G5)*($G$8*$G$9/100)-'GF diets No L-Val + Fat'!G$266), IF(AND($G$5="No",$G$6="No",$G$7="Yes"), (('GF diets L-Val'!U$351-'GF diets L-Val'!U5)*($G$8*$G$9/100)-'GF diets L-Val'!U$266)- (('GF diets L-Val'!G351-'GF diets L-Val'!G5)*($G$8*$G$9/100)-'GF diets L-Val'!G$266), IF(AND($G$5="Yes",$G$6="No",$G$7="Yes"), (('GF diets L-Val + Fat'!U$351-'GF diets L-Val + Fat'!U5)*($G$8*$G$9/100)-'GF diets L-Val + Fat'!U$266)- (('GF diets L-Val + Fat'!G$351-'GF diets L-Val + Fat'!G5)*($G$8*$G$9/100)-'GF diets L-Val + Fat'!G$266), IF(AND($G$5="No",$G$6="Yes",$G$7="No"), (('GF diets No L-Val + WD'!U$351-'GF diets No L-Val + WD'!U5)*($G$8*$G$9/100)-'GF diets No L-Val + WD'!U$266)- (('GF diets No L-Val + WD'!G$351-'GF diets No L-Val + WD'!G5)*($G$8*$G$9/100)-'GF diets No L-Val + WD'!G$266), IF(AND($G$5="Yes",$G$6="Yes",$G$7="No"), (('GF diets No L-Val + Fat + WD'!U$351-'GF diets No L-Val + Fat + WD'!U5)*($G$8*$G$9/100)-'GF diets No L-Val + Fat + WD'!U$266)- (('GF diets No L-Val + Fat + WD'!G$351-'GF diets No L-Val + Fat + WD'!G5)*($G$8*$G$9/100)-'GF diets No L-Val + Fat + WD'!G$266), IF(AND($G$5="No",$G$6="Yes",$G$7="Yes"), (('GF diets L-Val + WD'!U$351-'GF diets L-Val + WD'!U5)*($G$8*$G$9/100)-'GF diets L-Val + WD'!U$266)- (('GF diets L-Val + WD'!G$351-'GF diets L-Val + WD'!G5)*($G$8*$G$9/100)-'GF diets L-Val + WD'!G$266), IF(AND($G$5="Yes",$G$6="Yes",$G$7="Yes"), (('GF diets L-Val + Fat + WD'!U$351-'GF diets L-Val + Fat + WD'!U5)*($G$8*$G$9/100)-'GF diets L-Val + Fat + WD'!U$266)- (('GF diets L-Val + Fat + WD'!G$351-'GF diets L-Val + Fat + WD'!G5)*($G$8*$G$9/100)-'GF diets L-Val + Fat + WD'!G$266) )))))))) -> -0.5160616897 | I61: -1.771895758 | J61: =I61-I60 -> -0.8873947784
A62: 0.15 | B62: 15% DDGS | C62: =IF(AND($G$5="No",$G$6="No",$G$7="No"), (('GF diets No L-Val'!W351-'GF diets No L-Val'!W5)*($G$8*$G$9/100)-'GF diets No L-Val'!W$266)- (('GF diets No L-Val'!B351-'GF diets No L-Val'!B5)*($G$8*$G$9/100)-'GF diets No L-Val'!B$266), IF(AND($G$5="Yes",$G$6="No",$G$7="No"), (('GF diets No L-Val + Fat'!W$351-'GF diets No L-Val + Fat'!W5)*($G$8*$G$9/100)-'GF diets No L-Val + Fat'!W$266)- (('GF diets No L-Val + Fat'!B351-'GF diets No L-Val + Fat'!B5)*($G$8*$G$9/100)-'GF diets No L-Val + Fat'!B$266), IF(AND($G$5="No",$G$6="No",$G$7="Yes"), (('GF diets L-Val'!W$351-'GF diets L-Val'!W5)*($G$8*$G$9/100)-'GF diets L-Val'!W$266)- (('GF diets L-Val'!B351-'GF diets L-Val'!B5)*($G$8*$G$9/100)-'GF diets L-Val'!B$266), IF(AND($G$5="Yes",$G$6="No",$G$7="Yes"), (('GF diets L-Val + Fat'!W$351-'GF diets L-Val + Fat'!W5)*($G$8*$G$9/100)-'GF diets L-Val + Fat'!W$266)- (('GF diets L-Val + Fat'!B$351-'GF diets L-Val + Fat'!B5)*($G$8*$G$9/100)-'GF diets L-Val + Fat'!B$266), IF(AND($G$5="No",$G$6="Yes",$G$7="No"), (('GF diets No L-Val + WD'!W$351-'GF diets No L-Val + WD'!W5)*($G$8*$G$9/100)-'GF diets No L-Val + WD'!W$266)- (('GF diets No L-Val + WD'!B$351-'GF diets No L-Val + WD'!B5)*($G$8*$G$9/100)-'GF diets No L-Val + WD'!B$266), IF(AND($G$5="Yes",$G$6="Yes",$G$7="No"), (('GF diets No L-Val + Fat + WD'!W$351-'GF diets No L-Val + Fat + WD'!W5)*($G$8*$G$9/100)-'GF diets No L-Val + Fat + WD'!W$266)- (('GF diets No L-Val + Fat + WD'!B$351-'GF diets No L-Val + Fat + WD'!B5)*($G$8*$G$9/100)-'GF diets No L-Val + Fat + WD'!B$266), IF(AND($G$5="No",$G$6="Yes",$G$7="Yes"), (('GF diets L-Val + WD'!W$351-'GF diets L-Val + WD'!W5)*($G$8*$G$9/100)-'GF diets L-Val + WD'!W$266)- (('GF diets L-Val + WD'!B$351-'GF diets L-Val + WD'!B5)*($G$8*$G$9/100)-'GF diets L-Val + WD'!B$266), IF(AND($G$5="Yes",$G$6="Yes",$G$7="Yes"), (('GF diets L-Val + Fat + WD'!W$351-'GF diets L-Val + Fat + WD'!W5)*($G$8*$G$9/100)-'GF diets L-Val + Fat + WD'!W$266)- (('GF diets L-Val + Fat + WD'!B$351-'GF diets L-Val + Fat + WD'!B5)*($G$8*$G$9/100)-'GF diets L-Val + Fat + WD'!B$266) )))))))) -> -0.2925767535 | D62: =IF(AND($G$5="No",$G$6="No",$G$7="No"), (('GF diets No L-Val'!X351-'GF diets No L-Val'!X5)*($G$8*$G$9/100)-'GF diets No L-Val'!X$266)- (('GF diets No L-Val'!C351-'GF diets No L-Val'!C5)*($G$8*$G$9/100)-'GF diets No L-Val'!C$266), IF(AND($G$5="Yes",$G$6="No",$G$7="No"), (('GF diets No L-Val + Fat'!X$351-'GF diets No L-Val + Fat'!X5)*($G$8*$G$9/100)-'GF diets No L-Val + Fat'!X$266)- (('GF diets No L-Val + Fat'!C351-'GF diets No L-Val + Fat'!C5)*($G$8*$G$9/100)-'GF diets No L-Val + Fat'!C$266), IF(AND($G$5="No",$G$6="No",$G$7="Yes"), (('GF diets L-Val'!X$351-'GF diets L-Val'!X5)*($G$8*$G$9/100)-'GF diets L-Val'!X$266)- (('GF diets L-Val'!C351-'GF diets L-Val'!C5)*($G$8*$G$9/100)-'GF diets L-Val'!C$266), IF(AND($G$5="Yes",$G$6="No",$G$7="Yes"), (('GF diets L-Val + Fat'!X$351-'GF diets L-Val + Fat'!X5)*($G$8*$G$9/100)-'GF diets L-Val + Fat'!X$266)- (('GF diets L-Val + Fat'!C$351-'GF diets L-Val + Fat'!C5)*($G$8*$G$9/100)-'GF diets L-Val + Fat'!C$266), IF(AND($G$5="No",$G$6="Yes",$G$7="No"), (('GF diets No L-Val + WD'!X$351-'GF diets No L-Val + WD'!X5)*($G$8*$G$9/100)-'GF diets No L-Val + WD'!X$266)- (('GF diets No L-Val + WD'!C$351-'GF diets No L-Val + WD'!C5)*($G$8*$G$9/100)-'GF diets No L-Val + WD'!C$266), IF(AND($G$5="Yes",$G$6="Yes",$G$7="No"), (('GF diets No L-Val + Fat + WD'!X$351-'GF diets No L-Val + Fat + WD'!X5)*($G$8*$G$9/100)-'GF diets No L-Val + Fat + WD'!X$266)- (('GF diets No L-Val + Fat + WD'!C$351-'GF diets No L-Val + Fat + WD'!C5)*($G$8*$G$9/100)-'GF diets No L-Val + Fat + WD'!C$266), IF(AND($G$5="No",$G$6="Yes",$G$7="Yes"), (('GF diets L-Val + WD'!X$351-'GF diets L-Val + WD'!X5)*($G$8*$G$9/100)-'GF diets L-Val + WD'!X$266)- (('GF diets L-Val + WD'!C$351-'GF diets L-Val + WD'!C5)*($G$8*$G$9/100)-'GF diets L-Val + WD'!C$266), IF(AND($G$5="Yes",$G$6="Yes",$G$7="Yes"), (('GF diets L-Val + Fat + WD'!X$351-'GF diets L-Val + Fat + WD'!X5)*($G$8*$G$9/100)-'GF diets L-Val + Fat + WD'!X$266)- (('GF diets L-Val + Fat + WD'!C$351-'GF diets L-Val + Fat + WD'!C5)*($G$8*$G$9/100)-'GF diets L-Val + Fat + WD'!C$266) )))))))) -> -0.278365454 | E62: =IF(AND($G$5="No",$G$6="No",$G$7="No"), (('GF diets No L-Val'!Y351-'GF diets No L-Val'!Y5)*($G$8*$G$9/100)-'GF diets No L-Val'!Y$266)- (('GF diets No L-Val'!D351-'GF diets No L-Val'!D5)*($G$8*$G$9/100)-'GF diets No L-Val'!D$266), IF(AND($G$5="Yes",$G$6="No",$G$7="No"), (('GF diets No L-Val + Fat'!Y$351-'GF diets No L-Val + Fat'!Y5)*($G$8*$G$9/100)-'GF diets No L-Val + Fat'!Y$266)- (('GF diets No L-Val + Fat'!D351-'GF diets No L-Val + Fat'!D5)*($G$8*$G$9/100)-'GF diets No L-Val + Fat'!D$266), IF(AND($G$5="No",$G$6="No",$G$7="Yes"), (('GF diets L-Val'!Y$351-'GF diets L-Val'!Y5)*($G$8*$G$9/100)-'GF diets L-Val'!Y$266)- (('GF diets L-Val'!D351-'GF diets L-Val'!D5)*($G$8*$G$9/100)-'GF diets L-Val'!D$266), IF(AND($G$5="Yes",$G$6="No",$G$7="Yes"), (('GF diets L-Val + Fat'!Y$351-'GF diets L-Val + Fat'!Y5)*($G$8*$G$9/100)-'GF diets L-Val + Fat'!Y$266)- (('GF diets L-Val + Fat'!D$351-'GF diets L-Val + Fat'!D5)*($G$8*$G$9/100)-'GF diets L-Val + Fat'!D$266), IF(AND($G$5="No",$G$6="Yes",$G$7="No"), (('GF diets No L-Val + WD'!Y$351-'GF diets No L-Val + WD'!Y5)*($G$8*$G$9/100)-'GF diets No L-Val + WD'!Y$266)- (('GF diets No L-Val + WD'!D$351-'GF diets No L-Val + WD'!D5)*($G$8*$G$9/100)-'GF diets No L-Val + WD'!D$266), IF(AND($G$5="Yes",$G$6="Yes",$G$7="No"), (('GF diets No L-Val + Fat + WD'!Y$351-'GF diets No L-Val + Fat + WD'!Y5)*($G$8*$G$9/100)-'GF diets No L-Val + Fat + WD'!Y$266)- (('GF diets No L-Val + Fat + WD'!D$351-'GF diets No L-Val + Fat + WD'!D5)*($G$8*$G$9/100)-'GF diets No L-Val + Fat + WD'!D$266), IF(AND($G$5="No",$G$6="Yes",$G$7="Yes"), (('GF diets L-Val + WD'!Y$351-'GF diets L-Val + WD'!Y5)*($G$8*$G$9/100)-'GF diets L-Val + WD'!Y$266)- (('GF diets L-Val + WD'!D$351-'GF diets L-Val + WD'!D5)*($G$8*$G$9/100)-'GF diets L-Val + WD'!D$266), IF(AND($G$5="Yes",$G$6="Yes",$G$7="Yes"), (('GF diets L-Val + Fat + WD'!Y$351-'GF diets L-Val + Fat + WD'!Y5)*($G$8*$G$9/100)-'GF diets L-Val + Fat + WD'!Y$266)- (('GF diets L-Val + Fat + WD'!D$351-'GF diets L-Val + Fat + WD'!D5)*($G$8*$G$9/100)-'GF diets L-Val + Fat + WD'!D$266) )))))))) -> -0.3410887128 | F62: =IF(AND($G$5="No",$G$6="No",$G$7="No"), (('GF diets No L-Val'!Z351-'GF diets No L-Val'!Z5)*($G$8*$G$9/100)-'GF diets No L-Val'!Z$266)- (('GF diets No L-Val'!E351-'GF diets No L-Val'!E5)*($G$8*$G$9/100)-'GF diets No L-Val'!E$266), IF(AND($G$5="Yes",$G$6="No",$G$7="No"), (('GF diets No L-Val + Fat'!Z$351-'GF diets No L-Val + Fat'!Z5)*($G$8*$G$9/100)-'GF diets No L-Val + Fat'!Z$266)- (('GF diets No L-Val + Fat'!E351-'GF diets No L-Val + Fat'!E5)*($G$8*$G$9/100)-'GF diets No L-Val + Fat'!E$266), IF(AND($G$5="No",$G$6="No",$G$7="Yes"), (('GF diets L-Val'!Z$351-'GF diets L-Val'!Z5)*($G$8*$G$9/100)-'GF diets L-Val'!Z$266)- (('GF diets L-Val'!E351-'GF diets L-Val'!E5)*($G$8*$G$9/100)-'GF diets L-Val'!E$266), IF(AND($G$5="Yes",$G$6="No",$G$7="Yes"), (('GF diets L-Val + Fat'!Z$351-'GF diets L-Val + Fat'!Z5)*($G$8*$G$9/100)-'GF diets L-Val + Fat'!Z$266)- (('GF diets L-Val + Fat'!E$351-'GF diets L-Val + Fat'!E5)*($G$8*$G$9/100)-'GF diets L-Val + Fat'!E$266), IF(AND($G$5="No",$G$6="Yes",$G$7="No"), (('GF diets No L-Val + WD'!Z$351-'GF diets No L-Val + WD'!Z5)*($G$8*$G$9/100)-'GF diets No L-Val + WD'!Z$266)- (('GF diets No L-Val + WD'!E$351-'GF diets No L-Val + WD'!E5)*($G$8*$G$9/100)-'GF diets No L-Val + WD'!E$266), IF(AND($G$5="Yes",$G$6="Yes",$G$7="No"), (('GF diets No L-Val + Fat + WD'!Z$351-'GF diets No L-Val + Fat + WD'!Z5)*($G$8*$G$9/100)-'GF diets No L-Val + Fat + WD'!Z$266)- (('GF diets No L-Val + Fat + WD'!E$351-'GF diets No L-Val + Fat + WD'!E5)*($G$8*$G$9/100)-'GF diets No L-Val + Fat + WD'!E$266), IF(AND($G$5="No",$G$6="Yes",$G$7="Yes"), (('GF diets L-Val + WD'!Z$351-'GF diets L-Val + WD'!Z5)*($G$8*$G$9/100)-'GF diets L-Val + WD'!Z$266)- (('GF diets L-Val + WD'!E$351-'GF diets L-Val + WD'!E5)*($G$8*$G$9/100)-'GF diets L-Val + WD'!E$266), IF(AND($G$5="Yes",$G$6="Yes",$G$7="Yes"), (('GF diets L-Val + Fat + WD'!Z$351-'GF diets L-Val + Fat + WD'!Z5)*($G$8*$G$9/100)-'GF diets L-Val + Fat + WD'!Z$266)- (('GF diets L-Val + Fat + WD'!E$351-'GF diets L-Val + Fat + WD'!E5)*($G$8*$G$9/100)-'GF diets L-Val + Fat + WD'!E$266) )))))))) -> -0.3987313028 | G62: =IF(AND($G$5="No",$G$6="No",$G$7="No"), (('GF diets No L-Val'!AA351-'GF diets No L-Val'!AA5)*($G$8*$G$9/100)-'GF diets No L-Val'!AA$266)- (('GF diets No L-Val'!F351-'GF diets No L-Val'!F5)*($G$8*$G$9/100)-'GF diets No L-Val'!F$266), IF(AND($G$5="Yes",$G$6="No",$G$7="No"), (('GF diets No L-Val + Fat'!AA$351-'GF diets No L-Val + Fat'!AA5)*($G$8*$G$9/100)-'GF diets No L-Val + Fat'!AA$266)- (('GF diets No L-Val + Fat'!F351-'GF diets No L-Val + Fat'!F5)*($G$8*$G$9/100)-'GF diets No L-Val + Fat'!F$266), IF(AND($G$5="No",$G$6="No",$G$7="Yes"), (('GF diets L-Val'!AA$351-'GF diets L-Val'!AA5)*($G$8*$G$9/100)-'GF diets L-Val'!AA$266)- (('GF diets L-Val'!F351-'GF diets L-Val'!F5)*($G$8*$G$9/100)-'GF diets L-Val'!F$266), IF(AND($G$5="Yes",$G$6="No",$G$7="Yes"), (('GF diets L-Val + Fat'!AA$351-'GF diets L-Val + Fat'!AA5)*($G$8*$G$9/100)-'GF diets L-Val + Fat'!AA$266)- (('GF diets L-Val + Fat'!F$351-'GF diets L-Val + Fat'!F5)*($G$8*$G$9/100)-'GF diets L-Val + Fat'!F$266), IF(AND($G$5="No",$G$6="Yes",$G$7="No"), (('GF diets No L-Val + WD'!AA$351-'GF diets No L-Val + WD'!AA5)*($G$8*$G$9/100)-'GF diets No L-Val + WD'!AA$266)- (('GF diets No L-Val + WD'!F$351-'GF diets No L-Val + WD'!F5)*($G$8*$G$9/100)-'GF diets No L-Val + WD'!F$266), IF(AND($G$5="Yes",$G$6="Yes",$G$7="No"), (('GF diets No L-Val + Fat + WD'!AA$351-'GF diets No L-Val + Fat + WD'!AA5)*($G$8*$G$9/100)-'GF diets No L-Val + Fat + WD'!AA$266)- (('GF diets No L-Val + Fat + WD'!F$351-'GF diets No L-Val + Fat + WD'!F5)*($G$8*$G$9/100)-'GF diets No L-Val + Fat + WD'!F$266), IF(AND($G$5="No",$G$6="Yes",$G$7="Yes"), (('GF diets L-Val + WD'!AA$351-'GF diets L-Val + WD'!AA5)*($G$8*$G$9/100)-'GF diets L-Val + WD'!AA$266)- (('GF diets L-Val + WD'!F$351-'GF diets L-Val + WD'!F5)*($G$8*$G$9/100)-'GF diets L-Val + WD'!F$266), IF(AND($G$5="Yes",$G$6="Yes",$G$7="Yes"), (('GF diets L-Val + Fat + WD'!AA$351-'GF diets L-Val + Fat + WD'!AA5)*($G$8*$G$9/100)-'GF diets L-Val + Fat + WD'!AA$266)- (('GF diets L-Val + Fat + WD'!F$351-'GF diets L-Val + Fat + WD'!F5)*($G$8*$G$9/100)-'GF diets L-Val + Fat + WD'!F$266) )))))))) -> -0.5236300327 | H62: =IF(AND($G$5="No",$G$6="No",$G$7="No"), (('GF diets No L-Val'!AB351-'GF diets No L-Val'!AB5)*($G$8*$G$9/100)-'GF diets No L-Val'!AB$266)- (('GF diets No L-Val'!G351-'GF diets No L-Val'!G5)*($G$8*$G$9/100)-'GF diets No L-Val'!G$266), IF(AND($G$5="Yes",$G$6="No",$G$7="No"), (('GF diets No L-Val + Fat'!AB$351-'GF diets No L-Val + Fat'!AB5)*($G$8*$G$9/100)-'GF diets No L-Val + Fat'!AB$266)- (('GF diets No L-Val + Fat'!G351-'GF diets No L-Val + Fat'!G5)*($G$8*$G$9/100)-'GF diets No L-Val + Fat'!G$266), IF(AND($G$5="No",$G$6="No",$G$7="Yes"), (('GF diets L-Val'!AB$351-'GF diets L-Val'!AB5)*($G$8*$G$9/100)-'GF diets L-Val'!AB$266)- (('GF diets L-Val'!G351-'GF diets L-Val'!G5)*($G$8*$G$9/100)-'GF diets L-Val'!G$266), IF(AND($G$5="Yes",$G$6="No",$G$7="Yes"), (('GF diets L-Val + Fat'!AB$351-'GF diets L-Val + Fat'!AB5)*($G$8*$G$9/100)-'GF diets L-Val + Fat'!AB$266)- (('GF diets L-Val + Fat'!G$351-'GF diets L-Val + Fat'!G5)*($G$8*$G$9/100)-'GF diets L-Val + Fat'!G$266), IF(AND($G$5="No",$G$6="Yes",$G$7="No"), (('GF diets No L-Val + WD'!AB$351-'GF diets No L-Val + WD'!AB5)*($G$8*$G$9/100)-'GF diets No L-Val + WD'!AB$266)- (('GF diets No L-Val + WD'!G$351-'GF diets No L-Val + WD'!G5)*($G$8*$G$9/100)-'GF diets No L-Val + WD'!G$266), IF(AND($G$5="Yes",$G$6="Yes",$G$7="No"), (('GF diets No L-Val + Fat + WD'!AB$351-'GF diets No L-Val + Fat + WD'!AB5)*($G$8*$G$9/100)-'GF diets No L-Val + Fat + WD'!AB$266)- (('GF diets No L-Val + Fat + WD'!G$351-'GF diets No L-Val + Fat + WD'!G5)*($G$8*$G$9/100)-'GF diets No L-Val + Fat + WD'!G$266), IF(AND($G$5="No",$G$6="Yes",$G$7="Yes"), (('GF diets L-Val + WD'!AB$351-'GF diets L-Val + WD'!AB5)*($G$8*$G$9/100)-'GF diets L-Val + WD'!AB$266)- (('GF diets L-Val + WD'!G$351-'GF diets L-Val + WD'!G5)*($G$8*$G$9/100)-'GF diets L-Val + WD'!G$266), IF(AND($G$5="Yes",$G$6="Yes",$G$7="Yes"), (('GF diets L-Val + Fat + WD'!AB$351-'GF diets L-Val + Fat + WD'!AB5)*($G$8*$G$9/100)-'GF diets L-Val + Fat + WD'!AB$266)- (('GF diets L-Val + Fat + WD'!G$351-'GF diets L-Val + Fat + WD'!G5)*($G$8*$G$9/100)-'GF diets L-Val + Fat + WD'!G$266) )))))))) -> -0.7885068917 | I62: -2.622899148 | J62: =I62-I61 -> -0.8510033895
A63: 0.2 | B63: 20% DDGS | C63: =IF(AND($G$5="No",$G$6="No",$G$7="No"), (('GF diets No L-Val'!AD351-'GF diets No L-Val'!AD5)*($G$8*$G$9/100)-'GF diets No L-Val'!AD$266)- (('GF diets No L-Val'!B351-'GF diets No L-Val'!B5)*($G$8*$G$9/100)-'GF diets No L-Val'!B$266), IF(AND($G$5="Yes",$G$6="No",$G$7="No"), (('GF diets No L-Val + Fat'!AD$351-'GF diets No L-Val + Fat'!AD5)*($G$8*$G$9/100)-'GF diets No L-Val + Fat'!AD$266)- (('GF diets No L-Val + Fat'!B351-'GF diets No L-Val + Fat'!B5)*($G$8*$G$9/100)-'GF diets No L-Val + Fat'!B$266), IF(AND($G$5="No",$G$6="No",$G$7="Yes"), (('GF diets L-Val'!AD$351-'GF diets L-Val'!AD5)*($G$8*$G$9/100)-'GF diets L-Val'!AD$266)- (('GF diets L-Val'!B351-'GF diets L-Val'!B5)*($G$8*$G$9/100)-'GF diets L-Val'!B$266), IF(AND($G$5="Yes",$G$6="No",$G$7="Yes"), (('GF diets L-Val + Fat'!AD$351-'GF diets L-Val + Fat'!AD5)*($G$8*$G$9/100)-'GF diets L-Val + Fat'!AD$266)- (('GF diets L-Val + Fat'!B$351-'GF diets L-Val + Fat'!B5)*($G$8*$G$9/100)-'GF diets L-Val + Fat'!B$266), IF(AND($G$5="No",$G$6="Yes",$G$7="No"), (('GF diets No L-Val + WD'!AD$351-'GF diets No L-Val + WD'!AD5)*($G$8*$G$9/100)-'GF diets No L-Val + WD'!AD$266)- (('GF diets No L-Val + WD'!B$351-'GF diets No L-Val + WD'!B5)*($G$8*$G$9/100)-'GF diets No L-Val + WD'!B$266), IF(AND($G$5="Yes",$G$6="Yes",$G$7="No"), (('GF diets No L-Val + Fat + WD'!AD$351-'GF diets No L-Val + Fat + WD'!AD5)*($G$8*$G$9/100)-'GF diets No L-Val + Fat + WD'!AD$266)- (('GF diets No L-Val + Fat + WD'!B$351-'GF diets No L-Val + Fat + WD'!B5)*($G$8*$G$9/100)-'GF diets No L-Val + Fat + WD'!B$266), IF(AND($G$5="No",$G$6="Yes",$G$7="Yes"), (('GF diets L-Val + WD'!AD$351-'GF diets L-Val + WD'!AD5)*($G$8*$G$9/100)-'GF diets L-Val + WD'!AD$266)- (('GF diets L-Val + WD'!B$351-'GF diets L-Val + WD'!B5)*($G$8*$G$9/100)-'GF diets L-Val + WD'!B$266), IF(AND($G$5="Yes",$G$6="Yes",$G$7="Yes"), (('GF diets L-Val + Fat + WD'!AD$351-'GF diets L-Val + Fat + WD'!AD5)*($G$8*$G$9/100)-'GF diets L-Val + Fat + WD'!AD$266)- (('GF diets L-Val + Fat + WD'!B$351-'GF diets L-Val + Fat + WD'!B5)*($G$8*$G$9/100)-'GF diets L-Val + Fat + WD'!B$266) )))))))) -> -0.361831453 | D63: =IF(AND($G$5="No",$G$6="No",$G$7="No"), (('GF diets No L-Val'!AE351-'GF diets No L-Val'!AE5)*($G$8*$G$9/100)-'GF diets No L-Val'!AE$266)- (('GF diets No L-Val'!C351-'GF diets No L-Val'!C5)*($G$8*$G$9/100)-'GF diets No L-Val'!C$266), IF(AND($G$5="Yes",$G$6="No",$G$7="No"), (('GF diets No L-Val + Fat'!AE$351-'GF diets No L-Val + Fat'!AE5)*($G$8*$G$9/100)-'GF diets No L-Val + Fat'!AE$266)- (('GF diets No L-Val + Fat'!C351-'GF diets No L-Val + Fat'!C5)*($G$8*$G$9/100)-'GF diets No L-Val + Fat'!C$266), IF(AND($G$5="No",$G$6="No",$G$7="Yes"), (('GF diets L-Val'!AE$351-'GF diets L-Val'!AE5)*($G$8*$G$9/100)-'GF diets L-Val'!AE$266)- (('GF diets L-Val'!C351-'GF diets L-Val'!C5)*($G$8*$G$9/100)-'GF diets L-Val'!C$266), IF(AND($G$5="Yes",$G$6="No",$G$7="Yes"), (('GF diets L-Val + Fat'!AE$351-'GF diets L-Val + Fat'!AE5)*($G$8*$G$9/100)-'GF diets L-Val + Fat'!AE$266)- (('GF diets L-Val + Fat'!C$351-'GF diets L-Val + Fat'!C5)*($G$8*$G$9/100)-'GF diets L-Val + Fat'!C$266), IF(AND($G$5="No",$G$6="Yes",$G$7="No"), (('GF diets No L-Val + WD'!AE$351-'GF diets No L-Val + WD'!AE5)*($G$8*$G$9/100)-'GF diets No L-Val + WD'!AE$266)- (('GF diets No L-Val + WD'!C$351-'GF diets No L-Val + WD'!C5)*($G$8*$G$9/100)-'GF diets No L-Val + WD'!C$266), IF(AND($G$5="Yes",$G$6="Yes",$G$7="No"), (('GF diets No L-Val + Fat + WD'!AE$351-'GF diets No L-Val + Fat + WD'!AE5)*($G$8*$G$9/100)-'GF diets No L-Val + Fat + WD'!AE$266)- (('GF diets No L-Val + Fat + WD'!C$351-'GF diets No L-Val + Fat + WD'!C5)*($G$8*$G$9/100)-'GF diets No L-Val + Fat + WD'!C$266), IF(AND($G$5="No",$G$6="Yes",$G$7="Yes"), (('GF diets L-Val + WD'!AE$351-'GF diets L-Val + WD'!AE5)*($G$8*$G$9/100)-'GF diets L-Val + WD'!AE$266)- (('GF diets L-Val + WD'!C$351-'GF diets L-Val + WD'!C5)*($G$8*$G$9/100)-'GF diets L-Val + WD'!C$266), IF(AND($G$5="Yes",$G$6="Yes",$G$7="Yes"), (('GF diets L-Val + Fat + WD'!AE$351-'GF diets L-Val + Fat + WD'!AE5)*($G$8*$G$9/100)-'GF diets L-Val + Fat + WD'!AE$266)- (('GF diets L-Val + Fat + WD'!C$351-'GF diets L-Val + Fat + WD'!C5)*($G$8*$G$9/100)-'GF diets L-Val + Fat + WD'!C$266) )))))))) -> -0.3507064957 | E63: =IF(AND($G$5="No",$G$6="No",$G$7="No"), (('GF diets No L-Val'!AF351-'GF diets No L-Val'!AF5)*($G$8*$G$9/100)-'GF diets No L-Val'!AF$266)- (('GF diets No L-Val'!D351-'GF diets No L-Val'!D5)*($G$8*$G$9/100)-'GF diets No L-Val'!D$266), IF(AND($G$5="Yes",$G$6="No",$G$7="No"), (('GF diets No L-Val + Fat'!AF$351-'GF diets No L-Val + Fat'!AF5)*($G$8*$G$9/100)-'GF diets No L-Val + Fat'!AF$266)- (('GF diets No L-Val + Fat'!D351-'GF diets No L-Val + Fat'!D5)*($G$8*$G$9/100)-'GF diets No L-Val + Fat'!D$266), IF(AND($G$5="No",$G$6="No",$G$7="Yes"), (('GF diets L-Val'!AF$351-'GF diets L-Val'!AF5)*($G$8*$G$9/100)-'GF diets L-Val'!AF$266)- (('GF diets L-Val'!D351-'GF diets L-Val'!D5)*($G$8*$G$9/100)-'GF diets L-Val'!D$266), IF(AND($G$5="Yes",$G$6="No",$G$7="Yes"), (('GF diets L-Val + Fat'!AF$351-'GF diets L-Val + Fat'!AF5)*($G$8*$G$9/100)-'GF diets L-Val + Fat'!AF$266)- (('GF diets L-Val + Fat'!D$351-'GF diets L-Val + Fat'!D5)*($G$8*$G$9/100)-'GF diets L-Val + Fat'!D$266), IF(AND($G$5="No",$G$6="Yes",$G$7="No"), (('GF diets No L-Val + WD'!AF$351-'GF diets No L-Val + WD'!AF5)*($G$8*$G$9/100)-'GF diets No L-Val + WD'!AF$266)- (('GF diets No L-Val + WD'!D$351-'GF diets No L-Val + WD'!D5)*($G$8*$G$9/100)-'GF diets No L-Val + WD'!D$266), IF(AND($G$5="Yes",$G$6="Yes",$G$7="No"), (('GF diets No L-Val + Fat + WD'!AF$351-'GF diets No L-Val + Fat + WD'!AF5)*($G$8*$G$9/100)-'GF diets No L-Val + Fat + WD'!AF$266)- (('GF diets No L-Val + Fat + WD'!D$351-'GF diets No L-Val + Fat + WD'!D5)*($G$8*$G$9/100)-'GF diets No L-Val + Fat + WD'!D$266), IF(AND($G$5="No",$G$6="Yes",$G$7="Yes"), (('GF diets L-Val + WD'!AF$351-'GF diets L-Val + WD'!AF5)*($G$8*$G$9/100)-'GF diets L-Val + WD'!AF$266)- (('GF diets L-Val + WD'!D$351-'GF diets L-Val + WD'!D5)*($G$8*$G$9/100)-'GF diets L-Val + WD'!D$266), IF(AND($G$5="Yes",$G$6="Yes",$G$7="Yes"), (('GF diets L-Val + Fat + WD'!AF$351-'GF diets L-Val + Fat + WD'!AF5)*($G$8*$G$9/100)-'GF diets L-Val + Fat + WD'!AF$266)- (('GF diets L-Val + Fat + WD'!D$351-'GF diets L-Val + Fat + WD'!D5)*($G$8*$G$9/100)-'GF diets L-Val + Fat + WD'!D$266) )))))))) -> -0.4347829535 | F63: =IF(AND($G$5="No",$G$6="No",$G$7="No"), (('GF diets No L-Val'!AG351-'GF diets No L-Val'!AG5)*($G$8*$G$9/100)-'GF diets No L-Val'!AG$266)- (('GF diets No L-Val'!E351-'GF diets No L-Val'!E5)*($G$8*$G$9/100)-'GF diets No L-Val'!E$266), IF(AND($G$5="Yes",$G$6="No",$G$7="No"), (('GF diets No L-Val + Fat'!AG$351-'GF diets No L-Val + Fat'!AG5)*($G$8*$G$9/100)-'GF diets No L-Val + Fat'!AG$266)- (('GF diets No L-Val + Fat'!E351-'GF diets No L-Val + Fat'!E5)*($G$8*$G$9/100)-'GF diets No L-Val + Fat'!E$266), IF(AND($G$5="No",$G$6="No",$G$7="Yes"), (('GF diets L-Val'!AG$351-'GF diets L-Val'!AG5)*($G$8*$G$9/100)-'GF diets L-Val'!AG$266)- (('GF diets L-Val'!E351-'GF diets L-Val'!E5)*($G$8*$G$9/100)-'GF diets L-Val'!E$266), IF(AND($G$5="Yes",$G$6="No",$G$7="Yes"), (('GF diets L-Val + Fat'!AG$351-'GF diets L-Val + Fat'!AG5)*($G$8*$G$9/100)-'GF diets L-Val + Fat'!AG$266)- (('GF diets L-Val + Fat'!E$351-'GF diets L-Val + Fat'!E5)*($G$8*$G$9/100)-'GF diets L-Val + Fat'!E$266), IF(AND($G$5="No",$G$6="Yes",$G$7="No"), (('GF diets No L-Val + WD'!AG$351-'GF diets No L-Val + WD'!AG5)*($G$8*$G$9/100)-'GF diets No L-Val + WD'!AG$266)- (('GF diets No L-Val + WD'!E$351-'GF diets No L-Val + WD'!E5)*($G$8*$G$9/100)-'GF diets No L-Val + WD'!E$266), IF(AND($G$5="Yes",$G$6="Yes",$G$7="No"), (('GF diets No L-Val + Fat + WD'!AG$351-'GF diets No L-Val + Fat + WD'!AG5)*($G$8*$G$9/100)-'GF diets No L-Val + Fat + WD'!AG$266)- (('GF diets No L-Val + Fat + WD'!E$351-'GF diets No L-Val + Fat + WD'!E5)*($G$8*$G$9/100)-'GF diets No L-Val + Fat + WD'!E$266), IF(AND($G$5="No",$G$6="Yes",$G$7="Yes"), (('GF diets L-Val + WD'!AG$351-'GF diets L-Val + WD'!AG5)*($G$8*$G$9/100)-'GF diets L-Val + WD'!AG$266)- (('GF diets L-Val + WD'!E$351-'GF diets L-Val + WD'!E5)*($G$8*$G$9/100)-'GF diets L-Val + WD'!E$266), IF(AND($G$5="Yes",$G$6="Yes",$G$7="Yes"), (('GF diets L-Val + Fat + WD'!AG$351-'GF diets L-Val + Fat + WD'!AG5)*($G$8*$G$9/100)-'GF diets L-Val + Fat + WD'!AG$266)- (('GF diets L-Val + Fat + WD'!E$351-'GF diets L-Val + Fat + WD'!E5)*($G$8*$G$9/100)-'GF diets L-Val + Fat + WD'!E$266) )))))))) -> -0.5316331151 | G63: =IF(AND($G$5="No",$G$6="No",$G$7="No"), (('GF diets No L-Val'!AH351-'GF diets No L-Val'!AH5)*($G$8*$G$9/100)-'GF diets No L-Val'!AH$266)- (('GF diets No L-Val'!F351-'GF diets No L-Val'!F5)*($G$8*$G$9/100)-'GF diets No L-Val'!F$266), IF(AND($G$5="Yes",$G$6="No",$G$7="No"), (('GF diets No L-Val + Fat'!AH$351-'GF diets No L-Val + Fat'!AH5)*($G$8*$G$9/100)-'GF diets No L-Val + Fat'!AH$266)- (('GF diets No L-Val + Fat'!F351-'GF diets No L-Val + Fat'!F5)*($G$8*$G$9/100)-'GF diets No L-Val + Fat'!F$266), IF(AND($G$5="No",$G$6="No",$G$7="Yes"), (('GF diets L-Val'!AH$351-'GF diets L-Val'!AH5)*($G$8*$G$9/100)-'GF diets L-Val'!AH$266)- (('GF diets L-Val'!F351-'GF diets L-Val'!F5)*($G$8*$G$9/100)-'GF diets L-Val'!F$266), IF(AND($G$5="Yes",$G$6="No",$G$7="Yes"), (('GF diets L-Val + Fat'!AH$351-'GF diets L-Val + Fat'!AH5)*($G$8*$G$9/100)-'GF diets L-Val + Fat'!AH$266)- (('GF diets L-Val + Fat'!F$351-'GF diets L-Val + Fat'!F5)*($G$8*$G$9/100)-'GF diets L-Val + Fat'!F$266), IF(AND($G$5="No",$G$6="Yes",$G$7="No"), (('GF diets No L-Val + WD'!AH$351-'GF diets No L-Val + WD'!AH5)*($G$8*$G$9/100)-'GF diets No L-Val + WD'!AH$266)- (('GF diets No L-Val + WD'!F$351-'GF diets No L-Val + WD'!F5)*($G$8*$G$9/100)-'GF diets No L-Val + WD'!F$266), IF(AND($G$5="Yes",$G$6="Yes",$G$7="No"), (('GF diets No L-Val + Fat + WD'!AH$351-'GF diets No L-Val + Fat + WD'!AH5)*($G$8*$G$9/100)-'GF diets No L-Val + Fat + WD'!AH$266)- (('GF diets No L-Val + Fat + WD'!F$351-'GF diets No L-Val + Fat + WD'!F5)*($G$8*$G$9/100)-'GF diets No L-Val + Fat + WD'!F$266), IF(AND($G$5="No",$G$6="Yes",$G$7="Yes"), (('GF diets L-Val + WD'!AH$351-'GF diets L-Val + WD'!AH5)*($G$8*$G$9/100)-'GF diets L-Val + WD'!AH$266)- (('GF diets L-Val + WD'!F$351-'GF diets L-Val + WD'!F5)*($G$8*$G$9/100)-'GF diets L-Val + WD'!F$266), IF(AND($G$5="Yes",$G$6="Yes",$G$7="Yes"), (('GF diets L-Val + Fat + WD'!AH$351-'GF diets L-Val + Fat + WD'!AH5)*($G$8*$G$9/100)-'GF diets L-Val + Fat + WD'!AH$266)- (('GF diets L-Val + Fat + WD'!F$351-'GF diets L-Val + Fat + WD'!F5)*($G$8*$G$9/100)-'GF diets L-Val + Fat + WD'!F$266) )))))))) -> -0.7127951557 | H63: =IF(AND($G$5="No",$G$6="No",$G$7="No"), (('GF diets No L-Val'!AI351-'GF diets No L-Val'!AI5)*($G$8*$G$9/100)-'GF diets No L-Val'!AI$266)- (('GF diets No L-Val'!G351-'GF diets No L-Val'!G5)*($G$8*$G$9/100)-'GF diets No L-Val'!G$266), IF(AND($G$5="Yes",$G$6="No",$G$7="No"), (('GF diets No L-Val + Fat'!AI$351-'GF diets No L-Val + Fat'!AI5)*($G$8*$G$9/100)-'GF diets No L-Val + Fat'!AI$266)- (('GF diets No L-Val + Fat'!G351-'GF diets No L-Val + Fat'!G5)*($G$8*$G$9/100)-'GF diets No L-Val + Fat'!G$266), IF(AND($G$5="No",$G$6="No",$G$7="Yes"), (('GF diets L-Val'!AI$351-'GF diets L-Val'!AI5)*($G$8*$G$9/100)-'GF diets L-Val'!AI$266)- (('GF diets L-Val'!G351-'GF diets L-Val'!G5)*($G$8*$G$9/100)-'GF diets L-Val'!G$266), IF(AND($G$5="Yes",$G$6="No",$G$7="Yes"), (('GF diets L-Val + Fat'!AI$351-'GF diets L-Val + Fat'!AI5)*($G$8*$G$9/100)-'GF diets L-Val + Fat'!AI$266)- (('GF diets L-Val + Fat'!G$351-'GF diets L-Val + Fat'!G5)*($G$8*$G$9/100)-'GF diets L-Val + Fat'!G$266), IF(AND($G$5="No",$G$6="Yes",$G$7="No"), (('GF diets No L-Val + WD'!AI$351-'GF diets No L-Val + WD'!AI5)*($G$8*$G$9/100)-'GF diets No L-Val + WD'!AI$266)- (('GF diets No L-Val + WD'!G$351-'GF diets No L-Val + WD'!G5)*($G$8*$G$9/100)-'GF diets No L-Val + WD'!G$266), IF(AND($G$5="Yes",$G$6="Yes",$G$7="No"), (('GF diets No L-Val + Fat + WD'!AI$351-'GF diets No L-Val + Fat + WD'!AI5)*($G$8*$G$9/100)-'GF diets No L-Val + Fat + WD'!AI$266)- (('GF diets No L-Val + Fat + WD'!G$351-'GF diets No L-Val + Fat + WD'!G5)*($G$8*$G$9/100)-'GF diets No L-Val + Fat + WD'!G$266), IF(AND($G$5="No",$G$6="Yes",$G$7="Yes"), (('GF diets L-Val + WD'!AI$351-'GF diets L-Val + WD'!AI5)*($G$8*$G$9/100)-'GF diets L-Val + WD'!AI$266)- (('GF diets L-Val + WD'!G$351-'GF diets L-Val + WD'!G5)*($G$8*$G$9/100)-'GF diets L-Val + WD'!G$266), IF(AND($G$5="Yes",$G$6="Yes",$G$7="Yes"), (('GF diets L-Val + Fat + WD'!AI$351-'GF diets L-Val + Fat + WD'!AI5)*($G$8*$G$9/100)-'GF diets L-Val + Fat + WD'!AI$266)- (('GF diets L-Val + Fat + WD'!G$351-'GF diets L-Val + Fat + WD'!G5)*($G$8*$G$9/100)-'GF diets L-Val + Fat + WD'!G$266) )))))))) -> -1.080685626 | I63: -3.472434799 | J63: =I63-I62 -> -0.8495356517
A64: 0.25 | B64: 25% DDGS | C64: =IF(AND($G$5="No",$G$6="No",$G$7="No"), (('GF diets No L-Val'!AK351-'GF diets No L-Val'!AK5)*($G$8*$G$9/100)-'GF diets No L-Val'!AK$266)- (('GF diets No L-Val'!B351-'GF diets No L-Val'!B5)*($G$8*$G$9/100)-'GF diets No L-Val'!B$266), IF(AND($G$5="Yes",$G$6="No",$G$7="No"), (('GF diets No L-Val + Fat'!AK$351-'GF diets No L-Val + Fat'!AK5)*($G$8*$G$9/100)-'GF diets No L-Val + Fat'!AK$266)- (('GF diets No L-Val + Fat'!B351-'GF diets No L-Val + Fat'!B5)*($G$8*$G$9/100)-'GF diets No L-Val + Fat'!B$266), IF(AND($G$5="No",$G$6="No",$G$7="Yes"), (('GF diets L-Val'!AK$351-'GF diets L-Val'!AK5)*($G$8*$G$9/100)-'GF diets L-Val'!AK$266)- (('GF diets L-Val'!B351-'GF diets L-Val'!B5)*($G$8*$G$9/100)-'GF diets L-Val'!B$266), IF(AND($G$5="Yes",$G$6="No",$G$7="Yes"), (('GF diets L-Val + Fat'!AK$351-'GF diets L-Val + Fat'!AK5)*($G$8*$G$9/100)-'GF diets L-Val + Fat'!AK$266)- (('GF diets L-Val + Fat'!B$351-'GF diets L-Val + Fat'!B5)*($G$8*$G$9/100)-'GF diets L-Val + Fat'!B$266), IF(AND($G$5="No",$G$6="Yes",$G$7="No"), (('GF diets No L-Val + WD'!AK$351-'GF diets No L-Val + WD'!AK5)*($G$8*$G$9/100)-'GF diets No L-Val + WD'!AK$266)- (('GF diets No L-Val + WD'!B$351-'GF diets No L-Val + WD'!B5)*($G$8*$G$9/100)-'GF diets No L-Val + WD'!B$266), IF(AND($G$5="Yes",$G$6="Yes",$G$7="No"), (('GF diets No L-Val + Fat + WD'!AK$351-'GF diets No L-Val + Fat + WD'!AK5)*($G$8*$G$9/100)-'GF diets No L-Val + Fat + WD'!AK$266)- (('GF diets No L-Val + Fat + WD'!B$351-'GF diets No L-Val + Fat + WD'!B5)*($G$8*$G$9/100)-'GF diets No L-Val + Fat + WD'!B$266), IF(AND($G$5="No",$G$6="Yes",$G$7="Yes"), (('GF diets L-Val + WD'!AK$351-'GF diets L-Val + WD'!AK5)*($G$8*$G$9/100)-'GF diets L-Val + WD'!AK$266)- (('GF diets L-Val + WD'!B$351-'GF diets L-Val + WD'!B5)*($G$8*$G$9/100)-'GF diets L-Val + WD'!B$266), IF(AND($G$5="Yes",$G$6="Yes",$G$7="Yes"), (('GF diets L-Val + Fat + WD'!AK$351-'GF diets L-Val + Fat + WD'!AK5)*($G$8*$G$9/100)-'GF diets L-Val + Fat + WD'!AK$266)- (('GF diets L-Val + Fat + WD'!B$351-'GF diets L-Val + Fat + WD'!B5)*($G$8*$G$9/100)-'GF diets L-Val + Fat + WD'!B$266) )))))))) -> -0.4340894241 | D64: =IF(AND($G$5="No",$G$6="No",$G$7="No"), (('GF diets No L-Val'!AL351-'GF diets No L-Val'!AL5)*($G$8*$G$9/100)-'GF diets No L-Val'!AL$266)- (('GF diets No L-Val'!C351-'GF diets No L-Val'!C5)*($G$8*$G$9/100)-'GF diets No L-Val'!C$266), IF(AND($G$5="Yes",$G$6="No",$G$7="No"), (('GF diets No L-Val + Fat'!AL$351-'GF diets No L-Val + Fat'!AL5)*($G$8*$G$9/100)-'GF diets No L-Val + Fat'!AL$266)- (('GF diets No L-Val + Fat'!C351-'GF diets No L-Val + Fat'!C5)*($G$8*$G$9/100)-'GF diets No L-Val + Fat'!C$266), IF(AND($G$5="No",$G$6="No",$G$7="Yes"), (('GF diets L-Val'!AL$351-'GF diets L-Val'!AL5)*($G$8*$G$9/100)-'GF diets L-Val'!AL$266)- (('GF diets L-Val'!C351-'GF diets L-Val'!C5)*($G$8*$G$9/100)-'GF diets L-Val'!C$266), IF(AND($G$5="Yes",$G$6="No",$G$7="Yes"), (('GF diets L-Val + Fat'!AL$351-'GF diets L-Val + Fat'!AL5)*($G$8*$G$9/100)-'GF diets L-Val + Fat'!AL$266)- (('GF diets L-Val + Fat'!C$351-'GF diets L-Val + Fat'!C5)*($G$8*$G$9/100)-'GF diets L-Val + Fat'!C$266), IF(AND($G$5="No",$G$6="Yes",$G$7="No"), (('GF diets No L-Val + WD'!AL$351-'GF diets No L-Val + WD'!AL5)*($G$8*$G$9/100)-'GF diets No L-Val + WD'!AL$266)- (('GF diets No L-Val + WD'!C$351-'GF diets No L-Val + WD'!C5)*($G$8*$G$9/100)-'GF diets No L-Val + WD'!C$266), IF(AND($G$5="Yes",$G$6="Yes",$G$7="No"), (('GF diets No L-Val + Fat + WD'!AL$351-'GF diets No L-Val + Fat + WD'!AL5)*($G$8*$G$9/100)-'GF diets No L-Val + Fat + WD'!AL$266)- (('GF diets No L-Val + Fat + WD'!C$351-'GF diets No L-Val + Fat + WD'!C5)*($G$8*$G$9/100)-'GF diets No L-Val + Fat + WD'!C$266), IF(AND($G$5="No",$G$6="Yes",$G$7="Yes"), (('GF diets L-Val + WD'!AL$351-'GF diets L-Val + WD'!AL5)*($G$8*$G$9/100)-'GF diets L-Val + WD'!AL$266)- (('GF diets L-Val + WD'!C$351-'GF diets L-Val + WD'!C5)*($G$8*$G$9/100)-'GF diets L-Val + WD'!C$266), IF(AND($G$5="Yes",$G$6="Yes",$G$7="Yes"), (('GF diets L-Val + Fat + WD'!AL$351-'GF diets L-Val + Fat + WD'!AL5)*($G$8*$G$9/100)-'GF diets L-Val + Fat + WD'!AL$266)- (('GF diets L-Val + Fat + WD'!C$351-'GF diets L-Val + Fat + WD'!C5)*($G$8*$G$9/100)-'GF diets L-Val + Fat + WD'!C$266) )))))))) -> -0.4118352285 | E64: =IF(AND($G$5="No",$G$6="No",$G$7="No"), (('GF diets No L-Val'!AM351-'GF diets No L-Val'!AM5)*($G$8*$G$9/100)-'GF diets No L-Val'!AM$266)- (('GF diets No L-Val'!D351-'GF diets No L-Val'!D5)*($G$8*$G$9/100)-'GF diets No L-Val'!D$266), IF(AND($G$5="Yes",$G$6="No",$G$7="No"), (('GF diets No L-Val + Fat'!AM$351-'GF diets No L-Val + Fat'!AM5)*($G$8*$G$9/100)-'GF diets No L-Val + Fat'!AM$266)- (('GF diets No L-Val + Fat'!D351-'GF diets No L-Val + Fat'!D5)*($G$8*$G$9/100)-'GF diets No L-Val + Fat'!D$266), IF(AND($G$5="No",$G$6="No",$G$7="Yes"), (('GF diets L-Val'!AM$351-'GF diets L-Val'!AM5)*($G$8*$G$9/100)-'GF diets L-Val'!AM$266)- (('GF diets L-Val'!D351-'GF diets L-Val'!D5)*($G$8*$G$9/100)-'GF diets L-Val'!D$266), IF(AND($G$5="Yes",$G$6="No",$G$7="Yes"), (('GF diets L-Val + Fat'!AM$351-'GF diets L-Val + Fat'!AM5)*($G$8*$G$9/100)-'GF diets L-Val + Fat'!AM$266)- (('GF diets L-Val + Fat'!D$351-'GF diets L-Val + Fat'!D5)*($G$8*$G$9/100)-'GF diets L-Val + Fat'!D$266), IF(AND($G$5="No",$G$6="Yes",$G$7="No"), (('GF diets No L-Val + WD'!AM$351-'GF diets No L-Val + WD'!AM5)*($G$8*$G$9/100)-'GF diets No L-Val + WD'!AM$266)- (('GF diets No L-Val + WD'!D$351-'GF diets No L-Val + WD'!D5)*($G$8*$G$9/100)-'GF diets No L-Val + WD'!D$266), IF(AND($G$5="Yes",$G$6="Yes",$G$7="No"), (('GF diets No L-Val + Fat + WD'!AM$351-'GF diets No L-Val + Fat + WD'!AM5)*($G$8*$G$9/100)-'GF diets No L-Val + Fat + WD'!AM$266)- (('GF diets No L-Val + Fat + WD'!D$351-'GF diets No L-Val + Fat + WD'!D5)*($G$8*$G$9/100)-'GF diets No L-Val + Fat + WD'!D$266), IF(AND($G$5="No",$G$6="Yes",$G$7="Yes"), (('GF diets L-Val + WD'!AM$351-'GF diets L-Val + WD'!AM5)*($G$8*$G$9/100)-'GF diets L-Val + WD'!AM$266)- (('GF diets L-Val + WD'!D$351-'GF diets L-Val + WD'!D5)*($G$8*$G$9/100)-'GF diets L-Val + WD'!D$266), IF(AND($G$5="Yes",$G$6="Yes",$G$7="Yes"), (('GF diets L-Val + Fat + WD'!AM$351-'GF diets L-Val + Fat + WD'!AM5)*($G$8*$G$9/100)-'GF diets L-Val + Fat + WD'!AM$266)- (('GF diets L-Val + Fat + WD'!D$351-'GF diets L-Val + Fat + WD'!D5)*($G$8*$G$9/100)-'GF diets L-Val + Fat + WD'!D$266) )))))))) -> -0.5324272283 | F64: =IF(AND($G$5="No",$G$6="No",$G$7="No"), (('GF diets No L-Val'!AN351-'GF diets No L-Val'!AN5)*($G$8*$G$9/100)-'GF diets No L-Val'!AN$266)- (('GF diets No L-Val'!E351-'GF diets No L-Val'!E5)*($G$8*$G$9/100)-'GF diets No L-Val'!E$266), IF(AND($G$5="Yes",$G$6="No",$G$7="No"), (('GF diets No L-Val + Fat'!AN$351-'GF diets No L-Val + Fat'!AN5)*($G$8*$G$9/100)-'GF diets No L-Val + Fat'!AN$266)- (('GF diets No L-Val + Fat'!E351-'GF diets No L-Val + Fat'!E5)*($G$8*$G$9/100)-'GF diets No L-Val + Fat'!E$266), IF(AND($G$5="No",$G$6="No",$G$7="Yes"), (('GF diets L-Val'!AN$351-'GF diets L-Val'!AN5)*($G$8*$G$9/100)-'GF diets L-Val'!AN$266)- (('GF diets L-Val'!E351-'GF diets L-Val'!E5)*($G$8*$G$9/100)-'GF diets L-Val'!E$266), IF(AND($G$5="Yes",$G$6="No",$G$7="Yes"), (('GF diets L-Val + Fat'!AN$351-'GF diets L-Val + Fat'!AN5)*($G$8*$G$9/100)-'GF diets L-Val + Fat'!AN$266)- (('GF diets L-Val + Fat'!E$351-'GF diets L-Val + Fat'!E5)*($G$8*$G$9/100)-'GF diets L-Val + Fat'!E$266), IF(AND($G$5="No",$G$6="Yes",$G$7="No"), (('GF diets No L-Val + WD'!AN$351-'GF diets No L-Val + WD'!AN5)*($G$8*$G$9/100)-'GF diets No L-Val + WD'!AN$266)- (('GF diets No L-Val + WD'!E$351-'GF diets No L-Val + WD'!E5)*($G$8*$G$9/100)-'GF diets No L-Val + WD'!E$266), IF(AND($G$5="Yes",$G$6="Yes",$G$7="No"), (('GF diets No L-Val + Fat + WD'!AN$351-'GF diets No L-Val + Fat + WD'!AN5)*($G$8*$G$9/100)-'GF diets No L-Val + Fat + WD'!AN$266)- (('GF diets No L-Val + Fat + WD'!E$351-'GF diets No L-Val + Fat + WD'!E5)*($G$8*$G$9/100)-'GF diets No L-Val + Fat + WD'!E$266), IF(AND($G$5="No",$G$6="Yes",$G$7="Yes"), (('GF diets L-Val + WD'!AN$351-'GF diets L-Val + WD'!AN5)*($G$8*$G$9/100)-'GF diets L-Val + WD'!AN$266)- (('GF diets L-Val + WD'!E$351-'GF diets L-Val + WD'!E5)*($G$8*$G$9/100)-'GF diets L-Val + WD'!E$266), IF(AND($G$5="Yes",$G$6="Yes",$G$7="Yes"), (('GF diets L-Val + Fat + WD'!AN$351-'GF diets L-Val + Fat + WD'!AN5)*($G$8*$G$9/100)-'GF diets L-Val + Fat + WD'!AN$266)- (('GF diets L-Val + Fat + WD'!E$351-'GF diets L-Val + Fat + WD'!E5)*($G$8*$G$9/100)-'GF diets L-Val + Fat + WD'!E$266) )))))))) -> -0.6691926472 | G64: =IF(AND($G$5="No",$G$6="No",$G$7="No"), (('GF diets No L-Val'!AO351-'GF diets No L-Val'!AO5)*($G$8*$G$9/100)-'GF diets No L-Val'!AO$266)- (('GF diets No L-Val'!F351-'GF diets No L-Val'!F5)*($G$8*$G$9/100)-'GF diets No L-Val'!F$266), IF(AND($G$5="Yes",$G$6="No",$G$7="No"), (('GF diets No L-Val + Fat'!AO$351-'GF diets No L-Val + Fat'!AO5)*($G$8*$G$9/100)-'GF diets No L-Val + Fat'!AO$266)- (('GF diets No L-Val + Fat'!F351-'GF diets No L-Val + Fat'!F5)*($G$8*$G$9/100)-'GF diets No L-Val + Fat'!F$266), IF(AND($G$5="No",$G$6="No",$G$7="Yes"), (('GF diets L-Val'!AO$351-'GF diets L-Val'!AO5)*($G$8*$G$9/100)-'GF diets L-Val'!AO$266)- (('GF diets L-Val'!F351-'GF diets L-Val'!F5)*($G$8*$G$9/100)-'GF diets L-Val'!F$266), IF(AND($G$5="Yes",$G$6="No",$G$7="Yes"), (('GF diets L-Val + Fat'!AO$351-'GF diets L-Val + Fat'!AO5)*($G$8*$G$9/100)-'GF diets L-Val + Fat'!AO$266)- (('GF diets L-Val + Fat'!F$351-'GF diets L-Val + Fat'!F5)*($G$8*$G$9/100)-'GF diets L-Val + Fat'!F$266), IF(AND($G$5="No",$G$6="Yes",$G$7="No"), (('GF diets No L-Val + WD'!AO$351-'GF diets No L-Val + WD'!AO5)*($G$8*$G$9/100)-'GF diets No L-Val + WD'!AO$266)- (('GF diets No L-Val + WD'!F$351-'GF diets No L-Val + WD'!F5)*($G$8*$G$9/100)-'GF diets No L-Val + WD'!F$266), IF(AND($G$5="Yes",$G$6="Yes",$G$7="No"), (('GF diets No L-Val + Fat + WD'!AO$351-'GF diets No L-Val + Fat + WD'!AO5)*($G$8*$G$9/100)-'GF diets No L-Val + Fat + WD'!AO$266)- (('GF diets No L-Val + Fat + WD'!F$351-'GF diets No L-Val + Fat + WD'!F5)*($G$8*$G$9/100)-'GF diets No L-Val + Fat + WD'!F$266), IF(AND($G$5="No",$G$6="Yes",$G$7="Yes"), (('GF diets L-Val + WD'!AO$351-'GF diets L-Val + WD'!AO5)*($G$8*$G$9/100)-'GF diets L-Val + WD'!AO$266)- (('GF diets L-Val + WD'!F$351-'GF diets L-Val + WD'!F5)*($G$8*$G$9/100)-'GF diets L-Val + WD'!F$266), IF(AND($G$5="Yes",$G$6="Yes",$G$7="Yes"), (('GF diets L-Val + Fat + WD'!AO$351-'GF diets L-Val + Fat + WD'!AO5)*($G$8*$G$9/100)-'GF diets L-Val + Fat + WD'!AO$266)- (('GF diets L-Val + Fat + WD'!F$351-'GF diets L-Val + Fat + WD'!F5)*($G$8*$G$9/100)-'GF diets L-Val + Fat + WD'!F$266) )))))))) -> -0.9073310744 | H64: =IF(AND($G$5="No",$G$6="No",$G$7="No"), (('GF diets No L-Val'!AP351-'GF diets No L-Val'!AP5)*($G$8*$G$9/100)-'GF diets No L-Val'!AP$266)- (('GF diets No L-Val'!G351-'GF diets No L-Val'!G5)*($G$8*$G$9/100)-'GF diets No L-Val'!G$266), IF(AND($G$5="Yes",$G$6="No",$G$7="No"), (('GF diets No L-Val + Fat'!AP$351-'GF diets No L-Val + Fat'!AP5)*($G$8*$G$9/100)-'GF diets No L-Val + Fat'!AP$266)- (('GF diets No L-Val + Fat'!G351-'GF diets No L-Val + Fat'!G5)*($G$8*$G$9/100)-'GF diets No L-Val + Fat'!G$266), IF(AND($G$5="No",$G$6="No",$G$7="Yes"), (('GF diets L-Val'!AP$351-'GF diets L-Val'!AP5)*($G$8*$G$9/100)-'GF diets L-Val'!AP$266)- (('GF diets L-Val'!G351-'GF diets L-Val'!G5)*($G$8*$G$9/100)-'GF diets L-Val'!G$266), IF(AND($G$5="Yes",$G$6="No",$G$7="Yes"), (('GF diets L-Val + Fat'!AP$351-'GF diets L-Val + Fat'!AP5)*($G$8*$G$9/100)-'GF diets L-Val + Fat'!AP$266)- (('GF diets L-Val + Fat'!G$351-'GF diets L-Val + Fat'!G5)*($G$8*$G$9/100)-'GF diets L-Val + Fat'!G$266), IF(AND($G$5="No",$G$6="Yes",$G$7="No"), (('GF diets No L-Val + WD'!AP$351-'GF diets No L-Val + WD'!AP5)*($G$8*$G$9/100)-'GF diets No L-Val + WD'!AP$266)- (('GF diets No L-Val + WD'!G$351-'GF diets No L-Val + WD'!G5)*($G$8*$G$9/100)-'GF diets No L-Val + WD'!G$266), IF(AND($G$5="Yes",$G$6="Yes",$G$7="No"), (('GF diets No L-Val + Fat + WD'!AP$351-'GF diets No L-Val + Fat + WD'!AP5)*($G$8*$G$9/100)-'GF diets No L-Val + Fat + WD'!AP$266)- (('GF diets No L-Val + Fat + WD'!G$351-'GF diets No L-Val + Fat + WD'!G5)*($G$8*$G$9/100)-'GF diets No L-Val + Fat + WD'!G$266), IF(AND($G$5="No",$G$6="Yes",$G$7="Yes"), (('GF diets L-Val + WD'!AP$351-'GF diets L-Val + WD'!AP5)*($G$8*$G$9/100)-'GF diets L-Val + WD'!AP$266)- (('GF diets L-Val + WD'!G$351-'GF diets L-Val + WD'!G5)*($G$8*$G$9/100)-'GF diets L-Val + WD'!G$266), IF(AND($G$5="Yes",$G$6="Yes",$G$7="Yes"), (('GF diets L-Val + Fat + WD'!AP$351-'GF diets L-Val + Fat + WD'!AP5)*($G$8*$G$9/100)-'GF diets L-Val + Fat + WD'!AP$266)- (('GF diets L-Val + Fat + WD'!G$351-'GF diets L-Val + Fat + WD'!G5)*($G$8*$G$9/100)-'GF diets L-Val + Fat + WD'!G$266) )))))))) -> -1.367388111 | I64: -4.322263714 | J64: =I64-I63 -> -0.8498289145
A65: 0.3 | B65: 30% DDGS | C65: =IF(AND($G$5="No",$G$6="No",$G$7="No"), (('GF diets No L-Val'!AR351-'GF diets No L-Val'!AR5)*($G$8*$G$9/100)-'GF diets No L-Val'!AR$266)- (('GF diets No L-Val'!B351-'GF diets No L-Val'!B5)*($G$8*$G$9/100)-'GF diets No L-Val'!B$266), IF(AND($G$5="Yes",$G$6="No",$G$7="No"), (('GF diets No L-Val + Fat'!AR$351-'GF diets No L-Val + Fat'!AR5)*($G$8*$G$9/100)-'GF diets No L-Val + Fat'!AR$266)- (('GF diets No L-Val + Fat'!B351-'GF diets No L-Val + Fat'!B5)*($G$8*$G$9/100)-'GF diets No L-Val + Fat'!B$266), IF(AND($G$5="No",$G$6="No",$G$7="Yes"), (('GF diets L-Val'!AR$351-'GF diets L-Val'!AR5)*($G$8*$G$9/100)-'GF diets L-Val'!AR$266)- (('GF diets L-Val'!B351-'GF diets L-Val'!B5)*($G$8*$G$9/100)-'GF diets L-Val'!B$266), IF(AND($G$5="Yes",$G$6="No",$G$7="Yes"), (('GF diets L-Val + Fat'!AR$351-'GF diets L-Val + Fat'!AR5)*($G$8*$G$9/100)-'GF diets L-Val + Fat'!AR$266)- (('GF diets L-Val + Fat'!B$351-'GF diets L-Val + Fat'!B5)*($G$8*$G$9/100)-'GF diets L-Val + Fat'!B$266), IF(AND($G$5="No",$G$6="Yes",$G$7="No"), (('GF diets No L-Val + WD'!AR$351-'GF diets No L-Val + WD'!AR5)*($G$8*$G$9/100)-'GF diets No L-Val + WD'!AR$266)- (('GF diets No L-Val + WD'!B$351-'GF diets No L-Val + WD'!B5)*($G$8*$G$9/100)-'GF diets No L-Val + WD'!B$266), IF(AND($G$5="Yes",$G$6="Yes",$G$7="No"), (('GF diets No L-Val + Fat + WD'!AR$351-'GF diets No L-Val + Fat + WD'!AR5)*($G$8*$G$9/100)-'GF diets No L-Val + Fat + WD'!AR$266)- (('GF diets No L-Val + Fat + WD'!B$351-'GF diets No L-Val + Fat + WD'!B5)*($G$8*$G$9/100)-'GF diets No L-Val + Fat + WD'!B$266), IF(AND($G$5="No",$G$6="Yes",$G$7="Yes"), (('GF diets L-Val + WD'!AR$351-'GF diets L-Val + WD'!AR5)*($G$8*$G$9/100)-'GF diets L-Val + WD'!AR$266)- (('GF diets L-Val + WD'!B$351-'GF diets L-Val + WD'!B5)*($G$8*$G$9/100)-'GF diets L-Val + WD'!B$266), IF(AND($G$5="Yes",$G$6="Yes",$G$7="Yes"), (('GF diets L-Val + Fat + WD'!AR$351-'GF diets L-Val + Fat + WD'!AR5)*($G$8*$G$9/100)-'GF diets L-Val + Fat + WD'!AR$266)- (('GF diets L-Val + Fat + WD'!B$351-'GF diets L-Val + Fat + WD'!B5)*($G$8*$G$9/100)-'GF diets L-Val + Fat + WD'!B$266) )))))))) -> -0.470408228 | D65: =IF(AND($G$5="No",$G$6="No",$G$7="No"), (('GF diets No L-Val'!AS351-'GF diets No L-Val'!AS5)*($G$8*$G$9/100)-'GF diets No L-Val'!AS$266)- (('GF diets No L-Val'!C351-'GF diets No L-Val'!C5)*($G$8*$G$9/100)-'GF diets No L-Val'!C$266), IF(AND($G$5="Yes",$G$6="No",$G$7="No"), (('GF diets No L-Val + Fat'!AS$351-'GF diets No L-Val + Fat'!AS5)*($G$8*$G$9/100)-'GF diets No L-Val + Fat'!AS$266)- (('GF diets No L-Val + Fat'!C351-'GF diets No L-Val + Fat'!C5)*($G$8*$G$9/100)-'GF diets No L-Val + Fat'!C$266), IF(AND($G$5="No",$G$6="No",$G$7="Yes"), (('GF diets L-Val'!AS$351-'GF diets L-Val'!AS5)*($G$8*$G$9/100)-'GF diets L-Val'!AS$266)- (('GF diets L-Val'!C351-'GF diets L-Val'!C5)*($G$8*$G$9/100)-'GF diets L-Val'!C$266), IF(AND($G$5="Yes",$G$6="No",$G$7="Yes"), (('GF diets L-Val + Fat'!AS$351-'GF diets L-Val + Fat'!AS5)*($G$8*$G$9/100)-'GF diets L-Val + Fat'!AS$266)- (('GF diets L-Val + Fat'!C$351-'GF diets L-Val + Fat'!C5)*($G$8*$G$9/100)-'GF diets L-Val + Fat'!C$266), IF(AND($G$5="No",$G$6="Yes",$G$7="No"), (('GF diets No L-Val + WD'!AS$351-'GF diets No L-Val + WD'!AS5)*($G$8*$G$9/100)-'GF diets No L-Val + WD'!AS$266)- (('GF diets No L-Val + WD'!C$351-'GF diets No L-Val + WD'!C5)*($G$8*$G$9/100)-'GF diets No L-Val + WD'!C$266), IF(AND($G$5="Yes",$G$6="Yes",$G$7="No"), (('GF diets No L-Val + Fat + WD'!AS$351-'GF diets No L-Val + Fat + WD'!AS5)*($G$8*$G$9/100)-'GF diets No L-Val + Fat + WD'!AS$266)- (('GF diets No L-Val + Fat + WD'!C$351-'GF diets No L-Val + Fat + WD'!C5)*($G$8*$G$9/100)-'GF diets No L-Val + Fat + WD'!C$266), IF(AND($G$5="No",$G$6="Yes",$G$7="Yes"), (('GF diets L-Val + WD'!AS$351-'GF diets L-Val + WD'!AS5)*($G$8*$G$9/100)-'GF diets L-Val + WD'!AS$266)- (('GF diets L-Val + WD'!C$351-'GF diets L-Val + WD'!C5)*($G$8*$G$9/100)-'GF diets L-Val + WD'!C$266), IF(AND($G$5="Yes",$G$6="Yes",$G$7="Yes"), (('GF diets L-Val + Fat + WD'!AS$351-'GF diets L-Val + Fat + WD'!AS5)*($G$8*$G$9/100)-'GF diets L-Val + Fat + WD'!AS$266)- (('GF diets L-Val + Fat + WD'!C$351-'GF diets L-Val + Fat + WD'!C5)*($G$8*$G$9/100)-'GF diets L-Val + Fat + WD'!C$266) )))))))) -> -0.4621136567 | E65: =IF(AND($G$5="No",$G$6="No",$G$7="No"), (('GF diets No L-Val'!AT351-'GF diets No L-Val'!AT5)*($G$8*$G$9/100)-'GF diets No L-Val'!AT$266)- (('GF diets No L-Val'!D351-'GF diets No L-Val'!D5)*($G$8*$G$9/100)-'GF diets No L-Val'!D$266), IF(AND($G$5="Yes",$G$6="No",$G$7="No"), (('GF diets No L-Val + Fat'!AT$351-'GF diets No L-Val + Fat'!AT5)*($G$8*$G$9/100)-'GF diets No L-Val + Fat'!AT$266)- (('GF diets No L-Val + Fat'!D351-'GF diets No L-Val + Fat'!D5)*($G$8*$G$9/100)-'GF diets No L-Val + Fat'!D$266), IF(AND($G$5="No",$G$6="No",$G$7="Yes"), (('GF diets L-Val'!AT$351-'GF diets L-Val'!AT5)*($G$8*$G$9/100)-'GF diets L-Val'!AT$266)- (('GF diets L-Val'!D351-'GF diets L-Val'!D5)*($G$8*$G$9/100)-'GF diets L-Val'!D$266), IF(AND($G$5="Yes",$G$6="No",$G$7="Yes"), (('GF diets L-Val + Fat'!AT$351-'GF diets L-Val + Fat'!AT5)*($G$8*$G$9/100)-'GF diets L-Val + Fat'!AT$266)- (('GF diets L-Val + Fat'!D$351-'GF diets L-Val + Fat'!D5)*($G$8*$G$9/100)-'GF diets L-Val + Fat'!D$266), IF(AND($G$5="No",$G$6="Yes",$G$7="No"), (('GF diets No L-Val + WD'!AT$351-'GF diets No L-Val + WD'!AT5)*($G$8*$G$9/100)-'GF diets No L-Val + WD'!AT$266)- (('GF diets No L-Val + WD'!D$351-'GF diets No L-Val + WD'!D5)*($G$8*$G$9/100)-'GF diets No L-Val + WD'!D$266), IF(AND($G$5="Yes",$G$6="Yes",$G$7="No"), (('GF diets No L-Val + Fat + WD'!AT$351-'GF diets No L-Val + Fat + WD'!AT5)*($G$8*$G$9/100)-'GF diets No L-Val + Fat + WD'!AT$266)- (('GF diets No L-Val + Fat + WD'!D$351-'GF diets No L-Val + Fat + WD'!D5)*($G$8*$G$9/100)-'GF diets No L-Val + Fat + WD'!D$266), IF(AND($G$5="No",$G$6="Yes",$G$7="Yes"), (('GF diets L-Val + WD'!AT$351-'GF diets L-Val + WD'!AT5)*($G$8*$G$9/100)-'GF diets L-Val + WD'!AT$266)- (('GF diets L-Val + WD'!D$351-'GF diets L-Val + WD'!D5)*($G$8*$G$9/100)-'GF diets L-Val + WD'!D$266), IF(AND($G$5="Yes",$G$6="Yes",$G$7="Yes"), (('GF diets L-Val + Fat + WD'!AT$351-'GF diets L-Val + Fat + WD'!AT5)*($G$8*$G$9/100)-'GF diets L-Val + Fat + WD'!AT$266)- (('GF diets L-Val + Fat + WD'!D$351-'GF diets L-Val + Fat + WD'!D5)*($G$8*$G$9/100)-'GF diets L-Val + Fat + WD'!D$266) )))))))) -> -0.6211311031 | F65: =IF(AND($G$5="No",$G$6="No",$G$7="No"), (('GF diets No L-Val'!AU351-'GF diets No L-Val'!AU5)*($G$8*$G$9/100)-'GF diets No L-Val'!AU$266)- (('GF diets No L-Val'!E351-'GF diets No L-Val'!E5)*($G$8*$G$9/100)-'GF diets No L-Val'!E$266), IF(AND($G$5="Yes",$G$6="No",$G$7="No"), (('GF diets No L-Val + Fat'!AU$351-'GF diets No L-Val + Fat'!AU5)*($G$8*$G$9/100)-'GF diets No L-Val + Fat'!AU$266)- (('GF diets No L-Val + Fat'!E351-'GF diets No L-Val + Fat'!E5)*($G$8*$G$9/100)-'GF diets No L-Val + Fat'!E$266), IF(AND($G$5="No",$G$6="No",$G$7="Yes"), (('GF diets L-Val'!AU$351-'GF diets L-Val'!AU5)*($G$8*$G$9/100)-'GF diets L-Val'!AU$266)- (('GF diets L-Val'!E351-'GF diets L-Val'!E5)*($G$8*$G$9/100)-'GF diets L-Val'!E$266), IF(AND($G$5="Yes",$G$6="No",$G$7="Yes"), (('GF diets L-Val + Fat'!AU$351-'GF diets L-Val + Fat'!AU5)*($G$8*$G$9/100)-'GF diets L-Val + Fat'!AU$266)- (('GF diets L-Val + Fat'!E$351-'GF diets L-Val + Fat'!E5)*($G$8*$G$9/100)-'GF diets L-Val + Fat'!E$266), IF(AND($G$5="No",$G$6="Yes",$G$7="No"), (('GF diets No L-Val + WD'!AU$351-'GF diets No L-Val + WD'!AU5)*($G$8*$G$9/100)-'GF diets No L-Val + WD'!AU$266)- (('GF diets No L-Val + WD'!E$351-'GF diets No L-Val + WD'!E5)*($G$8*$G$9/100)-'GF diets No L-Val + WD'!E$266), IF(AND($G$5="Yes",$G$6="Yes",$G$7="No"), (('GF diets No L-Val + Fat + WD'!AU$351-'GF diets No L-Val + Fat + WD'!AU5)*($G$8*$G$9/100)-'GF diets No L-Val + Fat + WD'!AU$266)- (('GF diets No L-Val + Fat + WD'!E$351-'GF diets No L-Val + Fat + WD'!E5)*($G$8*$G$9/100)-'GF diets No L-Val + Fat + WD'!E$266), IF(AND($G$5="No",$G$6="Yes",$G$7="Yes"), (('GF diets L-Val + WD'!AU$351-'GF diets L-Val + WD'!AU5)*($G$8*$G$9/100)-'GF diets L-Val + WD'!AU$266)- (('GF diets L-Val + WD'!E$351-'GF diets L-Val + WD'!E5)*($G$8*$G$9/100)-'GF diets L-Val + WD'!E$266), IF(AND($G$5="Yes",$G$6="Yes",$G$7="Yes"), (('GF diets L-Val + Fat + WD'!AU$351-'GF diets L-Val + Fat + WD'!AU5)*($G$8*$G$9/100)-'GF diets L-Val + Fat + WD'!AU$266)- (('GF diets L-Val + Fat + WD'!E$351-'GF diets L-Val + Fat + WD'!E5)*($G$8*$G$9/100)-'GF diets L-Val + Fat + WD'!E$266) )))))))) -> -0.8151626705 | G65: =IF(AND($G$5="No",$G$6="No",$G$7="No"), (('GF diets No L-Val'!AV351-'GF diets No L-Val'!AV5)*($G$8*$G$9/100)-'GF diets No L-Val'!AV$266)- (('GF diets No L-Val'!F351-'GF diets No L-Val'!F5)*($G$8*$G$9/100)-'GF diets No L-Val'!F$266), IF(AND($G$5="Yes",$G$6="No",$G$7="No"), (('GF diets No L-Val + Fat'!AV$351-'GF diets No L-Val + Fat'!AV5)*($G$8*$G$9/100)-'GF diets No L-Val + Fat'!AV$266)- (('GF diets No L-Val + Fat'!F351-'GF diets No L-Val + Fat'!F5)*($G$8*$G$9/100)-'GF diets No L-Val + Fat'!F$266), IF(AND($G$5="No",$G$6="No",$G$7="Yes"), (('GF diets L-Val'!AV$351-'GF diets L-Val'!AV5)*($G$8*$G$9/100)-'GF diets L-Val'!AV$266)- (('GF diets L-Val'!F351-'GF diets L-Val'!F5)*($G$8*$G$9/100)-'GF diets L-Val'!F$266), IF(AND($G$5="Yes",$G$6="No",$G$7="Yes"), (('GF diets L-Val + Fat'!AV$351-'GF diets L-Val + Fat'!AV5)*($G$8*$G$9/100)-'GF diets L-Val + Fat'!AV$266)- (('GF diets L-Val + Fat'!F$351-'GF diets L-Val + Fat'!F5)*($G$8*$G$9/100)-'GF diets L-Val + Fat'!F$266), IF(AND($G$5="No",$G$6="Yes",$G$7="No"), (('GF diets No L-Val + WD'!AV$351-'GF diets No L-Val + WD'!AV5)*($G$8*$G$9/100)-'GF diets No L-Val + WD'!AV$266)- (('GF diets No L-Val + WD'!F$351-'GF diets No L-Val + WD'!F5)*($G$8*$G$9/100)-'GF diets No L-Val + WD'!F$266), IF(AND($G$5="Yes",$G$6="Yes",$G$7="No"), (('GF diets No L-Val + Fat + WD'!AV$351-'GF diets No L-Val + Fat + WD'!AV5)*($G$8*$G$9/100)-'GF diets No L-Val + Fat + WD'!AV$266)- (('GF diets No L-Val + Fat + WD'!F$351-'GF diets No L-Val + Fat + WD'!F5)*($G$8*$G$9/100)-'GF diets No L-Val + Fat + WD'!F$266), IF(AND($G$5="No",$G$6="Yes",$G$7="Yes"), (('GF diets L-Val + WD'!AV$351-'GF diets L-Val + WD'!AV5)*($G$8*$G$9/100)-'GF diets L-Val + WD'!AV$266)- (('GF diets L-Val + WD'!F$351-'GF diets L-Val + WD'!F5)*($G$8*$G$9/100)-'GF diets L-Val + WD'!F$266), IF(AND($G$5="Yes",$G$6="Yes",$G$7="Yes"), (('GF diets L-Val + Fat + WD'!AV$351-'GF diets L-Val + Fat + WD'!AV5)*($G$8*$G$9/100)-'GF diets L-Val + Fat + WD'!AV$266)- (('GF diets L-Val + Fat + WD'!F$351-'GF diets L-Val + Fat + WD'!F5)*($G$8*$G$9/100)-'GF diets L-Val + Fat + WD'!F$266) )))))))) -> -1.093004191 | H65: =IF(AND($G$5="No",$G$6="No",$G$7="No"), (('GF diets No L-Val'!AW351-'GF diets No L-Val'!AW5)*($G$8*$G$9/100)-'GF diets No L-Val'!AW$266)- (('GF diets No L-Val'!G351-'GF diets No L-Val'!G5)*($G$8*$G$9/100)-'GF diets No L-Val'!G$266), IF(AND($G$5="Yes",$G$6="No",$G$7="No"), (('GF diets No L-Val + Fat'!AW$351-'GF diets No L-Val + Fat'!AW5)*($G$8*$G$9/100)-'GF diets No L-Val + Fat'!AW$266)- (('GF diets No L-Val + Fat'!G351-'GF diets No L-Val + Fat'!G5)*($G$8*$G$9/100)-'GF diets No L-Val + Fat'!G$266), IF(AND($G$5="No",$G$6="No",$G$7="Yes"), (('GF diets L-Val'!AW$351-'GF diets L-Val'!AW5)*($G$8*$G$9/100)-'GF diets L-Val'!AW$266)- (('GF diets L-Val'!G351-'GF diets L-Val'!G5)*($G$8*$G$9/100)-'GF diets L-Val'!G$266), IF(AND($G$5="Yes",$G$6="No",$G$7="Yes"), (('GF diets L-Val + Fat'!AW$351-'GF diets L-Val + Fat'!AW5)*($G$8*$G$9/100)-'GF diets L-Val + Fat'!AW$266)- (('GF diets L-Val + Fat'!G$351-'GF diets L-Val + Fat'!G5)*($G$8*$G$9/100)-'GF diets L-Val + Fat'!G$266), IF(AND($G$5="No",$G$6="Yes",$G$7="No"), (('GF diets No L-Val + WD'!AW$351-'GF diets No L-Val + WD'!AW5)*($G$8*$G$9/100)-'GF diets No L-Val + WD'!AW$266)- (('GF diets No L-Val + WD'!G$351-'GF diets No L-Val + WD'!G5)*($G$8*$G$9/100)-'GF diets No L-Val + WD'!G$266), IF(AND($G$5="Yes",$G$6="Yes",$G$7="No"), (('GF diets No L-Val + Fat + WD'!AW$351-'GF diets No L-Val + Fat + WD'!AW5)*($G$8*$G$9/100)-'GF diets No L-Val + Fat + WD'!AW$266)- (('GF diets No L-Val + Fat + WD'!G$351-'GF diets No L-Val + Fat + WD'!G5)*($G$8*$G$9/100)-'GF diets No L-Val + Fat + WD'!G$266), IF(AND($G$5="No",$G$6="Yes",$G$7="Yes"), (('GF diets L-Val + WD'!AW$351-'GF diets L-Val + WD'!AW5)*($G$8*$G$9/100)-'GF diets L-Val + WD'!AW$266)- (('GF diets L-Val + WD'!G$351-'GF diets L-Val + WD'!G5)*($G$8*$G$9/100)-'GF diets L-Val + WD'!G$266), IF(AND($G$5="Yes",$G$6="Yes",$G$7="Yes"), (('GF diets L-Val + Fat + WD'!AW$351-'GF diets L-Val + Fat + WD'!AW5)*($G$8*$G$9/100)-'GF diets L-Val + Fat + WD'!AW$266)- (('GF diets L-Val + Fat + WD'!G$351-'GF diets L-Val + Fat + WD'!G5)*($G$8*$G$9/100)-'GF diets L-Val + Fat + WD'!G$266) )))))))) -> -1.643726667 | I65: -5.105546516 | J65: =I65-I64 -> -0.7832828021
B67: IOFC- Carcass, $/pig (compared to 0% DDGS) | C67: Phase 1 | D67: Phase 2 | E67: Phase 3 | F67: Phase 4 | G67: Phase 5 | H67: Phase 6 | I67: Total | J67: Incremental
A68: 0.05 | B68: 5% DDGS | C68: =IF(AND($G$5="No",$G$6="No",$G$7="No"),((('GF diets No L-Val'!I$351-'GF diets No L-Val'!I$5)*('GF diets No L-Val'!I$353/100)*'DDGS Calculator'!$G$8)-'GF diets No L-Val'!I$266)-(('GF diets No L-Val'!B$351-'GF diets No L-Val'!B$5)*('GF diets No L-Val'!B$353/100)*'DDGS Calculator'!$G$8-'GF diets No L-Val'!B$266), IF(AND($G$5="Yes",$G$6="No",$G$7="No"),(('GF diets No L-Val + Fat'!I$351-'GF diets No L-Val + Fat'!I$5)*('GF diets No L-Val + Fat'!I$353/100)*'DDGS Calculator'!$G$8-'GF diets No L-Val + Fat'!I$266)-(('GF diets No L-Val + Fat'!B$351-'GF diets No L-Val + Fat'!B$5)*('GF diets No L-Val + Fat'!B$353/100)*'DDGS Calculator'!$G$8-'GF diets No L-Val + Fat'!B$266), IF(AND($G$5="No",$G$6="No",$G$7="Yes"),(('GF diets L-Val'!I$351-'GF diets L-Val'!I$5)*('GF diets L-Val'!I$353/100)*'DDGS Calculator'!$G$8-'GF diets L-Val'!I$266)-(('GF diets L-Val'!B$351-'GF diets L-Val'!B$5)*('GF diets L-Val'!B$353/100)*'DDGS Calculator'!$G$8-'GF diets L-Val'!B$266), IF(AND($G$5="Yes",$G$6="No",$G$7="Yes"),(('GF diets L-Val + Fat'!I$351-'GF diets L-Val + Fat'!I$5)*('GF diets L-Val + Fat'!I$353/100)*'DDGS Calculator'!$G$8-'GF diets L-Val + Fat'!I$266)-(('GF diets L-Val + Fat'!B$351-'GF diets L-Val + Fat'!B$5)*('GF diets L-Val + Fat'!B$353/100)*'DDGS Calculator'!$G$8-'GF diets L-Val + Fat'!B$266), IF(AND($G$5="No",$G$6="Yes",$G$7="No"),(('GF diets No L-Val + WD'!I$351-'GF diets No L-Val + WD'!I$5)*('GF diets No L-Val + WD'!I$353/100)*'DDGS Calculator'!$G$8-'GF diets No L-Val + WD'!I$266)-(('GF diets No L-Val + WD'!B$351-'GF diets No L-Val + WD'!B$5)*('GF diets No L-Val + WD'!B$353/100)*'DDGS Calculator'!$G$8-'GF diets No L-Val + WD'!B$266), IF(AND($G$5="Yes",$G$6="Yes",$G$7="No"),(('GF diets No L-Val + Fat + WD'!I$351-'GF diets No L-Val + Fat + WD'!I$5)*('GF diets No L-Val + Fat + WD'!I$353/100)*'DDGS Calculator'!$G$8-'GF diets No L-Val + Fat + WD'!I$266)-(('GF diets No L-Val + Fat + WD'!B$351-'GF diets No L-Val + Fat + WD'!B$5)*('GF diets No L-Val + Fat + WD'!B$353/100)*'DDGS Calculator'!$G$8-'GF diets No L-Val + Fat + WD'!B$266), IF(AND($G$5="No",$G$6="Yes",$G$7="Yes"),(('GF diets L-Val + WD'!I$351-'GF diets L-Val + WD'!I$5)*('GF diets L-Val + WD'!I$353/100)*'DDGS Calculator'!$G$8-'GF diets L-Val + WD'!I$266)-(('GF diets L-Val + WD'!B$351-'GF diets L-Val + WD'!B$5)*('GF diets L-Val + WD'!B$353/100)*'DDGS Calculator'!$G$8-'GF diets L-Val + WD'!B$266), IF(AND($G$5="Yes",$G$6="Yes",$G$7="Yes"),(('GF diets L-Val + Fat + WD'!I$351-'GF diets L-Val + Fat + WD'!I$5)*('GF diets L-Val + Fat + WD'!I$353/100)*'DDGS Calculator'!$G$8-'GF diets L-Val + Fat + WD'!I$266)-(('GF diets L-Val + Fat + WD'!B$351-'GF diets L-Val + Fat + WD'!B$5)*('GF diets L-Val + Fat + WD'!B$353/100)*'DDGS Calculator'!$G$8-'GF diets L-Val + Fat + WD'!B$266))))))))) -> -0.1564850496 | D68: =IF(AND($G$5="No",$G$6="No",$G$7="No"),((('GF diets No L-Val'!J$351-'GF diets No L-Val'!J$5)*('GF diets No L-Val'!J$353/100)*'DDGS Calculator'!$G$8)-'GF diets No L-Val'!J$266)-(('GF diets No L-Val'!C$351-'GF diets No L-Val'!C$5)*('GF diets No L-Val'!C$353/100)*'DDGS Calculator'!$G$8-'GF diets No L-Val'!C$266), IF(AND($G$5="Yes",$G$6="No",$G$7="No"),(('GF diets No L-Val + Fat'!J$351-'GF diets No L-Val + Fat'!J$5)*('GF diets No L-Val + Fat'!J$353/100)*'DDGS Calculator'!$G$8-'GF diets No L-Val + Fat'!J$266)-(('GF diets No L-Val + Fat'!C$351-'GF diets No L-Val + Fat'!C$5)*('GF diets No L-Val + Fat'!C$353/100)*'DDGS Calculator'!$G$8-'GF diets No L-Val + Fat'!C$266), IF(AND($G$5="No",$G$6="No",$G$7="Yes"),(('GF diets L-Val'!J$351-'GF diets L-Val'!J$5)*('GF diets L-Val'!J$353/100)*'DDGS Calculator'!$G$8-'GF diets L-Val'!J$266)-(('GF diets L-Val'!C$351-'GF diets L-Val'!C$5)*('GF diets L-Val'!C$353/100)*'DDGS Calculator'!$G$8-'GF diets L-Val'!C$266), IF(AND($G$5="Yes",$G$6="No",$G$7="Yes"),(('GF diets L-Val + Fat'!J$351-'GF diets L-Val + Fat'!J$5)*('GF diets L-Val + Fat'!J$353/100)*'DDGS Calculator'!$G$8-'GF diets L-Val + Fat'!J$266)-(('GF diets L-Val + Fat'!C$351-'GF diets L-Val + Fat'!C$5)*('GF diets L-Val + Fat'!C$353/100)*'DDGS Calculator'!$G$8-'GF diets L-Val + Fat'!C$266), IF(AND($G$5="No",$G$6="Yes",$G$7="No"),(('GF diets No L-Val + WD'!J$351-'GF diets No L-Val + WD'!J$5)*('GF diets No L-Val + WD'!J$353/100)*'DDGS Calculator'!$G$8-'GF diets No L-Val + WD'!J$266)-(('GF diets No L-Val + WD'!C$351-'GF diets No L-Val + WD'!C$5)*('GF diets No L-Val + WD'!C$353/100)*'DDGS Calculator'!$G$8-'GF diets No L-Val + WD'!C$266), IF(AND($G$5="Yes",$G$6="Yes",$G$7="No"),(('GF diets No L-Val + Fat + WD'!J$351-'GF diets No L-Val + Fat + WD'!J$5)*('GF diets No L-Val + Fat + WD'!J$353/100)*'DDGS Calculator'!$G$8-'GF diets No L-Val + Fat + WD'!J$266)-(('GF diets No L-Val + Fat + WD'!C$351-'GF diets No L-Val + Fat + WD'!C$5)*('GF diets No L-Val + Fat + WD'!C$353/100)*'DDGS Calculator'!$G$8-'GF diets No L-Val + Fat + WD'!C$266), IF(AND($G$5="No",$G$6="Yes",$G$7="Yes"),(('GF diets L-Val + WD'!J$351-'GF diets L-Val + WD'!J$5)*('GF diets L-Val + WD'!J$353/100)*'DDGS Calculator'!$G$8-'GF diets L-Val + WD'!J$266)-(('GF diets L-Val + WD'!C$351-'GF diets L-Val + WD'!C$5)*('GF diets L-Val + WD'!C$353/100)*'DDGS Calculator'!$G$8-'GF diets L-Val + WD'!C$266), IF(AND($G$5="Yes",$G$6="Yes",$G$7="Yes"),(('GF diets L-Val + Fat + WD'!J$351-'GF diets L-Val + Fat + WD'!J$5)*('GF diets L-Val + Fat + WD'!J$353/100)*'DDGS Calculator'!$G$8-'GF diets L-Val + Fat + WD'!J$266)-(('GF diets L-Val + Fat + WD'!C$351-'GF diets L-Val + Fat + WD'!C$5)*('GF diets L-Val + Fat + WD'!C$353/100)*'DDGS Calculator'!$G$8-'GF diets L-Val + Fat + WD'!C$266))))))))) -> -0.1486439875 | E68: =IF(AND($G$5="No",$G$6="No",$G$7="No"),((('GF diets No L-Val'!K$351-'GF diets No L-Val'!K$5)*('GF diets No L-Val'!K$353/100)*'DDGS Calculator'!$G$8)-'GF diets No L-Val'!K$266)-(('GF diets No L-Val'!D$351-'GF diets No L-Val'!D$5)*('GF diets No L-Val'!D$353/100)*'DDGS Calculator'!$G$8-'GF diets No L-Val'!D$266), IF(AND($G$5="Yes",$G$6="No",$G$7="No"),(('GF diets No L-Val + Fat'!K$351-'GF diets No L-Val + Fat'!K$5)*('GF diets No L-Val + Fat'!K$353/100)*'DDGS Calculator'!$G$8-'GF diets No L-Val + Fat'!K$266)-(('GF diets No L-Val + Fat'!D$351-'GF diets No L-Val + Fat'!D$5)*('GF diets No L-Val + Fat'!D$353/100)*'DDGS Calculator'!$G$8-'GF diets No L-Val + Fat'!D$266), IF(AND($G$5="No",$G$6="No",$G$7="Yes"),(('GF diets L-Val'!K$351-'GF diets L-Val'!K$5)*('GF diets L-Val'!K$353/100)*'DDGS Calculator'!$G$8-'GF diets L-Val'!K$266)-(('GF diets L-Val'!D$351-'GF diets L-Val'!D$5)*('GF diets L-Val'!D$353/100)*'DDGS Calculator'!$G$8-'GF diets L-Val'!D$266), IF(AND($G$5="Yes",$G$6="No",$G$7="Yes"),(('GF diets L-Val + Fat'!K$351-'GF diets L-Val + Fat'!K$5)*('GF diets L-Val + Fat'!K$353/100)*'DDGS Calculator'!$G$8-'GF diets L-Val + Fat'!K$266)-(('GF diets L-Val + Fat'!D$351-'GF diets L-Val + Fat'!D$5)*('GF diets L-Val + Fat'!D$353/100)*'DDGS Calculator'!$G$8-'GF diets L-Val + Fat'!D$266), IF(AND($G$5="No",$G$6="Yes",$G$7="No"),(('GF diets No L-Val + WD'!K$351-'GF diets No L-Val + WD'!K$5)*('GF diets No L-Val + WD'!K$353/100)*'DDGS Calculator'!$G$8-'GF diets No L-Val + WD'!K$266)-(('GF diets No L-Val + WD'!D$351-'GF diets No L-Val + WD'!D$5)*('GF diets No L-Val + WD'!D$353/100)*'DDGS Calculator'!$G$8-'GF diets No L-Val + WD'!D$266), IF(AND($G$5="Yes",$G$6="Yes",$G$7="No"),(('GF diets No L-Val + Fat + WD'!K$351-'GF diets No L-Val + Fat + WD'!K$5)*('GF diets No L-Val + Fat + WD'!K$353/100)*'DDGS Calculator'!$G$8-'GF diets No L-Val + Fat + WD'!K$266)-(('GF diets No L-Val + Fat + WD'!D$351-'GF diets No L-Val + Fat + WD'!D$5)*('GF diets No L-Val + Fat + WD'!D$353/100)*'DDGS Calculator'!$G$8-'GF diets No L-Val + Fat + WD'!D$266), IF(AND($G$5="No",$G$6="Yes",$G$7="Yes"),(('GF diets L-Val + WD'!K$351-'GF diets L-Val + WD'!K$5)*('GF diets L-Val + WD'!K$353/100)*'DDGS Calculator'!$G$8-'GF diets L-Val + WD'!K$266)-(('GF diets L-Val + WD'!D$351-'GF diets L-Val + WD'!D$5)*('GF diets L-Val + WD'!D$353/100)*'DDGS Calculator'!$G$8-'GF diets L-Val + WD'!D$266), IF(AND($G$5="Yes",$G$6="Yes",$G$7="Yes"),(('GF diets L-Val + Fat + WD'!K$351-'GF diets L-Val + Fat + WD'!K$5)*('GF diets L-Val + Fat + WD'!K$353/100)*'DDGS Calculator'!$G$8-'GF diets L-Val + Fat + WD'!K$266)-(('GF diets L-Val + Fat + WD'!D$351-'GF diets L-Val + Fat + WD'!D$5)*('GF diets L-Val + Fat + WD'!D$353/100)*'DDGS Calculator'!$G$8-'GF diets L-Val + Fat + WD'!D$266))))))))) -> -0.173979406 | F68: =IF(AND($G$5="No",$G$6="No",$G$7="No"),((('GF diets No L-Val'!L$351-'GF diets No L-Val'!L$5)*('GF diets No L-Val'!L$353/100)*'DDGS Calculator'!$G$8)-'GF diets No L-Val'!L$266)-(('GF diets No L-Val'!E$351-'GF diets No L-Val'!E$5)*('GF diets No L-Val'!E$353/100)*'DDGS Calculator'!$G$8-'GF diets No L-Val'!E$266), IF(AND($G$5="Yes",$G$6="No",$G$7="No"),(('GF diets No L-Val + Fat'!L$351-'GF diets No L-Val + Fat'!L$5)*('GF diets No L-Val + Fat'!L$353/100)*'DDGS Calculator'!$G$8-'GF diets No L-Val + Fat'!L$266)-(('GF diets No L-Val + Fat'!E$351-'GF diets No L-Val + Fat'!E$5)*('GF diets No L-Val + Fat'!E$353/100)*'DDGS Calculator'!$G$8-'GF diets No L-Val + Fat'!E$266), IF(AND($G$5="No",$G$6="No",$G$7="Yes"),(('GF diets L-Val'!L$351-'GF diets L-Val'!L$5)*('GF diets L-Val'!L$353/100)*'DDGS Calculator'!$G$8-'GF diets L-Val'!L$266)-(('GF diets L-Val'!E$351-'GF diets L-Val'!E$5)*('GF diets L-Val'!E$353/100)*'DDGS Calculator'!$G$8-'GF diets L-Val'!E$266), IF(AND($G$5="Yes",$G$6="No",$G$7="Yes"),(('GF diets L-Val + Fat'!L$351-'GF diets L-Val + Fat'!L$5)*('GF diets L-Val + Fat'!L$353/100)*'DDGS Calculator'!$G$8-'GF diets L-Val + Fat'!L$266)-(('GF diets L-Val + Fat'!E$351-'GF diets L-Val + Fat'!E$5)*('GF diets L-Val + Fat'!E$353/100)*'DDGS Calculator'!$G$8-'GF diets L-Val + Fat'!E$266), IF(AND($G$5="No",$G$6="Yes",$G$7="No"),(('GF diets No L-Val + WD'!L$351-'GF diets No L-Val + WD'!L$5)*('GF diets No L-Val + WD'!L$353/100)*'DDGS Calculator'!$G$8-'GF diets No L-Val + WD'!L$266)-(('GF diets No L-Val + WD'!E$351-'GF diets No L-Val + WD'!E$5)*('GF diets No L-Val + WD'!E$353/100)*'DDGS Calculator'!$G$8-'GF diets No L-Val + WD'!E$266), IF(AND($G$5="Yes",$G$6="Yes",$G$7="No"),(('GF diets No L-Val + Fat + WD'!L$351-'GF diets No L-Val + Fat + WD'!L$5)*('GF diets No L-Val + Fat + WD'!L$353/100)*'DDGS Calculator'!$G$8-'GF diets No L-Val + Fat + WD'!L$266)-(('GF diets No L-Val + Fat + WD'!E$351-'GF diets No L-Val + Fat + WD'!E$5)*('GF diets No L-Val + Fat + WD'!E$353/100)*'DDGS Calculator'!$G$8-'GF diets No L-Val + Fat + WD'!E$266), IF(AND($G$5="No",$G$6="Yes",$G$7="Yes"),(('GF diets L-Val + WD'!L$351-'GF diets L-Val + WD'!L$5)*('GF diets L-Val + WD'!L$353/100)*'DDGS Calculator'!$G$8-'GF diets L-Val + WD'!L$266)-(('GF diets L-Val + WD'!E$351-'GF diets L-Val + WD'!E$5)*('GF diets L-Val + WD'!E$353/100)*'DDGS Calculator'!$G$8-'GF diets L-Val + WD'!E$266), IF(AND($G$5="Yes",$G$6="Yes",$G$7="Yes"),(('GF diets L-Val + Fat + WD'!L$351-'GF diets L-Val + Fat + WD'!L$5)*('GF diets L-Val + Fat + WD'!L$353/100)*'DDGS Calculator'!$G$8-'GF diets L-Val + Fat + WD'!L$266)-(('GF diets L-Val + Fat + WD'!E$351-'GF diets L-Val + Fat + WD'!E$5)*('GF diets L-Val + Fat + WD'!E$353/100)*'DDGS Calculator'!$G$8-'GF diets L-Val + Fat + WD'!E$266))))))))) -> -0.1854710318 | G68: =IF(AND($G$5="No",$G$6="No",$G$7="No"),((('GF diets No L-Val'!M$351-'GF diets No L-Val'!M$5)*('GF diets No L-Val'!M$353/100)*'DDGS Calculator'!$G$8)-'GF diets No L-Val'!M$266)-(('GF diets No L-Val'!F$351-'GF diets No L-Val'!F$5)*('GF diets No L-Val'!F$353/100)*'DDGS Calculator'!$G$8-'GF diets No L-Val'!F$266), IF(AND($G$5="Yes",$G$6="No",$G$7="No"),(('GF diets No L-Val + Fat'!M$351-'GF diets No L-Val + Fat'!M$5)*('GF diets No L-Val + Fat'!M$353/100)*'DDGS Calculator'!$G$8-'GF diets No L-Val + Fat'!M$266)-(('GF diets No L-Val + Fat'!F$351-'GF diets No L-Val + Fat'!F$5)*('GF diets No L-Val + Fat'!F$353/100)*'DDGS Calculator'!$G$8-'GF diets No L-Val + Fat'!F$266), IF(AND($G$5="No",$G$6="No",$G$7="Yes"),(('GF diets L-Val'!M$351-'GF diets L-Val'!M$5)*('GF diets L-Val'!M$353/100)*'DDGS Calculator'!$G$8-'GF diets L-Val'!M$266)-(('GF diets L-Val'!F$351-'GF diets L-Val'!F$5)*('GF diets L-Val'!F$353/100)*'DDGS Calculator'!$G$8-'GF diets L-Val'!F$266), IF(AND($G$5="Yes",$G$6="No",$G$7="Yes"),(('GF diets L-Val + Fat'!M$351-'GF diets L-Val + Fat'!M$5)*('GF diets L-Val + Fat'!M$353/100)*'DDGS Calculator'!$G$8-'GF diets L-Val + Fat'!M$266)-(('GF diets L-Val + Fat'!F$351-'GF diets L-Val + Fat'!F$5)*('GF diets L-Val + Fat'!F$353/100)*'DDGS Calculator'!$G$8-'GF diets L-Val + Fat'!F$266), IF(AND($G$5="No",$G$6="Yes",$G$7="No"),(('GF diets No L-Val + WD'!M$351-'GF diets No L-Val + WD'!M$5)*('GF diets No L-Val + WD'!M$353/100)*'DDGS Calculator'!$G$8-'GF diets No L-Val + WD'!M$266)-(('GF diets No L-Val + WD'!F$351-'GF diets No L-Val + WD'!F$5)*('GF diets No L-Val + WD'!F$353/100)*'DDGS Calculator'!$G$8-'GF diets No L-Val + WD'!F$266), IF(AND($G$5="Yes",$G$6="Yes",$G$7="No"),(('GF diets No L-Val + Fat + WD'!M$351-'GF diets No L-Val + Fat + WD'!M$5)*('GF diets No L-Val + Fat + WD'!M$353/100)*'DDGS Calculator'!$G$8-'GF diets No L-Val + Fat + WD'!M$266)-(('GF diets No L-Val + Fat + WD'!F$351-'GF diets No L-Val + Fat + WD'!F$5)*('GF diets No L-Val + Fat + WD'!F$353/100)*'DDGS Calculator'!$G$8-'GF diets No L-Val + Fat + WD'!F$266), IF(AND($G$5="No",$G$6="Yes",$G$7="Yes"),(('GF diets L-Val + WD'!M$351-'GF diets L-Val + WD'!M$5)*('GF diets L-Val + WD'!M$353/100)*'DDGS Calculator'!$G$8-'GF diets L-Val + WD'!M$266)-(('GF diets L-Val + WD'!F$351-'GF diets L-Val + WD'!F$5)*('GF diets L-Val + WD'!F$353/100)*'DDGS Calculator'!$G$8-'GF diets L-Val + WD'!F$266), IF(AND($G$5="Yes",$G$6="Yes",$G$7="Yes"),(('GF diets L-Val + Fat + WD'!M$351-'GF diets L-Val + Fat + WD'!M$5)*('GF diets L-Val + Fat + WD'!M$353/100)*'DDGS Calculator'!$G$8-'GF diets L-Val + Fat + WD'!M$266)-(('GF diets L-Val + Fat + WD'!F$351-'GF diets L-Val + Fat + WD'!F$5)*('GF diets L-Val + Fat + WD'!F$353/100)*'DDGS Calculator'!$G$8-'GF diets L-Val + Fat + WD'!F$266))))))))) -> -0.2193232673 | H68: =IF(AND($G$5="No",$G$6="No",$G$7="No"),((('GF diets No L-Val'!N$351-'GF diets No L-Val'!N$5)*('GF diets No L-Val'!N$353/100)*'DDGS Calculator'!$G$8)-'GF diets No L-Val'!N$266)-(('GF diets No L-Val'!G$351-'GF diets No L-Val'!G$5)*('GF diets No L-Val'!G$353/100)*'DDGS Calculator'!$G$8-'GF diets No L-Val'!G$266), IF(AND($G$5="Yes",$G$6="No",$G$7="No"),(('GF diets No L-Val + Fat'!N$351-'GF diets No L-Val + Fat'!N$5)*('GF diets No L-Val + Fat'!N$353/100)*'DDGS Calculator'!$G$8-'GF diets No L-Val + Fat'!N$266)-(('GF diets No L-Val + Fat'!G$351-'GF diets No L-Val + Fat'!G$5)*('GF diets No L-Val + Fat'!G$353/100)*'DDGS Calculator'!$G$8-'GF diets No L-Val + Fat'!G$266), IF(AND($G$5="No",$G$6="No",$G$7="Yes"),(('GF diets L-Val'!N$351-'GF diets L-Val'!N$5)*('GF diets L-Val'!N$353/100)*'DDGS Calculator'!$G$8-'GF diets L-Val'!N$266)-(('GF diets L-Val'!G$351-'GF diets L-Val'!G$5)*('GF diets L-Val'!G$353/100)*'DDGS Calculator'!$G$8-'GF diets L-Val'!G$266), IF(AND($G$5="Yes",$G$6="No",$G$7="Yes"),(('GF diets L-Val + Fat'!N$351-'GF diets L-Val + Fat'!N$5)*('GF diets L-Val + Fat'!N$353/100)*'DDGS Calculator'!$G$8-'GF diets L-Val + Fat'!N$266)-(('GF diets L-Val + Fat'!G$351-'GF diets L-Val + Fat'!G$5)*('GF diets L-Val + Fat'!G$353/100)*'DDGS Calculator'!$G$8-'GF diets L-Val + Fat'!G$266), IF(AND($G$5="No",$G$6="Yes",$G$7="No"),(('GF diets No L-Val + WD'!N$351-'GF diets No L-Val + WD'!N$5)*('GF diets No L-Val + WD'!N$353/100)*'DDGS Calculator'!$G$8-'GF diets No L-Val + WD'!N$266)-(('GF diets No L-Val + WD'!G$351-'GF diets No L-Val + WD'!G$5)*('GF diets No L-Val + WD'!G$353/100)*'DDGS Calculator'!$G$8-'GF diets No L-Val + WD'!G$266), IF(AND($G$5="Yes",$G$6="Yes",$G$7="No"),(('GF diets No L-Val + Fat + WD'!N$351-'GF diets No L-Val + Fat + WD'!N$5)*('GF diets No L-Val + Fat + WD'!N$353/100)*'DDGS Calculator'!$G$8-'GF diets No L-Val + Fat + WD'!N$266)-(('GF diets No L-Val + Fat + WD'!G$351-'GF diets No L-Val + Fat + WD'!G$5)*('GF diets No L-Val + Fat + WD'!G$353/100)*'DDGS Calculator'!$G$8-'GF diets No L-Val + Fat + WD'!G$266), IF(AND($G$5="No",$G$6="Yes",$G$7="Yes"),(('GF diets L-Val + WD'!N$351-'GF diets L-Val + WD'!N$5)*('GF diets L-Val + WD'!N$353/100)*'DDGS Calculator'!$G$8-'GF diets L-Val + WD'!N$266)-(('GF diets L-Val + WD'!G$351-'GF diets L-Val + WD'!G$5)*('GF diets L-Val + WD'!G$353/100)*'DDGS Calculator'!$G$8-'GF diets L-Val + WD'!G$266), IF(AND($G$5="Yes",$G$6="Yes",$G$7="Yes"),(('GF diets L-Val + Fat + WD'!N$351-'GF diets L-Val + Fat + WD'!N$5)*('GF diets L-Val + Fat + WD'!N$353/100)*'DDGS Calculator'!$G$8-'GF diets L-Val + Fat + WD'!N$266)-(('GF diets L-Val + Fat + WD'!G$351-'GF diets L-Val + Fat + WD'!G$5)*('GF diets L-Val + Fat + WD'!G$353/100)*'DDGS Calculator'!$G$8-'GF diets L-Val + Fat + WD'!G$266))))))))) -> -0.303415845 | I68: =SUM(C68:H68) -> -1.187318587
A69: 0.1 | B69: 10% DDGS | C69: =IF(AND($G$5="No",$G$6="No",$G$7="No"),((('GF diets No L-Val'!P$351-'GF diets No L-Val'!P$5)*('GF diets No L-Val'!P$353/100)*'DDGS Calculator'!$G$8)-'GF diets No L-Val'!P$266)-(('GF diets No L-Val'!B$351-'GF diets No L-Val'!B$5)*('GF diets No L-Val'!B$353/100)*'DDGS Calculator'!$G$8-'GF diets No L-Val'!B$266), IF(AND($G$5="Yes",$G$6="No",$G$7="No"),(('GF diets No L-Val + Fat'!P$351-'GF diets No L-Val + Fat'!P$5)*('GF diets No L-Val + Fat'!P$353/100)*'DDGS Calculator'!$G$8-'GF diets No L-Val + Fat'!P$266)-(('GF diets No L-Val + Fat'!B$351-'GF diets No L-Val + Fat'!B$5)*('GF diets No L-Val + Fat'!B$353/100)*'DDGS Calculator'!$G$8-'GF diets No L-Val + Fat'!B$266), IF(AND($G$5="No",$G$6="No",$G$7="Yes"),(('GF diets L-Val'!P$351-'GF diets L-Val'!P$5)*('GF diets L-Val'!P$353/100)*'DDGS Calculator'!$G$8-'GF diets L-Val'!P$266)-(('GF diets L-Val'!B$351-'GF diets L-Val'!B$5)*('GF diets L-Val'!B$353/100)*'DDGS Calculator'!$G$8-'GF diets L-Val'!B$266), IF(AND($G$5="Yes",$G$6="No",$G$7="Yes"),(('GF diets L-Val + Fat'!P$351-'GF diets L-Val + Fat'!P$5)*('GF diets L-Val + Fat'!P$353/100)*'DDGS Calculator'!$G$8-'GF diets L-Val + Fat'!P$266)-(('GF diets L-Val + Fat'!B$351-'GF diets L-Val + Fat'!B$5)*('GF diets L-Val + Fat'!B$353/100)*'DDGS Calculator'!$G$8-'GF diets L-Val + Fat'!B$266), IF(AND($G$5="No",$G$6="Yes",$G$7="No"),(('GF diets No L-Val + WD'!P$351-'GF diets No L-Val + WD'!P$5)*('GF diets No L-Val + WD'!P$353/100)*'DDGS Calculator'!$G$8-'GF diets No L-Val + WD'!P$266)-(('GF diets No L-Val + WD'!B$351-'GF diets No L-Val + WD'!B$5)*('GF diets No L-Val + WD'!B$353/100)*'DDGS Calculator'!$G$8-'GF diets No L-Val + WD'!B$266), IF(AND($G$5="Yes",$G$6="Yes",$G$7="No"),(('GF diets No L-Val + Fat + WD'!P$351-'GF diets No L-Val + Fat + WD'!P$5)*('GF diets No L-Val + Fat + WD'!P$353/100)*'DDGS Calculator'!$G$8-'GF diets No L-Val + Fat + WD'!P$266)-(('GF diets No L-Val + Fat + WD'!B$351-'GF diets No L-Val + Fat + WD'!B$5)*('GF diets No L-Val + Fat + WD'!B$353/100)*'DDGS Calculator'!$G$8-'GF diets No L-Val + Fat + WD'!B$266), IF(AND($G$5="No",$G$6="Yes",$G$7="Yes"),(('GF diets L-Val + WD'!P$351-'GF diets L-Val + WD'!P$5)*('GF diets L-Val + WD'!P$353/100)*'DDGS Calculator'!$G$8-'GF diets L-Val + WD'!P$266)-(('GF diets L-Val + WD'!B$351-'GF diets L-Val + WD'!B$5)*('GF diets L-Val + WD'!B$353/100)*'DDGS Calculator'!$G$8-'GF diets L-Val + WD'!B$266), IF(AND($G$5="Yes",$G$6="Yes",$G$7="Yes"),(('GF diets L-Val + Fat + WD'!P$351-'GF diets L-Val + Fat + WD'!P$5)*('GF diets L-Val + Fat + WD'!P$353/100)*'DDGS Calculator'!$G$8-'GF diets L-Val + Fat + WD'!P$266)-(('GF diets L-Val + Fat + WD'!B$351-'GF diets L-Val + Fat + WD'!B$5)*('GF diets L-Val + Fat + WD'!B$353/100)*'DDGS Calculator'!$G$8-'GF diets L-Val + Fat + WD'!B$266))))))))) -> -0.2990231499 | D69: =IF(AND($G$5="No",$G$6="No",$G$7="No"),((('GF diets No L-Val'!Q$351-'GF diets No L-Val'!Q$5)*('GF diets No L-Val'!Q$353/100)*'DDGS Calculator'!$G$8)-'GF diets No L-Val'!Q$266)-(('GF diets No L-Val'!C$351-'GF diets No L-Val'!C$5)*('GF diets No L-Val'!C$353/100)*'DDGS Calculator'!$G$8-'GF diets No L-Val'!C$266), IF(AND($G$5="Yes",$G$6="No",$G$7="No"),(('GF diets No L-Val + Fat'!Q$351-'GF diets No L-Val + Fat'!Q$5)*('GF diets No L-Val + Fat'!Q$353/100)*'DDGS Calculator'!$G$8-'GF diets No L-Val + Fat'!Q$266)-(('GF diets No L-Val + Fat'!C$351-'GF diets No L-Val + Fat'!C$5)*('GF diets No L-Val + Fat'!C$353/100)*'DDGS Calculator'!$G$8-'GF diets No L-Val + Fat'!C$266), IF(AND($G$5="No",$G$6="No",$G$7="Yes"),(('GF diets L-Val'!Q$351-'GF diets L-Val'!Q$5)*('GF diets L-Val'!Q$353/100)*'DDGS Calculator'!$G$8-'GF diets L-Val'!Q$266)-(('GF diets L-Val'!C$351-'GF diets L-Val'!C$5)*('GF diets L-Val'!C$353/100)*'DDGS Calculator'!$G$8-'GF diets L-Val'!C$266), IF(AND($G$5="Yes",$G$6="No",$G$7="Yes"),(('GF diets L-Val + Fat'!Q$351-'GF diets L-Val + Fat'!Q$5)*('GF diets L-Val + Fat'!Q$353/100)*'DDGS Calculator'!$G$8-'GF diets L-Val + Fat'!Q$266)-(('GF diets L-Val + Fat'!C$351-'GF diets L-Val + Fat'!C$5)*('GF diets L-Val + Fat'!C$353/100)*'DDGS Calculator'!$G$8-'GF diets L-Val + Fat'!C$266), IF(AND($G$5="No",$G$6="Yes",$G$7="No"),(('GF diets No L-Val + WD'!Q$351-'GF diets No L-Val + WD'!Q$5)*('GF diets No L-Val + WD'!Q$353/100)*'DDGS Calculator'!$G$8-'GF diets No L-Val + WD'!Q$266)-(('GF diets No L-Val + WD'!C$351-'GF diets No L-Val + WD'!C$5)*('GF diets No L-Val + WD'!C$353/100)*'DDGS Calculator'!$G$8-'GF diets No L-Val + WD'!C$266), IF(AND($G$5="Yes",$G$6="Yes",$G$7="No"),(('GF diets No L-Val + Fat + WD'!Q$351-'GF diets No L-Val + Fat + WD'!Q$5)*('GF diets No L-Val + Fat + WD'!Q$353/100)*'DDGS Calculator'!$G$8-'GF diets No L-Val + Fat + WD'!Q$266)-(('GF diets No L-Val + Fat + WD'!C$351-'GF diets No L-Val + Fat + WD'!C$5)*('GF diets No L-Val + Fat + WD'!C$353/100)*'DDGS Calculator'!$G$8-'GF diets No L-Val + Fat + WD'!C$266), IF(AND($G$5="No",$G$6="Yes",$G$7="Yes"),(('GF diets L-Val + WD'!Q$351-'GF diets L-Val + WD'!Q$5)*('GF diets L-Val + WD'!Q$353/100)*'DDGS Calculator'!$G$8-'GF diets L-Val + WD'!Q$266)-(('GF diets L-Val + WD'!C$351-'GF diets L-Val + WD'!C$5)*('GF diets L-Val + WD'!C$353/100)*'DDGS Calculator'!$G$8-'GF diets L-Val + WD'!C$266), IF(AND($G$5="Yes",$G$6="Yes",$G$7="Yes"),(('GF diets L-Val + Fat + WD'!Q$351-'GF diets L-Val + Fat + WD'!Q$5)*('GF diets L-Val + Fat + WD'!Q$353/100)*'DDGS Calculator'!$G$8-'GF diets L-Val + Fat + WD'!Q$266)-(('GF diets L-Val + Fat + WD'!C$351-'GF diets L-Val + Fat + WD'!C$5)*('GF diets L-Val + Fat + WD'!C$353/100)*'DDGS Calculator'!$G$8-'GF diets L-Val + Fat + WD'!C$266))))))))) -> -0.2861260412 | E69: =IF(AND($G$5="No",$G$6="No",$G$7="No"),((('GF diets No L-Val'!R$351-'GF diets No L-Val'!R$5)*('GF diets No L-Val'!R$353/100)*'DDGS Calculator'!$G$8)-'GF diets No L-Val'!R$266)-(('GF diets No L-Val'!D$351-'GF diets No L-Val'!D$5)*('GF diets No L-Val'!D$353/100)*'DDGS Calculator'!$G$8-'GF diets No L-Val'!D$266), IF(AND($G$5="Yes",$G$6="No",$G$7="No"),(('GF diets No L-Val + Fat'!R$351-'GF diets No L-Val + Fat'!R$5)*('GF diets No L-Val + Fat'!R$353/100)*'DDGS Calculator'!$G$8-'GF diets No L-Val + Fat'!R$266)-(('GF diets No L-Val + Fat'!D$351-'GF diets No L-Val + Fat'!D$5)*('GF diets No L-Val + Fat'!D$353/100)*'DDGS Calculator'!$G$8-'GF diets No L-Val + Fat'!D$266), IF(AND($G$5="No",$G$6="No",$G$7="Yes"),(('GF diets L-Val'!R$351-'GF diets L-Val'!R$5)*('GF diets L-Val'!R$353/100)*'DDGS Calculator'!$G$8-'GF diets L-Val'!R$266)-(('GF diets L-Val'!D$351-'GF diets L-Val'!D$5)*('GF diets L-Val'!D$353/100)*'DDGS Calculator'!$G$8-'GF diets L-Val'!D$266), IF(AND($G$5="Yes",$G$6="No",$G$7="Yes"),(('GF diets L-Val + Fat'!R$351-'GF diets L-Val + Fat'!R$5)*('GF diets L-Val + Fat'!R$353/100)*'DDGS Calculator'!$G$8-'GF diets L-Val + Fat'!R$266)-(('GF diets L-Val + Fat'!D$351-'GF diets L-Val + Fat'!D$5)*('GF diets L-Val + Fat'!D$353/100)*'DDGS Calculator'!$G$8-'GF diets L-Val + Fat'!D$266), IF(AND($G$5="No",$G$6="Yes",$G$7="No"),(('GF diets No L-Val + WD'!R$351-'GF diets No L-Val + WD'!R$5)*('GF diets No L-Val + WD'!R$353/100)*'DDGS Calculator'!$G$8-'GF diets No L-Val + WD'!R$266)-(('GF diets No L-Val + WD'!D$351-'GF diets No L-Val + WD'!D$5)*('GF diets No L-Val + WD'!D$353/100)*'DDGS Calculator'!$G$8-'GF diets No L-Val + WD'!D$266), IF(AND($G$5="Yes",$G$6="Yes",$G$7="No"),(('GF diets No L-Val + Fat + WD'!R$351-'GF diets No L-Val + Fat + WD'!R$5)*('GF diets No L-Val + Fat + WD'!R$353/100)*'DDGS Calculator'!$G$8-'GF diets No L-Val + Fat + WD'!R$266)-(('GF diets No L-Val + Fat + WD'!D$351-'GF diets No L-Val + Fat + WD'!D$5)*('GF diets No L-Val + Fat + WD'!D$353/100)*'DDGS Calculator'!$G$8-'GF diets No L-Val + Fat + WD'!D$266), IF(AND($G$5="No",$G$6="Yes",$G$7="Yes"),(('GF diets L-Val + WD'!R$351-'GF diets L-Val + WD'!R$5)*('GF diets L-Val + WD'!R$353/100)*'DDGS Calculator'!$G$8-'GF diets L-Val + WD'!R$266)-(('GF diets L-Val + WD'!D$351-'GF diets L-Val + WD'!D$5)*('GF diets L-Val + WD'!D$353/100)*'DDGS Calculator'!$G$8-'GF diets L-Val + WD'!D$266), IF(AND($G$5="Yes",$G$6="Yes",$G$7="Yes"),(('GF diets L-Val + Fat + WD'!R$351-'GF diets L-Val + Fat + WD'!R$5)*('GF diets L-Val + Fat + WD'!R$353/100)*'DDGS Calculator'!$G$8-'GF diets L-Val + Fat + WD'!R$266)-(('GF diets L-Val + Fat + WD'!D$351-'GF diets L-Val + Fat + WD'!D$5)*('GF diets L-Val + Fat + WD'!D$353/100)*'DDGS Calculator'!$G$8-'GF diets L-Val + Fat + WD'!D$266))))))))) -> -0.3373646484 | F69: =IF(AND($G$5="No",$G$6="No",$G$7="No"),((('GF diets No L-Val'!S$351-'GF diets No L-Val'!S$5)*('GF diets No L-Val'!S$353/100)*'DDGS Calculator'!$G$8)-'GF diets No L-Val'!S$266)-(('GF diets No L-Val'!E$351-'GF diets No L-Val'!E$5)*('GF diets No L-Val'!E$353/100)*'DDGS Calculator'!$G$8-'GF diets No L-Val'!E$266), IF(AND($G$5="Yes",$G$6="No",$G$7="No"),(('GF diets No L-Val + Fat'!S$351-'GF diets No L-Val + Fat'!S$5)*('GF diets No L-Val + Fat'!S$353/100)*'DDGS Calculator'!$G$8-'GF diets No L-Val + Fat'!S$266)-(('GF diets No L-Val + Fat'!E$351-'GF diets No L-Val + Fat'!E$5)*('GF diets No L-Val + Fat'!E$353/100)*'DDGS Calculator'!$G$8-'GF diets No L-Val + Fat'!E$266), IF(AND($G$5="No",$G$6="No",$G$7="Yes"),(('GF diets L-Val'!S$351-'GF diets L-Val'!S$5)*('GF diets L-Val'!S$353/100)*'DDGS Calculator'!$G$8-'GF diets L-Val'!S$266)-(('GF diets L-Val'!E$351-'GF diets L-Val'!E$5)*('GF diets L-Val'!E$353/100)*'DDGS Calculator'!$G$8-'GF diets L-Val'!E$266), IF(AND($G$5="Yes",$G$6="No",$G$7="Yes"),(('GF diets L-Val + Fat'!S$351-'GF diets L-Val + Fat'!S$5)*('GF diets L-Val + Fat'!S$353/100)*'DDGS Calculator'!$G$8-'GF diets L-Val + Fat'!S$266)-(('GF diets L-Val + Fat'!E$351-'GF diets L-Val + Fat'!E$5)*('GF diets L-Val + Fat'!E$353/100)*'DDGS Calculator'!$G$8-'GF diets L-Val + Fat'!E$266), IF(AND($G$5="No",$G$6="Yes",$G$7="No"),(('GF diets No L-Val + WD'!S$351-'GF diets No L-Val + WD'!S$5)*('GF diets No L-Val + WD'!S$353/100)*'DDGS Calculator'!$G$8-'GF diets No L-Val + WD'!S$266)-(('GF diets No L-Val + WD'!E$351-'GF diets No L-Val + WD'!E$5)*('GF diets No L-Val + WD'!E$353/100)*'DDGS Calculator'!$G$8-'GF diets No L-Val + WD'!E$266), IF(AND($G$5="Yes",$G$6="Yes",$G$7="No"),(('GF diets No L-Val + Fat + WD'!S$351-'GF diets No L-Val + Fat + WD'!S$5)*('GF diets No L-Val + Fat + WD'!S$353/100)*'DDGS Calculator'!$G$8-'GF diets No L-Val + Fat + WD'!S$266)-(('GF diets No L-Val + Fat + WD'!E$351-'GF diets No L-Val + Fat + WD'!E$5)*('GF diets No L-Val + Fat + WD'!E$353/100)*'DDGS Calculator'!$G$8-'GF diets No L-Val + Fat + WD'!E$266), IF(AND($G$5="No",$G$6="Yes",$G$7="Yes"),(('GF diets L-Val + WD'!S$351-'GF diets L-Val + WD'!S$5)*('GF diets L-Val + WD'!S$353/100)*'DDGS Calculator'!$G$8-'GF diets L-Val + WD'!S$266)-(('GF diets L-Val + WD'!E$351-'GF diets L-Val + WD'!E$5)*('GF diets L-Val + WD'!E$353/100)*'DDGS Calculator'!$G$8-'GF diets L-Val + WD'!E$266), IF(AND($G$5="Yes",$G$6="Yes",$G$7="Yes"),(('GF diets L-Val + Fat + WD'!S$351-'GF diets L-Val + Fat + WD'!S$5)*('GF diets L-Val + Fat + WD'!S$353/100)*'DDGS Calculator'!$G$8-'GF diets L-Val + Fat + WD'!S$266)-(('GF diets L-Val + Fat + WD'!E$351-'GF diets L-Val + Fat + WD'!E$5)*('GF diets L-Val + Fat + WD'!E$353/100)*'DDGS Calculator'!$G$8-'GF diets L-Val + Fat + WD'!E$266))))))))) -> -0.3710141908 | G69: =IF(AND($G$5="No",$G$6="No",$G$7="No"),((('GF diets No L-Val'!T$351-'GF diets No L-Val'!T$5)*('GF diets No L-Val'!T$353/100)*'DDGS Calculator'!$G$8)-'GF diets No L-Val'!T$266)-(('GF diets No L-Val'!F$351-'GF diets No L-Val'!F$5)*('GF diets No L-Val'!F$353/100)*'DDGS Calculator'!$G$8-'GF diets No L-Val'!F$266), IF(AND($G$5="Yes",$G$6="No",$G$7="No"),(('GF diets No L-Val + Fat'!T$351-'GF diets No L-Val + Fat'!T$5)*('GF diets No L-Val + Fat'!T$353/100)*'DDGS Calculator'!$G$8-'GF diets No L-Val + Fat'!T$266)-(('GF diets No L-Val + Fat'!F$351-'GF diets No L-Val + Fat'!F$5)*('GF diets No L-Val + Fat'!F$353/100)*'DDGS Calculator'!$G$8-'GF diets No L-Val + Fat'!F$266), IF(AND($G$5="No",$G$6="No",$G$7="Yes"),(('GF diets L-Val'!T$351-'GF diets L-Val'!T$5)*('GF diets L-Val'!T$353/100)*'DDGS Calculator'!$G$8-'GF diets L-Val'!T$266)-(('GF diets L-Val'!F$351-'GF diets L-Val'!F$5)*('GF diets L-Val'!F$353/100)*'DDGS Calculator'!$G$8-'GF diets L-Val'!F$266), IF(AND($G$5="Yes",$G$6="No",$G$7="Yes"),(('GF diets L-Val + Fat'!T$351-'GF diets L-Val + Fat'!T$5)*('GF diets L-Val + Fat'!T$353/100)*'DDGS Calculator'!$G$8-'GF diets L-Val + Fat'!T$266)-(('GF diets L-Val + Fat'!F$351-'GF diets L-Val + Fat'!F$5)*('GF diets L-Val + Fat'!F$353/100)*'DDGS Calculator'!$G$8-'GF diets L-Val + Fat'!F$266), IF(AND($G$5="No",$G$6="Yes",$G$7="No"),(('GF diets No L-Val + WD'!T$351-'GF diets No L-Val + WD'!T$5)*('GF diets No L-Val + WD'!T$353/100)*'DDGS Calculator'!$G$8-'GF diets No L-Val + WD'!T$266)-(('GF diets No L-Val + WD'!F$351-'GF diets No L-Val + WD'!F$5)*('GF diets No L-Val + WD'!F$353/100)*'DDGS Calculator'!$G$8-'GF diets No L-Val + WD'!F$266), IF(AND($G$5="Yes",$G$6="Yes",$G$7="No"),(('GF diets No L-Val + Fat + WD'!T$351-'GF diets No L-Val + Fat + WD'!T$5)*('GF diets No L-Val + Fat + WD'!T$353/100)*'DDGS Calculator'!$G$8-'GF diets No L-Val + Fat + WD'!T$266)-(('GF diets No L-Val + Fat + WD'!F$351-'GF diets No L-Val + Fat + WD'!F$5)*('GF diets No L-Val + Fat + WD'!F$353/100)*'DDGS Calculator'!$G$8-'GF diets No L-Val + Fat + WD'!F$266), IF(AND($G$5="No",$G$6="Yes",$G$7="Yes"),(('GF diets L-Val + WD'!T$351-'GF diets L-Val + WD'!T$5)*('GF diets L-Val + WD'!T$353/100)*'DDGS Calculator'!$G$8-'GF diets L-Val + WD'!T$266)-(('GF diets L-Val + WD'!F$351-'GF diets L-Val + WD'!F$5)*('GF diets L-Val + WD'!F$353/100)*'DDGS Calculator'!$G$8-'GF diets L-Val + WD'!F$266), IF(AND($G$5="Yes",$G$6="Yes",$G$7="Yes"),(('GF diets L-Val + Fat + WD'!T$351-'GF diets L-Val + Fat + WD'!T$5)*('GF diets L-Val + Fat + WD'!T$353/100)*'DDGS Calculator'!$G$8-'GF diets L-Val + Fat + WD'!T$266)-(('GF diets L-Val + Fat + WD'!F$351-'GF diets L-Val + Fat + WD'!F$5)*('GF diets L-Val + Fat + WD'!F$353/100)*'DDGS Calculator'!$G$8-'GF diets L-Val + Fat + WD'!F$266))))))))) -> -0.4490926022 | H69: =IF(AND($G$5="No",$G$6="No",$G$7="No"),((('GF diets No L-Val'!U$351-'GF diets No L-Val'!U$5)*('GF diets No L-Val'!U$353/100)*'DDGS Calculator'!$G$8)-'GF diets No L-Val'!U$266)-(('GF diets No L-Val'!G$351-'GF diets No L-Val'!G$5)*('GF diets No L-Val'!G$353/100)*'DDGS Calculator'!$G$8-'GF diets No L-Val'!G$266), IF(AND($G$5="Yes",$G$6="No",$G$7="No"),(('GF diets No L-Val + Fat'!U$351-'GF diets No L-Val + Fat'!U$5)*('GF diets No L-Val + Fat'!U$353/100)*'DDGS Calculator'!$G$8-'GF diets No L-Val + Fat'!U$266)-(('GF diets No L-Val + Fat'!G$351-'GF diets No L-Val + Fat'!G$5)*('GF diets No L-Val + Fat'!G$353/100)*'DDGS Calculator'!$G$8-'GF diets No L-Val + Fat'!G$266), IF(AND($G$5="No",$G$6="No",$G$7="Yes"),(('GF diets L-Val'!U$351-'GF diets L-Val'!U$5)*('GF diets L-Val'!U$353/100)*'DDGS Calculator'!$G$8-'GF diets L-Val'!U$266)-(('GF diets L-Val'!G$351-'GF diets L-Val'!G$5)*('GF diets L-Val'!G$353/100)*'DDGS Calculator'!$G$8-'GF diets L-Val'!G$266), IF(AND($G$5="Yes",$G$6="No",$G$7="Yes"),(('GF diets L-Val + Fat'!U$351-'GF diets L-Val + Fat'!U$5)*('GF diets L-Val + Fat'!U$353/100)*'DDGS Calculator'!$G$8-'GF diets L-Val + Fat'!U$266)-(('GF diets L-Val + Fat'!G$351-'GF diets L-Val + Fat'!G$5)*('GF diets L-Val + Fat'!G$353/100)*'DDGS Calculator'!$G$8-'GF diets L-Val + Fat'!G$266), IF(AND($G$5="No",$G$6="Yes",$G$7="No"),(('GF diets No L-Val + WD'!U$351-'GF diets No L-Val + WD'!U$5)*('GF diets No L-Val + WD'!U$353/100)*'DDGS Calculator'!$G$8-'GF diets No L-Val + WD'!U$266)-(('GF diets No L-Val + WD'!G$351-'GF diets No L-Val + WD'!G$5)*('GF diets No L-Val + WD'!G$353/100)*'DDGS Calculator'!$G$8-'GF diets No L-Val + WD'!G$266), IF(AND($G$5="Yes",$G$6="Yes",$G$7="No"),(('GF diets No L-Val + Fat + WD'!U$351-'GF diets No L-Val + Fat + WD'!U$5)*('GF diets No L-Val + Fat + WD'!U$353/100)*'DDGS Calculator'!$G$8-'GF diets No L-Val + Fat + WD'!U$266)-(('GF diets No L-Val + Fat + WD'!G$351-'GF diets No L-Val + Fat + WD'!G$5)*('GF diets No L-Val + Fat + WD'!G$353/100)*'DDGS Calculator'!$G$8-'GF diets No L-Val + Fat + WD'!G$266), IF(AND($G$5="No",$G$6="Yes",$G$7="Yes"),(('GF diets L-Val + WD'!U$351-'GF diets L-Val + WD'!U$5)*('GF diets L-Val + WD'!U$353/100)*'DDGS Calculator'!$G$8-'GF diets L-Val + WD'!U$266)-(('GF diets L-Val + WD'!G$351-'GF diets L-Val + WD'!G$5)*('GF diets L-Val + WD'!G$353/100)*'DDGS Calculator'!$G$8-'GF diets L-Val + WD'!G$266), IF(AND($G$5="Yes",$G$6="Yes",$G$7="Yes"),(('GF diets L-Val + Fat + WD'!U$351-'GF diets L-Val + Fat + WD'!U$5)*('GF diets L-Val + Fat + WD'!U$353/100)*'DDGS Calculator'!$G$8-'GF diets L-Val + Fat + WD'!U$266)-(('GF diets L-Val + Fat + WD'!G$351-'GF diets L-Val + Fat + WD'!G$5)*('GF diets L-Val + Fat + WD'!G$353/100)*'DDGS Calculator'!$G$8-'GF diets L-Val + Fat + WD'!G$266))))))))) -> -0.6293830616 | I69: -2.372003694 | J69: =I69-I68 -> -1.184685107
A70: 0.15 | B70: 15% DDGS | C70: =IF(AND($G$5="No",$G$6="No",$G$7="No"),((('GF diets No L-Val'!W$351-'GF diets No L-Val'!W$5)*('GF diets No L-Val'!W$353/100)*'DDGS Calculator'!$G$8)-'GF diets No L-Val'!W$266)- ((('GF diets No L-Val'!B$351-'GF diets No L-Val'!B$5)*('GF diets No L-Val'!B$353/100)*'DDGS Calculator'!$G$8)-'GF diets No L-Val'!B$266), IF(AND($G$5="Yes",$G$6="No",$G$7="No"),((('GF diets No L-Val + Fat'!W$351-'GF diets No L-Val + Fat'!W$5)*('GF diets No L-Val + Fat'!W$353/100)*'DDGS Calculator'!$G$8)-'GF diets No L-Val + Fat'!W$266)- ((('GF diets No L-Val + Fat'!B$351-'GF diets No L-Val + Fat'!B$5)*('GF diets No L-Val + Fat'!B$353/100)*'DDGS Calculator'!$G$8)-'GF diets No L-Val + Fat'!B$266), IF(AND($G$5="No",$G$6="No",$G$7="Yes"),((('GF diets L-Val'!W$351-'GF diets L-Val'!W$5)*('GF diets L-Val'!W$353/100)*'DDGS Calculator'!$G$8)-'GF diets L-Val'!W$266)- ((('GF diets L-Val'!B$351-'GF diets L-Val'!B$5)*('GF diets L-Val'!B$353/100)*'DDGS Calculator'!$G$8)-'GF diets L-Val'!B$266), IF(AND($G$5="Yes",$G$6="No",$G$7="Yes"),((('GF diets L-Val + Fat'!W$351-'GF diets L-Val + Fat'!W$5)*('GF diets L-Val + Fat'!W$353/100)*'DDGS Calculator'!$G$8)-'GF diets L-Val + Fat'!W$266)- ((('GF diets L-Val + Fat'!B$351-'GF diets L-Val + Fat'!B$5)*('GF diets L-Val + Fat'!B$353/100)*'DDGS Calculator'!$G$8)-'GF diets L-Val + Fat'!B$266), IF(AND($G$5="No",$G$6="Yes",$G$7="No"),((('GF diets No L-Val + WD'!W$351-'GF diets No L-Val + WD'!W$5)*('GF diets No L-Val + WD'!W$353/100)*'DDGS Calculator'!$G$8)-'GF diets No L-Val + WD'!W$266)- ((('GF diets No L-Val + WD'!B$351-'GF diets No L-Val + WD'!B$5)*('GF diets No L-Val + WD'!B$353/100)*'DDGS Calculator'!$G$8)-'GF diets No L-Val + WD'!B$266), IF(AND($G$5="Yes",$G$6="Yes",$G$7="No"),((('GF diets No L-Val + Fat + WD'!W$351-'GF diets No L-Val + Fat + WD'!W$5)*('GF diets No L-Val + Fat + WD'!W$353/100)*'DDGS Calculator'!$G$8)-'GF diets No L-Val + Fat + WD'!W$266)- ((('GF diets No L-Val + Fat + WD'!B$351-'GF diets No L-Val + Fat + WD'!B$5)*('GF diets No L-Val + Fat + WD'!B$353/100)*'DDGS Calculator'!$G$8)-'GF diets No L-Val + Fat + WD'!B$266), IF(AND($G$5="No",$G$6="Yes",$G$7="Yes"),((('GF diets L-Val + WD'!W$351-'GF diets L-Val + WD'!W$5)*('GF diets L-Val + WD'!W$353/100)*'DDGS Calculator'!$G$8)-'GF diets L-Val + WD'!W$266)- ((('GF diets L-Val + WD'!B$351-'GF diets L-Val + WD'!B$5)*('GF diets L-Val + WD'!B$353/100)*'DDGS Calculator'!$G$8)-'GF diets L-Val + WD'!B$266), IF(AND($G$5="Yes",$G$6="Yes",$G$7="Yes"),((('GF diets L-Val + Fat + WD'!W$351-'GF diets L-Val + Fat + WD'!W$5)*('GF diets L-Val + Fat + WD'!W$353/100)*'DDGS Calculator'!$G$8)-'GF diets L-Val + Fat + WD'!W$266)- ((('GF diets L-Val + Fat + WD'!B$351-'GF diets L-Val + Fat + WD'!B$5)*('GF diets L-Val + Fat + WD'!B$353/100)*'DDGS Calculator'!$G$8)-'GF diets L-Val + Fat + WD'!B$266) )))))))) -> -0.4269604148 | D70: =IF(AND($G$5="No",$G$6="No",$G$7="No"),((('GF diets No L-Val'!X$351-'GF diets No L-Val'!X$5)*('GF diets No L-Val'!X$353/100)*'DDGS Calculator'!$G$8)-'GF diets No L-Val'!X$266)- ((('GF diets No L-Val'!C$351-'GF diets No L-Val'!C$5)*('GF diets No L-Val'!C$353/100)*'DDGS Calculator'!$G$8)-'GF diets No L-Val'!C$266), IF(AND($G$5="Yes",$G$6="No",$G$7="No"),((('GF diets No L-Val + Fat'!X$351-'GF diets No L-Val + Fat'!X$5)*('GF diets No L-Val + Fat'!X$353/100)*'DDGS Calculator'!$G$8)-'GF diets No L-Val + Fat'!X$266)- ((('GF diets No L-Val + Fat'!C$351-'GF diets No L-Val + Fat'!C$5)*('GF diets No L-Val + Fat'!C$353/100)*'DDGS Calculator'!$G$8)-'GF diets No L-Val + Fat'!C$266), IF(AND($G$5="No",$G$6="No",$G$7="Yes"),((('GF diets L-Val'!X$351-'GF diets L-Val'!X$5)*('GF diets L-Val'!X$353/100)*'DDGS Calculator'!$G$8)-'GF diets L-Val'!X$266)- ((('GF diets L-Val'!C$351-'GF diets L-Val'!C$5)*('GF diets L-Val'!C$353/100)*'DDGS Calculator'!$G$8)-'GF diets L-Val'!C$266), IF(AND($G$5="Yes",$G$6="No",$G$7="Yes"),((('GF diets L-Val + Fat'!X$351-'GF diets L-Val + Fat'!X$5)*('GF diets L-Val + Fat'!X$353/100)*'DDGS Calculator'!$G$8)-'GF diets L-Val + Fat'!X$266)- ((('GF diets L-Val + Fat'!C$351-'GF diets L-Val + Fat'!C$5)*('GF diets L-Val + Fat'!C$353/100)*'DDGS Calculator'!$G$8)-'GF diets L-Val + Fat'!C$266), IF(AND($G$5="No",$G$6="Yes",$G$7="No"),((('GF diets No L-Val + WD'!X$351-'GF diets No L-Val + WD'!X$5)*('GF diets No L-Val + WD'!X$353/100)*'DDGS Calculator'!$G$8)-'GF diets No L-Val + WD'!X$266)- ((('GF diets No L-Val + WD'!C$351-'GF diets No L-Val + WD'!C$5)*('GF diets No L-Val + WD'!C$353/100)*'DDGS Calculator'!$G$8)-'GF diets No L-Val + WD'!C$266), IF(AND($G$5="Yes",$G$6="Yes",$G$7="No"),((('GF diets No L-Val + Fat + WD'!X$351-'GF diets No L-Val + Fat + WD'!X$5)*('GF diets No L-Val + Fat + WD'!X$353/100)*'DDGS Calculator'!$G$8)-'GF diets No L-Val + Fat + WD'!X$266)- ((('GF diets No L-Val + Fat + WD'!C$351-'GF diets No L-Val + Fat + WD'!C$5)*('GF diets No L-Val + Fat + WD'!C$353/100)*'DDGS Calculator'!$G$8)-'GF diets No L-Val + Fat + WD'!C$266), IF(AND($G$5="No",$G$6="Yes",$G$7="Yes"),((('GF diets L-Val + WD'!X$351-'GF diets L-Val + WD'!X$5)*('GF diets L-Val + WD'!X$353/100)*'DDGS Calculator'!$G$8)-'GF diets L-Val + WD'!X$266)- ((('GF diets L-Val + WD'!C$351-'GF diets L-Val + WD'!C$5)*('GF diets L-Val + WD'!C$353/100)*'DDGS Calculator'!$G$8)-'GF diets L-Val + WD'!C$266), IF(AND($G$5="Yes",$G$6="Yes",$G$7="Yes"),((('GF diets L-Val + Fat + WD'!X$351-'GF diets L-Val + Fat + WD'!X$5)*('GF diets L-Val + Fat + WD'!X$353/100)*'DDGS Calculator'!$G$8)-'GF diets L-Val + Fat + WD'!X$266)- ((('GF diets L-Val + Fat + WD'!C$351-'GF diets L-Val + Fat + WD'!C$5)*('GF diets L-Val + Fat + WD'!C$353/100)*'DDGS Calculator'!$G$8)-'GF diets L-Val + Fat + WD'!C$266) )))))))) -> -0.4127461984 | E70: =IF(AND($G$5="No",$G$6="No",$G$7="No"),((('GF diets No L-Val'!Y$351-'GF diets No L-Val'!Y$5)*('GF diets No L-Val'!Y$353/100)*'DDGS Calculator'!$G$8)-'GF diets No L-Val'!Y$266)- ((('GF diets No L-Val'!D$351-'GF diets No L-Val'!D$5)*('GF diets No L-Val'!D$353/100)*'DDGS Calculator'!$G$8)-'GF diets No L-Val'!D$266), IF(AND($G$5="Yes",$G$6="No",$G$7="No"),((('GF diets No L-Val + Fat'!Y$351-'GF diets No L-Val + Fat'!Y$5)*('GF diets No L-Val + Fat'!Y$353/100)*'DDGS Calculator'!$G$8)-'GF diets No L-Val + Fat'!Y$266)- ((('GF diets No L-Val + Fat'!D$351-'GF diets No L-Val + Fat'!D$5)*('GF diets No L-Val + Fat'!D$353/100)*'DDGS Calculator'!$G$8)-'GF diets No L-Val + Fat'!D$266), IF(AND($G$5="No",$G$6="No",$G$7="Yes"),((('GF diets L-Val'!Y$351-'GF diets L-Val'!Y$5)*('GF diets L-Val'!Y$353/100)*'DDGS Calculator'!$G$8)-'GF diets L-Val'!Y$266)- ((('GF diets L-Val'!D$351-'GF diets L-Val'!D$5)*('GF diets L-Val'!D$353/100)*'DDGS Calculator'!$G$8)-'GF diets L-Val'!D$266), IF(AND($G$5="Yes",$G$6="No",$G$7="Yes"),((('GF diets L-Val + Fat'!Y$351-'GF diets L-Val + Fat'!Y$5)*('GF diets L-Val + Fat'!Y$353/100)*'DDGS Calculator'!$G$8)-'GF diets L-Val + Fat'!Y$266)- ((('GF diets L-Val + Fat'!D$351-'GF diets L-Val + Fat'!D$5)*('GF diets L-Val + Fat'!D$353/100)*'DDGS Calculator'!$G$8)-'GF diets L-Val + Fat'!D$266), IF(AND($G$5="No",$G$6="Yes",$G$7="No"),((('GF diets No L-Val + WD'!Y$351-'GF diets No L-Val + WD'!Y$5)*('GF diets No L-Val + WD'!Y$353/100)*'DDGS Calculator'!$G$8)-'GF diets No L-Val + WD'!Y$266)- ((('GF diets No L-Val + WD'!D$351-'GF diets No L-Val + WD'!D$5)*('GF diets No L-Val + WD'!D$353/100)*'DDGS Calculator'!$G$8)-'GF diets No L-Val + WD'!D$266), IF(AND($G$5="Yes",$G$6="Yes",$G$7="No"),((('GF diets No L-Val + Fat + WD'!Y$351-'GF diets No L-Val + Fat + WD'!Y$5)*('GF diets No L-Val + Fat + WD'!Y$353/100)*'DDGS Calculator'!$G$8)-'GF diets No L-Val + Fat + WD'!Y$266)- ((('GF diets No L-Val + Fat + WD'!D$351-'GF diets No L-Val + Fat + WD'!D$5)*('GF diets No L-Val + Fat + WD'!D$353/100)*'DDGS Calculator'!$G$8)-'GF diets No L-Val + Fat + WD'!D$266), IF(AND($G$5="No",$G$6="Yes",$G$7="Yes"),((('GF diets L-Val + WD'!Y$351-'GF diets L-Val + WD'!Y$5)*('GF diets L-Val + WD'!Y$353/100)*'DDGS Calculator'!$G$8)-'GF diets L-Val + WD'!Y$266)- ((('GF diets L-Val + WD'!D$351-'GF diets L-Val + WD'!D$5)*('GF diets L-Val + WD'!D$353/100)*'DDGS Calculator'!$G$8)-'GF diets L-Val + WD'!D$266), IF(AND($G$5="Yes",$G$6="Yes",$G$7="Yes"),((('GF diets L-Val + Fat + WD'!Y$351-'GF diets L-Val + Fat + WD'!Y$5)*('GF diets L-Val + Fat + WD'!Y$353/100)*'DDGS Calculator'!$G$8)-'GF diets L-Val + Fat + WD'!Y$266)- ((('GF diets L-Val + Fat + WD'!D$351-'GF diets L-Val + Fat + WD'!D$5)*('GF diets L-Val + Fat + WD'!D$353/100)*'DDGS Calculator'!$G$8)-'GF diets L-Val + Fat + WD'!D$266) )))))))) -> -0.4942530916 | F70: =IF(AND($G$5="No",$G$6="No",$G$7="No"),((('GF diets No L-Val'!Z$351-'GF diets No L-Val'!Z$5)*('GF diets No L-Val'!Z$353/100)*'DDGS Calculator'!$G$8)-'GF diets No L-Val'!Z$266)- ((('GF diets No L-Val'!E$351-'GF diets No L-Val'!E$5)*('GF diets No L-Val'!E$353/100)*'DDGS Calculator'!$G$8)-'GF diets No L-Val'!E$266), IF(AND($G$5="Yes",$G$6="No",$G$7="No"),((('GF diets No L-Val + Fat'!Z$351-'GF diets No L-Val + Fat'!Z$5)*('GF diets No L-Val + Fat'!Z$353/100)*'DDGS Calculator'!$G$8)-'GF diets No L-Val + Fat'!Z$266)- ((('GF diets No L-Val + Fat'!E$351-'GF diets No L-Val + Fat'!E$5)*('GF diets No L-Val + Fat'!E$353/100)*'DDGS Calculator'!$G$8)-'GF diets No L-Val + Fat'!E$266), IF(AND($G$5="No",$G$6="No",$G$7="Yes"),((('GF diets L-Val'!Z$351-'GF diets L-Val'!Z$5)*('GF diets L-Val'!Z$353/100)*'DDGS Calculator'!$G$8)-'GF diets L-Val'!Z$266)- ((('GF diets L-Val'!E$351-'GF diets L-Val'!E$5)*('GF diets L-Val'!E$353/100)*'DDGS Calculator'!$G$8)-'GF diets L-Val'!E$266), IF(AND($G$5="Yes",$G$6="No",$G$7="Yes"),((('GF diets L-Val + Fat'!Z$351-'GF diets L-Val + Fat'!Z$5)*('GF diets L-Val + Fat'!Z$353/100)*'DDGS Calculator'!$G$8)-'GF diets L-Val + Fat'!Z$266)- ((('GF diets L-Val + Fat'!E$351-'GF diets L-Val + Fat'!E$5)*('GF diets L-Val + Fat'!E$353/100)*'DDGS Calculator'!$G$8)-'GF diets L-Val + Fat'!E$266), IF(AND($G$5="No",$G$6="Yes",$G$7="No"),((('GF diets No L-Val + WD'!Z$351-'GF diets No L-Val + WD'!Z$5)*('GF diets No L-Val + WD'!Z$353/100)*'DDGS Calculator'!$G$8)-'GF diets No L-Val + WD'!Z$266)- ((('GF diets No L-Val + WD'!E$351-'GF diets No L-Val + WD'!E$5)*('GF diets No L-Val + WD'!E$353/100)*'DDGS Calculator'!$G$8)-'GF diets No L-Val + WD'!E$266), IF(AND($G$5="Yes",$G$6="Yes",$G$7="No"),((('GF diets No L-Val + Fat + WD'!Z$351-'GF diets No L-Val + Fat + WD'!Z$5)*('GF diets No L-Val + Fat + WD'!Z$353/100)*'DDGS Calculator'!$G$8)-'GF diets No L-Val + Fat + WD'!Z$266)- ((('GF diets No L-Val + Fat + WD'!E$351-'GF diets No L-Val + Fat + WD'!E$5)*('GF diets No L-Val + Fat + WD'!E$353/100)*'DDGS Calculator'!$G$8)-'GF diets No L-Val + Fat + WD'!E$266), IF(AND($G$5="No",$G$6="Yes",$G$7="Yes"),((('GF diets L-Val + WD'!Z$351-'GF diets L-Val + WD'!Z$5)*('GF diets L-Val + WD'!Z$353/100)*'DDGS Calculator'!$G$8)-'GF diets L-Val + WD'!Z$266)- ((('GF diets L-Val + WD'!E$351-'GF diets L-Val + WD'!E$5)*('GF diets L-Val + WD'!E$353/100)*'DDGS Calculator'!$G$8)-'GF diets L-Val + WD'!E$266), IF(AND($G$5="Yes",$G$6="Yes",$G$7="Yes"),((('GF diets L-Val + Fat + WD'!Z$351-'GF diets L-Val + Fat + WD'!Z$5)*('GF diets L-Val + Fat + WD'!Z$353/100)*'DDGS Calculator'!$G$8)-'GF diets L-Val + Fat + WD'!Z$266)- ((('GF diets L-Val + Fat + WD'!E$351-'GF diets L-Val + Fat + WD'!E$5)*('GF diets L-Val + Fat + WD'!E$353/100)*'DDGS Calculator'!$G$8)-'GF diets L-Val + Fat + WD'!E$266) )))))))) -> -0.5511323371 | G70: =IF(AND($G$5="No",$G$6="No",$G$7="No"),((('GF diets No L-Val'!AA$351-'GF diets No L-Val'!AA$5)*('GF diets No L-Val'!AA$353/100)*'DDGS Calculator'!$G$8)-'GF diets No L-Val'!AA$266)- ((('GF diets No L-Val'!F$351-'GF diets No L-Val'!F$5)*('GF diets No L-Val'!F$353/100)*'DDGS Calculator'!$G$8)-'GF diets No L-Val'!F$266), IF(AND($G$5="Yes",$G$6="No",$G$7="No"),((('GF diets No L-Val + Fat'!AA$351-'GF diets No L-Val + Fat'!AA$5)*('GF diets No L-Val + Fat'!AA$353/100)*'DDGS Calculator'!$G$8)-'GF diets No L-Val + Fat'!AA$266)- ((('GF diets No L-Val + Fat'!F$351-'GF diets No L-Val + Fat'!F$5)*('GF diets No L-Val + Fat'!F$353/100)*'DDGS Calculator'!$G$8)-'GF diets No L-Val + Fat'!F$266), IF(AND($G$5="No",$G$6="No",$G$7="Yes"),((('GF diets L-Val'!AA$351-'GF diets L-Val'!AA$5)*('GF diets L-Val'!AA$353/100)*'DDGS Calculator'!$G$8)-'GF diets L-Val'!AA$266)- ((('GF diets L-Val'!F$351-'GF diets L-Val'!F$5)*('GF diets L-Val'!F$353/100)*'DDGS Calculator'!$G$8)-'GF diets L-Val'!F$266), IF(AND($G$5="Yes",$G$6="No",$G$7="Yes"),((('GF diets L-Val + Fat'!AA$351-'GF diets L-Val + Fat'!AA$5)*('GF diets L-Val + Fat'!AA$353/100)*'DDGS Calculator'!$G$8)-'GF diets L-Val + Fat'!AA$266)- ((('GF diets L-Val + Fat'!F$351-'GF diets L-Val + Fat'!F$5)*('GF diets L-Val + Fat'!F$353/100)*'DDGS Calculator'!$G$8)-'GF diets L-Val + Fat'!F$266), IF(AND($G$5="No",$G$6="Yes",$G$7="No"),((('GF diets No L-Val + WD'!AA$351-'GF diets No L-Val + WD'!AA$5)*('GF diets No L-Val + WD'!AA$353/100)*'DDGS Calculator'!$G$8)-'GF diets No L-Val + WD'!AA$266)- ((('GF diets No L-Val + WD'!F$351-'GF diets No L-Val + WD'!F$5)*('GF diets No L-Val + WD'!F$353/100)*'DDGS Calculator'!$G$8)-'GF diets No L-Val + WD'!F$266), IF(AND($G$5="Yes",$G$6="Yes",$G$7="No"),((('GF diets No L-Val + Fat + WD'!AA$351-'GF diets No L-Val + Fat + WD'!AA$5)*('GF diets No L-Val + Fat + WD'!AA$353/100)*'DDGS Calculator'!$G$8)-'GF diets No L-Val + Fat + WD'!AA$266)- ((('GF diets No L-Val + Fat + WD'!F$351-'GF diets No L-Val + Fat + WD'!F$5)*('GF diets No L-Val + Fat + WD'!F$353/100)*'DDGS Calculator'!$G$8)-'GF diets No L-Val + Fat + WD'!F$266), IF(AND($G$5="No",$G$6="Yes",$G$7="Yes"),((('GF diets L-Val + WD'!AA$351-'GF diets L-Val + WD'!AA$5)*('GF diets L-Val + WD'!AA$353/100)*'DDGS Calculator'!$G$8)-'GF diets L-Val + WD'!AA$266)- ((('GF diets L-Val + WD'!F$351-'GF diets L-Val + WD'!F$5)*('GF diets L-Val + WD'!F$353/100)*'DDGS Calculator'!$G$8)-'GF diets L-Val + WD'!F$266), IF(AND($G$5="Yes",$G$6="Yes",$G$7="Yes"),((('GF diets L-Val + Fat + WD'!AA$351-'GF diets L-Val + Fat + WD'!AA$5)*('GF diets L-Val + Fat + WD'!AA$353/100)*'DDGS Calculator'!$G$8)-'GF diets L-Val + Fat + WD'!AA$266)- ((('GF diets L-Val + Fat + WD'!F$351-'GF diets L-Val + Fat + WD'!F$5)*('GF diets L-Val + Fat + WD'!F$353/100)*'DDGS Calculator'!$G$8)-'GF diets L-Val + Fat + WD'!F$266) )))))))) -> -0.6746868278 | H70: =IF(AND($G$5="No",$G$6="No",$G$7="No"),((('GF diets No L-Val'!AB$351-'GF diets No L-Val'!AB$5)*('GF diets No L-Val'!AB$353/100)*'DDGS Calculator'!$G$8)-'GF diets No L-Val'!AB$266)- ((('GF diets No L-Val'!G$351-'GF diets No L-Val'!G$5)*('GF diets No L-Val'!G$353/100)*'DDGS Calculator'!$G$8)-'GF diets No L-Val'!G$266), IF(AND($G$5="Yes",$G$6="No",$G$7="No"),((('GF diets No L-Val + Fat'!AB$351-'GF diets No L-Val + Fat'!AB$5)*('GF diets No L-Val + Fat'!AB$353/100)*'DDGS Calculator'!$G$8)-'GF diets No L-Val + Fat'!AB$266)- ((('GF diets No L-Val + Fat'!G$351-'GF diets No L-Val + Fat'!G$5)*('GF diets No L-Val + Fat'!G$353/100)*'DDGS Calculator'!$G$8)-'GF diets No L-Val + Fat'!G$266), IF(AND($G$5="No",$G$6="No",$G$7="Yes"),((('GF diets L-Val'!AB$351-'GF diets L-Val'!AB$5)*('GF diets L-Val'!AB$353/100)*'DDGS Calculator'!$G$8)-'GF diets L-Val'!AB$266)- ((('GF diets L-Val'!G$351-'GF diets L-Val'!G$5)*('GF diets L-Val'!G$353/100)*'DDGS Calculator'!$G$8)-'GF diets L-Val'!G$266), IF(AND($G$5="Yes",$G$6="No",$G$7="Yes"),((('GF diets L-Val + Fat'!AB$351-'GF diets L-Val + Fat'!AB$5)*('GF diets L-Val + Fat'!AB$353/100)*'DDGS Calculator'!$G$8)-'GF diets L-Val + Fat'!AB$266)- ((('GF diets L-Val + Fat'!G$351-'GF diets L-Val + Fat'!G$5)*('GF diets L-Val + Fat'!G$353/100)*'DDGS Calculator'!$G$8)-'GF diets L-Val + Fat'!G$266), IF(AND($G$5="No",$G$6="Yes",$G$7="No"),((('GF diets No L-Val + WD'!AB$351-'GF diets No L-Val + WD'!AB$5)*('GF diets No L-Val + WD'!AB$353/100)*'DDGS Calculator'!$G$8)-'GF diets No L-Val + WD'!AB$266)- ((('GF diets No L-Val + WD'!G$351-'GF diets No L-Val + WD'!G$5)*('GF diets No L-Val + WD'!G$353/100)*'DDGS Calculator'!$G$8)-'GF diets No L-Val + WD'!G$266), IF(AND($G$5="Yes",$G$6="Yes",$G$7="No"),((('GF diets No L-Val + Fat + WD'!AB$351-'GF diets No L-Val + Fat + WD'!AB$5)*('GF diets No L-Val + Fat + WD'!AB$353/100)*'DDGS Calculator'!$G$8)-'GF diets No L-Val + Fat + WD'!AB$266)- ((('GF diets No L-Val + Fat + WD'!G$351-'GF diets No L-Val + Fat + WD'!G$5)*('GF diets No L-Val + Fat + WD'!G$353/100)*'DDGS Calculator'!$G$8)-'GF diets No L-Val + Fat + WD'!G$266), IF(AND($G$5="No",$G$6="Yes",$G$7="Yes"),((('GF diets L-Val + WD'!AB$351-'GF diets L-Val + WD'!AB$5)*('GF diets L-Val + WD'!AB$353/100)*'DDGS Calculator'!$G$8)-'GF diets L-Val + WD'!AB$266)- ((('GF diets L-Val + WD'!G$351-'GF diets L-Val + WD'!G$5)*('GF diets L-Val + WD'!G$353/100)*'DDGS Calculator'!$G$8)-'GF diets L-Val + WD'!G$266), IF(AND($G$5="Yes",$G$6="Yes",$G$7="Yes"),((('GF diets L-Val + Fat + WD'!AB$351-'GF diets L-Val + Fat + WD'!AB$5)*('GF diets L-Val + Fat + WD'!AB$353/100)*'DDGS Calculator'!$G$8)-'GF diets L-Val + Fat + WD'!AB$266)- ((('GF diets L-Val + Fat + WD'!G$351-'GF diets L-Val + Fat + WD'!G$5)*('GF diets L-Val + Fat + WD'!G$353/100)*'DDGS Calculator'!$G$8)-'GF diets L-Val + Fat + WD'!G$266) )))))))) -> -0.9557990698 | I70: -3.515577939 | J70: =I70-I69 -> -1.143574245
A71: 0.2 | B71: 20% DDGS | C71: =IF(AND($G$5="No",$G$6="No",$G$7="No"),((('GF diets No L-Val'!AD$351-'GF diets No L-Val'!AD$5)*('GF diets No L-Val'!AD$353/100)*'DDGS Calculator'!$G$8)-'GF diets No L-Val'!AD$266)- ((('GF diets No L-Val'!B$351-'GF diets No L-Val'!B$5)*('GF diets No L-Val'!B$353/100)*'DDGS Calculator'!$G$8)-'GF diets No L-Val'!B$266), IF(AND($G$5="Yes",$G$6="No",$G$7="No"),((('GF diets No L-Val + Fat'!AD$351-'GF diets No L-Val + Fat'!AD$5)*('GF diets No L-Val + Fat'!AD$353/100)*'DDGS Calculator'!$G$8)-'GF diets No L-Val + Fat'!AD$266)- ((('GF diets No L-Val + Fat'!B$351-'GF diets No L-Val + Fat'!B$5)*('GF diets No L-Val + Fat'!B$353/100)*'DDGS Calculator'!$G$8)-'GF diets No L-Val + Fat'!B$266), IF(AND($G$5="No",$G$6="No",$G$7="Yes"),((('GF diets L-Val'!AD$351-'GF diets L-Val'!AD$5)*('GF diets L-Val'!AD$353/100)*'DDGS Calculator'!$G$8)-'GF diets L-Val'!AD$266)- ((('GF diets L-Val'!B$351-'GF diets L-Val'!B$5)*('GF diets L-Val'!B$353/100)*'DDGS Calculator'!$G$8)-'GF diets L-Val'!B$266), IF(AND($G$5="Yes",$G$6="No",$G$7="Yes"),((('GF diets L-Val + Fat'!AD$351-'GF diets L-Val + Fat'!AD$5)*('GF diets L-Val + Fat'!AD$353/100)*'DDGS Calculator'!$G$8)-'GF diets L-Val + Fat'!AD$266)- ((('GF diets L-Val + Fat'!B$351-'GF diets L-Val + Fat'!B$5)*('GF diets L-Val + Fat'!B$353/100)*'DDGS Calculator'!$G$8)-'GF diets L-Val + Fat'!B$266), IF(AND($G$5="No",$G$6="Yes",$G$7="No"),((('GF diets No L-Val + WD'!AD$351-'GF diets No L-Val + WD'!AD$5)*('GF diets No L-Val + WD'!AD$353/100)*'DDGS Calculator'!$G$8)-'GF diets No L-Val + WD'!AD$266)- ((('GF diets No L-Val + WD'!B$351-'GF diets No L-Val + WD'!B$5)*('GF diets No L-Val + WD'!B$353/100)*'DDGS Calculator'!$G$8)-'GF diets No L-Val + WD'!B$266), IF(AND($G$5="Yes",$G$6="Yes",$G$7="No"),((('GF diets No L-Val + Fat + WD'!AD$351-'GF diets No L-Val + Fat + WD'!AD$5)*('GF diets No L-Val + Fat + WD'!AD$353/100)*'DDGS Calculator'!$G$8)-'GF diets No L-Val + Fat + WD'!AD$266)- ((('GF diets No L-Val + Fat + WD'!B$351-'GF diets No L-Val + Fat + WD'!B$5)*('GF diets No L-Val + Fat + WD'!B$353/100)*'DDGS Calculator'!$G$8)-'GF diets No L-Val + Fat + WD'!B$266), IF(AND($G$5="No",$G$6="Yes",$G$7="Yes"),((('GF diets L-Val + WD'!AD$351-'GF diets L-Val + WD'!AD$5)*('GF diets L-Val + WD'!AD$353/100)*'DDGS Calculator'!$G$8)-'GF diets L-Val + WD'!AD$266)- ((('GF diets L-Val + WD'!B$351-'GF diets L-Val + WD'!B$5)*('GF diets L-Val + WD'!B$353/100)*'DDGS Calculator'!$G$8)-'GF diets L-Val + WD'!B$266), IF(AND($G$5="Yes",$G$6="Yes",$G$7="Yes"),((('GF diets L-Val + Fat + WD'!AD$351-'GF diets L-Val + Fat + WD'!AD$5)*('GF diets L-Val + Fat + WD'!AD$353/100)*'DDGS Calculator'!$G$8)-'GF diets L-Val + Fat + WD'!AD$266)- ((('GF diets L-Val + Fat + WD'!B$351-'GF diets L-Val + Fat + WD'!B$5)*('GF diets L-Val + Fat + WD'!B$353/100)*'DDGS Calculator'!$G$8)-'GF diets L-Val + Fat + WD'!B$266) )))))))) -> -0.5403498803 | D71: =IF(AND($G$5="No",$G$6="No",$G$7="No"),((('GF diets No L-Val'!AE$351-'GF diets No L-Val'!AE$5)*('GF diets No L-Val'!AE$353/100)*'DDGS Calculator'!$G$8)-'GF diets No L-Val'!AE$266)- ((('GF diets No L-Val'!C$351-'GF diets No L-Val'!C$5)*('GF diets No L-Val'!C$353/100)*'DDGS Calculator'!$G$8)-'GF diets No L-Val'!C$266), IF(AND($G$5="Yes",$G$6="No",$G$7="No"),((('GF diets No L-Val + Fat'!AE$351-'GF diets No L-Val + Fat'!AE$5)*('GF diets No L-Val + Fat'!AE$353/100)*'DDGS Calculator'!$G$8)-'GF diets No L-Val + Fat'!AE$266)- ((('GF diets No L-Val + Fat'!C$351-'GF diets No L-Val + Fat'!C$5)*('GF diets No L-Val + Fat'!C$353/100)*'DDGS Calculator'!$G$8)-'GF diets No L-Val + Fat'!C$266), IF(AND($G$5="No",$G$6="No",$G$7="Yes"),((('GF diets L-Val'!AE$351-'GF diets L-Val'!AE$5)*('GF diets L-Val'!AE$353/100)*'DDGS Calculator'!$G$8)-'GF diets L-Val'!AE$266)- ((('GF diets L-Val'!C$351-'GF diets L-Val'!C$5)*('GF diets L-Val'!C$353/100)*'DDGS Calculator'!$G$8)-'GF diets L-Val'!C$266), IF(AND($G$5="Yes",$G$6="No",$G$7="Yes"),((('GF diets L-Val + Fat'!AE$351-'GF diets L-Val + Fat'!AE$5)*('GF diets L-Val + Fat'!AE$353/100)*'DDGS Calculator'!$G$8)-'GF diets L-Val + Fat'!AE$266)- ((('GF diets L-Val + Fat'!C$351-'GF diets L-Val + Fat'!C$5)*('GF diets L-Val + Fat'!C$353/100)*'DDGS Calculator'!$G$8)-'GF diets L-Val + Fat'!C$266), IF(AND($G$5="No",$G$6="Yes",$G$7="No"),((('GF diets No L-Val + WD'!AE$351-'GF diets No L-Val + WD'!AE$5)*('GF diets No L-Val + WD'!AE$353/100)*'DDGS Calculator'!$G$8)-'GF diets No L-Val + WD'!AE$266)- ((('GF diets No L-Val + WD'!C$351-'GF diets No L-Val + WD'!C$5)*('GF diets No L-Val + WD'!C$353/100)*'DDGS Calculator'!$G$8)-'GF diets No L-Val + WD'!C$266), IF(AND($G$5="Yes",$G$6="Yes",$G$7="No"),((('GF diets No L-Val + Fat + WD'!AE$351-'GF diets No L-Val + Fat + WD'!AE$5)*('GF diets No L-Val + Fat + WD'!AE$353/100)*'DDGS Calculator'!$G$8)-'GF diets No L-Val + Fat + WD'!AE$266)- ((('GF diets No L-Val + Fat + WD'!C$351-'GF diets No L-Val + Fat + WD'!C$5)*('GF diets No L-Val + Fat + WD'!C$353/100)*'DDGS Calculator'!$G$8)-'GF diets No L-Val + Fat + WD'!C$266), IF(AND($G$5="No",$G$6="Yes",$G$7="Yes"),((('GF diets L-Val + WD'!AE$351-'GF diets L-Val + WD'!AE$5)*('GF diets L-Val + WD'!AE$353/100)*'DDGS Calculator'!$G$8)-'GF diets L-Val + WD'!AE$266)- ((('GF diets L-Val + WD'!C$351-'GF diets L-Val + WD'!C$5)*('GF diets L-Val + WD'!C$353/100)*'DDGS Calculator'!$G$8)-'GF diets L-Val + WD'!C$266), IF(AND($G$5="Yes",$G$6="Yes",$G$7="Yes"),((('GF diets L-Val + Fat + WD'!AE$351-'GF diets L-Val + Fat + WD'!AE$5)*('GF diets L-Val + Fat + WD'!AE$353/100)*'DDGS Calculator'!$G$8)-'GF diets L-Val + Fat + WD'!AE$266)- ((('GF diets L-Val + Fat + WD'!C$351-'GF diets L-Val + Fat + WD'!C$5)*('GF diets L-Val + Fat + WD'!C$353/100)*'DDGS Calculator'!$G$8)-'GF diets L-Val + Fat + WD'!C$266) )))))))) -> -0.5291483652 | E71: =IF(AND($G$5="No",$G$6="No",$G$7="No"),((('GF diets No L-Val'!AF$351-'GF diets No L-Val'!AF$5)*('GF diets No L-Val'!AF$353/100)*'DDGS Calculator'!$G$8)-'GF diets No L-Val'!AF$266)- ((('GF diets No L-Val'!D$351-'GF diets No L-Val'!D$5)*('GF diets No L-Val'!D$353/100)*'DDGS Calculator'!$G$8)-'GF diets No L-Val'!D$266), IF(AND($G$5="Yes",$G$6="No",$G$7="No"),((('GF diets No L-Val + Fat'!AF$351-'GF diets No L-Val + Fat'!AF$5)*('GF diets No L-Val + Fat'!AF$353/100)*'DDGS Calculator'!$G$8)-'GF diets No L-Val + Fat'!AF$266)- ((('GF diets No L-Val + Fat'!D$351-'GF diets No L-Val + Fat'!D$5)*('GF diets No L-Val + Fat'!D$353/100)*'DDGS Calculator'!$G$8)-'GF diets No L-Val + Fat'!D$266), IF(AND($G$5="No",$G$6="No",$G$7="Yes"),((('GF diets L-Val'!AF$351-'GF diets L-Val'!AF$5)*('GF diets L-Val'!AF$353/100)*'DDGS Calculator'!$G$8)-'GF diets L-Val'!AF$266)- ((('GF diets L-Val'!D$351-'GF diets L-Val'!D$5)*('GF diets L-Val'!D$353/100)*'DDGS Calculator'!$G$8)-'GF diets L-Val'!D$266), IF(AND($G$5="Yes",$G$6="No",$G$7="Yes"),((('GF diets L-Val + Fat'!AF$351-'GF diets L-Val + Fat'!AF$5)*('GF diets L-Val + Fat'!AF$353/100)*'DDGS Calculator'!$G$8)-'GF diets L-Val + Fat'!AF$266)- ((('GF diets L-Val + Fat'!D$351-'GF diets L-Val + Fat'!D$5)*('GF diets L-Val + Fat'!D$353/100)*'DDGS Calculator'!$G$8)-'GF diets L-Val + Fat'!D$266), IF(AND($G$5="No",$G$6="Yes",$G$7="No"),((('GF diets No L-Val + WD'!AF$351-'GF diets No L-Val + WD'!AF$5)*('GF diets No L-Val + WD'!AF$353/100)*'DDGS Calculator'!$G$8)-'GF diets No L-Val + WD'!AF$266)- ((('GF diets No L-Val + WD'!D$351-'GF diets No L-Val + WD'!D$5)*('GF diets No L-Val + WD'!D$353/100)*'DDGS Calculator'!$G$8)-'GF diets No L-Val + WD'!D$266), IF(AND($G$5="Yes",$G$6="Yes",$G$7="No"),((('GF diets No L-Val + Fat + WD'!AF$351-'GF diets No L-Val + Fat + WD'!AF$5)*('GF diets No L-Val + Fat + WD'!AF$353/100)*'DDGS Calculator'!$G$8)-'GF diets No L-Val + Fat + WD'!AF$266)- ((('GF diets No L-Val + Fat + WD'!D$351-'GF diets No L-Val + Fat + WD'!D$5)*('GF diets No L-Val + Fat + WD'!D$353/100)*'DDGS Calculator'!$G$8)-'GF diets No L-Val + Fat + WD'!D$266), IF(AND($G$5="No",$G$6="Yes",$G$7="Yes"),((('GF diets L-Val + WD'!AF$351-'GF diets L-Val + WD'!AF$5)*('GF diets L-Val + WD'!AF$353/100)*'DDGS Calculator'!$G$8)-'GF diets L-Val + WD'!AF$266)- ((('GF diets L-Val + WD'!D$351-'GF diets L-Val + WD'!D$5)*('GF diets L-Val + WD'!D$353/100)*'DDGS Calculator'!$G$8)-'GF diets L-Val + WD'!D$266), IF(AND($G$5="Yes",$G$6="Yes",$G$7="Yes"),((('GF diets L-Val + Fat + WD'!AF$351-'GF diets L-Val + Fat + WD'!AF$5)*('GF diets L-Val + Fat + WD'!AF$353/100)*'DDGS Calculator'!$G$8)-'GF diets L-Val + Fat + WD'!AF$266)- ((('GF diets L-Val + Fat + WD'!D$351-'GF diets L-Val + Fat + WD'!D$5)*('GF diets L-Val + Fat + WD'!D$353/100)*'DDGS Calculator'!$G$8)-'GF diets L-Val + Fat + WD'!D$266) )))))))) -> -0.6379897006 | F71: =IF(AND($G$5="No",$G$6="No",$G$7="No"),((('GF diets No L-Val'!AG$351-'GF diets No L-Val'!AG$5)*('GF diets No L-Val'!AG$353/100)*'DDGS Calculator'!$G$8)-'GF diets No L-Val'!AG$266)- ((('GF diets No L-Val'!E$351-'GF diets No L-Val'!E$5)*('GF diets No L-Val'!E$353/100)*'DDGS Calculator'!$G$8)-'GF diets No L-Val'!E$266), IF(AND($G$5="Yes",$G$6="No",$G$7="No"),((('GF diets No L-Val + Fat'!AG$351-'GF diets No L-Val + Fat'!AG$5)*('GF diets No L-Val + Fat'!AG$353/100)*'DDGS Calculator'!$G$8)-'GF diets No L-Val + Fat'!AG$266)- ((('GF diets No L-Val + Fat'!E$351-'GF diets No L-Val + Fat'!E$5)*('GF diets No L-Val + Fat'!E$353/100)*'DDGS Calculator'!$G$8)-'GF diets No L-Val + Fat'!E$266), IF(AND($G$5="No",$G$6="No",$G$7="Yes"),((('GF diets L-Val'!AG$351-'GF diets L-Val'!AG$5)*('GF diets L-Val'!AG$353/100)*'DDGS Calculator'!$G$8)-'GF diets L-Val'!AG$266)- ((('GF diets L-Val'!E$351-'GF diets L-Val'!E$5)*('GF diets L-Val'!E$353/100)*'DDGS Calculator'!$G$8)-'GF diets L-Val'!E$266), IF(AND($G$5="Yes",$G$6="No",$G$7="Yes"),((('GF diets L-Val + Fat'!AG$351-'GF diets L-Val + Fat'!AG$5)*('GF diets L-Val + Fat'!AG$353/100)*'DDGS Calculator'!$G$8)-'GF diets L-Val + Fat'!AG$266)- ((('GF diets L-Val + Fat'!E$351-'GF diets L-Val + Fat'!E$5)*('GF diets L-Val + Fat'!E$353/100)*'DDGS Calculator'!$G$8)-'GF diets L-Val + Fat'!E$266), IF(AND($G$5="No",$G$6="Yes",$G$7="No"),((('GF diets No L-Val + WD'!AG$351-'GF diets No L-Val + WD'!AG$5)*('GF diets No L-Val + WD'!AG$353/100)*'DDGS Calculator'!$G$8)-'GF diets No L-Val + WD'!AG$266)- ((('GF diets No L-Val + WD'!E$351-'GF diets No L-Val + WD'!E$5)*('GF diets No L-Val + WD'!E$353/100)*'DDGS Calculator'!$G$8)-'GF diets No L-Val + WD'!E$266), IF(AND($G$5="Yes",$G$6="Yes",$G$7="No"),((('GF diets No L-Val + Fat + WD'!AG$351-'GF diets No L-Val + Fat + WD'!AG$5)*('GF diets No L-Val + Fat + WD'!AG$353/100)*'DDGS Calculator'!$G$8)-'GF diets No L-Val + Fat + WD'!AG$266)- ((('GF diets No L-Val + Fat + WD'!E$351-'GF diets No L-Val + Fat + WD'!E$5)*('GF diets No L-Val + Fat + WD'!E$353/100)*'DDGS Calculator'!$G$8)-'GF diets No L-Val + Fat + WD'!E$266), IF(AND($G$5="No",$G$6="Yes",$G$7="Yes"),((('GF diets L-Val + WD'!AG$351-'GF diets L-Val + WD'!AG$5)*('GF diets L-Val + WD'!AG$353/100)*'DDGS Calculator'!$G$8)-'GF diets L-Val + WD'!AG$266)- ((('GF diets L-Val + WD'!E$351-'GF diets L-Val + WD'!E$5)*('GF diets L-Val + WD'!E$353/100)*'DDGS Calculator'!$G$8)-'GF diets L-Val + WD'!E$266), IF(AND($G$5="Yes",$G$6="Yes",$G$7="Yes"),((('GF diets L-Val + Fat + WD'!AG$351-'GF diets L-Val + Fat + WD'!AG$5)*('GF diets L-Val + Fat + WD'!AG$353/100)*'DDGS Calculator'!$G$8)-'GF diets L-Val + Fat + WD'!AG$266)- ((('GF diets L-Val + Fat + WD'!E$351-'GF diets L-Val + Fat + WD'!E$5)*('GF diets L-Val + Fat + WD'!E$353/100)*'DDGS Calculator'!$G$8)-'GF diets L-Val + Fat + WD'!E$266) )))))))) -> -0.733429047 | G71: =IF(AND($G$5="No",$G$6="No",$G$7="No"),((('GF diets No L-Val'!AH$351-'GF diets No L-Val'!AH$5)*('GF diets No L-Val'!AH$353/100)*'DDGS Calculator'!$G$8)-'GF diets No L-Val'!AH$266)- ((('GF diets No L-Val'!F$351-'GF diets No L-Val'!F$5)*('GF diets No L-Val'!F$353/100)*'DDGS Calculator'!$G$8)-'GF diets No L-Val'!F$266), IF(AND($G$5="Yes",$G$6="No",$G$7="No"),((('GF diets No L-Val + Fat'!AH$351-'GF diets No L-Val + Fat'!AH$5)*('GF diets No L-Val + Fat'!AH$353/100)*'DDGS Calculator'!$G$8)-'GF diets No L-Val + Fat'!AH$266)- ((('GF diets No L-Val + Fat'!F$351-'GF diets No L-Val + Fat'!F$5)*('GF diets No L-Val + Fat'!F$353/100)*'DDGS Calculator'!$G$8)-'GF diets No L-Val + Fat'!F$266), IF(AND($G$5="No",$G$6="No",$G$7="Yes"),((('GF diets L-Val'!AH$351-'GF diets L-Val'!AH$5)*('GF diets L-Val'!AH$353/100)*'DDGS Calculator'!$G$8)-'GF diets L-Val'!AH$266)- ((('GF diets L-Val'!F$351-'GF diets L-Val'!F$5)*('GF diets L-Val'!F$353/100)*'DDGS Calculator'!$G$8)-'GF diets L-Val'!F$266), IF(AND($G$5="Yes",$G$6="No",$G$7="Yes"),((('GF diets L-Val + Fat'!AH$351-'GF diets L-Val + Fat'!AH$5)*('GF diets L-Val + Fat'!AH$353/100)*'DDGS Calculator'!$G$8)-'GF diets L-Val + Fat'!AH$266)- ((('GF diets L-Val + Fat'!F$351-'GF diets L-Val + Fat'!F$5)*('GF diets L-Val + Fat'!F$353/100)*'DDGS Calculator'!$G$8)-'GF diets L-Val + Fat'!F$266), IF(AND($G$5="No",$G$6="Yes",$G$7="No"),((('GF diets No L-Val + WD'!AH$351-'GF diets No L-Val + WD'!AH$5)*('GF diets No L-Val + WD'!AH$353/100)*'DDGS Calculator'!$G$8)-'GF diets No L-Val + WD'!AH$266)- ((('GF diets No L-Val + WD'!F$351-'GF diets No L-Val + WD'!F$5)*('GF diets No L-Val + WD'!F$353/100)*'DDGS Calculator'!$G$8)-'GF diets No L-Val + WD'!F$266), IF(AND($G$5="Yes",$G$6="Yes",$G$7="No"),((('GF diets No L-Val + Fat + WD'!AH$351-'GF diets No L-Val + Fat + WD'!AH$5)*('GF diets No L-Val + Fat + WD'!AH$353/100)*'DDGS Calculator'!$G$8)-'GF diets No L-Val + Fat + WD'!AH$266)- ((('GF diets No L-Val + Fat + WD'!F$351-'GF diets No L-Val + Fat + WD'!F$5)*('GF diets No L-Val + Fat + WD'!F$353/100)*'DDGS Calculator'!$G$8)-'GF diets No L-Val + Fat + WD'!F$266), IF(AND($G$5="No",$G$6="Yes",$G$7="Yes"),((('GF diets L-Val + WD'!AH$351-'GF diets L-Val + WD'!AH$5)*('GF diets L-Val + WD'!AH$353/100)*'DDGS Calculator'!$G$8)-'GF diets L-Val + WD'!AH$266)- ((('GF diets L-Val + WD'!F$351-'GF diets L-Val + WD'!F$5)*('GF diets L-Val + WD'!F$353/100)*'DDGS Calculator'!$G$8)-'GF diets L-Val + WD'!F$266), IF(AND($G$5="Yes",$G$6="Yes",$G$7="Yes"),((('GF diets L-Val + Fat + WD'!AH$351-'GF diets L-Val + Fat + WD'!AH$5)*('GF diets L-Val + Fat + WD'!AH$353/100)*'DDGS Calculator'!$G$8)-'GF diets L-Val + Fat + WD'!AH$266)- ((('GF diets L-Val + Fat + WD'!F$351-'GF diets L-Val + Fat + WD'!F$5)*('GF diets L-Val + Fat + WD'!F$353/100)*'DDGS Calculator'!$G$8)-'GF diets L-Val + Fat + WD'!F$266) )))))))) -> -0.9120264309 | H71: =IF(AND($G$5="No",$G$6="No",$G$7="No"),((('GF diets No L-Val'!AI$351-'GF diets No L-Val'!AI$5)*('GF diets No L-Val'!AI$353/100)*'DDGS Calculator'!$G$8)-'GF diets No L-Val'!AI$266)- ((('GF diets No L-Val'!G$351-'GF diets No L-Val'!G$5)*('GF diets No L-Val'!G$353/100)*'DDGS Calculator'!$G$8)-'GF diets No L-Val'!G$266), IF(AND($G$5="Yes",$G$6="No",$G$7="No"),((('GF diets No L-Val + Fat'!AI$351-'GF diets No L-Val + Fat'!AI$5)*('GF diets No L-Val + Fat'!AI$353/100)*'DDGS Calculator'!$G$8)-'GF diets No L-Val + Fat'!AI$266)- ((('GF diets No L-Val + Fat'!G$351-'GF diets No L-Val + Fat'!G$5)*('GF diets No L-Val + Fat'!G$353/100)*'DDGS Calculator'!$G$8)-'GF diets No L-Val + Fat'!G$266), IF(AND($G$5="No",$G$6="No",$G$7="Yes"),((('GF diets L-Val'!AI$351-'GF diets L-Val'!AI$5)*('GF diets L-Val'!AI$353/100)*'DDGS Calculator'!$G$8)-'GF diets L-Val'!AI$266)- ((('GF diets L-Val'!G$351-'GF diets L-Val'!G$5)*('GF diets L-Val'!G$353/100)*'DDGS Calculator'!$G$8)-'GF diets L-Val'!G$266), IF(AND($G$5="Yes",$G$6="No",$G$7="Yes"),((('GF diets L-Val + Fat'!AI$351-'GF diets L-Val + Fat'!AI$5)*('GF diets L-Val + Fat'!AI$353/100)*'DDGS Calculator'!$G$8)-'GF diets L-Val + Fat'!AI$266)- ((('GF diets L-Val + Fat'!G$351-'GF diets L-Val + Fat'!G$5)*('GF diets L-Val + Fat'!G$353/100)*'DDGS Calculator'!$G$8)-'GF diets L-Val + Fat'!G$266), IF(AND($G$5="No",$G$6="Yes",$G$7="No"),((('GF diets No L-Val + WD'!AI$351-'GF diets No L-Val + WD'!AI$5)*('GF diets No L-Val + WD'!AI$353/100)*'DDGS Calculator'!$G$8)-'GF diets No L-Val + WD'!AI$266)- ((('GF diets No L-Val + WD'!G$351-'GF diets No L-Val + WD'!G$5)*('GF diets No L-Val + WD'!G$353/100)*'DDGS Calculator'!$G$8)-'GF diets No L-Val + WD'!G$266), IF(AND($G$5="Yes",$G$6="Yes",$G$7="No"),((('GF diets No L-Val + Fat + WD'!AI$351-'GF diets No L-Val + Fat + WD'!AI$5)*('GF diets No L-Val + Fat + WD'!AI$353/100)*'DDGS Calculator'!$G$8)-'GF diets No L-Val + Fat + WD'!AI$266)- ((('GF diets No L-Val + Fat + WD'!G$351-'GF diets No L-Val + Fat + WD'!G$5)*('GF diets No L-Val + Fat + WD'!G$353/100)*'DDGS Calculator'!$G$8)-'GF diets No L-Val + Fat + WD'!G$266), IF(AND($G$5="No",$G$6="Yes",$G$7="Yes"),((('GF diets L-Val + WD'!AI$351-'GF diets L-Val + WD'!AI$5)*('GF diets L-Val + WD'!AI$353/100)*'DDGS Calculator'!$G$8)-'GF diets L-Val + WD'!AI$266)- ((('GF diets L-Val + WD'!G$351-'GF diets L-Val + WD'!G$5)*('GF diets L-Val + WD'!G$353/100)*'DDGS Calculator'!$G$8)-'GF diets L-Val + WD'!G$266), IF(AND($G$5="Yes",$G$6="Yes",$G$7="Yes"),((('GF diets L-Val + Fat + WD'!AI$351-'GF diets L-Val + Fat + WD'!AI$5)*('GF diets L-Val + Fat + WD'!AI$353/100)*'DDGS Calculator'!$G$8)-'GF diets L-Val + Fat + WD'!AI$266)- ((('GF diets L-Val + Fat + WD'!G$351-'GF diets L-Val + Fat + WD'!G$5)*('GF diets L-Val + Fat + WD'!G$353/100)*'DDGS Calculator'!$G$8)-'GF diets L-Val + Fat + WD'!G$266) )))))))) -> -1.299991985 | I71: -4.652935409 | J71: =I71-I70 -> -1.13735747
A72: 0.25 | B72: 25% DDGS | C72: =IF(AND($G$5="No",$G$6="No",$G$7="No"),((('GF diets No L-Val'!AK$351-'GF diets No L-Val'!AK$5)*('GF diets No L-Val'!AK$353/100)*'DDGS Calculator'!$G$8)-'GF diets No L-Val'!AK$266)- ((('GF diets No L-Val'!B$351-'GF diets No L-Val'!B$5)*('GF diets No L-Val'!B$353/100)*'DDGS Calculator'!$G$8)-'GF diets No L-Val'!B$266), IF(AND($G$5="Yes",$G$6="No",$G$7="No"),((('GF diets No L-Val + Fat'!AK$351-'GF diets No L-Val + Fat'!AK$5)*('GF diets No L-Val + Fat'!AK$353/100)*'DDGS Calculator'!$G$8)-'GF diets No L-Val + Fat'!AK$266)- ((('GF diets No L-Val + Fat'!B$351-'GF diets No L-Val + Fat'!B$5)*('GF diets No L-Val + Fat'!B$353/100)*'DDGS Calculator'!$G$8)-'GF diets No L-Val + Fat'!B$266), IF(AND($G$5="No",$G$6="No",$G$7="Yes"),((('GF diets L-Val'!AK$351-'GF diets L-Val'!AK$5)*('GF diets L-Val'!AK$353/100)*'DDGS Calculator'!$G$8)-'GF diets L-Val'!AK$266)- ((('GF diets L-Val'!B$351-'GF diets L-Val'!B$5)*('GF diets L-Val'!B$353/100)*'DDGS Calculator'!$G$8)-'GF diets L-Val'!B$266), IF(AND($G$5="Yes",$G$6="No",$G$7="Yes"),((('GF diets L-Val + Fat'!AK$351-'GF diets L-Val + Fat'!AK$5)*('GF diets L-Val + Fat'!AK$353/100)*'DDGS Calculator'!$G$8)-'GF diets L-Val + Fat'!AK$266)- ((('GF diets L-Val + Fat'!B$351-'GF diets L-Val + Fat'!B$5)*('GF diets L-Val + Fat'!B$353/100)*'DDGS Calculator'!$G$8)-'GF diets L-Val + Fat'!B$266), IF(AND($G$5="No",$G$6="Yes",$G$7="No"),((('GF diets No L-Val + WD'!AK$351-'GF diets No L-Val + WD'!AK$5)*('GF diets No L-Val + WD'!AK$353/100)*'DDGS Calculator'!$G$8)-'GF diets No L-Val + WD'!AK$266)- ((('GF diets No L-Val + WD'!B$351-'GF diets No L-Val + WD'!B$5)*('GF diets No L-Val + WD'!B$353/100)*'DDGS Calculator'!$G$8)-'GF diets No L-Val + WD'!B$266), IF(AND($G$5="Yes",$G$6="Yes",$G$7="No"),((('GF diets No L-Val + Fat + WD'!AK$351-'GF diets No L-Val + Fat + WD'!AK$5)*('GF diets No L-Val + Fat + WD'!AK$353/100)*'DDGS Calculator'!$G$8)-'GF diets No L-Val + Fat + WD'!AK$266)- ((('GF diets No L-Val + Fat + WD'!B$351-'GF diets No L-Val + Fat + WD'!B$5)*('GF diets No L-Val + Fat + WD'!B$353/100)*'DDGS Calculator'!$G$8)-'GF diets No L-Val + Fat + WD'!B$266), IF(AND($G$5="No",$G$6="Yes",$G$7="Yes"),((('GF diets L-Val + WD'!AK$351-'GF diets L-Val + WD'!AK$5)*('GF diets L-Val + WD'!AK$353/100)*'DDGS Calculator'!$G$8)-'GF diets L-Val + WD'!AK$266)- ((('GF diets L-Val + WD'!B$351-'GF diets L-Val + WD'!B$5)*('GF diets L-Val + WD'!B$353/100)*'DDGS Calculator'!$G$8)-'GF diets L-Val + WD'!B$266), IF(AND($G$5="Yes",$G$6="Yes",$G$7="Yes"),((('GF diets L-Val + Fat + WD'!AK$351-'GF diets L-Val + Fat + WD'!AK$5)*('GF diets L-Val + Fat + WD'!AK$353/100)*'DDGS Calculator'!$G$8)-'GF diets L-Val + Fat + WD'!AK$266)- ((('GF diets L-Val + Fat + WD'!B$351-'GF diets L-Val + Fat + WD'!B$5)*('GF diets L-Val + Fat + WD'!B$353/100)*'DDGS Calculator'!$G$8)-'GF diets L-Val + Fat + WD'!B$266) )))))))) -> -0.6564756789 | D72: =IF(AND($G$5="No",$G$6="No",$G$7="No"),((('GF diets No L-Val'!AL$351-'GF diets No L-Val'!AL$5)*('GF diets No L-Val'!AL$353/100)*'DDGS Calculator'!$G$8)-'GF diets No L-Val'!AL$266)- ((('GF diets No L-Val'!C$351-'GF diets No L-Val'!C$5)*('GF diets No L-Val'!C$353/100)*'DDGS Calculator'!$G$8)-'GF diets No L-Val'!C$266), IF(AND($G$5="Yes",$G$6="No",$G$7="No"),((('GF diets No L-Val + Fat'!AL$351-'GF diets No L-Val + Fat'!AL$5)*('GF diets No L-Val + Fat'!AL$353/100)*'DDGS Calculator'!$G$8)-'GF diets No L-Val + Fat'!AL$266)- ((('GF diets No L-Val + Fat'!C$351-'GF diets No L-Val + Fat'!C$5)*('GF diets No L-Val + Fat'!C$353/100)*'DDGS Calculator'!$G$8)-'GF diets No L-Val + Fat'!C$266), IF(AND($G$5="No",$G$6="No",$G$7="Yes"),((('GF diets L-Val'!AL$351-'GF diets L-Val'!AL$5)*('GF diets L-Val'!AL$353/100)*'DDGS Calculator'!$G$8)-'GF diets L-Val'!AL$266)- ((('GF diets L-Val'!C$351-'GF diets L-Val'!C$5)*('GF diets L-Val'!C$353/100)*'DDGS Calculator'!$G$8)-'GF diets L-Val'!C$266), IF(AND($G$5="Yes",$G$6="No",$G$7="Yes"),((('GF diets L-Val + Fat'!AL$351-'GF diets L-Val + Fat'!AL$5)*('GF diets L-Val + Fat'!AL$353/100)*'DDGS Calculator'!$G$8)-'GF diets L-Val + Fat'!AL$266)- ((('GF diets L-Val + Fat'!C$351-'GF diets L-Val + Fat'!C$5)*('GF diets L-Val + Fat'!C$353/100)*'DDGS Calculator'!$G$8)-'GF diets L-Val + Fat'!C$266), IF(AND($G$5="No",$G$6="Yes",$G$7="No"),((('GF diets No L-Val + WD'!AL$351-'GF diets No L-Val + WD'!AL$5)*('GF diets No L-Val + WD'!AL$353/100)*'DDGS Calculator'!$G$8)-'GF diets No L-Val + WD'!AL$266)- ((('GF diets No L-Val + WD'!C$351-'GF diets No L-Val + WD'!C$5)*('GF diets No L-Val + WD'!C$353/100)*'DDGS Calculator'!$G$8)-'GF diets No L-Val + WD'!C$266), IF(AND($G$5="Yes",$G$6="Yes",$G$7="No"),((('GF diets No L-Val + Fat + WD'!AL$351-'GF diets No L-Val + Fat + WD'!AL$5)*('GF diets No L-Val + Fat + WD'!AL$353/100)*'DDGS Calculator'!$G$8)-'GF diets No L-Val + Fat + WD'!AL$266)- ((('GF diets No L-Val + Fat + WD'!C$351-'GF diets No L-Val + Fat + WD'!C$5)*('GF diets No L-Val + Fat + WD'!C$353/100)*'DDGS Calculator'!$G$8)-'GF diets No L-Val + Fat + WD'!C$266), IF(AND($G$5="No",$G$6="Yes",$G$7="Yes"),((('GF diets L-Val + WD'!AL$351-'GF diets L-Val + WD'!AL$5)*('GF diets L-Val + WD'!AL$353/100)*'DDGS Calculator'!$G$8)-'GF diets L-Val + WD'!AL$266)- ((('GF diets L-Val + WD'!C$351-'GF diets L-Val + WD'!C$5)*('GF diets L-Val + WD'!C$353/100)*'DDGS Calculator'!$G$8)-'GF diets L-Val + WD'!C$266), IF(AND($G$5="Yes",$G$6="Yes",$G$7="Yes"),((('GF diets L-Val + Fat + WD'!AL$351-'GF diets L-Val + Fat + WD'!AL$5)*('GF diets L-Val + Fat + WD'!AL$353/100)*'DDGS Calculator'!$G$8)-'GF diets L-Val + Fat + WD'!AL$266)- ((('GF diets L-Val + Fat + WD'!C$351-'GF diets L-Val + Fat + WD'!C$5)*('GF diets L-Val + Fat + WD'!C$353/100)*'DDGS Calculator'!$G$8)-'GF diets L-Val + Fat + WD'!C$266) )))))))) -> -0.6341184646 | E72: =IF(AND($G$5="No",$G$6="No",$G$7="No"),((('GF diets No L-Val'!AM$351-'GF diets No L-Val'!AM$5)*('GF diets No L-Val'!AM$353/100)*'DDGS Calculator'!$G$8)-'GF diets No L-Val'!AM$266)- ((('GF diets No L-Val'!D$351-'GF diets No L-Val'!D$5)*('GF diets No L-Val'!D$353/100)*'DDGS Calculator'!$G$8)-'GF diets No L-Val'!D$266), IF(AND($G$5="Yes",$G$6="No",$G$7="No"),((('GF diets No L-Val + Fat'!AM$351-'GF diets No L-Val + Fat'!AM$5)*('GF diets No L-Val + Fat'!AM$353/100)*'DDGS Calculator'!$G$8)-'GF diets No L-Val + Fat'!AM$266)- ((('GF diets No L-Val + Fat'!D$351-'GF diets No L-Val + Fat'!D$5)*('GF diets No L-Val + Fat'!D$353/100)*'DDGS Calculator'!$G$8)-'GF diets No L-Val + Fat'!D$266), IF(AND($G$5="No",$G$6="No",$G$7="Yes"),((('GF diets L-Val'!AM$351-'GF diets L-Val'!AM$5)*('GF diets L-Val'!AM$353/100)*'DDGS Calculator'!$G$8)-'GF diets L-Val'!AM$266)- ((('GF diets L-Val'!D$351-'GF diets L-Val'!D$5)*('GF diets L-Val'!D$353/100)*'DDGS Calculator'!$G$8)-'GF diets L-Val'!D$266), IF(AND($G$5="Yes",$G$6="No",$G$7="Yes"),((('GF diets L-Val + Fat'!AM$351-'GF diets L-Val + Fat'!AM$5)*('GF diets L-Val + Fat'!AM$353/100)*'DDGS Calculator'!$G$8)-'GF diets L-Val + Fat'!AM$266)- ((('GF diets L-Val + Fat'!D$351-'GF diets L-Val + Fat'!D$5)*('GF diets L-Val + Fat'!D$353/100)*'DDGS Calculator'!$G$8)-'GF diets L-Val + Fat'!D$266), IF(AND($G$5="No",$G$6="Yes",$G$7="No"),((('GF diets No L-Val + WD'!AM$351-'GF diets No L-Val + WD'!AM$5)*('GF diets No L-Val + WD'!AM$353/100)*'DDGS Calculator'!$G$8)-'GF diets No L-Val + WD'!AM$266)- ((('GF diets No L-Val + WD'!D$351-'GF diets No L-Val + WD'!D$5)*('GF diets No L-Val + WD'!D$353/100)*'DDGS Calculator'!$G$8)-'GF diets No L-Val + WD'!D$266), IF(AND($G$5="Yes",$G$6="Yes",$G$7="No"),((('GF diets No L-Val + Fat + WD'!AM$351-'GF diets No L-Val + Fat + WD'!AM$5)*('GF diets No L-Val + Fat + WD'!AM$353/100)*'DDGS Calculator'!$G$8)-'GF diets No L-Val + Fat + WD'!AM$266)- ((('GF diets No L-Val + Fat + WD'!D$351-'GF diets No L-Val + Fat + WD'!D$5)*('GF diets No L-Val + Fat + WD'!D$353/100)*'DDGS Calculator'!$G$8)-'GF diets No L-Val + Fat + WD'!D$266), IF(AND($G$5="No",$G$6="Yes",$G$7="Yes"),((('GF diets L-Val + WD'!AM$351-'GF diets L-Val + WD'!AM$5)*('GF diets L-Val + WD'!AM$353/100)*'DDGS Calculator'!$G$8)-'GF diets L-Val + WD'!AM$266)- ((('GF diets L-Val + WD'!D$351-'GF diets L-Val + WD'!D$5)*('GF diets L-Val + WD'!D$353/100)*'DDGS Calculator'!$G$8)-'GF diets L-Val + WD'!D$266), IF(AND($G$5="Yes",$G$6="Yes",$G$7="Yes"),((('GF diets L-Val + Fat + WD'!AM$351-'GF diets L-Val + Fat + WD'!AM$5)*('GF diets L-Val + Fat + WD'!AM$353/100)*'DDGS Calculator'!$G$8)-'GF diets L-Val + Fat + WD'!AM$266)- ((('GF diets L-Val + Fat + WD'!D$351-'GF diets L-Val + Fat + WD'!D$5)*('GF diets L-Val + Fat + WD'!D$353/100)*'DDGS Calculator'!$G$8)-'GF diets L-Val + Fat + WD'!D$266) )))))))) -> -0.7853071552 | F72: =IF(AND($G$5="No",$G$6="No",$G$7="No"),((('GF diets No L-Val'!AN$351-'GF diets No L-Val'!AN$5)*('GF diets No L-Val'!AN$353/100)*'DDGS Calculator'!$G$8)-'GF diets No L-Val'!AN$266)- ((('GF diets No L-Val'!E$351-'GF diets No L-Val'!E$5)*('GF diets No L-Val'!E$353/100)*'DDGS Calculator'!$G$8)-'GF diets No L-Val'!E$266), IF(AND($G$5="Yes",$G$6="No",$G$7="No"),((('GF diets No L-Val + Fat'!AN$351-'GF diets No L-Val + Fat'!AN$5)*('GF diets No L-Val + Fat'!AN$353/100)*'DDGS Calculator'!$G$8)-'GF diets No L-Val + Fat'!AN$266)- ((('GF diets No L-Val + Fat'!E$351-'GF diets No L-Val + Fat'!E$5)*('GF diets No L-Val + Fat'!E$353/100)*'DDGS Calculator'!$G$8)-'GF diets No L-Val + Fat'!E$266), IF(AND($G$5="No",$G$6="No",$G$7="Yes"),((('GF diets L-Val'!AN$351-'GF diets L-Val'!AN$5)*('GF diets L-Val'!AN$353/100)*'DDGS Calculator'!$G$8)-'GF diets L-Val'!AN$266)- ((('GF diets L-Val'!E$351-'GF diets L-Val'!E$5)*('GF diets L-Val'!E$353/100)*'DDGS Calculator'!$G$8)-'GF diets L-Val'!E$266), IF(AND($G$5="Yes",$G$6="No",$G$7="Yes"),((('GF diets L-Val + Fat'!AN$351-'GF diets L-Val + Fat'!AN$5)*('GF diets L-Val + Fat'!AN$353/100)*'DDGS Calculator'!$G$8)-'GF diets L-Val + Fat'!AN$266)- ((('GF diets L-Val + Fat'!E$351-'GF diets L-Val + Fat'!E$5)*('GF diets L-Val + Fat'!E$353/100)*'DDGS Calculator'!$G$8)-'GF diets L-Val + Fat'!E$266), IF(AND($G$5="No",$G$6="Yes",$G$7="No"),((('GF diets No L-Val + WD'!AN$351-'GF diets No L-Val + WD'!AN$5)*('GF diets No L-Val + WD'!AN$353/100)*'DDGS Calculator'!$G$8)-'GF diets No L-Val + WD'!AN$266)- ((('GF diets No L-Val + WD'!E$351-'GF diets No L-Val + WD'!E$5)*('GF diets No L-Val + WD'!E$353/100)*'DDGS Calculator'!$G$8)-'GF diets No L-Val + WD'!E$266), IF(AND($G$5="Yes",$G$6="Yes",$G$7="No"),((('GF diets No L-Val + Fat + WD'!AN$351-'GF diets No L-Val + Fat + WD'!AN$5)*('GF diets No L-Val + Fat + WD'!AN$353/100)*'DDGS Calculator'!$G$8)-'GF diets No L-Val + Fat + WD'!AN$266)- ((('GF diets No L-Val + Fat + WD'!E$351-'GF diets No L-Val + Fat + WD'!E$5)*('GF diets No L-Val + Fat + WD'!E$353/100)*'DDGS Calculator'!$G$8)-'GF diets No L-Val + Fat + WD'!E$266), IF(AND($G$5="No",$G$6="Yes",$G$7="Yes"),((('GF diets L-Val + WD'!AN$351-'GF diets L-Val + WD'!AN$5)*('GF diets L-Val + WD'!AN$353/100)*'DDGS Calculator'!$G$8)-'GF diets L-Val + WD'!AN$266)- ((('GF diets L-Val + WD'!E$351-'GF diets L-Val + WD'!E$5)*('GF diets L-Val + WD'!E$353/100)*'DDGS Calculator'!$G$8)-'GF diets L-Val + WD'!E$266), IF(AND($G$5="Yes",$G$6="Yes",$G$7="Yes"),((('GF diets L-Val + Fat + WD'!AN$351-'GF diets L-Val + Fat + WD'!AN$5)*('GF diets L-Val + Fat + WD'!AN$353/100)*'DDGS Calculator'!$G$8)-'GF diets L-Val + Fat + WD'!AN$266)- ((('GF diets L-Val + Fat + WD'!E$351-'GF diets L-Val + Fat + WD'!E$5)*('GF diets L-Val + Fat + WD'!E$353/100)*'DDGS Calculator'!$G$8)-'GF diets L-Val + Fat + WD'!E$266) )))))))) -> -0.9196673738 | G72: =IF(AND($G$5="No",$G$6="No",$G$7="No"),((('GF diets No L-Val'!AO$351-'GF diets No L-Val'!AO$5)*('GF diets No L-Val'!AO$353/100)*'DDGS Calculator'!$G$8)-'GF diets No L-Val'!AO$266)- ((('GF diets No L-Val'!F$351-'GF diets No L-Val'!F$5)*('GF diets No L-Val'!F$353/100)*'DDGS Calculator'!$G$8)-'GF diets No L-Val'!F$266), IF(AND($G$5="Yes",$G$6="No",$G$7="No"),((('GF diets No L-Val + Fat'!AO$351-'GF diets No L-Val + Fat'!AO$5)*('GF diets No L-Val + Fat'!AO$353/100)*'DDGS Calculator'!$G$8)-'GF diets No L-Val + Fat'!AO$266)- ((('GF diets No L-Val + Fat'!F$351-'GF diets No L-Val + Fat'!F$5)*('GF diets No L-Val + Fat'!F$353/100)*'DDGS Calculator'!$G$8)-'GF diets No L-Val + Fat'!F$266), IF(AND($G$5="No",$G$6="No",$G$7="Yes"),((('GF diets L-Val'!AO$351-'GF diets L-Val'!AO$5)*('GF diets L-Val'!AO$353/100)*'DDGS Calculator'!$G$8)-'GF diets L-Val'!AO$266)- ((('GF diets L-Val'!F$351-'GF diets L-Val'!F$5)*('GF diets L-Val'!F$353/100)*'DDGS Calculator'!$G$8)-'GF diets L-Val'!F$266), IF(AND($G$5="Yes",$G$6="No",$G$7="Yes"),((('GF diets L-Val + Fat'!AO$351-'GF diets L-Val + Fat'!AO$5)*('GF diets L-Val + Fat'!AO$353/100)*'DDGS Calculator'!$G$8)-'GF diets L-Val + Fat'!AO$266)- ((('GF diets L-Val + Fat'!F$351-'GF diets L-Val + Fat'!F$5)*('GF diets L-Val + Fat'!F$353/100)*'DDGS Calculator'!$G$8)-'GF diets L-Val + Fat'!F$266), IF(AND($G$5="No",$G$6="Yes",$G$7="No"),((('GF diets No L-Val + WD'!AO$351-'GF diets No L-Val + WD'!AO$5)*('GF diets No L-Val + WD'!AO$353/100)*'DDGS Calculator'!$G$8)-'GF diets No L-Val + WD'!AO$266)- ((('GF diets No L-Val + WD'!F$351-'GF diets No L-Val + WD'!F$5)*('GF diets No L-Val + WD'!F$353/100)*'DDGS Calculator'!$G$8)-'GF diets No L-Val + WD'!F$266), IF(AND($G$5="Yes",$G$6="Yes",$G$7="No"),((('GF diets No L-Val + Fat + WD'!AO$351-'GF diets No L-Val + Fat + WD'!AO$5)*('GF diets No L-Val + Fat + WD'!AO$353/100)*'DDGS Calculator'!$G$8)-'GF diets No L-Val + Fat + WD'!AO$266)- ((('GF diets No L-Val + Fat + WD'!F$351-'GF diets No L-Val + Fat + WD'!F$5)*('GF diets No L-Val + Fat + WD'!F$353/100)*'DDGS Calculator'!$G$8)-'GF diets No L-Val + Fat + WD'!F$266), IF(AND($G$5="No",$G$6="Yes",$G$7="Yes"),((('GF diets L-Val + WD'!AO$351-'GF diets L-Val + WD'!AO$5)*('GF diets L-Val + WD'!AO$353/100)*'DDGS Calculator'!$G$8)-'GF diets L-Val + WD'!AO$266)- ((('GF diets L-Val + WD'!F$351-'GF diets L-Val + WD'!F$5)*('GF diets L-Val + WD'!F$353/100)*'DDGS Calculator'!$G$8)-'GF diets L-Val + WD'!F$266), IF(AND($G$5="Yes",$G$6="Yes",$G$7="Yes"),((('GF diets L-Val + Fat + WD'!AO$351-'GF diets L-Val + Fat + WD'!AO$5)*('GF diets L-Val + Fat + WD'!AO$353/100)*'DDGS Calculator'!$G$8)-'GF diets L-Val + Fat + WD'!AO$266)- ((('GF diets L-Val + Fat + WD'!F$351-'GF diets L-Val + Fat + WD'!F$5)*('GF diets L-Val + Fat + WD'!F$353/100)*'DDGS Calculator'!$G$8)-'GF diets L-Val + Fat + WD'!F$266) )))))))) -> -1.15369724 | H72: =IF(AND($G$5="No",$G$6="No",$G$7="No"),((('GF diets No L-Val'!AP$351-'GF diets No L-Val'!AP$5)*('GF diets No L-Val'!AP$353/100)*'DDGS Calculator'!$G$8)-'GF diets No L-Val'!AP$266)- ((('GF diets No L-Val'!G$351-'GF diets No L-Val'!G$5)*('GF diets No L-Val'!G$353/100)*'DDGS Calculator'!$G$8)-'GF diets No L-Val'!G$266), IF(AND($G$5="Yes",$G$6="No",$G$7="No"),((('GF diets No L-Val + Fat'!AP$351-'GF diets No L-Val + Fat'!AP$5)*('GF diets No L-Val + Fat'!AP$353/100)*'DDGS Calculator'!$G$8)-'GF diets No L-Val + Fat'!AP$266)- ((('GF diets No L-Val + Fat'!G$351-'GF diets No L-Val + Fat'!G$5)*('GF diets No L-Val + Fat'!G$353/100)*'DDGS Calculator'!$G$8)-'GF diets No L-Val + Fat'!G$266), IF(AND($G$5="No",$G$6="No",$G$7="Yes"),((('GF diets L-Val'!AP$351-'GF diets L-Val'!AP$5)*('GF diets L-Val'!AP$353/100)*'DDGS Calculator'!$G$8)-'GF diets L-Val'!AP$266)- ((('GF diets L-Val'!G$351-'GF diets L-Val'!G$5)*('GF diets L-Val'!G$353/100)*'DDGS Calculator'!$G$8)-'GF diets L-Val'!G$266), IF(AND($G$5="Yes",$G$6="No",$G$7="Yes"),((('GF diets L-Val + Fat'!AP$351-'GF diets L-Val + Fat'!AP$5)*('GF diets L-Val + Fat'!AP$353/100)*'DDGS Calculator'!$G$8)-'GF diets L-Val + Fat'!AP$266)- ((('GF diets L-Val + Fat'!G$351-'GF diets L-Val + Fat'!G$5)*('GF diets L-Val + Fat'!G$353/100)*'DDGS Calculator'!$G$8)-'GF diets L-Val + Fat'!G$266), IF(AND($G$5="No",$G$6="Yes",$G$7="No"),((('GF diets No L-Val + WD'!AP$351-'GF diets No L-Val + WD'!AP$5)*('GF diets No L-Val + WD'!AP$353/100)*'DDGS Calculator'!$G$8)-'GF diets No L-Val + WD'!AP$266)- ((('GF diets No L-Val + WD'!G$351-'GF diets No L-Val + WD'!G$5)*('GF diets No L-Val + WD'!G$353/100)*'DDGS Calculator'!$G$8)-'GF diets No L-Val + WD'!G$266), IF(AND($G$5="Yes",$G$6="Yes",$G$7="No"),((('GF diets No L-Val + Fat + WD'!AP$351-'GF diets No L-Val + Fat + WD'!AP$5)*('GF diets No L-Val + Fat + WD'!AP$353/100)*'DDGS Calculator'!$G$8)-'GF diets No L-Val + Fat + WD'!AP$266)- ((('GF diets No L-Val + Fat + WD'!G$351-'GF diets No L-Val + Fat + WD'!G$5)*('GF diets No L-Val + Fat + WD'!G$353/100)*'DDGS Calculator'!$G$8)-'GF diets No L-Val + Fat + WD'!G$266), IF(AND($G$5="No",$G$6="Yes",$G$7="Yes"),((('GF diets L-Val + WD'!AP$351-'GF diets L-Val + WD'!AP$5)*('GF diets L-Val + WD'!AP$353/100)*'DDGS Calculator'!$G$8)-'GF diets L-Val + WD'!AP$266)- ((('GF diets L-Val + WD'!G$351-'GF diets L-Val + WD'!G$5)*('GF diets L-Val + WD'!G$353/100)*'DDGS Calculator'!$G$8)-'GF diets L-Val + WD'!G$266), IF(AND($G$5="Yes",$G$6="Yes",$G$7="Yes"),((('GF diets L-Val + Fat + WD'!AP$351-'GF diets L-Val + Fat + WD'!AP$5)*('GF diets L-Val + Fat + WD'!AP$353/100)*'DDGS Calculator'!$G$8)-'GF diets L-Val + Fat + WD'!AP$266)- ((('GF diets L-Val + Fat + WD'!G$351-'GF diets L-Val + Fat + WD'!G$5)*('GF diets L-Val + Fat + WD'!G$353/100)*'DDGS Calculator'!$G$8)-'GF diets L-Val + Fat + WD'!G$266) )))))))) -> -1.637088737 | I72: -5.78635465 | J72: =I72-I71 -> -1.133419241
A73: 0.3 | B73: 30% DDGS | C73: =IF(AND($G$5="No",$G$6="No",$G$7="No"),((('GF diets No L-Val'!AR$351-'GF diets No L-Val'!AR$5)*('GF diets No L-Val'!AR$353/100)*'DDGS Calculator'!$G$8)-'GF diets No L-Val'!AR$266)- ((('GF diets No L-Val'!B$351-'GF diets No L-Val'!B$5)*('GF diets No L-Val'!B$353/100)*'DDGS Calculator'!$G$8)-'GF diets No L-Val'!B$266), IF(AND($G$5="Yes",$G$6="No",$G$7="No"),((('GF diets No L-Val + Fat'!AR$351-'GF diets No L-Val + Fat'!AR$5)*('GF diets No L-Val + Fat'!AR$353/100)*'DDGS Calculator'!$G$8)-'GF diets No L-Val + Fat'!AR$266)- ((('GF diets No L-Val + Fat'!B$351-'GF diets No L-Val + Fat'!B$5)*('GF diets No L-Val + Fat'!B$353/100)*'DDGS Calculator'!$G$8)-'GF diets No L-Val + Fat'!B$266), IF(AND($G$5="No",$G$6="No",$G$7="Yes"),((('GF diets L-Val'!AR$351-'GF diets L-Val'!AR$5)*('GF diets L-Val'!AR$353/100)*'DDGS Calculator'!$G$8)-'GF diets L-Val'!AR$266)- ((('GF diets L-Val'!B$351-'GF diets L-Val'!B$5)*('GF diets L-Val'!B$353/100)*'DDGS Calculator'!$G$8)-'GF diets L-Val'!B$266), IF(AND($G$5="Yes",$G$6="No",$G$7="Yes"),((('GF diets L-Val + Fat'!AR$351-'GF diets L-Val + Fat'!AR$5)*('GF diets L-Val + Fat'!AR$353/100)*'DDGS Calculator'!$G$8)-'GF diets L-Val + Fat'!AR$266)- ((('GF diets L-Val + Fat'!B$351-'GF diets L-Val + Fat'!B$5)*('GF diets L-Val + Fat'!B$353/100)*'DDGS Calculator'!$G$8)-'GF diets L-Val + Fat'!B$266), IF(AND($G$5="No",$G$6="Yes",$G$7="No"),((('GF diets No L-Val + WD'!AR$351-'GF diets No L-Val + WD'!AR$5)*('GF diets No L-Val + WD'!AR$353/100)*'DDGS Calculator'!$G$8)-'GF diets No L-Val + WD'!AR$266)- ((('GF diets No L-Val + WD'!B$351-'GF diets No L-Val + WD'!B$5)*('GF diets No L-Val + WD'!B$353/100)*'DDGS Calculator'!$G$8)-'GF diets No L-Val + WD'!B$266), IF(AND($G$5="Yes",$G$6="Yes",$G$7="No"),((('GF diets No L-Val + Fat + WD'!AR$351-'GF diets No L-Val + Fat + WD'!AR$5)*('GF diets No L-Val + Fat + WD'!AR$353/100)*'DDGS Calculator'!$G$8)-'GF diets No L-Val + Fat + WD'!AR$266)- ((('GF diets No L-Val + Fat + WD'!B$351-'GF diets No L-Val + Fat + WD'!B$5)*('GF diets No L-Val + Fat + WD'!B$353/100)*'DDGS Calculator'!$G$8)-'GF diets No L-Val + Fat + WD'!B$266), IF(AND($G$5="No",$G$6="Yes",$G$7="Yes"),((('GF diets L-Val + WD'!AR$351-'GF diets L-Val + WD'!AR$5)*('GF diets L-Val + WD'!AR$353/100)*'DDGS Calculator'!$G$8)-'GF diets L-Val + WD'!AR$266)- ((('GF diets L-Val + WD'!B$351-'GF diets L-Val + WD'!B$5)*('GF diets L-Val + WD'!B$353/100)*'DDGS Calculator'!$G$8)-'GF diets L-Val + WD'!B$266), IF(AND($G$5="Yes",$G$6="Yes",$G$7="Yes"),((('GF diets L-Val + Fat + WD'!AR$351-'GF diets L-Val + Fat + WD'!AR$5)*('GF diets L-Val + Fat + WD'!AR$353/100)*'DDGS Calculator'!$G$8)-'GF diets L-Val + Fat + WD'!AR$266)- ((('GF diets L-Val + Fat + WD'!B$351-'GF diets L-Val + Fat + WD'!B$5)*('GF diets L-Val + Fat + WD'!B$353/100)*'DDGS Calculator'!$G$8)-'GF diets L-Val + Fat + WD'!B$266) )))))))) -> -0.736825383 | D73: =IF(AND($G$5="No",$G$6="No",$G$7="No"),((('GF diets No L-Val'!AS$351-'GF diets No L-Val'!AS$5)*('GF diets No L-Val'!AS$353/100)*'DDGS Calculator'!$G$8)-'GF diets No L-Val'!AS$266)- ((('GF diets No L-Val'!C$351-'GF diets No L-Val'!C$5)*('GF diets No L-Val'!C$353/100)*'DDGS Calculator'!$G$8)-'GF diets No L-Val'!C$266), IF(AND($G$5="Yes",$G$6="No",$G$7="No"),((('GF diets No L-Val + Fat'!AS$351-'GF diets No L-Val + Fat'!AS$5)*('GF diets No L-Val + Fat'!AS$353/100)*'DDGS Calculator'!$G$8)-'GF diets No L-Val + Fat'!AS$266)- ((('GF diets No L-Val + Fat'!C$351-'GF diets No L-Val + Fat'!C$5)*('GF diets No L-Val + Fat'!C$353/100)*'DDGS Calculator'!$G$8)-'GF diets No L-Val + Fat'!C$266), IF(AND($G$5="No",$G$6="No",$G$7="Yes"),((('GF diets L-Val'!AS$351-'GF diets L-Val'!AS$5)*('GF diets L-Val'!AS$353/100)*'DDGS Calculator'!$G$8)-'GF diets L-Val'!AS$266)- ((('GF diets L-Val'!C$351-'GF diets L-Val'!C$5)*('GF diets L-Val'!C$353/100)*'DDGS Calculator'!$G$8)-'GF diets L-Val'!C$266), IF(AND($G$5="Yes",$G$6="No",$G$7="Yes"),((('GF diets L-Val + Fat'!AS$351-'GF diets L-Val + Fat'!AS$5)*('GF diets L-Val + Fat'!AS$353/100)*'DDGS Calculator'!$G$8)-'GF diets L-Val + Fat'!AS$266)- ((('GF diets L-Val + Fat'!C$351-'GF diets L-Val + Fat'!C$5)*('GF diets L-Val + Fat'!C$353/100)*'DDGS Calculator'!$G$8)-'GF diets L-Val + Fat'!C$266), IF(AND($G$5="No",$G$6="Yes",$G$7="No"),((('GF diets No L-Val + WD'!AS$351-'GF diets No L-Val + WD'!AS$5)*('GF diets No L-Val + WD'!AS$353/100)*'DDGS Calculator'!$G$8)-'GF diets No L-Val + WD'!AS$266)- ((('GF diets No L-Val + WD'!C$351-'GF diets No L-Val + WD'!C$5)*('GF diets No L-Val + WD'!C$353/100)*'DDGS Calculator'!$G$8)-'GF diets No L-Val + WD'!C$266), IF(AND($G$5="Yes",$G$6="Yes",$G$7="No"),((('GF diets No L-Val + Fat + WD'!AS$351-'GF diets No L-Val + Fat + WD'!AS$5)*('GF diets No L-Val + Fat + WD'!AS$353/100)*'DDGS Calculator'!$G$8)-'GF diets No L-Val + Fat + WD'!AS$266)- ((('GF diets No L-Val + Fat + WD'!C$351-'GF diets No L-Val + Fat + WD'!C$5)*('GF diets No L-Val + Fat + WD'!C$353/100)*'DDGS Calculator'!$G$8)-'GF diets No L-Val + Fat + WD'!C$266), IF(AND($G$5="No",$G$6="Yes",$G$7="Yes"),((('GF diets L-Val + WD'!AS$351-'GF diets L-Val + WD'!AS$5)*('GF diets L-Val + WD'!AS$353/100)*'DDGS Calculator'!$G$8)-'GF diets L-Val + WD'!AS$266)- ((('GF diets L-Val + WD'!C$351-'GF diets L-Val + WD'!C$5)*('GF diets L-Val + WD'!C$353/100)*'DDGS Calculator'!$G$8)-'GF diets L-Val + WD'!C$266), IF(AND($G$5="Yes",$G$6="Yes",$G$7="Yes"),((('GF diets L-Val + Fat + WD'!AS$351-'GF diets L-Val + Fat + WD'!AS$5)*('GF diets L-Val + Fat + WD'!AS$353/100)*'DDGS Calculator'!$G$8)-'GF diets L-Val + Fat + WD'!AS$266)- ((('GF diets L-Val + Fat + WD'!C$351-'GF diets L-Val + Fat + WD'!C$5)*('GF diets L-Val + Fat + WD'!C$353/100)*'DDGS Calculator'!$G$8)-'GF diets L-Val + Fat + WD'!C$266) )))))))) -> -0.7281815629 | E73: =IF(AND($G$5="No",$G$6="No",$G$7="No"),((('GF diets No L-Val'!AT$351-'GF diets No L-Val'!AT$5)*('GF diets No L-Val'!AT$353/100)*'DDGS Calculator'!$G$8)-'GF diets No L-Val'!AT$266)- ((('GF diets No L-Val'!D$351-'GF diets No L-Val'!D$5)*('GF diets No L-Val'!D$353/100)*'DDGS Calculator'!$G$8)-'GF diets No L-Val'!D$266), IF(AND($G$5="Yes",$G$6="No",$G$7="No"),((('GF diets No L-Val + Fat'!AT$351-'GF diets No L-Val + Fat'!AT$5)*('GF diets No L-Val + Fat'!AT$353/100)*'DDGS Calculator'!$G$8)-'GF diets No L-Val + Fat'!AT$266)- ((('GF diets No L-Val + Fat'!D$351-'GF diets No L-Val + Fat'!D$5)*('GF diets No L-Val + Fat'!D$353/100)*'DDGS Calculator'!$G$8)-'GF diets No L-Val + Fat'!D$266), IF(AND($G$5="No",$G$6="No",$G$7="Yes"),((('GF diets L-Val'!AT$351-'GF diets L-Val'!AT$5)*('GF diets L-Val'!AT$353/100)*'DDGS Calculator'!$G$8)-'GF diets L-Val'!AT$266)- ((('GF diets L-Val'!D$351-'GF diets L-Val'!D$5)*('GF diets L-Val'!D$353/100)*'DDGS Calculator'!$G$8)-'GF diets L-Val'!D$266), IF(AND($G$5="Yes",$G$6="No",$G$7="Yes"),((('GF diets L-Val + Fat'!AT$351-'GF diets L-Val + Fat'!AT$5)*('GF diets L-Val + Fat'!AT$353/100)*'DDGS Calculator'!$G$8)-'GF diets L-Val + Fat'!AT$266)- ((('GF diets L-Val + Fat'!D$351-'GF diets L-Val + Fat'!D$5)*('GF diets L-Val + Fat'!D$353/100)*'DDGS Calculator'!$G$8)-'GF diets L-Val + Fat'!D$266), IF(AND($G$5="No",$G$6="Yes",$G$7="No"),((('GF diets No L-Val + WD'!AT$351-'GF diets No L-Val + WD'!AT$5)*('GF diets No L-Val + WD'!AT$353/100)*'DDGS Calculator'!$G$8)-'GF diets No L-Val + WD'!AT$266)- ((('GF diets No L-Val + WD'!D$351-'GF diets No L-Val + WD'!D$5)*('GF diets No L-Val + WD'!D$353/100)*'DDGS Calculator'!$G$8)-'GF diets No L-Val + WD'!D$266), IF(AND($G$5="Yes",$G$6="Yes",$G$7="No"),((('GF diets No L-Val + Fat + WD'!AT$351-'GF diets No L-Val + Fat + WD'!AT$5)*('GF diets No L-Val + Fat + WD'!AT$353/100)*'DDGS Calculator'!$G$8)-'GF diets No L-Val + Fat + WD'!AT$266)- ((('GF diets No L-Val + Fat + WD'!D$351-'GF diets No L-Val + Fat + WD'!D$5)*('GF diets No L-Val + Fat + WD'!D$353/100)*'DDGS Calculator'!$G$8)-'GF diets No L-Val + Fat + WD'!D$266), IF(AND($G$5="No",$G$6="Yes",$G$7="Yes"),((('GF diets L-Val + WD'!AT$351-'GF diets L-Val + WD'!AT$5)*('GF diets L-Val + WD'!AT$353/100)*'DDGS Calculator'!$G$8)-'GF diets L-Val + WD'!AT$266)- ((('GF diets L-Val + WD'!D$351-'GF diets L-Val + WD'!D$5)*('GF diets L-Val + WD'!D$353/100)*'DDGS Calculator'!$G$8)-'GF diets L-Val + WD'!D$266), IF(AND($G$5="Yes",$G$6="Yes",$G$7="Yes"),((('GF diets L-Val + Fat + WD'!AT$351-'GF diets L-Val + Fat + WD'!AT$5)*('GF diets L-Val + Fat + WD'!AT$353/100)*'DDGS Calculator'!$G$8)-'GF diets L-Val + Fat + WD'!AT$266)- ((('GF diets L-Val + Fat + WD'!D$351-'GF diets L-Val + Fat + WD'!D$5)*('GF diets L-Val + Fat + WD'!D$353/100)*'DDGS Calculator'!$G$8)-'GF diets L-Val + Fat + WD'!D$266) )))))))) -> -0.9234223928 | F73: =IF(AND($G$5="No",$G$6="No",$G$7="No"),((('GF diets No L-Val'!AU$351-'GF diets No L-Val'!AU$5)*('GF diets No L-Val'!AU$353/100)*'DDGS Calculator'!$G$8)-'GF diets No L-Val'!AU$266)- ((('GF diets No L-Val'!E$351-'GF diets No L-Val'!E$5)*('GF diets No L-Val'!E$353/100)*'DDGS Calculator'!$G$8)-'GF diets No L-Val'!E$266), IF(AND($G$5="Yes",$G$6="No",$G$7="No"),((('GF diets No L-Val + Fat'!AU$351-'GF diets No L-Val + Fat'!AU$5)*('GF diets No L-Val + Fat'!AU$353/100)*'DDGS Calculator'!$G$8)-'GF diets No L-Val + Fat'!AU$266)- ((('GF diets No L-Val + Fat'!E$351-'GF diets No L-Val + Fat'!E$5)*('GF diets No L-Val + Fat'!E$353/100)*'DDGS Calculator'!$G$8)-'GF diets No L-Val + Fat'!E$266), IF(AND($G$5="No",$G$6="No",$G$7="Yes"),((('GF diets L-Val'!AU$351-'GF diets L-Val'!AU$5)*('GF diets L-Val'!AU$353/100)*'DDGS Calculator'!$G$8)-'GF diets L-Val'!AU$266)- ((('GF diets L-Val'!E$351-'GF diets L-Val'!E$5)*('GF diets L-Val'!E$353/100)*'DDGS Calculator'!$G$8)-'GF diets L-Val'!E$266), IF(AND($G$5="Yes",$G$6="No",$G$7="Yes"),((('GF diets L-Val + Fat'!AU$351-'GF diets L-Val + Fat'!AU$5)*('GF diets L-Val + Fat'!AU$353/100)*'DDGS Calculator'!$G$8)-'GF diets L-Val + Fat'!AU$266)- ((('GF diets L-Val + Fat'!E$351-'GF diets L-Val + Fat'!E$5)*('GF diets L-Val + Fat'!E$353/100)*'DDGS Calculator'!$G$8)-'GF diets L-Val + Fat'!E$266), IF(AND($G$5="No",$G$6="Yes",$G$7="No"),((('GF diets No L-Val + WD'!AU$351-'GF diets No L-Val + WD'!AU$5)*('GF diets No L-Val + WD'!AU$353/100)*'DDGS Calculator'!$G$8)-'GF diets No L-Val + WD'!AU$266)- ((('GF diets No L-Val + WD'!E$351-'GF diets No L-Val + WD'!E$5)*('GF diets No L-Val + WD'!E$353/100)*'DDGS Calculator'!$G$8)-'GF diets No L-Val + WD'!E$266), IF(AND($G$5="Yes",$G$6="Yes",$G$7="No"),((('GF diets No L-Val + Fat + WD'!AU$351-'GF diets No L-Val + Fat + WD'!AU$5)*('GF diets No L-Val + Fat + WD'!AU$353/100)*'DDGS Calculator'!$G$8)-'GF diets No L-Val + Fat + WD'!AU$266)- ((('GF diets No L-Val + Fat + WD'!E$351-'GF diets No L-Val + Fat + WD'!E$5)*('GF diets No L-Val + Fat + WD'!E$353/100)*'DDGS Calculator'!$G$8)-'GF diets No L-Val + Fat + WD'!E$266), IF(AND($G$5="No",$G$6="Yes",$G$7="Yes"),((('GF diets L-Val + WD'!AU$351-'GF diets L-Val + WD'!AU$5)*('GF diets L-Val + WD'!AU$353/100)*'DDGS Calculator'!$G$8)-'GF diets L-Val + WD'!AU$266)- ((('GF diets L-Val + WD'!E$351-'GF diets L-Val + WD'!E$5)*('GF diets L-Val + WD'!E$353/100)*'DDGS Calculator'!$G$8)-'GF diets L-Val + WD'!E$266), IF(AND($G$5="Yes",$G$6="Yes",$G$7="Yes"),((('GF diets L-Val + Fat + WD'!AU$351-'GF diets L-Val + Fat + WD'!AU$5)*('GF diets L-Val + Fat + WD'!AU$353/100)*'DDGS Calculator'!$G$8)-'GF diets L-Val + Fat + WD'!AU$266)- ((('GF diets L-Val + Fat + WD'!E$351-'GF diets L-Val + Fat + WD'!E$5)*('GF diets L-Val + Fat + WD'!E$353/100)*'DDGS Calculator'!$G$8)-'GF diets L-Val + Fat + WD'!E$266) )))))))) -> -1.113686756 | G73: =IF(AND($G$5="No",$G$6="No",$G$7="No"),((('GF diets No L-Val'!AV$351-'GF diets No L-Val'!AV$5)*('GF diets No L-Val'!AV$353/100)*'DDGS Calculator'!$G$8)-'GF diets No L-Val'!AV$266)- ((('GF diets No L-Val'!F$351-'GF diets No L-Val'!F$5)*('GF diets No L-Val'!F$353/100)*'DDGS Calculator'!$G$8)-'GF diets No L-Val'!F$266), IF(AND($G$5="Yes",$G$6="No",$G$7="No"),((('GF diets No L-Val + Fat'!AV$351-'GF diets No L-Val + Fat'!AV$5)*('GF diets No L-Val + Fat'!AV$353/100)*'DDGS Calculator'!$G$8)-'GF diets No L-Val + Fat'!AV$266)- ((('GF diets No L-Val + Fat'!F$351-'GF diets No L-Val + Fat'!F$5)*('GF diets No L-Val + Fat'!F$353/100)*'DDGS Calculator'!$G$8)-'GF diets No L-Val + Fat'!F$266), IF(AND($G$5="No",$G$6="No",$G$7="Yes"),((('GF diets L-Val'!AV$351-'GF diets L-Val'!AV$5)*('GF diets L-Val'!AV$353/100)*'DDGS Calculator'!$G$8)-'GF diets L-Val'!AV$266)- ((('GF diets L-Val'!F$351-'GF diets L-Val'!F$5)*('GF diets L-Val'!F$353/100)*'DDGS Calculator'!$G$8)-'GF diets L-Val'!F$266), IF(AND($G$5="Yes",$G$6="No",$G$7="Yes"),((('GF diets L-Val + Fat'!AV$351-'GF diets L-Val + Fat'!AV$5)*('GF diets L-Val + Fat'!AV$353/100)*'DDGS Calculator'!$G$8)-'GF diets L-Val + Fat'!AV$266)- ((('GF diets L-Val + Fat'!F$351-'GF diets L-Val + Fat'!F$5)*('GF diets L-Val + Fat'!F$353/100)*'DDGS Calculator'!$G$8)-'GF diets L-Val + Fat'!F$266), IF(AND($G$5="No",$G$6="Yes",$G$7="No"),((('GF diets No L-Val + WD'!AV$351-'GF diets No L-Val + WD'!AV$5)*('GF diets No L-Val + WD'!AV$353/100)*'DDGS Calculator'!$G$8)-'GF diets No L-Val + WD'!AV$266)- ((('GF diets No L-Val + WD'!F$351-'GF diets No L-Val + WD'!F$5)*('GF diets No L-Val + WD'!F$353/100)*'DDGS Calculator'!$G$8)-'GF diets No L-Val + WD'!F$266), IF(AND($G$5="Yes",$G$6="Yes",$G$7="No"),((('GF diets No L-Val + Fat + WD'!AV$351-'GF diets No L-Val + Fat + WD'!AV$5)*('GF diets No L-Val + Fat + WD'!AV$353/100)*'DDGS Calculator'!$G$8)-'GF diets No L-Val + Fat + WD'!AV$266)- ((('GF diets No L-Val + Fat + WD'!F$351-'GF diets No L-Val + Fat + WD'!F$5)*('GF diets No L-Val + Fat + WD'!F$353/100)*'DDGS Calculator'!$G$8)-'GF diets No L-Val + Fat + WD'!F$266), IF(AND($G$5="No",$G$6="Yes",$G$7="Yes"),((('GF diets L-Val + WD'!AV$351-'GF diets L-Val + WD'!AV$5)*('GF diets L-Val + WD'!AV$353/100)*'DDGS Calculator'!$G$8)-'GF diets L-Val + WD'!AV$266)- ((('GF diets L-Val + WD'!F$351-'GF diets L-Val + WD'!F$5)*('GF diets L-Val + WD'!F$353/100)*'DDGS Calculator'!$G$8)-'GF diets L-Val + WD'!F$266), IF(AND($G$5="Yes",$G$6="Yes",$G$7="Yes"),((('GF diets L-Val + Fat + WD'!AV$351-'GF diets L-Val + Fat + WD'!AV$5)*('GF diets L-Val + Fat + WD'!AV$353/100)*'DDGS Calculator'!$G$8)-'GF diets L-Val + Fat + WD'!AV$266)- ((('GF diets L-Val + Fat + WD'!F$351-'GF diets L-Val + Fat + WD'!F$5)*('GF diets L-Val + Fat + WD'!F$353/100)*'DDGS Calculator'!$G$8)-'GF diets L-Val + Fat + WD'!F$266) )))))))) -> -1.385623346 | H73: =IF(AND($G$5="No",$G$6="No",$G$7="No"),((('GF diets No L-Val'!AW$351-'GF diets No L-Val'!AW$5)*('GF diets No L-Val'!AW$353/100)*'DDGS Calculator'!$G$8)-'GF diets No L-Val'!AW$266)- ((('GF diets No L-Val'!G$351-'GF diets No L-Val'!G$5)*('GF diets No L-Val'!G$353/100)*'DDGS Calculator'!$G$8)-'GF diets No L-Val'!G$266), IF(AND($G$5="Yes",$G$6="No",$G$7="No"),((('GF diets No L-Val + Fat'!AW$351-'GF diets No L-Val + Fat'!AW$5)*('GF diets No L-Val + Fat'!AW$353/100)*'DDGS Calculator'!$G$8)-'GF diets No L-Val + Fat'!AW$266)- ((('GF diets No L-Val + Fat'!G$351-'GF diets No L-Val + Fat'!G$5)*('GF diets No L-Val + Fat'!G$353/100)*'DDGS Calculator'!$G$8)-'GF diets No L-Val + Fat'!G$266), IF(AND($G$5="No",$G$6="No",$G$7="Yes"),((('GF diets L-Val'!AW$351-'GF diets L-Val'!AW$5)*('GF diets L-Val'!AW$353/100)*'DDGS Calculator'!$G$8)-'GF diets L-Val'!AW$266)- ((('GF diets L-Val'!G$351-'GF diets L-Val'!G$5)*('GF diets L-Val'!G$353/100)*'DDGS Calculator'!$G$8)-'GF diets L-Val'!G$266), IF(AND($G$5="Yes",$G$6="No",$G$7="Yes"),((('GF diets L-Val + Fat'!AW$351-'GF diets L-Val + Fat'!AW$5)*('GF diets L-Val + Fat'!AW$353/100)*'DDGS Calculator'!$G$8)-'GF diets L-Val + Fat'!AW$266)- ((('GF diets L-Val + Fat'!G$351-'GF diets L-Val + Fat'!G$5)*('GF diets L-Val + Fat'!G$353/100)*'DDGS Calculator'!$G$8)-'GF diets L-Val + Fat'!G$266), IF(AND($G$5="No",$G$6="Yes",$G$7="No"),((('GF diets No L-Val + WD'!AW$351-'GF diets No L-Val + WD'!AW$5)*('GF diets No L-Val + WD'!AW$353/100)*'DDGS Calculator'!$G$8)-'GF diets No L-Val + WD'!AW$266)- ((('GF diets No L-Val + WD'!G$351-'GF diets No L-Val + WD'!G$5)*('GF diets No L-Val + WD'!G$353/100)*'DDGS Calculator'!$G$8)-'GF diets No L-Val + WD'!G$266), IF(AND($G$5="Yes",$G$6="Yes",$G$7="No"),((('GF diets No L-Val + Fat + WD'!AW$351-'GF diets No L-Val + Fat + WD'!AW$5)*('GF diets No L-Val + Fat + WD'!AW$353/100)*'DDGS Calculator'!$G$8)-'GF diets No L-Val + Fat + WD'!AW$266)- ((('GF diets No L-Val + Fat + WD'!G$351-'GF diets No L-Val + Fat + WD'!G$5)*('GF diets No L-Val + Fat + WD'!G$353/100)*'DDGS Calculator'!$G$8)-'GF diets No L-Val + Fat + WD'!G$266), IF(AND($G$5="No",$G$6="Yes",$G$7="Yes"),((('GF diets L-Val + WD'!AW$351-'GF diets L-Val + WD'!AW$5)*('GF diets L-Val + WD'!AW$353/100)*'DDGS Calculator'!$G$8)-'GF diets L-Val + WD'!AW$266)- ((('GF diets L-Val + WD'!G$351-'GF diets L-Val + WD'!G$5)*('GF diets L-Val + WD'!G$353/100)*'DDGS Calculator'!$G$8)-'GF diets L-Val + WD'!G$266), IF(AND($G$5="Yes",$G$6="Yes",$G$7="Yes"),((('GF diets L-Val + Fat + WD'!AW$351-'GF diets L-Val + Fat + WD'!AW$5)*('GF diets L-Val + Fat + WD'!AW$353/100)*'DDGS Calculator'!$G$8)-'GF diets L-Val + Fat + WD'!AW$266)- ((('GF diets L-Val + Fat + WD'!G$351-'GF diets L-Val + Fat + WD'!G$5)*('GF diets L-Val + Fat + WD'!G$353/100)*'DDGS Calculator'!$G$8)-'GF diets L-Val + Fat + WD'!G$266) )))))))) -> -1.962339965 | I73: -6.850079406 | J73: =I73-I72 -> -1.063724756
B75: Feed cost savings, $/pig (compared to 0% DDGS) - extra days on feed | C75: Phase 1 | D75: Phase 2 | E75: Phase 3 | F75: Phase 4 | G75: Phase 5 | H75: Phase 6 | I75: Total | J75: Incremental
B76: 5% DDGS | C76: =IF(AND($G$5="No",$G$6="No",$G$7="No"),'GF diets No L-Val'!I$270-'GF diets No L-Val'!B$270, IF(AND($G$5="Yes",$G$6="No",$G$7="No"),'GF diets No L-Val + Fat'!I$270-'GF diets No L-Val + Fat'!B$270, IF(AND($G$5="No",$G$6="No",$G$7="Yes"),'GF diets L-Val'!I$270-'GF diets L-Val'!B$270, IF(AND($G$5="Yes",$G$6="No",$G$7="Yes"),'GF diets L-Val + Fat'!I$270-'GF diets L-Val + Fat'!B$270, IF(AND($G$5="No",$G$6="Yes",$G$7="No"),'GF diets No L-Val + WD'!I$270-'GF diets No L-Val + WD'!B$270, IF(AND($G$5="Yes",$G$6="Yes",$G$7="No"),'GF diets No L-Val + Fat + WD'!I$270-'GF diets No L-Val + Fat + WD'!B$270, IF(AND($G$5="No",$G$6="Yes",$G$7="Yes"),'GF diets L-Val + WD'!I$270-'GF diets L-Val + WD'!B$270, IF(AND($G$5="Yes",$G$6="Yes",$G$7="Yes"),'GF diets L-Val + Fat + WD'!I$270-'GF diets L-Val + Fat + WD'!B$270))))))))*-1 -> -0.007491811543 | D76: =IF(AND($G$5="No",$G$6="No",$G$7="No"),'GF diets No L-Val'!J$270-'GF diets No L-Val'!C$270, IF(AND($G$5="Yes",$G$6="No",$G$7="No"),'GF diets No L-Val + Fat'!J$270-'GF diets No L-Val + Fat'!C$270, IF(AND($G$5="No",$G$6="No",$G$7="Yes"),'GF diets L-Val'!J$270-'GF diets L-Val'!C$270, IF(AND($G$5="Yes",$G$6="No",$G$7="Yes"),'GF diets L-Val + Fat'!J$270-'GF diets L-Val + Fat'!C$270, IF(AND($G$5="No",$G$6="Yes",$G$7="No"),'GF diets No L-Val + WD'!J$270-'GF diets No L-Val + WD'!C$270, IF(AND($G$5="Yes",$G$6="Yes",$G$7="No"),'GF diets No L-Val + Fat + WD'!J$270-'GF diets No L-Val + Fat + WD'!C$270, IF(AND($G$5="No",$G$6="Yes",$G$7="Yes"),'GF diets L-Val + WD'!J$270-'GF diets L-Val + WD'!C$270, IF(AND($G$5="Yes",$G$6="Yes",$G$7="Yes"),'GF diets L-Val + Fat + WD'!J$270-'GF diets L-Val + Fat + WD'!C$270))))))))*-1 -> -0.009057706729 | E76: =IF(AND($G$5="No",$G$6="No",$G$7="No"),'GF diets No L-Val'!K$270-'GF diets No L-Val'!D$270, IF(AND($G$5="Yes",$G$6="No",$G$7="No"),'GF diets No L-Val + Fat'!K$270-'GF diets No L-Val + Fat'!D$270, IF(AND($G$5="No",$G$6="No",$G$7="Yes"),'GF diets L-Val'!K$270-'GF diets L-Val'!D$270, IF(AND($G$5="Yes",$G$6="No",$G$7="Yes"),'GF diets L-Val + Fat'!K$270-'GF diets L-Val + Fat'!D$270, IF(AND($G$5="No",$G$6="Yes",$G$7="No"),'GF diets No L-Val + WD'!K$270-'GF diets No L-Val + WD'!D$270, IF(AND($G$5="Yes",$G$6="Yes",$G$7="No"),'GF diets No L-Val + Fat + WD'!K$270-'GF diets No L-Val + Fat + WD'!D$270, IF(AND($G$5="No",$G$6="Yes",$G$7="Yes"),'GF diets L-Val + WD'!K$270-'GF diets L-Val + WD'!D$270, IF(AND($G$5="Yes",$G$6="Yes",$G$7="Yes"),'GF diets L-Val + Fat + WD'!K$270-'GF diets L-Val + Fat + WD'!D$270))))))))*-1 -> -0.01238368464 | F76: =IF(AND($G$5="No",$G$6="No",$G$7="No"),'GF diets No L-Val'!L$270-'GF diets No L-Val'!E$270, IF(AND($G$5="Yes",$G$6="No",$G$7="No"),'GF diets No L-Val + Fat'!L$270-'GF diets No L-Val + Fat'!E$270, IF(AND($G$5="No",$G$6="No",$G$7="Yes"),'GF diets L-Val'!L$270-'GF diets L-Val'!E$270, IF(AND($G$5="Yes",$G$6="No",$G$7="Yes"),'GF diets L-Val + Fat'!L$270-'GF diets L-Val + Fat'!E$270, IF(AND($G$5="No",$G$6="Yes",$G$7="No"),'GF diets No L-Val + WD'!L$270-'GF diets No L-Val + WD'!E$270, IF(AND($G$5="Yes",$G$6="Yes",$G$7="No"),'GF diets No L-Val + Fat + WD'!L$270-'GF diets No L-Val + Fat + WD'!E$270, IF(AND($G$5="No",$G$6="Yes",$G$7="Yes"),'GF diets L-Val + WD'!L$270-'GF diets L-Val + WD'!E$270, IF(AND($G$5="Yes",$G$6="Yes",$G$7="Yes"),'GF diets L-Val + Fat + WD'!L$270-'GF diets L-Val + Fat + WD'!E$270))))))))*-1 -> -0.007722438751 | G76: =IF(AND($G$5="No",$G$6="No",$G$7="No"),'GF diets No L-Val'!M$270-'GF diets No L-Val'!F$270, IF(AND($G$5="Yes",$G$6="No",$G$7="No"),'GF diets No L-Val + Fat'!M$270-'GF diets No L-Val + Fat'!F$270, IF(AND($G$5="No",$G$6="No",$G$7="Yes"),'GF diets L-Val'!M$270-'GF diets L-Val'!F$270, IF(AND($G$5="Yes",$G$6="No",$G$7="Yes"),'GF diets L-Val + Fat'!M$270-'GF diets L-Val + Fat'!F$270, IF(AND($G$5="No",$G$6="Yes",$G$7="No"),'GF diets No L-Val + WD'!M$270-'GF diets No L-Val + WD'!F$270, IF(AND($G$5="Yes",$G$6="Yes",$G$7="No"),'GF diets No L-Val + Fat + WD'!M$270-'GF diets No L-Val + Fat + WD'!F$270, IF(AND($G$5="No",$G$6="Yes",$G$7="Yes"),'GF diets L-Val + WD'!M$270-'GF diets L-Val + WD'!F$270, IF(AND($G$5="Yes",$G$6="Yes",$G$7="Yes"),'GF diets L-Val + Fat + WD'!M$270-'GF diets L-Val + Fat + WD'!F$270))))))))*-1 -> -0.00731366177 | H76: =IF(AND($G$5="No",$G$6="No",$G$7="No"),'GF diets No L-Val'!N$270-'GF diets No L-Val'!G$270, IF(AND($G$5="Yes",$G$6="No",$G$7="No"),'GF diets No L-Val + Fat'!N$270-'GF diets No L-Val + Fat'!G$270, IF(AND($G$5="No",$G$6="No",$G$7="Yes"),'GF diets L-Val'!N$270-'GF diets L-Val'!G$270, IF(AND($G$5="Yes",$G$6="No",$G$7="Yes"),'GF diets L-Val + Fat'!N$270-'GF diets L-Val + Fat'!G$270, IF(AND($G$5="No",$G$6="Yes",$G$7="No"),'GF diets No L-Val + WD'!N$270-'GF diets No L-Val + WD'!G$270, IF(AND($G$5="Yes",$G$6="Yes",$G$7="No"),'GF diets No L-Val + Fat + WD'!N$270-'GF diets No L-Val + Fat + WD'!G$270, IF(AND($G$5="No",$G$6="Yes",$G$7="Yes"),'GF diets L-Val + WD'!N$270-'GF diets L-Val + WD'!G$270, IF(AND($G$5="Yes",$G$6="Yes",$G$7="Yes"),'GF diets L-Val + Fat + WD'!N$270-'GF diets L-Val + Fat + WD'!G$270))))))))*-1 -> -0.008100091551 | I76: =SUM(C76:H76) -> -0.05206939499
B77: 10% DDGS | C77: =IF(AND($G$5="No",$G$6="No",$G$7="No"),'GF diets No L-Val'!P$270-'GF diets No L-Val'!B$270, IF(AND($G$5="Yes",$G$6="No",$G$7="No"),'GF diets No L-Val + Fat'!P$270-'GF diets No L-Val + Fat'!B$270, IF(AND($G$5="No",$G$6="No",$G$7="Yes"),'GF diets L-Val'!P$270-'GF diets L-Val'!B$270, IF(AND($G$5="Yes",$G$6="No",$G$7="Yes"),'GF diets L-Val + Fat'!P$270-'GF diets L-Val + Fat'!B$270, IF(AND($G$5="No",$G$6="Yes",$G$7="No"),'GF diets No L-Val + WD'!P$270-'GF diets No L-Val + WD'!B$270, IF(AND($G$5="Yes",$G$6="Yes",$G$7="No"),'GF diets No L-Val + Fat + WD'!P$270-'GF diets No L-Val + Fat + WD'!B$270, IF(AND($G$5="No",$G$6="Yes",$G$7="Yes"),'GF diets L-Val + WD'!P$270-'GF diets L-Val + WD'!B$270, IF(AND($G$5="Yes",$G$6="Yes",$G$7="Yes"),'GF diets L-Val + Fat + WD'!P$270-'GF diets L-Val + Fat + WD'!B$270))))))))*-1 -> -0.02096934834 | D77: =IF(AND($G$5="No",$G$6="No",$G$7="No"),'GF diets No L-Val'!Q$270-'GF diets No L-Val'!C$270, IF(AND($G$5="Yes",$G$6="No",$G$7="No"),'GF diets No L-Val + Fat'!Q$270-'GF diets No L-Val + Fat'!C$270, IF(AND($G$5="No",$G$6="No",$G$7="Yes"),'GF diets L-Val'!Q$270-'GF diets L-Val'!C$270, IF(AND($G$5="Yes",$G$6="No",$G$7="Yes"),'GF diets L-Val + Fat'!Q$270-'GF diets L-Val + Fat'!C$270, IF(AND($G$5="No",$G$6="Yes",$G$7="No"),'GF diets No L-Val + WD'!Q$270-'GF diets No L-Val + WD'!C$270, IF(AND($G$5="Yes",$G$6="Yes",$G$7="No"),'GF diets No L-Val + Fat + WD'!Q$270-'GF diets No L-Val + Fat + WD'!C$270, IF(AND($G$5="No",$G$6="Yes",$G$7="Yes"),'GF diets L-Val + WD'!Q$270-'GF diets L-Val + WD'!C$270, IF(AND($G$5="Yes",$G$6="Yes",$G$7="Yes"),'GF diets L-Val + Fat + WD'!Q$270-'GF diets L-Val + Fat + WD'!C$270))))))))*-1 -> -0.02389850126 | E77: =IF(AND($G$5="No",$G$6="No",$G$7="No"),'GF diets No L-Val'!R$270-'GF diets No L-Val'!D$270, IF(AND($G$5="Yes",$G$6="No",$G$7="No"),'GF diets No L-Val + Fat'!R$270-'GF diets No L-Val + Fat'!D$270, IF(AND($G$5="No",$G$6="No",$G$7="Yes"),'GF diets L-Val'!R$270-'GF diets L-Val'!D$270, IF(AND($G$5="Yes",$G$6="No",$G$7="Yes"),'GF diets L-Val + Fat'!R$270-'GF diets L-Val + Fat'!D$270, IF(AND($G$5="No",$G$6="Yes",$G$7="No"),'GF diets No L-Val + WD'!R$270-'GF diets No L-Val + WD'!D$270, IF(AND($G$5="Yes",$G$6="Yes",$G$7="No"),'GF diets No L-Val + Fat + WD'!R$270-'GF diets No L-Val + Fat + WD'!D$270, IF(AND($G$5="No",$G$6="Yes",$G$7="Yes"),'GF diets L-Val + WD'!R$270-'GF diets L-Val + WD'!D$270, IF(AND($G$5="Yes",$G$6="Yes",$G$7="Yes"),'GF diets L-Val + Fat + WD'!R$270-'GF diets L-Val + Fat + WD'!D$270))))))))*-1 -> -0.02991676299 | F77: =IF(AND($G$5="No",$G$6="No",$G$7="No"),'GF diets No L-Val'!S$270-'GF diets No L-Val'!E$270, IF(AND($G$5="Yes",$G$6="No",$G$7="No"),'GF diets No L-Val + Fat'!S$270-'GF diets No L-Val + Fat'!E$270, IF(AND($G$5="No",$G$6="No",$G$7="Yes"),'GF diets L-Val'!S$270-'GF diets L-Val'!E$270, IF(AND($G$5="Yes",$G$6="No",$G$7="Yes"),'GF diets L-Val + Fat'!S$270-'GF diets L-Val + Fat'!E$270, IF(AND($G$5="No",$G$6="Yes",$G$7="No"),'GF diets No L-Val + WD'!S$270-'GF diets No L-Val + WD'!E$270, IF(AND($G$5="Yes",$G$6="Yes",$G$7="No"),'GF diets No L-Val + Fat + WD'!S$270-'GF diets No L-Val + Fat + WD'!E$270, IF(AND($G$5="No",$G$6="Yes",$G$7="Yes"),'GF diets L-Val + WD'!S$270-'GF diets L-Val + WD'!E$270, IF(AND($G$5="Yes",$G$6="Yes",$G$7="Yes"),'GF diets L-Val + Fat + WD'!S$270-'GF diets L-Val + Fat + WD'!E$270))))))))*-1 -> -0.02218284936 | G77: =IF(AND($G$5="No",$G$6="No",$G$7="No"),'GF diets No L-Val'!T$270-'GF diets No L-Val'!F$270, IF(AND($G$5="Yes",$G$6="No",$G$7="No"),'GF diets No L-Val + Fat'!T$270-'GF diets No L-Val + Fat'!F$270, IF(AND($G$5="No",$G$6="No",$G$7="Yes"),'GF diets L-Val'!T$270-'GF diets L-Val'!F$270, IF(AND($G$5="Yes",$G$6="No",$G$7="Yes"),'GF diets L-Val + Fat'!T$270-'GF diets L-Val + Fat'!F$270, IF(AND($G$5="No",$G$6="Yes",$G$7="No"),'GF diets No L-Val + WD'!T$270-'GF diets No L-Val + WD'!F$270, IF(AND($G$5="Yes",$G$6="Yes",$G$7="No"),'GF diets No L-Val + Fat + WD'!T$270-'GF diets No L-Val + Fat + WD'!F$270, IF(AND($G$5="No",$G$6="Yes",$G$7="Yes"),'GF diets L-Val + WD'!T$270-'GF diets L-Val + WD'!F$270, IF(AND($G$5="Yes",$G$6="Yes",$G$7="Yes"),'GF diets L-Val + Fat + WD'!T$270-'GF diets L-Val + Fat + WD'!F$270))))))))*-1 -> -0.03511146933 | H77: =IF(AND($G$5="No",$G$6="No",$G$7="No"),'GF diets No L-Val'!U$270-'GF diets No L-Val'!G$270, IF(AND($G$5="Yes",$G$6="No",$G$7="No"),'GF diets No L-Val + Fat'!U$270-'GF diets No L-Val + Fat'!G$270, IF(AND($G$5="No",$G$6="No",$G$7="Yes"),'GF diets L-Val'!U$270-'GF diets L-Val'!G$270, IF(AND($G$5="Yes",$G$6="No",$G$7="Yes"),'GF diets L-Val + Fat'!U$270-'GF diets L-Val + Fat'!G$270, IF(AND($G$5="No",$G$6="Yes",$G$7="No"),'GF diets No L-Val + WD'!U$270-'GF diets No L-Val + WD'!G$270, IF(AND($G$5="Yes",$G$6="Yes",$G$7="No"),'GF diets No L-Val + Fat + WD'!U$270-'GF diets No L-Val + Fat + WD'!G$270, IF(AND($G$5="No",$G$6="Yes",$G$7="Yes"),'GF diets L-Val + WD'!U$270-'GF diets L-Val + WD'!G$270, IF(AND($G$5="Yes",$G$6="Yes",$G$7="Yes"),'GF diets L-Val + Fat + WD'!U$270-'GF diets L-Val + Fat + WD'!G$270))))))))*-1 -> -0.04679542599 | I77: -0.1788743573 | J77: =I77-I76 -> -0.1268049623
B78: 15% DDGS | C78: =IF(AND($G$5="No",$G$6="No",$G$7="No"),'GF diets No L-Val'!W$270-'GF diets No L-Val'!B$270,IF(AND($G$5="Yes",$G$6="No",$G$7="No"),'GF diets No L-Val + Fat'!W$270-'GF diets No L-Val + Fat'!B$270,IF(AND($G$5="No",$G$6="No",$G$7="Yes"),'GF diets L-Val'!W$270-'GF diets L-Val'!B$270,IF(AND($G$5="Yes",$G$6="No",$G$7="Yes"),'GF diets L-Val + Fat'!W$270-'GF diets L-Val + Fat'!B$270,IF(AND($G$5="No",$G$6="Yes",$G$7="No"),'GF diets No L-Val + WD'!W$270-'GF diets No L-Val + WD'!B$270,IF(AND($G$5="Yes",$G$6="Yes",$G$7="No"),'GF diets No L-Val + Fat + WD'!W$270-'GF diets No L-Val + Fat + WD'!B$270,IF(AND($G$5="No",$G$6="Yes",$G$7="Yes"),'GF diets L-Val + WD'!W$270-'GF diets L-Val + WD'!B$270,IF(AND($G$5="Yes",$G$6="Yes",$G$7="Yes"),'GF diets L-Val + Fat + WD'!W$270-'GF diets L-Val + Fat + WD'!B$270))))))))*-1 -> -0.0345726093 | D78: =IF(AND($G$5="No",$G$6="No",$G$7="No"),'GF diets No L-Val'!X$270-'GF diets No L-Val'!C$270,IF(AND($G$5="Yes",$G$6="No",$G$7="No"),'GF diets No L-Val + Fat'!X$270-'GF diets No L-Val + Fat'!C$270,IF(AND($G$5="No",$G$6="No",$G$7="Yes"),'GF diets L-Val'!X$270-'GF diets L-Val'!C$270,IF(AND($G$5="Yes",$G$6="No",$G$7="Yes"),'GF diets L-Val + Fat'!X$270-'GF diets L-Val + Fat'!C$270,IF(AND($G$5="No",$G$6="Yes",$G$7="No"),'GF diets No L-Val + WD'!X$270-'GF diets No L-Val + WD'!C$270,IF(AND($G$5="Yes",$G$6="Yes",$G$7="No"),'GF diets No L-Val + Fat + WD'!X$270-'GF diets No L-Val + Fat + WD'!C$270,IF(AND($G$5="No",$G$6="Yes",$G$7="Yes"),'GF diets L-Val + WD'!X$270-'GF diets L-Val + WD'!C$270,IF(AND($G$5="Yes",$G$6="Yes",$G$7="Yes"),'GF diets L-Val + Fat + WD'!X$270-'GF diets L-Val + Fat + WD'!C$270))))))))*-1 -> -0.0383368713 | E78: =IF(AND($G$5="No",$G$6="No",$G$7="No"),'GF diets No L-Val'!Y$270-'GF diets No L-Val'!D$270,IF(AND($G$5="Yes",$G$6="No",$G$7="No"),'GF diets No L-Val + Fat'!Y$270-'GF diets No L-Val + Fat'!D$270,IF(AND($G$5="No",$G$6="No",$G$7="Yes"),'GF diets L-Val'!Y$270-'GF diets L-Val'!D$270,IF(AND($G$5="Yes",$G$6="No",$G$7="Yes"),'GF diets L-Val + Fat'!Y$270-'GF diets L-Val + Fat'!D$270,IF(AND($G$5="No",$G$6="Yes",$G$7="No"),'GF diets No L-Val + WD'!Y$270-'GF diets No L-Val + WD'!D$270,IF(AND($G$5="Yes",$G$6="Yes",$G$7="No"),'GF diets No L-Val + Fat + WD'!Y$270-'GF diets No L-Val + Fat + WD'!D$270,IF(AND($G$5="No",$G$6="Yes",$G$7="Yes"),'GF diets L-Val + WD'!Y$270-'GF diets L-Val + WD'!D$270,IF(AND($G$5="Yes",$G$6="Yes",$G$7="Yes"),'GF diets L-Val + Fat + WD'!Y$270-'GF diets L-Val + Fat + WD'!D$270))))))))*-1 -> -0.04372983372 | F78: =IF(AND($G$5="No",$G$6="No",$G$7="No"),'GF diets No L-Val'!Z$270-'GF diets No L-Val'!E$270,IF(AND($G$5="Yes",$G$6="No",$G$7="No"),'GF diets No L-Val + Fat'!Z$270-'GF diets No L-Val + Fat'!E$270,IF(AND($G$5="No",$G$6="No",$G$7="Yes"),'GF diets L-Val'!Z$270-'GF diets L-Val'!E$270,IF(AND($G$5="Yes",$G$6="No",$G$7="Yes"),'GF diets L-Val + Fat'!Z$270-'GF diets L-Val + Fat'!E$270,IF(AND($G$5="No",$G$6="Yes",$G$7="No"),'GF diets No L-Val + WD'!Z$270-'GF diets No L-Val + WD'!E$270,IF(AND($G$5="Yes",$G$6="Yes",$G$7="No"),'GF diets No L-Val + Fat + WD'!Z$270-'GF diets No L-Val + Fat + WD'!E$270,IF(AND($G$5="No",$G$6="Yes",$G$7="Yes"),'GF diets L-Val + WD'!Z$270-'GF diets L-Val + WD'!E$270,IF(AND($G$5="Yes",$G$6="Yes",$G$7="Yes"),'GF diets L-Val + Fat + WD'!Z$270-'GF diets L-Val + Fat + WD'!E$270))))))))*-1 -> -0.04154594703 | G78: =IF(AND($G$5="No",$G$6="No",$G$7="No"),'GF diets No L-Val'!AA$270-'GF diets No L-Val'!F$270,IF(AND($G$5="Yes",$G$6="No",$G$7="No"),'GF diets No L-Val + Fat'!AA$270-'GF diets No L-Val + Fat'!F$270,IF(AND($G$5="No",$G$6="No",$G$7="Yes"),'GF diets L-Val'!AA$270-'GF diets L-Val'!F$270,IF(AND($G$5="Yes",$G$6="No",$G$7="Yes"),'GF diets L-Val + Fat'!AA$270-'GF diets L-Val + Fat'!F$270,IF(AND($G$5="No",$G$6="Yes",$G$7="No"),'GF diets No L-Val + WD'!AA$270-'GF diets No L-Val + WD'!F$270,IF(AND($G$5="Yes",$G$6="Yes",$G$7="No"),'GF diets No L-Val + Fat + WD'!AA$270-'GF diets No L-Val + Fat + WD'!F$270,IF(AND($G$5="No",$G$6="Yes",$G$7="Yes"),'GF diets L-Val + WD'!AA$270-'GF diets L-Val + WD'!F$270,IF(AND($G$5="Yes",$G$6="Yes",$G$7="Yes"),'GF diets L-Val + Fat + WD'!AA$270-'GF diets L-Val + Fat + WD'!F$270))))))))*-1 -> -0.06690645293 | H78: =IF(AND($G$5="No",$G$6="No",$G$7="No"),'GF diets No L-Val'!AB$270-'GF diets No L-Val'!G$270,IF(AND($G$5="Yes",$G$6="No",$G$7="No"),'GF diets No L-Val + Fat'!AB$270-'GF diets No L-Val + Fat'!G$270,IF(AND($G$5="No",$G$6="No",$G$7="Yes"),'GF diets L-Val'!AB$270-'GF diets L-Val'!G$270,IF(AND($G$5="Yes",$G$6="No",$G$7="Yes"),'GF diets L-Val + Fat'!AB$270-'GF diets L-Val + Fat'!G$270,IF(AND($G$5="No",$G$6="Yes",$G$7="No"),'GF diets No L-Val + WD'!AB$270-'GF diets No L-Val + WD'!G$270,IF(AND($G$5="Yes",$G$6="Yes",$G$7="No"),'GF diets No L-Val + Fat + WD'!AB$270-'GF diets No L-Val + Fat + WD'!G$270,IF(AND($G$5="No",$G$6="Yes",$G$7="Yes"),'GF diets L-Val + WD'!AB$270-'GF diets L-Val + WD'!G$270,IF(AND($G$5="Yes",$G$6="Yes",$G$7="Yes"),'GF diets L-Val + Fat + WD'!AB$270-'GF diets L-Val + Fat + WD'!G$270))))))))*-1 -> -0.09363633445 | I78: -0.3187280487 | J78: =I78-I77 -> -0.1398536914
B79: 20% DDGS | C79: =IF(AND($G$5="No",$G$6="No",$G$7="No"),'GF diets No L-Val'!AD$270-'GF diets No L-Val'!B$270,IF(AND($G$5="Yes",$G$6="No",$G$7="No"),'GF diets No L-Val + Fat'!AD$270-'GF diets No L-Val + Fat'!B$270,IF(AND($G$5="No",$G$6="No",$G$7="Yes"),'GF diets L-Val'!AD$270-'GF diets L-Val'!B$270,IF(AND($G$5="Yes",$G$6="No",$G$7="Yes"),'GF diets L-Val + Fat'!AD$270-'GF diets L-Val + Fat'!B$270,IF(AND($G$5="No",$G$6="Yes",$G$7="No"),'GF diets No L-Val + WD'!AD$270-'GF diets No L-Val + WD'!B$270,IF(AND($G$5="Yes",$G$6="Yes",$G$7="No"),'GF diets No L-Val + Fat + WD'!AD$270-'GF diets No L-Val + Fat + WD'!B$270,IF(AND($G$5="No",$G$6="Yes",$G$7="Yes"),'GF diets L-Val + WD'!AD$270-'GF diets L-Val + WD'!B$270,IF(AND($G$5="Yes",$G$6="Yes",$G$7="Yes"),'GF diets L-Val + Fat + WD'!AD$270-'GF diets L-Val + Fat + WD'!B$270))))))))*-1 -> -0.0482282747 | D79: =IF(AND($G$5="No",$G$6="No",$G$7="No"),'GF diets No L-Val'!AE$270-'GF diets No L-Val'!C$270,IF(AND($G$5="Yes",$G$6="No",$G$7="No"),'GF diets No L-Val + Fat'!AE$270-'GF diets No L-Val + Fat'!C$270,IF(AND($G$5="No",$G$6="No",$G$7="Yes"),'GF diets L-Val'!AE$270-'GF diets L-Val'!C$270,IF(AND($G$5="Yes",$G$6="No",$G$7="Yes"),'GF diets L-Val + Fat'!AE$270-'GF diets L-Val + Fat'!C$270,IF(AND($G$5="No",$G$6="Yes",$G$7="No"),'GF diets No L-Val + WD'!AE$270-'GF diets No L-Val + WD'!C$270,IF(AND($G$5="Yes",$G$6="Yes",$G$7="No"),'GF diets No L-Val + Fat + WD'!AE$270-'GF diets No L-Val + Fat + WD'!C$270,IF(AND($G$5="No",$G$6="Yes",$G$7="Yes"),'GF diets L-Val + WD'!AE$270-'GF diets L-Val + WD'!C$270,IF(AND($G$5="Yes",$G$6="Yes",$G$7="Yes"),'GF diets L-Val + Fat + WD'!AE$270-'GF diets L-Val + Fat + WD'!C$270))))))))*-1 -> -0.04968265669 | E79: =IF(AND($G$5="No",$G$6="No",$G$7="No"),'GF diets No L-Val'!AF$270-'GF diets No L-Val'!D$270,IF(AND($G$5="Yes",$G$6="No",$G$7="No"),'GF diets No L-Val + Fat'!AF$270-'GF diets No L-Val + Fat'!D$270,IF(AND($G$5="No",$G$6="No",$G$7="Yes"),'GF diets L-Val'!AF$270-'GF diets L-Val'!D$270,IF(AND($G$5="Yes",$G$6="No",$G$7="Yes"),'GF diets L-Val + Fat'!AF$270-'GF diets L-Val + Fat'!D$270,IF(AND($G$5="No",$G$6="Yes",$G$7="No"),'GF diets No L-Val + WD'!AF$270-'GF diets No L-Val + WD'!D$270,IF(AND($G$5="Yes",$G$6="Yes",$G$7="No"),'GF diets No L-Val + Fat + WD'!AF$270-'GF diets No L-Val + Fat + WD'!D$270,IF(AND($G$5="No",$G$6="Yes",$G$7="Yes"),'GF diets L-Val + WD'!AF$270-'GF diets L-Val + WD'!D$270,IF(AND($G$5="Yes",$G$6="Yes",$G$7="Yes"),'GF diets L-Val + Fat + WD'!AF$270-'GF diets L-Val + Fat + WD'!D$270))))))))*-1 -> -0.05594917735 | F79: =IF(AND($G$5="No",$G$6="No",$G$7="No"),'GF diets No L-Val'!AG$270-'GF diets No L-Val'!E$270,IF(AND($G$5="Yes",$G$6="No",$G$7="No"),'GF diets No L-Val + Fat'!AG$270-'GF diets No L-Val + Fat'!E$270,IF(AND($G$5="No",$G$6="No",$G$7="Yes"),'GF diets L-Val'!AG$270-'GF diets L-Val'!E$270,IF(AND($G$5="Yes",$G$6="No",$G$7="Yes"),'GF diets L-Val + Fat'!AG$270-'GF diets L-Val + Fat'!E$270,IF(AND($G$5="No",$G$6="Yes",$G$7="No"),'GF diets No L-Val + WD'!AG$270-'GF diets No L-Val + WD'!E$270,IF(AND($G$5="Yes",$G$6="Yes",$G$7="No"),'GF diets No L-Val + Fat + WD'!AG$270-'GF diets No L-Val + Fat + WD'!E$270,IF(AND($G$5="No",$G$6="Yes",$G$7="Yes"),'GF diets L-Val + WD'!AG$270-'GF diets L-Val + WD'!E$270,IF(AND($G$5="Yes",$G$6="Yes",$G$7="Yes"),'GF diets L-Val + Fat + WD'!AG$270-'GF diets L-Val + Fat + WD'!E$270))))))))*-1 -> -0.07136178468 | G79: =IF(AND($G$5="No",$G$6="No",$G$7="No"),'GF diets No L-Val'!AH$270-'GF diets No L-Val'!F$270,IF(AND($G$5="Yes",$G$6="No",$G$7="No"),'GF diets No L-Val + Fat'!AH$270-'GF diets No L-Val + Fat'!F$270,IF(AND($G$5="No",$G$6="No",$G$7="Yes"),'GF diets L-Val'!AH$270-'GF diets L-Val'!F$270,IF(AND($G$5="Yes",$G$6="No",$G$7="Yes"),'GF diets L-Val + Fat'!AH$270-'GF diets L-Val + Fat'!F$270,IF(AND($G$5="No",$G$6="Yes",$G$7="No"),'GF diets No L-Val + WD'!AH$270-'GF diets No L-Val + WD'!F$270,IF(AND($G$5="Yes",$G$6="Yes",$G$7="No"),'GF diets No L-Val + Fat + WD'!AH$270-'GF diets No L-Val + Fat + WD'!F$270,IF(AND($G$5="No",$G$6="Yes",$G$7="Yes"),'GF diets L-Val + WD'!AH$270-'GF diets L-Val + WD'!F$270,IF(AND($G$5="Yes",$G$6="Yes",$G$7="Yes"),'GF diets L-Val + Fat + WD'!AH$270-'GF diets L-Val + Fat + WD'!F$270))))))))*-1 -> -0.11440661 | H79: =IF(AND($G$5="No",$G$6="No",$G$7="No"),'GF diets No L-Val'!AI$270-'GF diets No L-Val'!G$270,IF(AND($G$5="Yes",$G$6="No",$G$7="No"),'GF diets No L-Val + Fat'!AI$270-'GF diets No L-Val + Fat'!G$270,IF(AND($G$5="No",$G$6="No",$G$7="Yes"),'GF diets L-Val'!AI$270-'GF diets L-Val'!G$270,IF(AND($G$5="Yes",$G$6="No",$G$7="Yes"),'GF diets L-Val + Fat'!AI$270-'GF diets L-Val + Fat'!G$270,IF(AND($G$5="No",$G$6="Yes",$G$7="No"),'GF diets No L-Val + WD'!AI$270-'GF diets No L-Val + WD'!G$270,IF(AND($G$5="Yes",$G$6="Yes",$G$7="No"),'GF diets No L-Val + Fat + WD'!AI$270-'GF diets No L-Val + Fat + WD'!G$270,IF(AND($G$5="No",$G$6="Yes",$G$7="Yes"),'GF diets L-Val + WD'!AI$270-'GF diets L-Val + WD'!G$270,IF(AND($G$5="Yes",$G$6="Yes",$G$7="Yes"),'GF diets L-Val + Fat + WD'!AI$270-'GF diets L-Val + Fat + WD'!G$270))))))))*-1 -> -0.1636040315 | I79: -0.503232535 | J79: =I79-I78 -> -0.1845044863
B80: 25% DDGS | C80: =IF(AND($G$5="No",$G$6="No",$G$7="No"),'GF diets No L-Val'!AK$270-'GF diets No L-Val'!B$270,IF(AND($G$5="Yes",$G$6="No",$G$7="No"),'GF diets No L-Val + Fat'!AK$270-'GF diets No L-Val + Fat'!B$270,IF(AND($G$5="No",$G$6="No",$G$7="Yes"),'GF diets L-Val'!AK$270-'GF diets L-Val'!B$270,IF(AND($G$5="Yes",$G$6="No",$G$7="Yes"),'GF diets L-Val + Fat'!AK$270-'GF diets L-Val + Fat'!B$270,IF(AND($G$5="No",$G$6="Yes",$G$7="No"),'GF diets No L-Val + WD'!AK$270-'GF diets No L-Val + WD'!B$270,IF(AND($G$5="Yes",$G$6="Yes",$G$7="No"),'GF diets No L-Val + Fat + WD'!AK$270-'GF diets No L-Val + Fat + WD'!B$270,IF(AND($G$5="No",$G$6="Yes",$G$7="Yes"),'GF diets L-Val + WD'!AK$270-'GF diets L-Val + WD'!B$270,IF(AND($G$5="Yes",$G$6="Yes",$G$7="Yes"),'GF diets L-Val + Fat + WD'!AK$270-'GF diets L-Val + Fat + WD'!B$270))))))))*-1 -> -0.07426097159 | D80: =IF(AND($G$5="No",$G$6="No",$G$7="No"),'GF diets No L-Val'!AL$270-'GF diets No L-Val'!C$270,IF(AND($G$5="Yes",$G$6="No",$G$7="No"),'GF diets No L-Val + Fat'!AL$270-'GF diets No L-Val + Fat'!C$270,IF(AND($G$5="No",$G$6="No",$G$7="Yes"),'GF diets L-Val'!AL$270-'GF diets L-Val'!C$270,IF(AND($G$5="Yes",$G$6="No",$G$7="Yes"),'GF diets L-Val + Fat'!AL$270-'GF diets L-Val + Fat'!C$270,IF(AND($G$5="No",$G$6="Yes",$G$7="No"),'GF diets No L-Val + WD'!AL$270-'GF diets No L-Val + WD'!C$270,IF(AND($G$5="Yes",$G$6="Yes",$G$7="No"),'GF diets No L-Val + Fat + WD'!AL$270-'GF diets No L-Val + Fat + WD'!C$270,IF(AND($G$5="No",$G$6="Yes",$G$7="Yes"),'GF diets L-Val + WD'!AL$270-'GF diets L-Val + WD'!C$270,IF(AND($G$5="Yes",$G$6="Yes",$G$7="Yes"),'GF diets L-Val + Fat + WD'!AL$270-'GF diets L-Val + Fat + WD'!C$270))))))))*-1 -> -0.06214231723 | E80: =IF(AND($G$5="No",$G$6="No",$G$7="No"),'GF diets No L-Val'!AM$270-'GF diets No L-Val'!D$270,IF(AND($G$5="Yes",$G$6="No",$G$7="No"),'GF diets No L-Val + Fat'!AM$270-'GF diets No L-Val + Fat'!D$270,IF(AND($G$5="No",$G$6="No",$G$7="Yes"),'GF diets L-Val'!AM$270-'GF diets L-Val'!D$270,IF(AND($G$5="Yes",$G$6="No",$G$7="Yes"),'GF diets L-Val + Fat'!AM$270-'GF diets L-Val + Fat'!D$270,IF(AND($G$5="No",$G$6="Yes",$G$7="No"),'GF diets No L-Val + WD'!AM$270-'GF diets No L-Val + WD'!D$270,IF(AND($G$5="Yes",$G$6="Yes",$G$7="No"),'GF diets No L-Val + Fat + WD'!AM$270-'GF diets No L-Val + Fat + WD'!D$270,IF(AND($G$5="No",$G$6="Yes",$G$7="Yes"),'GF diets L-Val + WD'!AM$270-'GF diets L-Val + WD'!D$270,IF(AND($G$5="Yes",$G$6="Yes",$G$7="Yes"),'GF diets L-Val + Fat + WD'!AM$270-'GF diets L-Val + Fat + WD'!D$270))))))))*-1 -> -0.08346651033 | F80: =IF(AND($G$5="No",$G$6="No",$G$7="No"),'GF diets No L-Val'!AN$270-'GF diets No L-Val'!E$270,IF(AND($G$5="Yes",$G$6="No",$G$7="No"),'GF diets No L-Val + Fat'!AN$270-'GF diets No L-Val + Fat'!E$270,IF(AND($G$5="No",$G$6="No",$G$7="Yes"),'GF diets L-Val'!AN$270-'GF diets L-Val'!E$270,IF(AND($G$5="Yes",$G$6="No",$G$7="Yes"),'GF diets L-Val + Fat'!AN$270-'GF diets L-Val + Fat'!E$270,IF(AND($G$5="No",$G$6="Yes",$G$7="No"),'GF diets No L-Val + WD'!AN$270-'GF diets No L-Val + WD'!E$270,IF(AND($G$5="Yes",$G$6="Yes",$G$7="No"),'GF diets No L-Val + Fat + WD'!AN$270-'GF diets No L-Val + Fat + WD'!E$270,IF(AND($G$5="No",$G$6="Yes",$G$7="Yes"),'GF diets L-Val + WD'!AN$270-'GF diets L-Val + WD'!E$270,IF(AND($G$5="Yes",$G$6="Yes",$G$7="Yes"),'GF diets L-Val + Fat + WD'!AN$270-'GF diets L-Val + Fat + WD'!E$270))))))))*-1 -> -0.1110979507 | G80: =IF(AND($G$5="No",$G$6="No",$G$7="No"),'GF diets No L-Val'!AO$270-'GF diets No L-Val'!F$270,IF(AND($G$5="Yes",$G$6="No",$G$7="No"),'GF diets No L-Val + Fat'!AO$270-'GF diets No L-Val + Fat'!F$270,IF(AND($G$5="No",$G$6="No",$G$7="Yes"),'GF diets L-Val'!AO$270-'GF diets L-Val'!F$270,IF(AND($G$5="Yes",$G$6="No",$G$7="Yes"),'GF diets L-Val + Fat'!AO$270-'GF diets L-Val + Fat'!F$270,IF(AND($G$5="No",$G$6="Yes",$G$7="No"),'GF diets No L-Val + WD'!AO$270-'GF diets No L-Val + WD'!F$270,IF(AND($G$5="Yes",$G$6="Yes",$G$7="No"),'GF diets No L-Val + Fat + WD'!AO$270-'GF diets No L-Val + Fat + WD'!F$270,IF(AND($G$5="No",$G$6="Yes",$G$7="Yes"),'GF diets L-Val + WD'!AO$270-'GF diets L-Val + WD'!F$270,IF(AND($G$5="Yes",$G$6="Yes",$G$7="Yes"),'GF diets L-Val + Fat + WD'!AO$270-'GF diets L-Val + Fat + WD'!F$270))))))))*-1 -> -0.1736366345 | H80: =IF(AND($G$5="No",$G$6="No",$G$7="No"),'GF diets No L-Val'!AP$270-'GF diets No L-Val'!G$270,IF(AND($G$5="Yes",$G$6="No",$G$7="No"),'GF diets No L-Val + Fat'!AP$270-'GF diets No L-Val + Fat'!G$270,IF(AND($G$5="No",$G$6="No",$G$7="Yes"),'GF diets L-Val'!AP$270-'GF diets L-Val'!G$270,IF(AND($G$5="Yes",$G$6="No",$G$7="Yes"),'GF diets L-Val + Fat'!AP$270-'GF diets L-Val + Fat'!G$270,IF(AND($G$5="No",$G$6="Yes",$G$7="No"),'GF diets No L-Val + WD'!AP$270-'GF diets No L-Val + WD'!G$270,IF(AND($G$5="Yes",$G$6="Yes",$G$7="No"),'GF diets No L-Val + Fat + WD'!AP$270-'GF diets No L-Val + Fat + WD'!G$270,IF(AND($G$5="No",$G$6="Yes",$G$7="Yes"),'GF diets L-Val + WD'!AP$270-'GF diets L-Val + WD'!G$270,IF(AND($G$5="Yes",$G$6="Yes",$G$7="Yes"),'GF diets L-Val + Fat + WD'!AP$270-'GF diets L-Val + Fat + WD'!G$270))))))))*-1 -> -0.2374063806 | I80: -0.742010765 | J80: =I80-I79 -> -0.23877823
B81: 30% DDGS | C81: =IF(AND($G$5="No",$G$6="No",$G$7="No"),'GF diets No L-Val'!AR$270-'GF diets No L-Val'!B$270,IF(AND($G$5="Yes",$G$6="No",$G$7="No"),'GF diets No L-Val + Fat'!AR$270-'GF diets No L-Val + Fat'!B$270,IF(AND($G$5="No",$G$6="No",$G$7="Yes"),'GF diets L-Val'!AR$270-'GF diets L-Val'!B$270,IF(AND($G$5="Yes",$G$6="No",$G$7="Yes"),'GF diets L-Val + Fat'!AR$270-'GF diets L-Val + Fat'!B$270,IF(AND($G$5="No",$G$6="Yes",$G$7="No"),'GF diets No L-Val + WD'!AR$270-'GF diets No L-Val + WD'!B$270,IF(AND($G$5="Yes",$G$6="Yes",$G$7="No"),'GF diets No L-Val + Fat + WD'!AR$270-'GF diets No L-Val + Fat + WD'!B$270,IF(AND($G$5="No",$G$6="Yes",$G$7="Yes"),'GF diets L-Val + WD'!AR$270-'GF diets L-Val + WD'!B$270,IF(AND($G$5="Yes",$G$6="Yes",$G$7="Yes"),'GF diets L-Val + Fat + WD'!AR$270-'GF diets L-Val + Fat + WD'!B$270))))))))*-1 -> -0.08383820688 | D81: =IF(AND($G$5="No",$G$6="No",$G$7="No"),'GF diets No L-Val'!AS$270-'GF diets No L-Val'!C$270,IF(AND($G$5="Yes",$G$6="No",$G$7="No"),'GF diets No L-Val + Fat'!AS$270-'GF diets No L-Val + Fat'!C$270,IF(AND($G$5="No",$G$6="No",$G$7="Yes"),'GF diets L-Val'!AS$270-'GF diets L-Val'!C$270,IF(AND($G$5="Yes",$G$6="No",$G$7="Yes"),'GF diets L-Val + Fat'!AS$270-'GF diets L-Val + Fat'!C$270,IF(AND($G$5="No",$G$6="Yes",$G$7="No"),'GF diets No L-Val + WD'!AS$270-'GF diets No L-Val + WD'!C$270,IF(AND($G$5="Yes",$G$6="Yes",$G$7="No"),'GF diets No L-Val + Fat + WD'!AS$270-'GF diets No L-Val + Fat + WD'!C$270,IF(AND($G$5="No",$G$6="Yes",$G$7="Yes"),'GF diets L-Val + WD'!AS$270-'GF diets L-Val + WD'!C$270,IF(AND($G$5="Yes",$G$6="Yes",$G$7="Yes"),'GF diets L-Val + Fat + WD'!AS$270-'GF diets L-Val + Fat + WD'!C$270))))))))*-1 -> -0.07490385307 | E81: =IF(AND($G$5="No",$G$6="No",$G$7="No"),'GF diets No L-Val'!AT$270-'GF diets No L-Val'!D$270,IF(AND($G$5="Yes",$G$6="No",$G$7="No"),'GF diets No L-Val + Fat'!AT$270-'GF diets No L-Val + Fat'!D$270,IF(AND($G$5="No",$G$6="No",$G$7="Yes"),'GF diets L-Val'!AT$270-'GF diets L-Val'!D$270,IF(AND($G$5="Yes",$G$6="No",$G$7="Yes"),'GF diets L-Val + Fat'!AT$270-'GF diets L-Val + Fat'!D$270,IF(AND($G$5="No",$G$6="Yes",$G$7="No"),'GF diets No L-Val + WD'!AT$270-'GF diets No L-Val + WD'!D$270,IF(AND($G$5="Yes",$G$6="Yes",$G$7="No"),'GF diets No L-Val + Fat + WD'!AT$270-'GF diets No L-Val + Fat + WD'!D$270,IF(AND($G$5="No",$G$6="Yes",$G$7="Yes"),'GF diets L-Val + WD'!AT$270-'GF diets L-Val + WD'!D$270,IF(AND($G$5="Yes",$G$6="Yes",$G$7="Yes"),'GF diets L-Val + Fat + WD'!AT$270-'GF diets L-Val + Fat + WD'!D$270))))))))*-1 -> -0.112425273 | F81: =IF(AND($G$5="No",$G$6="No",$G$7="No"),'GF diets No L-Val'!AU$270-'GF diets No L-Val'!E$270,IF(AND($G$5="Yes",$G$6="No",$G$7="No"),'GF diets No L-Val + Fat'!AU$270-'GF diets No L-Val + Fat'!E$270,IF(AND($G$5="No",$G$6="No",$G$7="Yes"),'GF diets L-Val'!AU$270-'GF diets L-Val'!E$270,IF(AND($G$5="Yes",$G$6="No",$G$7="Yes"),'GF diets L-Val + Fat'!AU$270-'GF diets L-Val + Fat'!E$270,IF(AND($G$5="No",$G$6="Yes",$G$7="No"),'GF diets No L-Val + WD'!AU$270-'GF diets No L-Val + WD'!E$270,IF(AND($G$5="Yes",$G$6="Yes",$G$7="No"),'GF diets No L-Val + Fat + WD'!AU$270-'GF diets No L-Val + Fat + WD'!E$270,IF(AND($G$5="No",$G$6="Yes",$G$7="Yes"),'GF diets L-Val + WD'!AU$270-'GF diets L-Val + WD'!E$270,IF(AND($G$5="Yes",$G$6="Yes",$G$7="Yes"),'GF diets L-Val + Fat + WD'!AU$270-'GF diets L-Val + Fat + WD'!E$270))))))))*-1 -> -0.1663894839 | G81: =IF(AND($G$5="No",$G$6="No",$G$7="No"),'GF diets No L-Val'!AV$270-'GF diets No L-Val'!F$270,IF(AND($G$5="Yes",$G$6="No",$G$7="No"),'GF diets No L-Val + Fat'!AV$270-'GF diets No L-Val + Fat'!F$270,IF(AND($G$5="No",$G$6="No",$G$7="Yes"),'GF diets L-Val'!AV$270-'GF diets L-Val'!F$270,IF(AND($G$5="Yes",$G$6="No",$G$7="Yes"),'GF diets L-Val + Fat'!AV$270-'GF diets L-Val + Fat'!F$270,IF(AND($G$5="No",$G$6="Yes",$G$7="No"),'GF diets No L-Val + WD'!AV$270-'GF diets No L-Val + WD'!F$270,IF(AND($G$5="Yes",$G$6="Yes",$G$7="No"),'GF diets No L-Val + Fat + WD'!AV$270-'GF diets No L-Val + Fat + WD'!F$270,IF(AND($G$5="No",$G$6="Yes",$G$7="Yes"),'GF diets L-Val + WD'!AV$270-'GF diets L-Val + WD'!F$270,IF(AND($G$5="Yes",$G$6="Yes",$G$7="Yes"),'GF diets L-Val + Fat + WD'!AV$270-'GF diets L-Val + Fat + WD'!F$270))))))))*-1 -> -0.2320628802 | H81: =IF(AND($G$5="No",$G$6="No",$G$7="No"),'GF diets No L-Val'!AW$270-'GF diets No L-Val'!G$270,IF(AND($G$5="Yes",$G$6="No",$G$7="No"),'GF diets No L-Val + Fat'!AW$270-'GF diets No L-Val + Fat'!G$270,IF(AND($G$5="No",$G$6="No",$G$7="Yes"),'GF diets L-Val'!AW$270-'GF diets L-Val'!G$270,IF(AND($G$5="Yes",$G$6="No",$G$7="Yes"),'GF diets L-Val + Fat'!AW$270-'GF diets L-Val + Fat'!G$270,IF(AND($G$5="No",$G$6="Yes",$G$7="No"),'GF diets No L-Val + WD'!AW$270-'GF diets No L-Val + WD'!G$270,IF(AND($G$5="Yes",$G$6="Yes",$G$7="No"),'GF diets No L-Val + Fat + WD'!AW$270-'GF diets No L-Val + Fat + WD'!G$270,IF(AND($G$5="No",$G$6="Yes",$G$7="Yes"),'GF diets L-Val + WD'!AW$270-'GF diets L-Val + WD'!G$270,IF(AND($G$5="Yes",$G$6="Yes",$G$7="Yes"),'GF diets L-Val + Fat + WD'!AW$270-'GF diets L-Val + Fat + WD'!G$270))))))))*-1 -> -0.3100539071 | I81: -0.9796736041 | J81: =I81-I80 -> -0.2376628391

Sheet Performance (hidden)
A1: Yield | I1: NDF | Q1: HCW | Y1: ADG | AG1: GF | AO1: FG | AW1: BW | BF1: BW Gain | BN1: BW, Yield, and HCW Change with changing DDGS Levels
A2: GF No L-Val | I2: GF No L-Val | Q2: GF No L-Val | Y2: GF No L-Val | AG2: GF No L-Val | AO2: GF No L-Val | AW2: GF No L-Val | BF2: GF No L-Val | BO2: GF No L-Val
B3: Phase 1 | C3: Phase 2 | D3: Phase 3 | E3: Phase 4 | F3: Phase 5 | G3: Phase 6 | J3: Phase 1 | K3: Phase 2 | L3: Phase 3 | M3: Phase 4 | N3: Phase 5 | O3: Phase 6 | R3: Phase 1 | S3: Phase 2 | T3: Phase 3 | U3: Phase 4 | V3: Phase 5 | W3: Phase 6 | Z3: Phase 1 | AA3: Phase 2 | AB3: Phase 3 | AC3: Phase 4 | AD3: Phase 5 | AE3: Phase 6 | AH3: Phase 1 | AI3: Phase 2 | AJ3: Phase 3 | AK3: Phase 4 | AL3: Phase 5 | AM3: Phase 6 | AP3: Phase 1 | AQ3: Phase 2 | AR3: Phase 3 | AS3: Phase 4 | AT3: Phase 5 | AU3: Phase 6 | AX3: Phase 1 | AY3: Phase 2 | AZ3: Phase 3 | BA3: Phase 4 | BB3: Phase 5 | BC3: Phase 6 | BG3: Phase 1 | BH3: Phase 2 | BI3: Phase 3 | BJ3: Phase 4 | BK3: Phase 5 | BL3: Phase 6 | BO3: Phase 1 | BP3: Phase 2 | BQ3: Phase 3 | BR3: Phase 4 | BS3: Phase 5 | BT3: Phase 6
A4: 0 | B4: ='GF diets No L-Val'!B$353 -> 75.02973599 | C4: ='GF diets No L-Val'!C$353 -> 75.02475689 | D4: ='GF diets No L-Val'!D$353 -> 75.01663311 | E4: ='GF diets No L-Val'!E$353 -> 75.00967628 | F4: ='GF diets No L-Val'!F$353 -> 75.00416808 | G4: ='GF diets No L-Val'!G$353 -> 75.00091016 | I4: 0 | J4: ='GF diets No L-Val'!B$316 -> 8.567553711 | K4: ='GF diets No L-Val'!C$316 -> 8.639745936 | L4: ='GF diets No L-Val'!D$316 -> 8.704234094 | M4: ='GF diets No L-Val'!E$316 -> 8.757490503 | N4: ='GF diets No L-Val'!F$316 -> 8.798035497 | O4: ='GF diets No L-Val'!G$316 -> 8.815338141 | Q4: 0 | R4: ='GF diets No L-Val'!B$351*'GF diets No L-Val'!B$353/100 -> 63.77522294 | S4: ='GF diets No L-Val'!C$351*'GF diets No L-Val'!C$353/100 -> 90.02965562 | T4: ='GF diets No L-Val'!D$351*'GF diets No L-Val'!D$353/100 -> 120.0265528 | U4: ='GF diets No L-Val'!E$351*'GF diets No L-Val'!E$353/100 -> 150.0192924 | V4: ='GF diets No L-Val'!F$351*'GF diets No L-Val'!F$353/100 -> 180.0099432 | W4: ='GF diets No L-Val'!G$351*'GF diets No L-Val'!G$353/100 -> 213.7525263 | Y4: 0 | Z4: ='GF diets No L-Val'!B$342 -> 757.4663555 | AA4: ='GF diets No L-Val'!C$342 -> 870.4232652 | AB4: ='GF diets No L-Val'!D$342 -> 946.2188873 | AC4: ='GF diets No L-Val'!E$342 -> 982.6155731 | AD4: ='GF diets No L-Val'!F$342 -> 976.6363762 | AE4: ='GF diets No L-Val'!G$342 -> 919.7477969 | AG4: 0 | AH4: ='GF diets No L-Val'!B$344 -> 541.4812388 | AI4: ='GF diets No L-Val'!C$344 -> 471.0510686 | AJ4: ='GF diets No L-Val'!D$344 -> 410.0234038 | AK4: ='GF diets No L-Val'!E$344 -> 360.7957609 | AL4: ='GF diets No L-Val'!F$344 -> 326.2832886 | AM4: ='GF diets No L-Val'!G$344 -> 301.1277443 | AO4: 0 | AP4: =1/(AH4/1000) -> 1.846786054 | AQ4: =1/(AI4/1000) -> 2.122912072 | AR4: =1/(AJ4/1000) -> 2.438885173 | AS4: =1/(AK4/1000) -> 2.77165119 | AT4: =1/(AL4/1000) -> 3.064821384 | AU4: =1/(AM4/1000) -> 3.320849769 | AW4: 0 | AX4: ='GF diets No L-Val'!B$351 -> 84.99992983 | AY4: ='GF diets No L-Val'!C$351 -> 119.9999298 | AZ4: ='GF diets No L-Val'!D$351 -> 159.9999198 | BA4: ='GF diets No L-Val'!E$351 -> 199.9999198 | BB4: ='GF diets No L-Val'!F$351 -> 239.9999198 | BC4: ='GF diets No L-Val'!G$351 -> 284.9999098 | BF4: 0 | BG4: =AX4-50 -> 34.99992983 | BH4: =AY4-AX4 -> 35 | BI4: =AZ4-120 -> 39.9999198 | BJ4: =BA4-160 -> 39.9999198 | BK4: =BB4-200 -> 39.9999198 | BL4: =BC4-240 -> 44.99990978 | BN4: BW, lb | BO4: =VLOOKUP('DDGS Calculator'!$C$31,Performance!AW4:AX10,2,FALSE) -> 84.99992983 | BP4: =BO4+VLOOKUP('DDGS Calculator'!$D$31,Performance!BF4:BL10,3,FALSE) -> 119.9999298 | BQ4: =BP4+VLOOKUP('DDGS Calculator'!$E$31,Performance!BF4:BL10,4,FALSE) -> 159.9998496 | BR4: =BQ4+(VLOOKUP('DDGS Calculator'!$F$31,Performance!BF4:BL10,5,FALSE)) -> 199.9997694 | BS4: =BR4+VLOOKUP('DDGS Calculator'!$G$31,Performance!BF4:BL10,6,FALSE) -> 239.9996892 | BT4: =BS4+VLOOKUP('DDGS Calculator'!$H$31,Performance!BF4:BL10,7,FALSE) -> 284.999599
A5: 0.05 | B5: ='GF diets No L-Val'!I$353 -> 74.88529974 | C5: ='GF diets No L-Val'!J$353 -> 74.88036969 | D5: ='GF diets No L-Val'!K$353 -> 74.87232189 | E5: ='GF diets No L-Val'!L$353 -> 74.86528323 | F5: ='GF diets No L-Val'!M$353 -> 74.85973369 | G5: ='GF diets No L-Val'!N$353 -> 74.85648136 | I5: 0.05 | J5: ='GF diets No L-Val'!I$316 -> 9.772293422 | K5: ='GF diets No L-Val'!J$316 -> 9.843774595 | L5: ='GF diets No L-Val'!K$316 -> 9.907686039 | M5: ='GF diets No L-Val'!L$316 -> 9.962554747 | N5: ='GF diets No L-Val'!M$316 -> 10.00250872 | O5: ='GF diets No L-Val'!N$316 -> 10.0201667 | Q5: 0.05 | R5: ='GF diets No L-Val'!I$351*'GF diets No L-Val'!I$353/100 -> 63.48376945 | S5: ='GF diets No L-Val'!J$351*'GF diets No L-Val'!J$353/100 -> 89.69573335 | T5: ='GF diets No L-Val'!K$351*'GF diets No L-Val'!K$353/100 -> 119.5991181 | U5: ='GF diets No L-Val'!L$351*'GF diets No L-Val'!L$353/100 -> 149.4921928 | V5: ='GF diets No L-Val'!M$351*'GF diets No L-Val'!M$353/100 -> 179.3412083 | W5: ='GF diets No L-Val'!N$351*'GF diets No L-Val'!N$353/100 -> 212.8248476 | Y5: 0.05 | Z5: ='GF diets No L-Val'!I$342 -> 752.5914131 | AA5: ='GF diets No L-Val'!J$342 -> 865.0875077 | AB5: ='GF diets No L-Val'!K$342 -> 940.0094206 | AC5: ='GF diets No L-Val'!L$342 -> 974.7958389 | AD5: ='GF diets No L-Val'!M$342 -> 966.1311541 | AE5: ='GF diets No L-Val'!N$342 -> 905.6573656 | AG5: 0.05 | AH5: ='GF diets No L-Val'!I$344 -> 541.8215089 | AI5: ='GF diets No L-Val'!J$344 -> 471.249934 | AJ5: ='GF diets No L-Val'!K$344 -> 409.9445304 | AK5: ='GF diets No L-Val'!L$344 -> 360.093263 | AL5: ='GF diets No L-Val'!M$344 -> 324.2431251 | AM5: ='GF diets No L-Val'!N$344 -> 297.0629604 | AO5: 0.05 | AP5: 1.845626251 | AQ5: 2.122016212 | AR5: 2.439354414 | AS5: 2.777058342 | AT5: 3.084105483 | AU5: 3.366289755 | AW5: 0.05 | AX5: ='GF diets No L-Val'!I$351 -> 84.77467496 | AY5: ='GF diets No L-Val'!J$351 -> 119.7853773 | AZ5: ='GF diets No L-Val'!K$351 -> 159.7374238 | BA5: ='GF diets No L-Val'!L$351 -> 199.6815966 | BB5: ='GF diets No L-Val'!M$351 -> 239.5696585 | BC5: ='GF diets No L-Val'!N$351 -> 284.3105149 | BF5: 0.05 | BG5: =AX5-50 -> 34.77467496 | BH5: =AY5-85 -> 34.7853773 | BI5: =AZ5-120 -> 39.73742381 | BJ5: =BA5-160 -> 39.68159657 | BK5: =BB5-200 -> 39.56965846 | BL5: =BC5-240 -> 44.31051491 | BN5: Yield, % | BT5: =((0.03492*0)-(0.05092*VLOOKUP('DDGS Calculator'!$G$31,Performance!I3:O10,6,FALSE))-(0.06897*VLOOKUP('DDGS Calculator'!$H$31,Performance!I3:O10,7,FALSE))-(0.00289*VLOOKUP('DDGS Calculator'!$H$31,Performance!I3:O10,7,FALSE)*0)+76.0769-(75.02-'DDGS Calculator'!$G$9)) -> 75.00091016
A6: 0.1 | B6: ='GF diets No L-Val'!P$353 -> 74.74098527 | C6: ='GF diets No L-Val'!Q$353 -> 74.73608108 | D6: ='GF diets No L-Val'!R$353 -> 74.72807529 | E6: ='GF diets No L-Val'!S$353 -> 74.721042 | F6: ='GF diets No L-Val'!T$353 -> 74.71555783 | G6: ='GF diets No L-Val'!U$353 -> 74.71238365 | I6: 0.1 | J6: ='GF diets No L-Val'!P$316 -> 10.97601747 | K6: ='GF diets No L-Val'!Q$316 -> 11.04712354 | L6: ='GF diets No L-Val'!R$316 -> 11.11070286 | M6: ='GF diets No L-Val'!S$316 -> 11.16573886 | N6: ='GF diets No L-Val'!T$316 -> 11.20462152 | O6: ='GF diets No L-Val'!U$316 -> 11.22193746 | Q6: 0.1 | R6: ='GF diets No L-Val'!P$351*'GF diets No L-Val'!P$353/100 -> 63.22431233 | S6: ='GF diets No L-Val'!Q$351*'GF diets No L-Val'!Q$353/100 -> 89.39021805 | T6: ='GF diets No L-Val'!R$351*'GF diets No L-Val'!R$353/100 -> 119.1991481 | U6: ='GF diets No L-Val'!S$351*'GF diets No L-Val'!S$353/100 -> 148.9768644 | V6: ='GF diets No L-Val'!T$351*'GF diets No L-Val'!T$353/100 -> 178.6909587 | W6: ='GF diets No L-Val'!U$351*'GF diets No L-Val'!U$353/100 -> 211.9109025 | Y6: 0.1 | Z6: ='GF diets No L-Val'!P$342 -> 748.6211306 | AA6: ='GF diets No L-Val'!Q$342 -> 860.6724828 | AB6: ='GF diets No L-Val'!R$342 -> 934.642113 | AC6: ='GF diets No L-Val'!S$342 -> 967.3229231 | AD6: ='GF diets No L-Val'!T$342 -> 956.1691857 | AE6: ='GF diets No L-Val'!U$342 -> 891.862474 | AG6: 0.1 | AH6: ='GF diets No L-Val'!P$344 -> 541.6611596 | AI6: ='GF diets No L-Val'!Q$344 -> 471.0646474 | AJ6: ='GF diets No L-Val'!R$344 -> 409.5976998 | AK6: ='GF diets No L-Val'!S$344 -> 359.0574908 | AL6: ='GF diets No L-Val'!T$344 -> 322.0901496 | AM6: ='GF diets No L-Val'!U$344 -> 292.88082 | AO6: 0.1 | AP6: 1.846172616 | AQ6: 2.122850877 | AR6: 2.441419961 | AS6: 2.785069315 | AT6: 3.104720841 | AU6: 3.4143581 | AW6: 0.1 | AX6: ='GF diets No L-Val'!P$351 -> 84.59122141 | AY6: ='GF diets No L-Val'!Q$351 -> 119.6078477 | AZ6: ='GF diets No L-Val'!R$351 -> 159.5105288 | BA6: ='GF diets No L-Val'!S$351 -> 199.3773915 | BB6: ='GF diets No L-Val'!T$351 -> 239.1616471 | BC6: ='GF diets No L-Val'!U$351 -> 283.6355798 | BF6: 0.1 | BG6: 34.59122141 | BH6: 34.60784772 | BI6: 39.51052884 | BJ6: 39.37739151 | BK6: 39.16164709 | BL6: 43.63557976 | BN6: HCW, lb | BT6: =BT4*(BT5/100) -> 213.7522932
